Workbook

Sheet Review Video
B4: 1. Fix formatting and new generic macros
B5: 2. Add a button
B6: 3. Clean up Units and Formatting
B7: 4. Investment Account
B8: 5. Addition of Growth | J8: annual | L8: (1+J8)^(1/6)-1
B9: 6. Proof that method works with different time periods
B10: 7. Implications of Risk Premium Method
B12: Themes
B13: Put flag for Pre-COD and Post-COD
B14: Use periods in year variable

Sheet Summary
B20: Project IRR Pre-tax | D20: ='Financial Model'!F29 -> 0.09300350845 | J20: EBITDA | K20: =InputC!F20 -> 100000
B21: Project IRR Post-tax | J21: Cap Exp | K21: =InputC!F19 -> 1000000
B22: Debt IRR Pre-tax | D22: ='Financial Model'!F92 -> 0 | J22: Growth | K22: =InputC!F21 -> 0
B23: Debt IRR Post-tax
B24: Equity IRR | D24: ='Financial Model'!F90 -> 0

Sheet InputC
D2: Scenario | F2: Project IRR | G2: ='Financial Model'!F29 -> 0.09300350845
F3: Rf + Premium | G3: ='Financial Model'!G158 -> 0.07647084663
I4: 1 | J4: 2 | K4: 3 | L4: 4 | M4: 5 | N4: 6 | O4: 7 | P4: 8 | Q4: 9 | R4: 10 | S4: 11 | T4: 12
F5: =INDEX(I5:XFD5,Sensitivity!G50) -> Base Case - Annual | I5: Base Case - Annual | J5: Base Case Alternative Timing | K5: Longer-Construction | L5: Shorter-Life | M5: Higher Capital Expenditure | N5: Lower Base EBITDA | O5: Lower Growth Rate | P5: Base Case Default Analysis | Q5: Break-Even DSCR Case | R5: Break-Even LLCR Case | S5: Break-Even PLCR Case | T5: Loss Case
B6: Timeline
D7: Start Date | E7: Date | F7: 2026-01-01 | I7: 2026-01-01 | J7: 2026-01-01 | P7: 2026-01-01 | Q7: 2026-01-01 | R7: 2026-01-01 | S7: 2026-01-01 | T7: 2026-01-01
D8: Construction months | E8: months | F8: 12 | I8: 12 | J8: 12 | P8: 12 | Q8: 12 | R8: 12 | S8: 12 | T8: 12
D10: Commercial Operation Date | E10: date | F10: 2027-01-01 | I10: =EDATE(I7,I8) -> 2027-01-01 | J10: =EDATE(J7,J8) -> 2027-01-01 | P10: =EDATE(P7,P8) -> 2027-01-01 | Q10: =EDATE(Q7,Q8) -> 2027-01-01 | R10: =EDATE(R7,R8) -> 2027-01-01 | S10: =EDATE(S7,S8) -> 2027-01-01 | T10: =EDATE(T7,T8) -> 2027-01-01
D11: Months in period - construction | E11: months | F11: 12 | I11: 12 | J11: 1 | P11: 12 | Q11: 12 | R11: 12 | S11: 12 | T11: 12
D12: Months in period - operations | E12: months | F12: 12 | I12: 12 | J12: 6 | P12: 12 | Q12: 12 | R12: 12 | S12: 12 | T12: 12
D14: Operations Period | E14: years | F14: 30 | I14: 30 | J14: 30 | P14: 30 | Q14: 30 | R14: 30 | S14: 30 | T14: 30
D15: Operations End Date | E15: date | F15: 2057-01-01 | I15: =EDATE(I10,I14*12) -> 2057-01-01 | J15: =EDATE(J10,J14*12) -> 2057-01-01 | P15: =EDATE(P10,P14*12) -> 2057-01-01 | Q15: =EDATE(Q10,Q14*12) -> 2057-01-01 | R15: =EDATE(R10,R14*12) -> 2057-01-01 | S15: =EDATE(S10,S14*12) -> 2057-01-01 | T15: =EDATE(T10,T14*12) -> 2057-01-01
B17: Operations
D19: Capex | E19: EUR | F19: 1000000 | I19: 1000000 | J19: 1000000 | P19: 1000000 | Q19: 1000000 | R19: 1000000 | S19: 1000000 | T19: 1000000
D20: EBITDA | E20: EUR p.a. | F20: 100000 | I20: 100000 | J20: 100000 | P20: 70000 | Q20: 60891.9955 | R20: 56112.50764 | S20: 43308.41911 | T20: 40000
D21: EBITDA Growth | E21: % p.a. | F21: 0 | I21: 0 | J21: 0.01 | P21: 0.01 | Q21: 0.01 | R21: 0.01 | S21: 0.01 | T21: 0.01
D23: Volatility | E23: % p.a. | F23: 0 | G23: 0 | I23: 0.3 | J23: 0.2 | P23: 0.2 | Q23: 0.2 | R23: 0.2 | S23: 0.2 | T23: 0.2
D24: Mean Reversion | E24: % | F24: 0.1 | G24: 10 | I24: 0 | J24: 0 | P24: 0 | Q24: 0 | R24: 0 | S24: 0 | T24: 0
B26: Valuation
D27: Risk Free Rate | E27: % p.a. | F27: 0.035 | I27: 0.035 | J27: 0.035 | P27: 0.035 | Q27: 0.035 | R27: 0.035 | S27: 0.035 | T27: 0.035
D28: Valuation Discount Rate | E28: % p.a. | F28: 0.06 | I28: 0.06 | J28: 0.06 | P28: 0.06 | Q28: 0.06 | R28: 0.06 | S28: 0.06 | T28: 0.06
B30: Debt Structuring
C31: Max Debt to Capital | E31: % | F31: 0.8 | I31: 0.8 | J31: 0.8 | P31: 0.8 | Q31: 0.8 | R31: 0.8 | S31: 0.8 | T31: 0.8
C32: Min DSCR | E32: x | F32: 1.4 | I32: 1.4 | J32: 1.4 | P32: 1.4 | Q32: 1.4 | R32: 1.4 | S32: 1.4 | T32: 1.4
C34: Debt Tenure | E34: Years | F34: 20 | I34: 20 | J34: 20 | P34: 20 | Q34: 20 | R34: 20 | S34: 20 | T34: 20
C36: Base SOFR Swap Rate | E36: % p.a. | F36: 0.035 | I36: 0.035 | J36: 0.035 | P36: 0.035 | Q36: 0.035 | R36: 0.035 | S36: 0.035 | T36: 0.035
C37: Credit Spread | E37: % p.a. | F37: 0.01 | I37: 0.01 | J37: 0.01 | P37: 0.01 | Q37: 0.01 | R37: 0.01 | S37: 0.01 | T37: 0.01
C39: Pro-Rata Funding | E39: Flag | F39: TRUE | I39: TRUE | J39: TRUE | P39: TRUE | Q39: TRUE | R39: TRUE | S39: TRUE | T39: TRUE
C40: Equity Up-front | E40: Flag | F40: FALSE | I40: =NOT(I39) -> FALSE | J40: =NOT(J39) -> FALSE | P40: =NOT(P39) -> FALSE | Q40: =NOT(Q39) -> FALSE | R40: =NOT(R39) -> FALSE | S40: =NOT(S39) -> FALSE | T40: =NOT(T39) -> FALSE
B42: Constants
D43: Months in a year | F43: 12 | G43: months
D44: One Range Name | F44: 1 | G44: One
D101: =TRANSPOSE(I5:AK5) -> Base Case - Annual
D102: Base Case Alternative Timing
D103: Longer-Construction
D104: Shorter-Life
D105: Higher Capital Expenditure
D106: Lower Base EBITDA
D107: Lower Growth Rate
D108: Base Case Default Analysis
D109: Break-Even DSCR Case
D110: Break-Even LLCR Case
D111: Break-Even PLCR Case
D112: Loss Case
D113: 0
D114: 0
D115: 0
D116: 0
D117: 0
D118: 0
D119: 0
D120: 0
D121: 0
D122: 0
D123: 0
D124: 0
D125: 0
D126: 0
D127: 0
D128: 0
D129: 0

Sheet Financial Model
B2: Timeline | E2: Input Units | F2: Constants | G2: Constants | H2: Sum | I2: Model Units | J2: Initial
D3: Time Period | I3: Period | K3: 1 | L3: 2 | M3: 3 | N3: 4 | O3: 5 | P3: 6 | Q3: 7 | R3: 8 | S3: 9 | T3: 10 | U3: 11 | V3: 12 | W3: 13 | X3: 14 | Y3: 15 | Z3: 16 | AA3: 17 | AB3: 18 | AC3: 19 | AD3: 20 | AE3: 21 | AF3: 22 | AG3: 23 | AH3: 24 | AI3: 25 | AJ3: 26 | AK3: 27 | AL3: 28 | AM3: 29 | AN3: 30 | AO3: 31 | AP3: 32 | AQ3: 33 | AR3: 34 | AS3: 35 | AT3: 36 | AU3: 37 | AV3: 38 | AW3: 39 | AX3: 40 | AY3: 41 | AZ3: 42 | BA3: 43 | BB3: 44 | BC3: 45 | BD3: 46 | BE3: 47 | BF3: 48 | BG3: 49 | BH3: 50 | BI3: 51 | BJ3: 52 | BK3: 53 | BL3: 54 | BM3: 55 | BN3: 56 | BO3: 57 | BP3: 58 | BQ3: 59 | BR3: 60 | BS3: 61 | BT3: 62 | BU3: 63 | BV3: 64 | BW3: 65 | BX3: 66 | BY3: 67 | BZ3: 68 | CA3: 69 | CB3: 70 | CC3: 71 | CD3: 72 | CE3: 73 | CF3: 74 | CG3: 75 | CH3: 76 | CI3: 77 | CJ3: 78 | CK3: 79 | CL3: 80 | CM3: 81 | CN3: 82 | CO3: 83 | CP3: 84 | CQ3: 85 | CR3: 86 | CS3: 87 | CT3: 88 | CU3: 89 | CV3: 90 | CW3: 91 | CX3: 92 | CY3: 93 | CZ3: 94 | DA3: 95 | DB3: 96 | DC3: 97 | DD3: 98 | DE3: 99 | DF3: 100 | DG3: 101 | DH3: 102 | DI3: 103 | DJ3: 104 | DK3: 105 | DL3: 106 | DM3: 107 | DN3: 108 | DO3: 109 | DP3: 110 | DQ3: 111 | DR3: 112 | DS3: 113 | DT3: 114 | DU3: 115 | DV3: 116 | DW3: 117 | DX3: 118 | DY3: 119 | DZ3: 120 | EA3: 121 | EB3: 122 | EC3: 123 | ED3: 124 | EE3: 125 | EF3: 126 | EG3: 127 | EH3: 128 | EI3: 129 | EJ3: 130 | EK3: 131 | EL3: 132 | EM3: 133 | EN3: 134 | EO3: 135 | EP3: 136 | EQ3: 137 | ER3: 138 | ES3: 139 | ET3: 140 | EU3: 141 | EV3: 142 | EW3: 143 | EX3: 144 | EY3: 145 | EZ3: 146 | FA3: 147 | FB3: 148 | FC3: 149 | FD3: 150 | FE3: 151 | FF3: 152 | FG3: 153 | FH3: 154 | FI3: 155 | FJ3: 156 | FK3: 157 | FL3: 158 | FM3: 159 | FN3: 160 | FO3: 161 | FP3: 162 | FQ3: 163 | FR3: 164 | FS3: 165 | FT3: 166 | FU3: 167 | FV3: 168 | FW3: 169 | FX3: 170 | FY3: 171 | FZ3: 172 | GA3: 173 | GB3: 174 | GC3: 175 | GD3: 176 | GE3: 177 | GF3: 178 | GG3: 179 | GH3: 180 | GI3: 181 | GJ3: 182 | GK3: 183 | GL3: 184 | GM3: 185 | GN3: 186 | GO3: 187 | GP3: 188 | GQ3: 189 | GR3: 190 | GS3: 191 | GT3: 192 | GU3: 193 | GV3: 194 | GW3: 195 | GX3: 196 | GY3: 197 | GZ3: 198 | HA3: 199 | HB3: 200 | HC3: 201 | HD3: 202 | HE3: 203 | HF3: 204 | HG3: 205 | HH3: 206 | HI3: 207 | HJ3: 208 | HK3: 209 | HL3: 210 | HM3: 211 | HN3: 212 | HO3: 213 | HP3: 214 | HQ3: 215 | HR3: 216 | HS3: 217 | HT3: 218 | HU3: 219 | HV3: 220 | HW3: 221 | HX3: 222 | HY3: 223 | HZ3: 224 | IA3: 225 | IB3: 226 | IC3: 227 | ID3: 228 | IE3: 229 | IF3: 230 | IG3: 231 | IH3: 232 | II3: 233 | IJ3: 234 | IK3: 235 | IL3: 236 | IM3: 237 | IN3: 238 | IO3: 239 | IP3: 240 | IQ3: 241 | IR3: 242 | IS3: 243 | IT3: 244 | IU3: 245 | IV3: 246 | IW3: 247 | IX3: 248 | IY3: 249 | IZ3: 250
D4: Construction Periods | E4: Months | F4: =InputC!F8 -> 12
D5: Construction in Periods | E5: Periods | F5: =F4/F6 -> 1 | H5: =SUM(K5:XFD5) -> 1 | I5: Flag | K5: =(K3<=$F$5)*1 -> 1 | L5: =(L3<=$F$5)*1 -> 0 | M5: 0 | N5: 0 | O5: 0 | P5: 0 | Q5: 0 | R5: 0 | S5: 0 | T5: 0 | U5: 0 | V5: 0 | W5: 0 | X5: 0 | Y5: 0 | Z5: 0 | AA5: 0 | AB5: 0 | AC5: 0 | AD5: 0 | AE5: 0 | AF5: 0 | AG5: 0 | AH5: 0 | AI5: 0 | AJ5: 0 | AK5: 0 | AL5: 0 | AM5: 0 | AN5: 0 | AO5: 0 | AP5: 0 | AQ5: 0 | AR5: 0 | AS5: 0 | AT5: 0 | AU5: 0 | AV5: 0 | AW5: 0 | AX5: 0 | AY5: 0 | AZ5: 0 | BA5: 0 | BB5: 0 | BC5: 0 | BD5: 0 | BE5: 0 | BF5: 0 | BG5: 0 | BH5: 0 | BI5: 0 | BJ5: 0 | BK5: 0 | BL5: 0 | BM5: 0 | BN5: 0 | BO5: 0 | BP5: 0 | BQ5: 0 | BR5: 0 | BS5: 0 | BT5: 0 | BU5: 0 | BV5: 0 | BW5: 0 | BX5: =(BX3<=$F$5)*1 -> 0 | BY5: 0 | BZ5: 0 | CA5: 0 | CB5: 0 | CC5: 0 | CD5: 0 | CE5: 0 | CF5: 0 | CG5: 0 | CH5: 0 | CI5: 0 | CJ5: 0 | CK5: 0 | CL5: 0 | CM5: 0 | CN5: 0 | CO5: 0 | CP5: 0 | CQ5: 0 | CR5: 0 | CS5: 0 | CT5: 0 | CU5: 0 | CV5: 0 | CW5: 0 | CX5: 0 | CY5: 0 | CZ5: 0 | DA5: 0 | DB5: 0 | DC5: 0 | DD5: 0 | DE5: 0 | DF5: 0 | DG5: 0 | DH5: 0 | DI5: 0 | DJ5: 0 | DK5: 0 | DL5: 0 | DM5: 0 | DN5: 0 | DO5: 0 | DP5: 0 | DQ5: 0 | DR5: 0 | DS5: 0 | DT5: 0 | DU5: 0 | DV5: 0 | DW5: 0 | DX5: 0 | DY5: 0 | DZ5: 0 | EA5: 0 | EB5: 0 | EC5: 0 | ED5: 0 | EE5: 0 | EF5: 0 | EG5: 0 | EH5: 0 | EI5: 0 | EJ5: =(EJ3<=$F$5)*1 -> 0 | EK5: 0 | EL5: 0 | EM5: 0 | EN5: 0 | EO5: 0 | EP5: 0 | EQ5: 0 | ER5: 0 | ES5: 0 | ET5: 0 | EU5: 0 | EV5: 0 | EW5: 0 | EX5: 0 | EY5: 0 | EZ5: 0 | FA5: 0 | FB5: 0 | FC5: 0 | FD5: 0 | FE5: 0 | FF5: 0 | FG5: 0 | FH5: 0 | FI5: 0 | FJ5: 0 | FK5: 0 | FL5: 0 | FM5: 0 | FN5: 0 | FO5: 0 | FP5: 0 | FQ5: 0 | FR5: 0 | FS5: 0 | FT5: 0 | FU5: 0 | FV5: 0 | FW5: 0 | FX5: 0 | FY5: 0 | FZ5: 0 | GA5: 0 | GB5: 0 | GC5: 0 | GD5: 0 | GE5: 0 | GF5: 0 | GG5: 0 | GH5: 0 | GI5: 0 | GJ5: 0 | GK5: 0 | GL5: 0 | GM5: 0 | GN5: 0 | GO5: 0 | GP5: 0 | GQ5: 0 | GR5: 0 | GS5: 0 | GT5: 0 | GU5: 0 | GV5: =(GV3<=$F$5)*1 -> 0 | GW5: 0 | GX5: 0 | GY5: 0 | GZ5: 0 | HA5: 0 | HB5: 0 | HC5: 0 | HD5: 0 | HE5: 0 | HF5: 0 | HG5: 0 | HH5: 0 | HI5: 0 | HJ5: 0 | HK5: 0 | HL5: 0 | HM5: 0 | HN5: 0 | HO5: 0 | HP5: 0 | HQ5: 0 | HR5: 0 | HS5: 0 | HT5: 0 | HU5: 0 | HV5: 0 | HW5: 0 | HX5: 0 | HY5: 0 | HZ5: 0 | IA5: 0 | IB5: 0 | IC5: 0 | ID5: 0 | IE5: 0 | IF5: 0 | IG5: 0 | IH5: 0 | II5: 0 | IJ5: 0 | IK5: 0 | IL5: 0 | IM5: 0 | IN5: 0 | IO5: 0 | IP5: 0 | IQ5: 0 | IR5: 0 | IS5: 0 | IT5: 0 | IU5: 0 | IV5: 0 | IW5: 0 | IX5: 0 | IY5: 0 | IZ5: 0
D6: Months in period | E6: Months/Per | F6: =InputC!F11 -> 12 | G6: =InputC!F12 -> 12 | I6: Months/Per | K6: =IF(K5,$F$6,$G$6) -> 12 | L6: 12 | M6: 12 | N6: 12 | O6: 12 | P6: 12 | Q6: 12 | R6: 12 | S6: 12 | T6: 12 | U6: 12 | V6: 12 | W6: 12 | X6: 12 | Y6: 12 | Z6: 12 | AA6: 12 | AB6: 12 | AC6: 12 | AD6: 12 | AE6: 12 | AF6: 12 | AG6: 12 | AH6: 12 | AI6: 12 | AJ6: 12 | AK6: 12 | AL6: 12 | AM6: 12 | AN6: 12 | AO6: 12 | AP6: 12 | AQ6: 12 | AR6: 12 | AS6: 12 | AT6: 12 | AU6: 12 | AV6: 12 | AW6: 12 | AX6: 12 | AY6: 12 | AZ6: 12 | BA6: 12 | BB6: 12 | BC6: 12 | BD6: 12 | BE6: 12 | BF6: 12 | BG6: 12 | BH6: 12 | BI6: 12 | BJ6: 12 | BK6: 12 | BL6: 12 | BM6: 12 | BN6: 12 | BO6: 12 | BP6: 12 | BQ6: 12 | BR6: 12 | BS6: 12 | BT6: 12 | BU6: 12 | BV6: 12 | BW6: =IF(BW5,$F$6,$G$6) -> 12 | BX6: 12 | BY6: 12 | BZ6: 12 | CA6: 12 | CB6: 12 | CC6: 12 | CD6: 12 | CE6: 12 | CF6: 12 | CG6: 12 | CH6: 12 | CI6: 12 | CJ6: 12 | CK6: 12 | CL6: 12 | CM6: 12 | CN6: 12 | CO6: 12 | CP6: 12 | CQ6: 12 | CR6: 12 | CS6: 12 | CT6: 12 | CU6: 12 | CV6: 12 | CW6: 12 | CX6: 12 | CY6: 12 | CZ6: 12 | DA6: 12 | DB6: 12 | DC6: 12 | DD6: 12 | DE6: 12 | DF6: 12 | DG6: 12 | DH6: 12 | DI6: 12 | DJ6: 12 | DK6: 12 | DL6: 12 | DM6: 12 | DN6: 12 | DO6: 12 | DP6: 12 | DQ6: 12 | DR6: 12 | DS6: 12 | DT6: 12 | DU6: 12 | DV6: 12 | DW6: 12 | DX6: 12 | DY6: 12 | DZ6: 12 | EA6: 12 | EB6: 12 | EC6: 12 | ED6: 12 | EE6: 12 | EF6: 12 | EG6: 12 | EH6: 12 | EI6: =IF(EI5,$F$6,$G$6) -> 12 | EJ6: 12 | EK6: 12 | EL6: 12 | EM6: 12 | EN6: 12 | EO6: 12 | EP6: 12 | EQ6: 12 | ER6: 12 | ES6: 12 | ET6: 12 | EU6: 12 | EV6: 12 | EW6: 12 | EX6: 12 | EY6: 12 | EZ6: 12 | FA6: 12 | FB6: 12 | FC6: 12 | FD6: 12 | FE6: 12 | FF6: 12 | FG6: 12 | FH6: 12 | FI6: 12 | FJ6: 12 | FK6: 12 | FL6: 12 | FM6: 12 | FN6: 12 | FO6: 12 | FP6: 12 | FQ6: 12 | FR6: 12 | FS6: 12 | FT6: 12 | FU6: 12 | FV6: 12 | FW6: 12 | FX6: 12 | FY6: 12 | FZ6: 12 | GA6: 12 | GB6: 12 | GC6: 12 | GD6: 12 | GE6: 12 | GF6: 12 | GG6: 12 | GH6: 12 | GI6: 12 | GJ6: 12 | GK6: 12 | GL6: 12 | GM6: 12 | GN6: 12 | GO6: 12 | GP6: 12 | GQ6: 12 | GR6: 12 | GS6: 12 | GT6: 12 | GU6: =IF(GU5,$F$6,$G$6) -> 12 | GV6: 12 | GW6: 12 | GX6: 12 | GY6: 12 | GZ6: 12 | HA6: 12 | HB6: 12 | HC6: 12 | HD6: 12 | HE6: 12 | HF6: 12 | HG6: 12 | HH6: 12 | HI6: 12 | HJ6: 12 | HK6: 12 | HL6: 12 | HM6: 12 | HN6: 12 | HO6: 12 | HP6: 12 | HQ6: 12 | HR6: 12 | HS6: 12 | HT6: 12 | HU6: 12 | HV6: 12 | HW6: 12 | HX6: 12 | HY6: 12 | HZ6: 12 | IA6: 12 | IB6: 12 | IC6: 12 | ID6: 12 | IE6: 12 | IF6: 12 | IG6: 12 | IH6: 12 | II6: 12 | IJ6: 12 | IK6: 12 | IL6: 12 | IM6: 12 | IN6: 12 | IO6: 12 | IP6: 12 | IQ6: 12 | IR6: 12 | IS6: 12 | IT6: 12 | IU6: 12 | IV6: 12 | IW6: 12 | IX6: 12 | IY6: 12 | IZ6: 12
D7: Start of period | E7: Data | I7: Date | K7: =J8+1 -> 2026-01-01 | L7: =K8+1 -> 2027-01-01 | M7: 2028-01-01 | N7: 2029-01-01 | O7: 2030-01-01 | P7: 2031-01-01 | Q7: 2032-01-01 | R7: 2033-01-01 | S7: 2034-01-01 | T7: 2035-01-01 | U7: 2036-01-01 | V7: 2037-01-01 | W7: 2038-01-01 | X7: 2039-01-01 | Y7: 2040-01-01 | Z7: 2041-01-01 | AA7: 2042-01-01 | AB7: 2043-01-01 | AC7: 2044-01-01 | AD7: 2045-01-01 | AE7: 2046-01-01 | AF7: 2047-01-01 | AG7: 2048-01-01 | AH7: 2049-01-01 | AI7: 2050-01-01 | AJ7: 2051-01-01 | AK7: 2052-01-01 | AL7: 2053-01-01 | AM7: 2054-01-01 | AN7: 2055-01-01 | AO7: 2056-01-01 | AP7: 2057-01-01 | AQ7: 2058-01-01 | AR7: 2059-01-01 | AS7: 2060-01-01 | AT7: 2061-01-01 | AU7: 2062-01-01 | AV7: 2063-01-01 | AW7: 2064-01-01 | AX7: 2065-01-01 | AY7: 2066-01-01 | AZ7: 2067-01-01 | BA7: 2068-01-01 | BB7: 2069-01-01 | BC7: 2070-01-01 | BD7: 2071-01-01 | BE7: 2072-01-01 | BF7: 2073-01-01 | BG7: 2074-01-01 | BH7: 2075-01-01 | BI7: 2076-01-01 | BJ7: 2077-01-01 | BK7: 2078-01-01 | BL7: 2079-01-01 | BM7: 2080-01-01 | BN7: 2081-01-01 | BO7: 2082-01-01 | BP7: 2083-01-01 | BQ7: 2084-01-01 | BR7: 2085-01-01 | BS7: 2086-01-01 | BT7: 2087-01-01 | BU7: 2088-01-01 | BV7: 2089-01-01 | BW7: 2090-01-01 | BX7: =BW8+1 -> 2091-01-01 | BY7: 2092-01-01 | BZ7: 2093-01-01 | CA7: 2094-01-01 | CB7: 2095-01-01 | CC7: 2096-01-01 | CD7: 2097-01-01 | CE7: 2098-01-01 | CF7: 2099-01-01 | CG7: 2100-01-01 | CH7: 2101-01-01 | CI7: 2102-01-01 | CJ7: 2103-01-01 | CK7: 2104-01-01 | CL7: 2105-01-01 | CM7: 2106-01-01 | CN7: 2107-01-01 | CO7: 2108-01-01 | CP7: 2109-01-01 | CQ7: 2110-01-01 | CR7: 2111-01-01 | CS7: 2112-01-01 | CT7: 2113-01-01 | CU7: 2114-01-01 | CV7: 2115-01-01 | CW7: 2116-01-01 | CX7: 2117-01-01 | CY7: 2118-01-01 | CZ7: 2119-01-01 | DA7: 2120-01-01 | DB7: 2121-01-01 | DC7: 2122-01-01 | DD7: 2123-01-01 | DE7: 2124-01-01 | DF7: 2125-01-01 | DG7: 2126-01-01 | DH7: 2127-01-01 | DI7: 2128-01-01 | DJ7: 2129-01-01 | DK7: 2130-01-01 | DL7: 2131-01-01 | DM7: 2132-01-01 | DN7: 2133-01-01 | DO7: 2134-01-01 | DP7: 2135-01-01 | DQ7: 2136-01-01 | DR7: 2137-01-01 | DS7: 2138-01-01 | DT7: 2139-01-01 | DU7: 2140-01-01 | DV7: 2141-01-01 | DW7: 2142-01-01 | DX7: 2143-01-01 | DY7: 2144-01-01 | DZ7: 2145-01-01 | EA7: 2146-01-01 | EB7: 2147-01-01 | EC7: 2148-01-01 | ED7: 2149-01-01 | EE7: 2150-01-01 | EF7: 2151-01-01 | EG7: 2152-01-01 | EH7: 2153-01-01 | EI7: 2154-01-01 | EJ7: =EI8+1 -> 2155-01-01 | EK7: 2156-01-01 | EL7: 2157-01-01 | EM7: 2158-01-01 | EN7: 2159-01-01 | EO7: 2160-01-01 | EP7: 2161-01-01 | EQ7: 2162-01-01 | ER7: 2163-01-01 | ES7: 2164-01-01 | ET7: 2165-01-01 | EU7: 2166-01-01 | EV7: 2167-01-01 | EW7: 2168-01-01 | EX7: 2169-01-01 | EY7: 2170-01-01 | EZ7: 2171-01-01 | FA7: 2172-01-01 | FB7: 2173-01-01 | FC7: 2174-01-01 | FD7: 2175-01-01 | FE7: 2176-01-01 | FF7: 2177-01-01 | FG7: 2178-01-01 | FH7: 2179-01-01 | FI7: 2180-01-01 | FJ7: 2181-01-01 | FK7: 2182-01-01 | FL7: 2183-01-01 | FM7: 2184-01-01 | FN7: 2185-01-01 | FO7: 2186-01-01 | FP7: 2187-01-01 | FQ7: 2188-01-01 | FR7: 2189-01-01 | FS7: 2190-01-01 | FT7: 2191-01-01 | FU7: 2192-01-01 | FV7: 2193-01-01 | FW7: 2194-01-01 | FX7: 2195-01-01 | FY7: 2196-01-01 | FZ7: 2197-01-01 | GA7: 2198-01-01 | GB7: 2199-01-01 | GC7: 2200-01-01 | GD7: 2201-01-01 | GE7: 2202-01-01 | GF7: 2203-01-01 | GG7: 2204-01-01 | GH7: 2205-01-01 | GI7: 2206-01-01 | GJ7: 2207-01-01 | GK7: 2208-01-01 | GL7: 2209-01-01 | GM7: 2210-01-01 | GN7: 2211-01-01 | GO7: 2212-01-01 | GP7: 2213-01-01 | GQ7: 2214-01-01 | GR7: 2215-01-01 | GS7: 2216-01-01 | GT7: 2217-01-01 | GU7: 2218-01-01 | GV7: =GU8+1 -> 2219-01-01 | GW7: 2220-01-01 | GX7: 2221-01-01 | GY7: 2222-01-01 | GZ7: 2223-01-01 | HA7: 2224-01-01 | HB7: 2225-01-01 | HC7: 2226-01-01 | HD7: 2227-01-01 | HE7: 2228-01-01 | HF7: 2229-01-01 | HG7: 2230-01-01 | HH7: 2231-01-01 | HI7: 2232-01-01 | HJ7: 2233-01-01 | HK7: 2234-01-01 | HL7: 2235-01-01 | HM7: 2236-01-01 | HN7: 2237-01-01 | HO7: 2238-01-01 | HP7: 2239-01-01 | HQ7: 2240-01-01 | HR7: 2241-01-01 | HS7: 2242-01-01 | HT7: 2243-01-01 | HU7: 2244-01-01 | HV7: 2245-01-01 | HW7: 2246-01-01 | HX7: 2247-01-01 | HY7: 2248-01-01 | HZ7: 2249-01-01 | IA7: 2250-01-01 | IB7: 2251-01-01 | IC7: 2252-01-01 | ID7: 2253-01-01 | IE7: 2254-01-01 | IF7: 2255-01-01 | IG7: 2256-01-01 | IH7: 2257-01-01 | II7: 2258-01-01 | IJ7: 2259-01-01 | IK7: 2260-01-01 | IL7: 2261-01-01 | IM7: 2262-01-01 | IN7: 2263-01-01 | IO7: 2264-01-01 | IP7: 2265-01-01 | IQ7: 2266-01-01 | IR7: 2267-01-01 | IS7: 2268-01-01 | IT7: 2269-01-01 | IU7: 2270-01-01 | IV7: 2271-01-01 | IW7: 2272-01-01 | IX7: 2273-01-01 | IY7: 2274-01-01 | IZ7: 2275-01-01
D8: End of period | E8: Date | I8: Date | J8: =InputC!F7-1 -> 2025-12-31 | K8: =EDATE(K7,K6)-1 -> 2026-12-31 | L8: =EDATE(L7,L6)-1 -> 2027-12-31 | M8: 2028-12-31 | N8: 2029-12-31 | O8: 2030-12-31 | P8: 2031-12-31 | Q8: 2032-12-31 | R8: 2033-12-31 | S8: 2034-12-31 | T8: 2035-12-31 | U8: 2036-12-31 | V8: 2037-12-31 | W8: 2038-12-31 | X8: 2039-12-31 | Y8: 2040-12-31 | Z8: 2041-12-31 | AA8: 2042-12-31 | AB8: 2043-12-31 | AC8: 2044-12-31 | AD8: 2045-12-31 | AE8: 2046-12-31 | AF8: 2047-12-31 | AG8: 2048-12-31 | AH8: 2049-12-31 | AI8: 2050-12-31 | AJ8: 2051-12-31 | AK8: 2052-12-31 | AL8: 2053-12-31 | AM8: 2054-12-31 | AN8: 2055-12-31 | AO8: 2056-12-31 | AP8: 2057-12-31 | AQ8: 2058-12-31 | AR8: 2059-12-31 | AS8: 2060-12-31 | AT8: 2061-12-31 | AU8: 2062-12-31 | AV8: 2063-12-31 | AW8: 2064-12-31 | AX8: 2065-12-31 | AY8: 2066-12-31 | AZ8: 2067-12-31 | BA8: 2068-12-31 | BB8: 2069-12-31 | BC8: 2070-12-31 | BD8: 2071-12-31 | BE8: 2072-12-31 | BF8: 2073-12-31 | BG8: 2074-12-31 | BH8: 2075-12-31 | BI8: 2076-12-31 | BJ8: 2077-12-31 | BK8: 2078-12-31 | BL8: 2079-12-31 | BM8: 2080-12-31 | BN8: 2081-12-31 | BO8: 2082-12-31 | BP8: 2083-12-31 | BQ8: 2084-12-31 | BR8: 2085-12-31 | BS8: 2086-12-31 | BT8: 2087-12-31 | BU8: 2088-12-31 | BV8: 2089-12-31 | BW8: 2090-12-31 | BX8: =EDATE(BX7,BX6)-1 -> 2091-12-31 | BY8: 2092-12-31 | BZ8: 2093-12-31 | CA8: 2094-12-31 | CB8: 2095-12-31 | CC8: 2096-12-31 | CD8: 2097-12-31 | CE8: 2098-12-31 | CF8: 2099-12-31 | CG8: 2100-12-31 | CH8: 2101-12-31 | CI8: 2102-12-31 | CJ8: 2103-12-31 | CK8: 2104-12-31 | CL8: 2105-12-31 | CM8: 2106-12-31 | CN8: 2107-12-31 | CO8: 2108-12-31 | CP8: 2109-12-31 | CQ8: 2110-12-31 | CR8: 2111-12-31 | CS8: 2112-12-31 | CT8: 2113-12-31 | CU8: 2114-12-31 | CV8: 2115-12-31 | CW8: 2116-12-31 | CX8: 2117-12-31 | CY8: 2118-12-31 | CZ8: 2119-12-31 | DA8: 2120-12-31 | DB8: 2121-12-31 | DC8: 2122-12-31 | DD8: 2123-12-31 | DE8: 2124-12-31 | DF8: 2125-12-31 | DG8: 2126-12-31 | DH8: 2127-12-31 | DI8: 2128-12-31 | DJ8: 2129-12-31 | DK8: 2130-12-31 | DL8: 2131-12-31 | DM8: 2132-12-31 | DN8: 2133-12-31 | DO8: 2134-12-31 | DP8: 2135-12-31 | DQ8: 2136-12-31 | DR8: 2137-12-31 | DS8: 2138-12-31 | DT8: 2139-12-31 | DU8: 2140-12-31 | DV8: 2141-12-31 | DW8: 2142-12-31 | DX8: 2143-12-31 | DY8: 2144-12-31 | DZ8: 2145-12-31 | EA8: 2146-12-31 | EB8: 2147-12-31 | EC8: 2148-12-31 | ED8: 2149-12-31 | EE8: 2150-12-31 | EF8: 2151-12-31 | EG8: 2152-12-31 | EH8: 2153-12-31 | EI8: 2154-12-31 | EJ8: =EDATE(EJ7,EJ6)-1 -> 2155-12-31 | EK8: 2156-12-31 | EL8: 2157-12-31 | EM8: 2158-12-31 | EN8: 2159-12-31 | EO8: 2160-12-31 | EP8: 2161-12-31 | EQ8: 2162-12-31 | ER8: 2163-12-31 | ES8: 2164-12-31 | ET8: 2165-12-31 | EU8: 2166-12-31 | EV8: 2167-12-31 | EW8: 2168-12-31 | EX8: 2169-12-31 | EY8: 2170-12-31 | EZ8: 2171-12-31 | FA8: 2172-12-31 | FB8: 2173-12-31 | FC8: 2174-12-31 | FD8: 2175-12-31 | FE8: 2176-12-31 | FF8: 2177-12-31 | FG8: 2178-12-31 | FH8: 2179-12-31 | FI8: 2180-12-31 | FJ8: 2181-12-31 | FK8: 2182-12-31 | FL8: 2183-12-31 | FM8: 2184-12-31 | FN8: 2185-12-31 | FO8: 2186-12-31 | FP8: 2187-12-31 | FQ8: 2188-12-31 | FR8: 2189-12-31 | FS8: 2190-12-31 | FT8: 2191-12-31 | FU8: 2192-12-31 | FV8: 2193-12-31 | FW8: 2194-12-31 | FX8: 2195-12-31 | FY8: 2196-12-31 | FZ8: 2197-12-31 | GA8: 2198-12-31 | GB8: 2199-12-31 | GC8: 2200-12-31 | GD8: 2201-12-31 | GE8: 2202-12-31 | GF8: 2203-12-31 | GG8: 2204-12-31 | GH8: 2205-12-31 | GI8: 2206-12-31 | GJ8: 2207-12-31 | GK8: 2208-12-31 | GL8: 2209-12-31 | GM8: 2210-12-31 | GN8: 2211-12-31 | GO8: 2212-12-31 | GP8: 2213-12-31 | GQ8: 2214-12-31 | GR8: 2215-12-31 | GS8: 2216-12-31 | GT8: 2217-12-31 | GU8: 2218-12-31 | GV8: =EDATE(GV7,GV6)-1 -> 2219-12-31 | GW8: 2220-12-31 | GX8: 2221-12-31 | GY8: 2222-12-31 | GZ8: 2223-12-31 | HA8: 2224-12-31 | HB8: 2225-12-31 | HC8: 2226-12-31 | HD8: 2227-12-31 | HE8: 2228-12-31 | HF8: 2229-12-31 | HG8: 2230-12-31 | HH8: 2231-12-31 | HI8: 2232-12-31 | HJ8: 2233-12-31 | HK8: 2234-12-31 | HL8: 2235-12-31 | HM8: 2236-12-31 | HN8: 2237-12-31 | HO8: 2238-12-31 | HP8: 2239-12-31 | HQ8: 2240-12-31 | HR8: 2241-12-31 | HS8: 2242-12-31 | HT8: 2243-12-31 | HU8: 2244-12-31 | HV8: 2245-12-31 | HW8: 2246-12-31 | HX8: 2247-12-31 | HY8: 2248-12-31 | HZ8: 2249-12-31 | IA8: 2250-12-31 | IB8: 2251-12-31 | IC8: 2252-12-31 | ID8: 2253-12-31 | IE8: 2254-12-31 | IF8: 2255-12-31 | IG8: 2256-12-31 | IH8: 2257-12-31 | II8: 2258-12-31 | IJ8: 2259-12-31 | IK8: 2260-12-31 | IL8: 2261-12-31 | IM8: 2262-12-31 | IN8: 2263-12-31 | IO8: 2264-12-31 | IP8: 2265-12-31 | IQ8: 2266-12-31 | IR8: 2267-12-31 | IS8: 2268-12-31 | IT8: 2269-12-31 | IU8: 2270-12-31 | IV8: 2271-12-31 | IW8: 2272-12-31 | IX8: 2273-12-31 | IY8: 2274-12-31 | IZ8: 2275-12-31
D9: Operation period | E9: Flag | F9: =InputC!F10 -> 2027-01-01 | G9: =InputC!F15 -> 2057-01-01 | H9: =SUM(K9:XFD9) -> 30 | I9: Flag | K9: =(AND(K7>=$F$9,K7<$G$9))*1 -> 0 | L9: =(AND(L7>=$F$9,L7<$G$9))*1 -> 1 | M9: 1 | N9: 1 | O9: 1 | P9: 1 | Q9: 1 | R9: 1 | S9: 1 | T9: 1 | U9: 1 | V9: 1 | W9: 1 | X9: 1 | Y9: 1 | Z9: 1 | AA9: 1 | AB9: 1 | AC9: 1 | AD9: 1 | AE9: 1 | AF9: 1 | AG9: 1 | AH9: 1 | AI9: 1 | AJ9: 1 | AK9: 1 | AL9: 1 | AM9: 1 | AN9: 1 | AO9: 1 | AP9: 0 | AQ9: 0 | AR9: 0 | AS9: 0 | AT9: 0 | AU9: 0 | AV9: 0 | AW9: 0 | AX9: 0 | AY9: 0 | AZ9: 0 | BA9: 0 | BB9: 0 | BC9: 0 | BD9: 0 | BE9: 0 | BF9: 0 | BG9: 0 | BH9: 0 | BI9: 0 | BJ9: 0 | BK9: 0 | BL9: 0 | BM9: 0 | BN9: 0 | BO9: 0 | BP9: 0 | BQ9: 0 | BR9: 0 | BS9: 0 | BT9: 0 | BU9: 0 | BV9: 0 | BW9: 0 | BX9: =(AND(BX7>=$F$9,BX7<$G$9))*1 -> 0 | BY9: 0 | BZ9: 0 | CA9: 0 | CB9: 0 | CC9: 0 | CD9: 0 | CE9: 0 | CF9: 0 | CG9: 0 | CH9: 0 | CI9: 0 | CJ9: 0 | CK9: 0 | CL9: 0 | CM9: 0 | CN9: 0 | CO9: 0 | CP9: 0 | CQ9: 0 | CR9: 0 | CS9: 0 | CT9: 0 | CU9: 0 | CV9: 0 | CW9: 0 | CX9: 0 | CY9: 0 | CZ9: 0 | DA9: 0 | DB9: 0 | DC9: 0 | DD9: 0 | DE9: 0 | DF9: 0 | DG9: 0 | DH9: 0 | DI9: 0 | DJ9: 0 | DK9: 0 | DL9: 0 | DM9: 0 | DN9: 0 | DO9: 0 | DP9: 0 | DQ9: 0 | DR9: 0 | DS9: 0 | DT9: 0 | DU9: 0 | DV9: 0 | DW9: 0 | DX9: 0 | DY9: 0 | DZ9: 0 | EA9: 0 | EB9: 0 | EC9: 0 | ED9: 0 | EE9: 0 | EF9: 0 | EG9: 0 | EH9: 0 | EI9: 0 | EJ9: =(AND(EJ7>=$F$9,EJ7<$G$9))*1 -> 0 | EK9: 0 | EL9: 0 | EM9: 0 | EN9: 0 | EO9: 0 | EP9: 0 | EQ9: 0 | ER9: 0 | ES9: 0 | ET9: 0 | EU9: 0 | EV9: 0 | EW9: 0 | EX9: 0 | EY9: 0 | EZ9: 0 | FA9: 0 | FB9: 0 | FC9: 0 | FD9: 0 | FE9: 0 | FF9: 0 | FG9: 0 | FH9: 0 | FI9: 0 | FJ9: 0 | FK9: 0 | FL9: 0 | FM9: 0 | FN9: 0 | FO9: 0 | FP9: 0 | FQ9: 0 | FR9: 0 | FS9: 0 | FT9: 0 | FU9: 0 | FV9: 0 | FW9: 0 | FX9: 0 | FY9: 0 | FZ9: 0 | GA9: 0 | GB9: 0 | GC9: 0 | GD9: 0 | GE9: 0 | GF9: 0 | GG9: 0 | GH9: 0 | GI9: 0 | GJ9: 0 | GK9: 0 | GL9: 0 | GM9: 0 | GN9: 0 | GO9: 0 | GP9: 0 | GQ9: 0 | GR9: 0 | GS9: 0 | GT9: 0 | GU9: 0 | GV9: =(AND(GV7>=$F$9,GV7<$G$9))*1 -> 0 | GW9: 0 | GX9: 0 | GY9: 0 | GZ9: 0 | HA9: 0 | HB9: 0 | HC9: 0 | HD9: 0 | HE9: 0 | HF9: 0 | HG9: 0 | HH9: 0 | HI9: 0 | HJ9: 0 | HK9: 0 | HL9: 0 | HM9: 0 | HN9: 0 | HO9: 0 | HP9: 0 | HQ9: 0 | HR9: 0 | HS9: 0 | HT9: 0 | HU9: 0 | HV9: 0 | HW9: 0 | HX9: 0 | HY9: 0 | HZ9: 0 | IA9: 0 | IB9: 0 | IC9: 0 | ID9: 0 | IE9: 0 | IF9: 0 | IG9: 0 | IH9: 0 | II9: 0 | IJ9: 0 | IK9: 0 | IL9: 0 | IM9: 0 | IN9: 0 | IO9: 0 | IP9: 0 | IQ9: 0 | IR9: 0 | IS9: 0 | IT9: 0 | IU9: 0 | IV9: 0 | IW9: 0 | IX9: 0 | IY9: 0 | IZ9: 0
D10: Operating Life in Periods | I10: Counter | K10: =J10+K9 -> 0 | L10: =K10+L9 -> 1 | M10: 2 | N10: 3 | O10: 4 | P10: 5 | Q10: 6 | R10: 7 | S10: 8 | T10: 9 | U10: 10 | V10: 11 | W10: 12 | X10: 13 | Y10: 14 | Z10: 15 | AA10: 16 | AB10: 17 | AC10: 18 | AD10: 19 | AE10: 20 | AF10: 21 | AG10: 22 | AH10: 23 | AI10: 24 | AJ10: 25 | AK10: 26 | AL10: 27 | AM10: 28 | AN10: 29 | AO10: 30 | AP10: 30 | AQ10: 30 | AR10: 30 | AS10: 30 | AT10: 30 | AU10: 30 | AV10: 30 | AW10: 30 | AX10: 30 | AY10: 30 | AZ10: 30 | BA10: 30 | BB10: 30 | BC10: 30 | BD10: 30 | BE10: 30 | BF10: 30 | BG10: 30 | BH10: 30 | BI10: 30 | BJ10: 30 | BK10: 30 | BL10: 30 | BM10: 30 | BN10: 30 | BO10: 30 | BP10: 30 | BQ10: 30 | BR10: 30 | BS10: 30 | BT10: 30 | BU10: 30 | BV10: 30 | BW10: 30 | BX10: =BW10+BX9 -> 30 | BY10: 30 | BZ10: 30 | CA10: 30 | CB10: 30 | CC10: 30 | CD10: 30 | CE10: 30 | CF10: 30 | CG10: 30 | CH10: 30 | CI10: 30 | CJ10: 30 | CK10: 30 | CL10: 30 | CM10: 30 | CN10: 30 | CO10: 30 | CP10: 30 | CQ10: 30 | CR10: 30 | CS10: 30 | CT10: 30 | CU10: 30 | CV10: 30 | CW10: 30 | CX10: 30 | CY10: 30 | CZ10: 30 | DA10: 30 | DB10: 30 | DC10: 30 | DD10: 30 | DE10: 30 | DF10: 30 | DG10: 30 | DH10: 30 | DI10: 30 | DJ10: 30 | DK10: 30 | DL10: 30 | DM10: 30 | DN10: 30 | DO10: 30 | DP10: 30 | DQ10: 30 | DR10: 30 | DS10: 30 | DT10: 30 | DU10: 30 | DV10: 30 | DW10: 30 | DX10: 30 | DY10: 30 | DZ10: 30 | EA10: 30 | EB10: 30 | EC10: 30 | ED10: 30 | EE10: 30 | EF10: 30 | EG10: 30 | EH10: 30 | EI10: 30 | EJ10: =EI10+EJ9 -> 30 | EK10: 30 | EL10: 30 | EM10: 30 | EN10: 30 | EO10: 30 | EP10: 30 | EQ10: 30 | ER10: 30 | ES10: 30 | ET10: 30 | EU10: 30 | EV10: 30 | EW10: 30 | EX10: 30 | EY10: 30 | EZ10: 30 | FA10: 30 | FB10: 30 | FC10: 30 | FD10: 30 | FE10: 30 | FF10: 30 | FG10: 30 | FH10: 30 | FI10: 30 | FJ10: 30 | FK10: 30 | FL10: 30 | FM10: 30 | FN10: 30 | FO10: 30 | FP10: 30 | FQ10: 30 | FR10: 30 | FS10: 30 | FT10: 30 | FU10: 30 | FV10: 30 | FW10: 30 | FX10: 30 | FY10: 30 | FZ10: 30 | GA10: 30 | GB10: 30 | GC10: 30 | GD10: 30 | GE10: 30 | GF10: 30 | GG10: 30 | GH10: 30 | GI10: 30 | GJ10: 30 | GK10: 30 | GL10: 30 | GM10: 30 | GN10: 30 | GO10: 30 | GP10: 30 | GQ10: 30 | GR10: 30 | GS10: 30 | GT10: 30 | GU10: 30 | GV10: =GU10+GV9 -> 30 | GW10: 30 | GX10: 30 | GY10: 30 | GZ10: 30 | HA10: 30 | HB10: 30 | HC10: 30 | HD10: 30 | HE10: 30 | HF10: 30 | HG10: 30 | HH10: 30 | HI10: 30 | HJ10: 30 | HK10: 30 | HL10: 30 | HM10: 30 | HN10: 30 | HO10: 30 | HP10: 30 | HQ10: 30 | HR10: 30 | HS10: 30 | HT10: 30 | HU10: 30 | HV10: 30 | HW10: 30 | HX10: 30 | HY10: 30 | HZ10: 30 | IA10: 30 | IB10: 30 | IC10: 30 | ID10: 30 | IE10: 30 | IF10: 30 | IG10: 30 | IH10: 30 | II10: 30 | IJ10: 30 | IK10: 30 | IL10: 30 | IM10: 30 | IN10: 30 | IO10: 30 | IP10: 30 | IQ10: 30 | IR10: 30 | IS10: 30 | IT10: 30 | IU10: 30 | IV10: 30 | IW10: 30 | IX10: 30 | IY10: 30 | IZ10: 30
B11: Operations
C13: Capital Expenditures
D14: Total Cost | E14: EUR | F14: =InputC!F19 -> 1000000 | I14: EUR | K14: =$F$14 -> 1000000 | L14: 1000000 | M14: 1000000 | N14: 1000000 | O14: 1000000 | P14: 1000000 | Q14: 1000000 | R14: 1000000 | S14: 1000000 | T14: 1000000 | U14: 1000000 | V14: 1000000 | W14: 1000000 | X14: 1000000 | Y14: 1000000 | Z14: 1000000 | AA14: 1000000 | AB14: 1000000 | AC14: 1000000 | AD14: 1000000 | AE14: 1000000 | AF14: 1000000 | AG14: 1000000 | AH14: 1000000 | AI14: 1000000 | AJ14: 1000000 | AK14: 1000000 | AL14: 1000000 | AM14: 1000000 | AN14: 1000000 | AO14: 1000000 | AP14: 1000000 | AQ14: 1000000 | AR14: 1000000 | AS14: 1000000 | AT14: 1000000 | AU14: 1000000 | AV14: 1000000 | AW14: 1000000 | AX14: 1000000 | AY14: 1000000 | AZ14: 1000000 | BA14: 1000000 | BB14: 1000000 | BC14: 1000000 | BD14: 1000000 | BE14: 1000000 | BF14: 1000000 | BG14: 1000000 | BH14: 1000000 | BI14: 1000000 | BJ14: 1000000 | BK14: 1000000 | BL14: 1000000 | BM14: 1000000 | BN14: 1000000 | BO14: 1000000 | BP14: 1000000 | BQ14: 1000000 | BR14: 1000000 | BS14: 1000000 | BT14: 1000000 | BU14: 1000000 | BV14: 1000000 | BW14: =$F$14 -> 1000000 | BX14: 1000000 | BY14: 1000000 | BZ14: 1000000 | CA14: 1000000 | CB14: 1000000 | CC14: 1000000 | CD14: 1000000 | CE14: 1000000 | CF14: 1000000 | CG14: 1000000 | CH14: 1000000 | CI14: 1000000 | CJ14: 1000000 | CK14: 1000000 | CL14: 1000000 | CM14: 1000000 | CN14: 1000000 | CO14: 1000000 | CP14: 1000000 | CQ14: 1000000 | CR14: 1000000 | CS14: 1000000 | CT14: 1000000 | CU14: 1000000 | CV14: 1000000 | CW14: 1000000 | CX14: 1000000 | CY14: 1000000 | CZ14: 1000000 | DA14: 1000000 | DB14: 1000000 | DC14: 1000000 | DD14: 1000000 | DE14: 1000000 | DF14: 1000000 | DG14: 1000000 | DH14: 1000000 | DI14: 1000000 | DJ14: 1000000 | DK14: 1000000 | DL14: 1000000 | DM14: 1000000 | DN14: 1000000 | DO14: 1000000 | DP14: 1000000 | DQ14: 1000000 | DR14: 1000000 | DS14: 1000000 | DT14: 1000000 | DU14: 1000000 | DV14: 1000000 | DW14: 1000000 | DX14: 1000000 | DY14: 1000000 | DZ14: 1000000 | EA14: 1000000 | EB14: 1000000 | EC14: 1000000 | ED14: 1000000 | EE14: 1000000 | EF14: 1000000 | EG14: 1000000 | EH14: 1000000 | EI14: =$F$14 -> 1000000 | EJ14: 1000000 | EK14: 1000000 | EL14: 1000000 | EM14: 1000000 | EN14: 1000000 | EO14: 1000000 | EP14: 1000000 | EQ14: 1000000 | ER14: 1000000 | ES14: 1000000 | ET14: 1000000 | EU14: 1000000 | EV14: 1000000 | EW14: 1000000 | EX14: 1000000 | EY14: 1000000 | EZ14: 1000000 | FA14: 1000000 | FB14: 1000000 | FC14: 1000000 | FD14: 1000000 | FE14: 1000000 | FF14: 1000000 | FG14: 1000000 | FH14: 1000000 | FI14: 1000000 | FJ14: 1000000 | FK14: 1000000 | FL14: 1000000 | FM14: 1000000 | FN14: 1000000 | FO14: 1000000 | FP14: 1000000 | FQ14: 1000000 | FR14: 1000000 | FS14: 1000000 | FT14: 1000000 | FU14: 1000000 | FV14: 1000000 | FW14: 1000000 | FX14: 1000000 | FY14: 1000000 | FZ14: 1000000 | GA14: 1000000 | GB14: 1000000 | GC14: 1000000 | GD14: 1000000 | GE14: 1000000 | GF14: 1000000 | GG14: 1000000 | GH14: 1000000 | GI14: 1000000 | GJ14: 1000000 | GK14: 1000000 | GL14: 1000000 | GM14: 1000000 | GN14: 1000000 | GO14: 1000000 | GP14: 1000000 | GQ14: 1000000 | GR14: 1000000 | GS14: 1000000 | GT14: 1000000 | GU14: =$F$14 -> 1000000 | GV14: 1000000 | GW14: 1000000 | GX14: 1000000 | GY14: 1000000 | GZ14: 1000000 | HA14: 1000000 | HB14: 1000000 | HC14: 1000000 | HD14: 1000000 | HE14: 1000000 | HF14: 1000000 | HG14: 1000000 | HH14: 1000000 | HI14: 1000000 | HJ14: 1000000 | HK14: 1000000 | HL14: 1000000 | HM14: 1000000 | HN14: 1000000 | HO14: 1000000 | HP14: 1000000 | HQ14: 1000000 | HR14: 1000000 | HS14: 1000000 | HT14: 1000000 | HU14: 1000000 | HV14: 1000000 | HW14: 1000000 | HX14: 1000000 | HY14: 1000000 | HZ14: 1000000 | IA14: 1000000 | IB14: 1000000 | IC14: 1000000 | ID14: 1000000 | IE14: 1000000 | IF14: 1000000 | IG14: 1000000 | IH14: 1000000 | II14: 1000000 | IJ14: 1000000 | IK14: 1000000 | IL14: 1000000 | IM14: 1000000 | IN14: 1000000 | IO14: 1000000 | IP14: 1000000 | IQ14: 1000000 | IR14: 1000000 | IS14: 1000000 | IT14: 1000000 | IU14: 1000000 | IV14: 1000000 | IW14: 1000000 | IX14: 1000000 | IY14: 1000000 | IZ14: 1000000
D15: Percent Spent | E15: Months/Per | F15: =F6/F4 -> 1 | I15: % | K15: =$F$15*K5 -> 1 | L15: =$F$15*L5 -> 0 | M15: 0 | N15: 0 | O15: 0 | P15: 0 | Q15: 0 | R15: 0 | S15: 0 | T15: 0 | U15: 0 | V15: 0 | W15: 0 | X15: 0 | Y15: 0 | Z15: 0 | AA15: 0 | AB15: 0 | AC15: 0 | AD15: 0 | AE15: 0 | AF15: 0 | AG15: 0 | AH15: 0 | AI15: 0 | AJ15: 0 | AK15: 0 | AL15: 0 | AM15: 0 | AN15: 0 | AO15: 0 | AP15: 0 | AQ15: 0 | AR15: 0 | AS15: 0 | AT15: 0 | AU15: 0 | AV15: 0 | AW15: 0 | AX15: 0 | AY15: 0 | AZ15: 0 | BA15: 0 | BB15: 0 | BC15: 0 | BD15: 0 | BE15: 0 | BF15: 0 | BG15: 0 | BH15: 0 | BI15: 0 | BJ15: 0 | BK15: 0 | BL15: 0 | BM15: 0 | BN15: 0 | BO15: 0 | BP15: 0 | BQ15: 0 | BR15: 0 | BS15: 0 | BT15: 0 | BU15: 0 | BV15: 0 | BW15: 0 | BX15: =$F$15*BX5 -> 0 | BY15: 0 | BZ15: 0 | CA15: 0 | CB15: 0 | CC15: 0 | CD15: 0 | CE15: 0 | CF15: 0 | CG15: 0 | CH15: 0 | CI15: 0 | CJ15: 0 | CK15: 0 | CL15: 0 | CM15: 0 | CN15: 0 | CO15: 0 | CP15: 0 | CQ15: 0 | CR15: 0 | CS15: 0 | CT15: 0 | CU15: 0 | CV15: 0 | CW15: 0 | CX15: 0 | CY15: 0 | CZ15: 0 | DA15: 0 | DB15: 0 | DC15: 0 | DD15: 0 | DE15: 0 | DF15: 0 | DG15: 0 | DH15: 0 | DI15: 0 | DJ15: 0 | DK15: 0 | DL15: 0 | DM15: 0 | DN15: 0 | DO15: 0 | DP15: 0 | DQ15: 0 | DR15: 0 | DS15: 0 | DT15: 0 | DU15: 0 | DV15: 0 | DW15: 0 | DX15: 0 | DY15: 0 | DZ15: 0 | EA15: 0 | EB15: 0 | EC15: 0 | ED15: 0 | EE15: 0 | EF15: 0 | EG15: 0 | EH15: 0 | EI15: 0 | EJ15: =$F$15*EJ5 -> 0 | EK15: 0 | EL15: 0 | EM15: 0 | EN15: 0 | EO15: 0 | EP15: 0 | EQ15: 0 | ER15: 0 | ES15: 0 | ET15: 0 | EU15: 0 | EV15: 0 | EW15: 0 | EX15: 0 | EY15: 0 | EZ15: 0 | FA15: 0 | FB15: 0 | FC15: 0 | FD15: 0 | FE15: 0 | FF15: 0 | FG15: 0 | FH15: 0 | FI15: 0 | FJ15: 0 | FK15: 0 | FL15: 0 | FM15: 0 | FN15: 0 | FO15: 0 | FP15: 0 | FQ15: 0 | FR15: 0 | FS15: 0 | FT15: 0 | FU15: 0 | FV15: 0 | FW15: 0 | FX15: 0 | FY15: 0 | FZ15: 0 | GA15: 0 | GB15: 0 | GC15: 0 | GD15: 0 | GE15: 0 | GF15: 0 | GG15: 0 | GH15: 0 | GI15: 0 | GJ15: 0 | GK15: 0 | GL15: 0 | GM15: 0 | GN15: 0 | GO15: 0 | GP15: 0 | GQ15: 0 | GR15: 0 | GS15: 0 | GT15: 0 | GU15: 0 | GV15: =$F$15*GV5 -> 0 | GW15: 0 | GX15: 0 | GY15: 0 | GZ15: 0 | HA15: 0 | HB15: 0 | HC15: 0 | HD15: 0 | HE15: 0 | HF15: 0 | HG15: 0 | HH15: 0 | HI15: 0 | HJ15: 0 | HK15: 0 | HL15: 0 | HM15: 0 | HN15: 0 | HO15: 0 | HP15: 0 | HQ15: 0 | HR15: 0 | HS15: 0 | HT15: 0 | HU15: 0 | HV15: 0 | HW15: 0 | HX15: 0 | HY15: 0 | HZ15: 0 | IA15: 0 | IB15: 0 | IC15: 0 | ID15: 0 | IE15: 0 | IF15: 0 | IG15: 0 | IH15: 0 | II15: 0 | IJ15: 0 | IK15: 0 | IL15: 0 | IM15: 0 | IN15: 0 | IO15: 0 | IP15: 0 | IQ15: 0 | IR15: 0 | IS15: 0 | IT15: 0 | IU15: 0 | IV15: 0 | IW15: 0 | IX15: 0 | IY15: 0 | IZ15: 0
D16: Capital Expenditues | H16: =SUM(K16:XFD16) -> 1000000 | I16: EUR | K16: =K14*K15 -> 1000000 | L16: =L14*L15 -> 0 | M16: 0 | N16: 0 | O16: 0 | P16: 0 | Q16: 0 | R16: 0 | S16: 0 | T16: 0 | U16: 0 | V16: 0 | W16: 0 | X16: 0 | Y16: 0 | Z16: 0 | AA16: 0 | AB16: 0 | AC16: 0 | AD16: 0 | AE16: 0 | AF16: 0 | AG16: 0 | AH16: 0 | AI16: 0 | AJ16: 0 | AK16: 0 | AL16: 0 | AM16: 0 | AN16: 0 | AO16: 0 | AP16: 0 | AQ16: 0 | AR16: 0 | AS16: 0 | AT16: 0 | AU16: 0 | AV16: 0 | AW16: 0 | AX16: 0 | AY16: 0 | AZ16: 0 | BA16: 0 | BB16: 0 | BC16: 0 | BD16: 0 | BE16: 0 | BF16: 0 | BG16: 0 | BH16: 0 | BI16: 0 | BJ16: 0 | BK16: 0 | BL16: 0 | BM16: 0 | BN16: 0 | BO16: 0 | BP16: 0 | BQ16: 0 | BR16: 0 | BS16: 0 | BT16: 0 | BU16: 0 | BV16: 0 | BW16: 0 | BX16: =BX14*BX15 -> 0 | BY16: 0 | BZ16: 0 | CA16: 0 | CB16: 0 | CC16: 0 | CD16: 0 | CE16: 0 | CF16: 0 | CG16: 0 | CH16: 0 | CI16: 0 | CJ16: 0 | CK16: 0 | CL16: 0 | CM16: 0 | CN16: 0 | CO16: 0 | CP16: 0 | CQ16: 0 | CR16: 0 | CS16: 0 | CT16: 0 | CU16: 0 | CV16: 0 | CW16: 0 | CX16: 0 | CY16: 0 | CZ16: 0 | DA16: 0 | DB16: 0 | DC16: 0 | DD16: 0 | DE16: 0 | DF16: 0 | DG16: 0 | DH16: 0 | DI16: 0 | DJ16: 0 | DK16: 0 | DL16: 0 | DM16: 0 | DN16: 0 | DO16: 0 | DP16: 0 | DQ16: 0 | DR16: 0 | DS16: 0 | DT16: 0 | DU16: 0 | DV16: 0 | DW16: 0 | DX16: 0 | DY16: 0 | DZ16: 0 | EA16: 0 | EB16: 0 | EC16: 0 | ED16: 0 | EE16: 0 | EF16: 0 | EG16: 0 | EH16: 0 | EI16: 0 | EJ16: =EJ14*EJ15 -> 0 | EK16: 0 | EL16: 0 | EM16: 0 | EN16: 0 | EO16: 0 | EP16: 0 | EQ16: 0 | ER16: 0 | ES16: 0 | ET16: 0 | EU16: 0 | EV16: 0 | EW16: 0 | EX16: 0 | EY16: 0 | EZ16: 0 | FA16: 0 | FB16: 0 | FC16: 0 | FD16: 0 | FE16: 0 | FF16: 0 | FG16: 0 | FH16: 0 | FI16: 0 | FJ16: 0 | FK16: 0 | FL16: 0 | FM16: 0 | FN16: 0 | FO16: 0 | FP16: 0 | FQ16: 0 | FR16: 0 | FS16: 0 | FT16: 0 | FU16: 0 | FV16: 0 | FW16: 0 | FX16: 0 | FY16: 0 | FZ16: 0 | GA16: 0 | GB16: 0 | GC16: 0 | GD16: 0 | GE16: 0 | GF16: 0 | GG16: 0 | GH16: 0 | GI16: 0 | GJ16: 0 | GK16: 0 | GL16: 0 | GM16: 0 | GN16: 0 | GO16: 0 | GP16: 0 | GQ16: 0 | GR16: 0 | GS16: 0 | GT16: 0 | GU16: 0 | GV16: =GV14*GV15 -> 0 | GW16: 0 | GX16: 0 | GY16: 0 | GZ16: 0 | HA16: 0 | HB16: 0 | HC16: 0 | HD16: 0 | HE16: 0 | HF16: 0 | HG16: 0 | HH16: 0 | HI16: 0 | HJ16: 0 | HK16: 0 | HL16: 0 | HM16: 0 | HN16: 0 | HO16: 0 | HP16: 0 | HQ16: 0 | HR16: 0 | HS16: 0 | HT16: 0 | HU16: 0 | HV16: 0 | HW16: 0 | HX16: 0 | HY16: 0 | HZ16: 0 | IA16: 0 | IB16: 0 | IC16: 0 | ID16: 0 | IE16: 0 | IF16: 0 | IG16: 0 | IH16: 0 | II16: 0 | IJ16: 0 | IK16: 0 | IL16: 0 | IM16: 0 | IN16: 0 | IO16: 0 | IP16: 0 | IQ16: 0 | IR16: 0 | IS16: 0 | IT16: 0 | IU16: 0 | IV16: 0 | IW16: 0 | IX16: 0 | IY16: 0 | IZ16: 0
C18: EBITDA
D19: Base EBITDA | E19: EUR/yr | F19: =InputC!F20 -> 100000 | G19: =F19*G6/months -> 100000 | I19: EUR/period | K19: =$G$19*K9 -> 0 | L19: =$G$19*L9 -> 100000 | M19: 100000 | N19: 100000 | O19: 100000 | P19: 100000 | Q19: 100000 | R19: 100000 | S19: 100000 | T19: 100000 | U19: 100000 | V19: 100000 | W19: 100000 | X19: 100000 | Y19: 100000 | Z19: 100000 | AA19: 100000 | AB19: 100000 | AC19: 100000 | AD19: 100000 | AE19: 100000 | AF19: 100000 | AG19: 100000 | AH19: 100000 | AI19: 100000 | AJ19: 100000 | AK19: 100000 | AL19: 100000 | AM19: 100000 | AN19: 100000 | AO19: 100000 | AP19: 0 | AQ19: 0 | AR19: 0 | AS19: 0 | AT19: 0 | AU19: 0 | AV19: 0 | AW19: 0 | AX19: 0 | AY19: 0 | AZ19: 0 | BA19: 0 | BB19: 0 | BC19: 0 | BD19: 0 | BE19: 0 | BF19: 0 | BG19: 0 | BH19: 0 | BI19: 0 | BJ19: 0 | BK19: 0 | BL19: 0 | BM19: 0 | BN19: 0 | BO19: 0 | BP19: 0 | BQ19: 0 | BR19: 0 | BS19: 0 | BT19: 0 | BU19: 0 | BV19: 0 | BW19: 0 | BX19: =$G$19*BX9 -> 0 | BY19: 0 | BZ19: 0 | CA19: 0 | CB19: 0 | CC19: 0 | CD19: 0 | CE19: 0 | CF19: 0 | CG19: 0 | CH19: 0 | CI19: 0 | CJ19: 0 | CK19: 0 | CL19: 0 | CM19: 0 | CN19: 0 | CO19: 0 | CP19: 0 | CQ19: 0 | CR19: 0 | CS19: 0 | CT19: 0 | CU19: 0 | CV19: 0 | CW19: 0 | CX19: 0 | CY19: 0 | CZ19: 0 | DA19: 0 | DB19: 0 | DC19: 0 | DD19: 0 | DE19: 0 | DF19: 0 | DG19: 0 | DH19: 0 | DI19: 0 | DJ19: 0 | DK19: 0 | DL19: 0 | DM19: 0 | DN19: 0 | DO19: 0 | DP19: 0 | DQ19: 0 | DR19: 0 | DS19: 0 | DT19: 0 | DU19: 0 | DV19: 0 | DW19: 0 | DX19: 0 | DY19: 0 | DZ19: 0 | EA19: 0 | EB19: 0 | EC19: 0 | ED19: 0 | EE19: 0 | EF19: 0 | EG19: 0 | EH19: 0 | EI19: 0 | EJ19: =$G$19*EJ9 -> 0 | EK19: 0 | EL19: 0 | EM19: 0 | EN19: 0 | EO19: 0 | EP19: 0 | EQ19: 0 | ER19: 0 | ES19: 0 | ET19: 0 | EU19: 0 | EV19: 0 | EW19: 0 | EX19: 0 | EY19: 0 | EZ19: 0 | FA19: 0 | FB19: 0 | FC19: 0 | FD19: 0 | FE19: 0 | FF19: 0 | FG19: 0 | FH19: 0 | FI19: 0 | FJ19: 0 | FK19: 0 | FL19: 0 | FM19: 0 | FN19: 0 | FO19: 0 | FP19: 0 | FQ19: 0 | FR19: 0 | FS19: 0 | FT19: 0 | FU19: 0 | FV19: 0 | FW19: 0 | FX19: 0 | FY19: 0 | FZ19: 0 | GA19: 0 | GB19: 0 | GC19: 0 | GD19: 0 | GE19: 0 | GF19: 0 | GG19: 0 | GH19: 0 | GI19: 0 | GJ19: 0 | GK19: 0 | GL19: 0 | GM19: 0 | GN19: 0 | GO19: 0 | GP19: 0 | GQ19: 0 | GR19: 0 | GS19: 0 | GT19: 0 | GU19: 0 | GV19: =$G$19*GV9 -> 0 | GW19: 0 | GX19: 0 | GY19: 0 | GZ19: 0 | HA19: 0 | HB19: 0 | HC19: 0 | HD19: 0 | HE19: 0 | HF19: 0 | HG19: 0 | HH19: 0 | HI19: 0 | HJ19: 0 | HK19: 0 | HL19: 0 | HM19: 0 | HN19: 0 | HO19: 0 | HP19: 0 | HQ19: 0 | HR19: 0 | HS19: 0 | HT19: 0 | HU19: 0 | HV19: 0 | HW19: 0 | HX19: 0 | HY19: 0 | HZ19: 0 | IA19: 0 | IB19: 0 | IC19: 0 | ID19: 0 | IE19: 0 | IF19: 0 | IG19: 0 | IH19: 0 | II19: 0 | IJ19: 0 | IK19: 0 | IL19: 0 | IM19: 0 | IN19: 0 | IO19: 0 | IP19: 0 | IQ19: 0 | IR19: 0 | IS19: 0 | IT19: 0 | IU19: 0 | IV19: 0 | IW19: 0 | IX19: 0 | IY19: 0 | IZ19: 0
D20: Growth Rate | E20: % p.a. | F20: =InputC!F21 -> 0 | G20: =G6 -> 12 | I20: % p.p. | K20: =(1+$F$20)^($G$20/months)-1 -> 0 | L20: =(1+$F$20)^($G$20/months)-1 -> 0 | M20: 0 | N20: 0 | O20: 0 | P20: 0 | Q20: 0 | R20: 0 | S20: 0 | T20: 0 | U20: 0 | V20: 0 | W20: 0 | X20: 0 | Y20: 0 | Z20: 0 | AA20: 0 | AB20: 0 | AC20: 0 | AD20: 0 | AE20: 0 | AF20: 0 | AG20: 0 | AH20: 0 | AI20: 0 | AJ20: 0 | AK20: 0 | AL20: 0 | AM20: 0 | AN20: 0 | AO20: 0 | AP20: 0 | AQ20: 0 | AR20: 0 | AS20: 0 | AT20: 0 | AU20: 0 | AV20: 0 | AW20: 0 | AX20: 0 | AY20: 0 | AZ20: 0 | BA20: 0 | BB20: 0 | BC20: 0 | BD20: 0 | BE20: 0 | BF20: 0 | BG20: 0 | BH20: 0 | BI20: 0 | BJ20: 0 | BK20: 0 | BL20: 0 | BM20: 0 | BN20: 0 | BO20: 0 | BP20: 0 | BQ20: 0 | BR20: 0 | BS20: 0 | BT20: 0 | BU20: 0 | BV20: 0 | BW20: =(1+$F$20)^($G$20/months)-1 -> 0 | BX20: 0 | BY20: 0 | BZ20: 0 | CA20: 0 | CB20: 0 | CC20: 0 | CD20: 0 | CE20: 0 | CF20: 0 | CG20: 0 | CH20: 0 | CI20: 0 | CJ20: 0 | CK20: 0 | CL20: 0 | CM20: 0 | CN20: 0 | CO20: 0 | CP20: 0 | CQ20: 0 | CR20: 0 | CS20: 0 | CT20: 0 | CU20: 0 | CV20: 0 | CW20: 0 | CX20: 0 | CY20: 0 | CZ20: 0 | DA20: 0 | DB20: 0 | DC20: 0 | DD20: 0 | DE20: 0 | DF20: 0 | DG20: 0 | DH20: 0 | DI20: 0 | DJ20: 0 | DK20: 0 | DL20: 0 | DM20: 0 | DN20: 0 | DO20: 0 | DP20: 0 | DQ20: 0 | DR20: 0 | DS20: 0 | DT20: 0 | DU20: 0 | DV20: 0 | DW20: 0 | DX20: 0 | DY20: 0 | DZ20: 0 | EA20: 0 | EB20: 0 | EC20: 0 | ED20: 0 | EE20: 0 | EF20: 0 | EG20: 0 | EH20: 0 | EI20: =(1+$F$20)^($G$20/months)-1 -> 0 | EJ20: 0 | EK20: 0 | EL20: 0 | EM20: 0 | EN20: 0 | EO20: 0 | EP20: 0 | EQ20: 0 | ER20: 0 | ES20: 0 | ET20: 0 | EU20: 0 | EV20: 0 | EW20: 0 | EX20: 0 | EY20: 0 | EZ20: 0 | FA20: 0 | FB20: 0 | FC20: 0 | FD20: 0 | FE20: 0 | FF20: 0 | FG20: 0 | FH20: 0 | FI20: 0 | FJ20: 0 | FK20: 0 | FL20: 0 | FM20: 0 | FN20: 0 | FO20: 0 | FP20: 0 | FQ20: 0 | FR20: 0 | FS20: 0 | FT20: 0 | FU20: 0 | FV20: 0 | FW20: 0 | FX20: 0 | FY20: 0 | FZ20: 0 | GA20: 0 | GB20: 0 | GC20: 0 | GD20: 0 | GE20: 0 | GF20: 0 | GG20: 0 | GH20: 0 | GI20: 0 | GJ20: 0 | GK20: 0 | GL20: 0 | GM20: 0 | GN20: 0 | GO20: 0 | GP20: 0 | GQ20: 0 | GR20: 0 | GS20: 0 | GT20: 0 | GU20: =(1+$F$20)^($G$20/months)-1 -> 0 | GV20: 0 | GW20: 0 | GX20: 0 | GY20: 0 | GZ20: 0 | HA20: 0 | HB20: 0 | HC20: 0 | HD20: 0 | HE20: 0 | HF20: 0 | HG20: 0 | HH20: 0 | HI20: 0 | HJ20: 0 | HK20: 0 | HL20: 0 | HM20: 0 | HN20: 0 | HO20: 0 | HP20: 0 | HQ20: 0 | HR20: 0 | HS20: 0 | HT20: 0 | HU20: 0 | HV20: 0 | HW20: 0 | HX20: 0 | HY20: 0 | HZ20: 0 | IA20: 0 | IB20: 0 | IC20: 0 | ID20: 0 | IE20: 0 | IF20: 0 | IG20: 0 | IH20: 0 | II20: 0 | IJ20: 0 | IK20: 0 | IL20: 0 | IM20: 0 | IN20: 0 | IO20: 0 | IP20: 0 | IQ20: 0 | IR20: 0 | IS20: 0 | IT20: 0 | IU20: 0 | IV20: 0 | IW20: 0 | IX20: 0 | IY20: 0 | IZ20: 0
D21: Inflation Index | I21: Index | J21: =One -> 1 | K21: =J21*(1+K20*K9) -> 1 | L21: =K21*(1+L20*L9) -> 1 | M21: 1 | N21: 1 | O21: 1 | P21: 1 | Q21: 1 | R21: 1 | S21: 1 | T21: 1 | U21: 1 | V21: 1 | W21: 1 | X21: 1 | Y21: 1 | Z21: 1 | AA21: 1 | AB21: 1 | AC21: 1 | AD21: 1 | AE21: 1 | AF21: 1 | AG21: 1 | AH21: 1 | AI21: 1 | AJ21: 1 | AK21: 1 | AL21: 1 | AM21: 1 | AN21: 1 | AO21: 1 | AP21: 1 | AQ21: 1 | AR21: 1 | AS21: 1 | AT21: 1 | AU21: 1 | AV21: 1 | AW21: 1 | AX21: 1 | AY21: 1 | AZ21: 1 | BA21: 1 | BB21: 1 | BC21: 1 | BD21: 1 | BE21: 1 | BF21: 1 | BG21: 1 | BH21: 1 | BI21: 1 | BJ21: 1 | BK21: 1 | BL21: 1 | BM21: 1 | BN21: 1 | BO21: 1 | BP21: 1 | BQ21: 1 | BR21: 1 | BS21: 1 | BT21: 1 | BU21: 1 | BV21: 1 | BW21: 1 | BX21: =BW21*(1+BX20*BX9) -> 1 | BY21: 1 | BZ21: 1 | CA21: 1 | CB21: 1 | CC21: 1 | CD21: 1 | CE21: 1 | CF21: 1 | CG21: 1 | CH21: 1 | CI21: 1 | CJ21: 1 | CK21: 1 | CL21: 1 | CM21: 1 | CN21: 1 | CO21: 1 | CP21: 1 | CQ21: 1 | CR21: 1 | CS21: 1 | CT21: 1 | CU21: 1 | CV21: 1 | CW21: 1 | CX21: 1 | CY21: 1 | CZ21: 1 | DA21: 1 | DB21: 1 | DC21: 1 | DD21: 1 | DE21: 1 | DF21: 1 | DG21: 1 | DH21: 1 | DI21: 1 | DJ21: 1 | DK21: 1 | DL21: 1 | DM21: 1 | DN21: 1 | DO21: 1 | DP21: 1 | DQ21: 1 | DR21: 1 | DS21: 1 | DT21: 1 | DU21: 1 | DV21: 1 | DW21: 1 | DX21: 1 | DY21: 1 | DZ21: 1 | EA21: 1 | EB21: 1 | EC21: 1 | ED21: 1 | EE21: 1 | EF21: 1 | EG21: 1 | EH21: 1 | EI21: 1 | EJ21: =EI21*(1+EJ20*EJ9) -> 1 | EK21: 1 | EL21: 1 | EM21: 1 | EN21: 1 | EO21: 1 | EP21: 1 | EQ21: 1 | ER21: 1 | ES21: 1 | ET21: 1 | EU21: 1 | EV21: 1 | EW21: 1 | EX21: 1 | EY21: 1 | EZ21: 1 | FA21: 1 | FB21: 1 | FC21: 1 | FD21: 1 | FE21: 1 | FF21: 1 | FG21: 1 | FH21: 1 | FI21: 1 | FJ21: 1 | FK21: 1 | FL21: 1 | FM21: 1 | FN21: 1 | FO21: 1 | FP21: 1 | FQ21: 1 | FR21: 1 | FS21: 1 | FT21: 1 | FU21: 1 | FV21: 1 | FW21: 1 | FX21: 1 | FY21: 1 | FZ21: 1 | GA21: 1 | GB21: 1 | GC21: 1 | GD21: 1 | GE21: 1 | GF21: 1 | GG21: 1 | GH21: 1 | GI21: 1 | GJ21: 1 | GK21: 1 | GL21: 1 | GM21: 1 | GN21: 1 | GO21: 1 | GP21: 1 | GQ21: 1 | GR21: 1 | GS21: 1 | GT21: 1 | GU21: 1 | GV21: =GU21*(1+GV20*GV9) -> 1 | GW21: 1 | GX21: 1 | GY21: 1 | GZ21: 1 | HA21: 1 | HB21: 1 | HC21: 1 | HD21: 1 | HE21: 1 | HF21: 1 | HG21: 1 | HH21: 1 | HI21: 1 | HJ21: 1 | HK21: 1 | HL21: 1 | HM21: 1 | HN21: 1 | HO21: 1 | HP21: 1 | HQ21: 1 | HR21: 1 | HS21: 1 | HT21: 1 | HU21: 1 | HV21: 1 | HW21: 1 | HX21: 1 | HY21: 1 | HZ21: 1 | IA21: 1 | IB21: 1 | IC21: 1 | ID21: 1 | IE21: 1 | IF21: 1 | IG21: 1 | IH21: 1 | II21: 1 | IJ21: 1 | IK21: 1 | IL21: 1 | IM21: 1 | IN21: 1 | IO21: 1 | IP21: 1 | IQ21: 1 | IR21: 1 | IS21: 1 | IT21: 1 | IU21: 1 | IV21: 1 | IW21: 1 | IX21: 1 | IY21: 1 | IZ21: 1
D22: Volatility Parameter | E22: % p.a.
D23: Mean Reversion Parameter | E23: % p.a.
D24: Volatility Index | F24: =InputC!$F$23 -> 0 | G24: =InputC!$F$24 -> 0.1 | I24: Index | J24: =One -> 1 | K24: =J24 -> 1 | L24: =K24 -> 1 | M24: 1 | N24: 1 | O24: 1 | P24: 1 | Q24: 1 | R24: 1 | S24: 1 | T24: 1 | U24: 1 | V24: 1 | W24: 1 | X24: 1 | Y24: 1 | Z24: 1 | AA24: 1 | AB24: 1 | AC24: 1 | AD24: 1 | AE24: 1 | AF24: 1 | AG24: 1 | AH24: 1 | AI24: 1 | AJ24: 1 | AK24: 1 | AL24: 1 | AM24: 1 | AN24: 1 | AO24: 1 | AP24: 1 | AQ24: 1 | AR24: 1 | AS24: 1 | AT24: 1 | AU24: 1 | AV24: 1 | AW24: 1 | AX24: 1 | AY24: 1 | AZ24: 1 | BA24: 1 | BB24: 1 | BC24: 1 | BD24: 1 | BE24: 1 | BF24: 1 | BG24: 1 | BH24: 1 | BI24: 1 | BJ24: 1 | BK24: 1 | BL24: 1 | BM24: 1 | BN24: 1 | BO24: 1 | BP24: 1 | BQ24: 1 | BR24: 1 | BS24: 1 | BT24: 1 | BU24: 1 | BV24: 1 | BW24: 1 | BX24: =BW24 -> 1 | BY24: 1 | BZ24: 1 | CA24: 1 | CB24: 1 | CC24: 1 | CD24: 1 | CE24: 1 | CF24: 1 | CG24: 1 | CH24: 1 | CI24: 1 | CJ24: 1 | CK24: 1 | CL24: 1 | CM24: 1 | CN24: 1 | CO24: 1 | CP24: 1 | CQ24: 1 | CR24: 1 | CS24: 1 | CT24: 1 | CU24: 1 | CV24: 1 | CW24: 1 | CX24: 1 | CY24: 1 | CZ24: 1 | DA24: 1 | DB24: 1 | DC24: 1 | DD24: 1 | DE24: 1 | DF24: 1 | DG24: 1 | DH24: 1 | DI24: 1 | DJ24: 1 | DK24: 1 | DL24: 1 | DM24: 1 | DN24: 1 | DO24: 1 | DP24: 1 | DQ24: 1 | DR24: 1 | DS24: 1 | DT24: 1 | DU24: 1 | DV24: 1 | DW24: 1 | DX24: 1 | DY24: 1 | DZ24: 1 | EA24: 1 | EB24: 1 | EC24: 1 | ED24: 1 | EE24: 1 | EF24: 1 | EG24: 1 | EH24: 1 | EI24: 1 | EJ24: =EI24 -> 1 | EK24: 1 | EL24: 1 | EM24: 1 | EN24: 1 | EO24: 1 | EP24: 1 | EQ24: 1 | ER24: 1 | ES24: 1 | ET24: 1 | EU24: 1 | EV24: 1 | EW24: 1 | EX24: 1 | EY24: 1 | EZ24: 1 | FA24: 1 | FB24: 1 | FC24: 1 | FD24: 1 | FE24: 1 | FF24: 1 | FG24: 1 | FH24: 1 | FI24: 1 | FJ24: 1 | FK24: 1 | FL24: 1 | FM24: 1 | FN24: 1 | FO24: 1 | FP24: 1 | FQ24: 1 | FR24: 1 | FS24: 1 | FT24: 1 | FU24: 1 | FV24: 1 | FW24: 1 | FX24: 1 | FY24: 1 | FZ24: 1 | GA24: 1 | GB24: 1 | GC24: 1 | GD24: 1 | GE24: 1 | GF24: 1 | GG24: 1 | GH24: 1 | GI24: 1 | GJ24: 1 | GK24: 1 | GL24: 1 | GM24: 1 | GN24: 1 | GO24: 1 | GP24: 1 | GQ24: 1 | GR24: 1 | GS24: 1 | GT24: 1 | GU24: 1 | GV24: =GU24 -> 1 | GW24: 1 | GX24: 1 | GY24: 1 | GZ24: 1 | HA24: 1 | HB24: 1 | HC24: 1 | HD24: 1 | HE24: 1 | HF24: 1 | HG24: 1 | HH24: 1 | HI24: 1 | HJ24: 1 | HK24: 1 | HL24: 1 | HM24: 1 | HN24: 1 | HO24: 1 | HP24: 1 | HQ24: 1 | HR24: 1 | HS24: 1 | HT24: 1 | HU24: 1 | HV24: 1 | HW24: 1 | HX24: 1 | HY24: 1 | HZ24: 1 | IA24: 1 | IB24: 1 | IC24: 1 | ID24: 1 | IE24: 1 | IF24: 1 | IG24: 1 | IH24: 1 | II24: 1 | IJ24: 1 | IK24: 1 | IL24: 1 | IM24: 1 | IN24: 1 | IO24: 1 | IP24: 1 | IQ24: 1 | IR24: 1 | IS24: 1 | IT24: 1 | IU24: 1 | IV24: 1 | IW24: 1 | IX24: 1 | IY24: 1 | IZ24: 1
D25: EBITDA with Inflation | H25: =SUM(K25:XFD25) -> 3000000 | I25: EUR | K25: =K21*K19*K24 -> 0 | L25: =L21*L19*L24 -> 100000 | M25: 100000 | N25: 100000 | O25: 100000 | P25: 100000 | Q25: 100000 | R25: 100000 | S25: 100000 | T25: 100000 | U25: 100000 | V25: 100000 | W25: 100000 | X25: 100000 | Y25: 100000 | Z25: 100000 | AA25: 100000 | AB25: 100000 | AC25: 100000 | AD25: 100000 | AE25: 100000 | AF25: 100000 | AG25: 100000 | AH25: 100000 | AI25: 100000 | AJ25: 100000 | AK25: 100000 | AL25: 100000 | AM25: 100000 | AN25: 100000 | AO25: 100000 | AP25: 0 | AQ25: 0 | AR25: 0 | AS25: 0 | AT25: 0 | AU25: 0 | AV25: 0 | AW25: 0 | AX25: 0 | AY25: 0 | AZ25: 0 | BA25: 0 | BB25: 0 | BC25: 0 | BD25: 0 | BE25: 0 | BF25: 0 | BG25: 0 | BH25: 0 | BI25: 0 | BJ25: 0 | BK25: 0 | BL25: 0 | BM25: 0 | BN25: 0 | BO25: 0 | BP25: 0 | BQ25: 0 | BR25: 0 | BS25: 0 | BT25: 0 | BU25: 0 | BV25: 0 | BW25: 0 | BX25: =BX21*BX19*BX24 -> 0 | BY25: 0 | BZ25: 0 | CA25: 0 | CB25: 0 | CC25: 0 | CD25: 0 | CE25: 0 | CF25: 0 | CG25: 0 | CH25: 0 | CI25: 0 | CJ25: 0 | CK25: 0 | CL25: 0 | CM25: 0 | CN25: 0 | CO25: 0 | CP25: 0 | CQ25: 0 | CR25: 0 | CS25: 0 | CT25: 0 | CU25: 0 | CV25: 0 | CW25: 0 | CX25: 0 | CY25: 0 | CZ25: 0 | DA25: 0 | DB25: 0 | DC25: 0 | DD25: 0 | DE25: 0 | DF25: 0 | DG25: 0 | DH25: 0 | DI25: 0 | DJ25: 0 | DK25: 0 | DL25: 0 | DM25: 0 | DN25: 0 | DO25: 0 | DP25: 0 | DQ25: 0 | DR25: 0 | DS25: 0 | DT25: 0 | DU25: 0 | DV25: 0 | DW25: 0 | DX25: 0 | DY25: 0 | DZ25: 0 | EA25: 0 | EB25: 0 | EC25: 0 | ED25: 0 | EE25: 0 | EF25: 0 | EG25: 0 | EH25: 0 | EI25: 0 | EJ25: =EJ21*EJ19*EJ24 -> 0 | EK25: 0 | EL25: 0 | EM25: 0 | EN25: 0 | EO25: 0 | EP25: 0 | EQ25: 0 | ER25: 0 | ES25: 0 | ET25: 0 | EU25: 0 | EV25: 0 | EW25: 0 | EX25: 0 | EY25: 0 | EZ25: 0 | FA25: 0 | FB25: 0 | FC25: 0 | FD25: 0 | FE25: 0 | FF25: 0 | FG25: 0 | FH25: 0 | FI25: 0 | FJ25: 0 | FK25: 0 | FL25: 0 | FM25: 0 | FN25: 0 | FO25: 0 | FP25: 0 | FQ25: 0 | FR25: 0 | FS25: 0 | FT25: 0 | FU25: 0 | FV25: 0 | FW25: 0 | FX25: 0 | FY25: 0 | FZ25: 0 | GA25: 0 | GB25: 0 | GC25: 0 | GD25: 0 | GE25: 0 | GF25: 0 | GG25: 0 | GH25: 0 | GI25: 0 | GJ25: 0 | GK25: 0 | GL25: 0 | GM25: 0 | GN25: 0 | GO25: 0 | GP25: 0 | GQ25: 0 | GR25: 0 | GS25: 0 | GT25: 0 | GU25: 0 | GV25: =GV21*GV19*GV24 -> 0 | GW25: 0 | GX25: 0 | GY25: 0 | GZ25: 0 | HA25: 0 | HB25: 0 | HC25: 0 | HD25: 0 | HE25: 0 | HF25: 0 | HG25: 0 | HH25: 0 | HI25: 0 | HJ25: 0 | HK25: 0 | HL25: 0 | HM25: 0 | HN25: 0 | HO25: 0 | HP25: 0 | HQ25: 0 | HR25: 0 | HS25: 0 | HT25: 0 | HU25: 0 | HV25: 0 | HW25: 0 | HX25: 0 | HY25: 0 | HZ25: 0 | IA25: 0 | IB25: 0 | IC25: 0 | ID25: 0 | IE25: 0 | IF25: 0 | IG25: 0 | IH25: 0 | II25: 0 | IJ25: 0 | IK25: 0 | IL25: 0 | IM25: 0 | IN25: 0 | IO25: 0 | IP25: 0 | IQ25: 0 | IR25: 0 | IS25: 0 | IT25: 0 | IU25: 0 | IV25: 0 | IW25: 0 | IX25: 0 | IY25: 0 | IZ25: 0
D27: Pre tax free cashflow | I27: EUR | K27: =K25-K16 -> -1000000 | L27: =L25-L16 -> 100000 | M27: =M25-M16 -> 100000 | N27: =N25-N16 -> 100000 | O27: =O25-O16 -> 100000 | P27: =P25-P16 -> 100000 | Q27: =Q25-Q16 -> 100000 | R27: =R25-R16 -> 100000 | S27: =S25-S16 -> 100000 | T27: =T25-T16 -> 100000 | U27: =U25-U16 -> 100000 | V27: =V25-V16 -> 100000 | W27: =W25-W16 -> 100000 | X27: =X25-X16 -> 100000 | Y27: =Y25-Y16 -> 100000 | Z27: =Z25-Z16 -> 100000 | AA27: =AA25-AA16 -> 100000 | AB27: =AB25-AB16 -> 100000 | AC27: =AC25-AC16 -> 100000 | AD27: =AD25-AD16 -> 100000 | AE27: =AE25-AE16 -> 100000 | AF27: =AF25-AF16 -> 100000 | AG27: =AG25-AG16 -> 100000 | AH27: =AH25-AH16 -> 100000 | AI27: =AI25-AI16 -> 100000 | AJ27: =AJ25-AJ16 -> 100000 | AK27: =AK25-AK16 -> 100000 | AL27: =AL25-AL16 -> 100000 | AM27: =AM25-AM16 -> 100000 | AN27: =AN25-AN16 -> 100000 | AO27: =AO25-AO16 -> 100000 | AP27: =AP25-AP16 -> 0 | AQ27: =AQ25-AQ16 -> 0 | AR27: =AR25-AR16 -> 0 | AS27: =AS25-AS16 -> 0 | AT27: =AT25-AT16 -> 0 | AU27: =AU25-AU16 -> 0 | AV27: =AV25-AV16 -> 0 | AW27: =AW25-AW16 -> 0 | AX27: =AX25-AX16 -> 0 | AY27: =AY25-AY16 -> 0 | AZ27: =AZ25-AZ16 -> 0 | BA27: =BA25-BA16 -> 0 | BB27: =BB25-BB16 -> 0 | BC27: =BC25-BC16 -> 0 | BD27: =BD25-BD16 -> 0 | BE27: =BE25-BE16 -> 0 | BF27: =BF25-BF16 -> 0 | BG27: =BG25-BG16 -> 0 | BH27: =BH25-BH16 -> 0 | BI27: =BI25-BI16 -> 0 | BJ27: =BJ25-BJ16 -> 0 | BK27: =BK25-BK16 -> 0 | BL27: =BL25-BL16 -> 0 | BM27: =BM25-BM16 -> 0 | BN27: =BN25-BN16 -> 0 | BO27: =BO25-BO16 -> 0 | BP27: =BP25-BP16 -> 0 | BQ27: =BQ25-BQ16 -> 0 | BR27: =BR25-BR16 -> 0 | BS27: =BS25-BS16 -> 0 | BT27: =BT25-BT16 -> 0 | BU27: =BU25-BU16 -> 0 | BV27: =BV25-BV16 -> 0 | BW27: =BW25-BW16 -> 0 | BX27: =BX25-BX16 -> 0 | BY27: =BY25-BY16 -> 0 | BZ27: =BZ25-BZ16 -> 0 | CA27: =CA25-CA16 -> 0 | CB27: =CB25-CB16 -> 0 | CC27: =CC25-CC16 -> 0 | CD27: =CD25-CD16 -> 0 | CE27: =CE25-CE16 -> 0 | CF27: =CF25-CF16 -> 0 | CG27: =CG25-CG16 -> 0 | CH27: =CH25-CH16 -> 0 | CI27: =CI25-CI16 -> 0 | CJ27: =CJ25-CJ16 -> 0 | CK27: =CK25-CK16 -> 0 | CL27: =CL25-CL16 -> 0 | CM27: =CM25-CM16 -> 0 | CN27: =CN25-CN16 -> 0 | CO27: =CO25-CO16 -> 0 | CP27: =CP25-CP16 -> 0 | CQ27: =CQ25-CQ16 -> 0 | CR27: =CR25-CR16 -> 0 | CS27: =CS25-CS16 -> 0 | CT27: =CT25-CT16 -> 0 | CU27: =CU25-CU16 -> 0 | CV27: =CV25-CV16 -> 0 | CW27: =CW25-CW16 -> 0 | CX27: =CX25-CX16 -> 0 | CY27: =CY25-CY16 -> 0 | CZ27: =CZ25-CZ16 -> 0 | DA27: =DA25-DA16 -> 0 | DB27: =DB25-DB16 -> 0 | DC27: =DC25-DC16 -> 0 | DD27: =DD25-DD16 -> 0 | DE27: =DE25-DE16 -> 0 | DF27: =DF25-DF16 -> 0 | DG27: =DG25-DG16 -> 0 | DH27: =DH25-DH16 -> 0 | DI27: =DI25-DI16 -> 0 | DJ27: =DJ25-DJ16 -> 0 | DK27: =DK25-DK16 -> 0 | DL27: =DL25-DL16 -> 0 | DM27: =DM25-DM16 -> 0 | DN27: =DN25-DN16 -> 0 | DO27: =DO25-DO16 -> 0 | DP27: =DP25-DP16 -> 0 | DQ27: =DQ25-DQ16 -> 0 | DR27: =DR25-DR16 -> 0 | DS27: =DS25-DS16 -> 0 | DT27: =DT25-DT16 -> 0 | DU27: =DU25-DU16 -> 0 | DV27: =DV25-DV16 -> 0 | DW27: =DW25-DW16 -> 0 | DX27: =DX25-DX16 -> 0 | DY27: =DY25-DY16 -> 0 | DZ27: =DZ25-DZ16 -> 0 | EA27: =EA25-EA16 -> 0 | EB27: =EB25-EB16 -> 0 | EC27: =EC25-EC16 -> 0 | ED27: =ED25-ED16 -> 0 | EE27: =EE25-EE16 -> 0 | EF27: =EF25-EF16 -> 0 | EG27: =EG25-EG16 -> 0 | EH27: =EH25-EH16 -> 0 | EI27: =EI25-EI16 -> 0 | EJ27: =EJ25-EJ16 -> 0 | EK27: =EK25-EK16 -> 0 | EL27: =EL25-EL16 -> 0 | EM27: =EM25-EM16 -> 0 | EN27: =EN25-EN16 -> 0 | EO27: =EO25-EO16 -> 0 | EP27: =EP25-EP16 -> 0 | EQ27: =EQ25-EQ16 -> 0 | ER27: =ER25-ER16 -> 0 | ES27: =ES25-ES16 -> 0 | ET27: =ET25-ET16 -> 0 | EU27: =EU25-EU16 -> 0 | EV27: =EV25-EV16 -> 0 | EW27: =EW25-EW16 -> 0 | EX27: =EX25-EX16 -> 0 | EY27: =EY25-EY16 -> 0 | EZ27: =EZ25-EZ16 -> 0 | FA27: =FA25-FA16 -> 0 | FB27: =FB25-FB16 -> 0 | FC27: =FC25-FC16 -> 0 | FD27: =FD25-FD16 -> 0 | FE27: =FE25-FE16 -> 0 | FF27: =FF25-FF16 -> 0 | FG27: =FG25-FG16 -> 0 | FH27: =FH25-FH16 -> 0 | FI27: =FI25-FI16 -> 0 | FJ27: =FJ25-FJ16 -> 0 | FK27: =FK25-FK16 -> 0 | FL27: =FL25-FL16 -> 0 | FM27: =FM25-FM16 -> 0 | FN27: =FN25-FN16 -> 0 | FO27: =FO25-FO16 -> 0 | FP27: =FP25-FP16 -> 0 | FQ27: =FQ25-FQ16 -> 0 | FR27: =FR25-FR16 -> 0 | FS27: =FS25-FS16 -> 0 | FT27: =FT25-FT16 -> 0 | FU27: =FU25-FU16 -> 0 | FV27: =FV25-FV16 -> 0 | FW27: =FW25-FW16 -> 0 | FX27: =FX25-FX16 -> 0 | FY27: =FY25-FY16 -> 0 | FZ27: =FZ25-FZ16 -> 0 | GA27: =GA25-GA16 -> 0 | GB27: =GB25-GB16 -> 0 | GC27: =GC25-GC16 -> 0 | GD27: =GD25-GD16 -> 0 | GE27: =GE25-GE16 -> 0 | GF27: =GF25-GF16 -> 0 | GG27: =GG25-GG16 -> 0 | GH27: =GH25-GH16 -> 0 | GI27: =GI25-GI16 -> 0 | GJ27: =GJ25-GJ16 -> 0 | GK27: =GK25-GK16 -> 0 | GL27: =GL25-GL16 -> 0 | GM27: =GM25-GM16 -> 0 | GN27: =GN25-GN16 -> 0 | GO27: =GO25-GO16 -> 0 | GP27: =GP25-GP16 -> 0 | GQ27: =GQ25-GQ16 -> 0 | GR27: =GR25-GR16 -> 0 | GS27: =GS25-GS16 -> 0 | GT27: =GT25-GT16 -> 0 | GU27: =GU25-GU16 -> 0 | GV27: =GV25-GV16 -> 0 | GW27: =GW25-GW16 -> 0 | GX27: =GX25-GX16 -> 0 | GY27: =GY25-GY16 -> 0 | GZ27: =GZ25-GZ16 -> 0 | HA27: =HA25-HA16 -> 0 | HB27: =HB25-HB16 -> 0 | HC27: =HC25-HC16 -> 0 | HD27: =HD25-HD16 -> 0 | HE27: =HE25-HE16 -> 0 | HF27: =HF25-HF16 -> 0 | HG27: =HG25-HG16 -> 0 | HH27: =HH25-HH16 -> 0 | HI27: =HI25-HI16 -> 0 | HJ27: =HJ25-HJ16 -> 0 | HK27: =HK25-HK16 -> 0 | HL27: =HL25-HL16 -> 0 | HM27: =HM25-HM16 -> 0 | HN27: =HN25-HN16 -> 0 | HO27: =HO25-HO16 -> 0 | HP27: =HP25-HP16 -> 0 | HQ27: =HQ25-HQ16 -> 0 | HR27: =HR25-HR16 -> 0 | HS27: =HS25-HS16 -> 0 | HT27: =HT25-HT16 -> 0 | HU27: =HU25-HU16 -> 0 | HV27: =HV25-HV16 -> 0 | HW27: =HW25-HW16 -> 0 | HX27: =HX25-HX16 -> 0 | HY27: =HY25-HY16 -> 0 | HZ27: =HZ25-HZ16 -> 0 | IA27: =IA25-IA16 -> 0 | IB27: =IB25-IB16 -> 0 | IC27: =IC25-IC16 -> 0 | ID27: =ID25-ID16 -> 0 | IE27: =IE25-IE16 -> 0 | IF27: =IF25-IF16 -> 0 | IG27: =IG25-IG16 -> 0 | IH27: =IH25-IH16 -> 0 | II27: =II25-II16 -> 0 | IJ27: =IJ25-IJ16 -> 0 | IK27: =IK25-IK16 -> 0 | IL27: =IL25-IL16 -> 0 | IM27: =IM25-IM16 -> 0 | IN27: =IN25-IN16 -> 0 | IO27: =IO25-IO16 -> 0 | IP27: =IP25-IP16 -> 0 | IQ27: =IQ25-IQ16 -> 0 | IR27: =IR25-IR16 -> 0 | IS27: =IS25-IS16 -> 0 | IT27: =IT25-IT16 -> 0 | IU27: =IU25-IU16 -> 0 | IV27: =IV25-IV16 -> 0 | IW27: =IW25-IW16 -> 0 | IX27: =IX25-IX16 -> 0 | IY27: =IY25-IY16 -> 0 | IZ27: =IZ25-IZ16 -> 0
D28: Pre tax IRR | E28: % | F28: =IRR(K27:IZ27,0.0001) -> 0.09307339772 | G28: =(1+F28)^(months/G6)-1 -> 0.09307339772 | I28: %
D29: Pre tax XIRR | E29: % | F29: =IFERROR(XIRR(K27:IZ27,K8:IZ8),FALSE) -> 0.09300350845 | I29: %
B31: Debt Sizing
C32: Total Funding Requirements
D33: Capital Expenditures | I33: EUR
D34: IDC | I34: EUR
D35: Up-Front Fees | I35: EUR
D36: Commitment Fees | I36: EUR
D37: Total Requirements | I37: EUR
C39: Total Funding Sources
D40: Debt | E40: % | I40: EUR
D41: Equity | I41: EUR
D42: Total Sources | I42: EUR
B44: Debt Repayment
C46: Debt Flags
D47: Life Counter - Periods | I47: Period
D48: Life Counter - Periods | E48: Monts/Per | I48: Year
D49: Debt Repayment Periods | E49: Years | I49: Flag
C51: Debt Repayment
D52: Periodic Interest Rate | E52: % p.a | I52: % p.p.
D53: Level Debt Service with PMT | E53: EUR | I53: EUR
C55: Scheduled Debt
D56: Opening Balance | I56: EUR
D57: Add Debt Issued | I57: EUR
D58: Less: Debt Repaid | I58: EUR
D59: Closing Balance | I59: EUR
D60: Periodic Interest Rate | I60: %
D61: Interest Cost | I61: EUR
D63: Test of Closing Balance | E63: Periods
D65: Debt Service =Interest + Repayment | I65: EUR
D66: PV of Debt Service =Debt | I66: EUR
C68: Defaulted Debt
D69: Opening Balance | I69: EUR
D70: Add: Defaulted Debt | I70: EUR
D71: Less: Repayment of Default | I71: EUR
D72: Closing Balance | I72: EUR
D73: Interest on Default | I73: EUR
D75: Default at Maturity | I75: EUR
B77: Cash Waterfall
D79: EBITDA | I79: EUR
D80: Less: Debt Service | I80: EUR
D81: Less: Interest on Default | I81: EUR
D82: Cash Flow After Debt Service | I82: EUR
D83: Add: Default | I83: EUR
D84: Less: Repayment of Default | I84: EUR
D85: Dividends | I85: EUR
B87: Ratios
D89: Equity Cash Flow | I89: EUR
D90: Equity IRR | E90: % | I90: %
D92: Debt Cash Flow | E92: % | I92: EUR
D94: CFADS =EBITDA | I94: EUR
D95: Debt Service | I95: EUR
D96: Discount Rate | E96: %
D97: DSCR =CFADS/Debt Service | E97: x | I97: x
D98: Break-Even Percent Reduction DSCR | E98: %
D100: PV of CFADS over Life | E100: EUR
D101: PV of Debt Service =Debt | E101: EUR
D102: PLCR=PV of CFADS/PV of Debt Service | E102: x
D103: Break-Even Percent Reduction PLCR | E103: %
D105: CFADS for Loan Life | I105: EUR
D106: PV of CFADS over Loan Life | I106: EUR
D107: PV of Debt Service =Debt | I107: EUR
D108: LLCR =PV of CFADS LL/Loan Amount | E108: x
D109: Break-Even Percent Reduction LLCR | E109: %
B111: Graphts
D113: CFADS
D114: Debt Service
D116: =InputC!F5 -> Base Case - Annual | E116: : EBITDA | F116: =InputC!F20 -> 100000 | G116: DSCR | H116: =F97 -> 0 | I116: LLCR | J116: =F108 -> 0
D119: Accumulated Default
D121: Case
B124: Investment Account
C126: Cash Before COD
D127: Opening Balance | I127: EUR | K127: =J130 -> 0 | L127: =K130 -> 1000000 | M127: 1000000 | N127: 1000000 | O127: 1000000 | P127: 1000000 | Q127: 1000000 | R127: 1000000 | S127: 1000000 | T127: 1000000 | U127: 1000000 | V127: 1000000 | W127: 1000000 | X127: 1000000 | Y127: 1000000 | Z127: 1000000 | AA127: 1000000 | AB127: 1000000 | AC127: 1000000 | AD127: 1000000 | AE127: 1000000 | AF127: 1000000 | AG127: 1000000 | AH127: 1000000 | AI127: 1000000 | AJ127: 1000000 | AK127: 1000000 | AL127: 1000000 | AM127: 1000000 | AN127: 1000000 | AO127: 1000000 | AP127: 1000000 | AQ127: 1000000 | AR127: 1000000 | AS127: 1000000 | AT127: 1000000 | AU127: 1000000 | AV127: 1000000 | AW127: 1000000 | AX127: 1000000 | AY127: 1000000 | AZ127: 1000000 | BA127: 1000000 | BB127: 1000000 | BC127: 1000000 | BD127: 1000000 | BE127: 1000000 | BF127: 1000000 | BG127: 1000000 | BH127: 1000000 | BI127: 1000000 | BJ127: 1000000 | BK127: 1000000 | BL127: 1000000 | BM127: 1000000 | BN127: 1000000 | BO127: 1000000 | BP127: 1000000 | BQ127: 1000000 | BR127: 1000000 | BS127: 1000000 | BT127: 1000000 | BU127: 1000000 | BV127: 1000000 | BW127: 1000000 | BX127: =BW130 -> 1000000 | BY127: 1000000 | BZ127: 1000000 | CA127: 1000000 | CB127: 1000000 | CC127: 1000000 | CD127: 1000000 | CE127: 1000000 | CF127: 1000000 | CG127: 1000000 | CH127: 1000000 | CI127: 1000000 | CJ127: 1000000 | CK127: 1000000 | CL127: 1000000 | CM127: 1000000 | CN127: 1000000 | CO127: 1000000 | CP127: 1000000 | CQ127: 1000000 | CR127: 1000000 | CS127: 1000000 | CT127: 1000000 | CU127: 1000000 | CV127: 1000000 | CW127: 1000000 | CX127: 1000000 | CY127: 1000000 | CZ127: 1000000 | DA127: 1000000 | DB127: 1000000 | DC127: 1000000 | DD127: 1000000 | DE127: 1000000 | DF127: 1000000 | DG127: 1000000 | DH127: 1000000 | DI127: 1000000 | DJ127: 1000000 | DK127: 1000000 | DL127: 1000000 | DM127: 1000000 | DN127: 1000000 | DO127: 1000000 | DP127: 1000000 | DQ127: 1000000 | DR127: 1000000 | DS127: 1000000 | DT127: 1000000 | DU127: 1000000 | DV127: 1000000 | DW127: 1000000 | DX127: 1000000 | DY127: 1000000 | DZ127: 1000000 | EA127: 1000000 | EB127: 1000000 | EC127: 1000000 | ED127: 1000000 | EE127: 1000000 | EF127: 1000000 | EG127: 1000000 | EH127: 1000000 | EI127: 1000000 | EJ127: =EI130 -> 1000000 | EK127: 1000000 | EL127: 1000000 | EM127: 1000000 | EN127: 1000000 | EO127: 1000000 | EP127: 1000000 | EQ127: 1000000 | ER127: 1000000 | ES127: 1000000 | ET127: 1000000 | EU127: 1000000 | EV127: 1000000 | EW127: 1000000 | EX127: 1000000 | EY127: 1000000 | EZ127: 1000000 | FA127: 1000000 | FB127: 1000000 | FC127: 1000000 | FD127: 1000000 | FE127: 1000000 | FF127: 1000000 | FG127: 1000000 | FH127: 1000000 | FI127: 1000000 | FJ127: 1000000 | FK127: 1000000 | FL127: 1000000 | FM127: 1000000 | FN127: 1000000 | FO127: 1000000 | FP127: 1000000 | FQ127: 1000000 | FR127: 1000000 | FS127: 1000000 | FT127: 1000000 | FU127: 1000000 | FV127: 1000000 | FW127: 1000000 | FX127: 1000000 | FY127: 1000000 | FZ127: 1000000 | GA127: 1000000 | GB127: 1000000 | GC127: 1000000 | GD127: 1000000 | GE127: 1000000 | GF127: 1000000 | GG127: 1000000 | GH127: 1000000 | GI127: 1000000 | GJ127: 1000000 | GK127: 1000000 | GL127: 1000000 | GM127: 1000000 | GN127: 1000000 | GO127: 1000000 | GP127: 1000000 | GQ127: 1000000 | GR127: 1000000 | GS127: 1000000 | GT127: 1000000 | GU127: 1000000 | GV127: =GU130 -> 1000000 | GW127: 1000000 | GX127: 1000000 | GY127: 1000000 | GZ127: 1000000 | HA127: 1000000 | HB127: 1000000 | HC127: 1000000 | HD127: 1000000 | HE127: 1000000 | HF127: 1000000 | HG127: 1000000 | HH127: 1000000 | HI127: 1000000 | HJ127: 1000000 | HK127: 1000000 | HL127: 1000000 | HM127: 1000000 | HN127: 1000000 | HO127: 1000000 | HP127: 1000000 | HQ127: 1000000 | HR127: 1000000 | HS127: 1000000 | HT127: 1000000 | HU127: 1000000 | HV127: 1000000 | HW127: 1000000 | HX127: 1000000 | HY127: 1000000 | HZ127: 1000000 | IA127: 1000000 | IB127: 1000000 | IC127: 1000000 | ID127: 1000000 | IE127: 1000000 | IF127: 1000000 | IG127: 1000000 | IH127: 1000000 | II127: 1000000 | IJ127: 1000000 | IK127: 1000000 | IL127: 1000000 | IM127: 1000000 | IN127: 1000000 | IO127: 1000000 | IP127: 1000000 | IQ127: 1000000 | IR127: 1000000 | IS127: 1000000 | IT127: 1000000 | IU127: 1000000 | IV127: 1000000 | IW127: 1000000 | IX127: 1000000 | IY127: 1000000 | IZ127: 1000000
D128: Financing Cost | F128: =F28 -> 0.09307339772 | I128: EUR | K128: =K127*$F$128*K5 -> 0 | L128: =L127*$F$128*L5 -> 0 | M128: =M127*$F$128*M5 -> 0 | N128: =N127*$F$128*N5 -> 0 | O128: =O127*$F$128*O5 -> 0 | P128: =P127*$F$128*P5 -> 0 | Q128: =Q127*$F$128*Q5 -> 0 | R128: =R127*$F$128*R5 -> 0 | S128: =S127*$F$128*S5 -> 0 | T128: =T127*$F$128*T5 -> 0 | U128: =U127*$F$128*U5 -> 0 | V128: =V127*$F$128*V5 -> 0 | W128: =W127*$F$128*W5 -> 0 | X128: =X127*$F$128*X5 -> 0 | Y128: =Y127*$F$128*Y5 -> 0 | Z128: =Z127*$F$128*Z5 -> 0 | AA128: =AA127*$F$128*AA5 -> 0 | AB128: =AB127*$F$128*AB5 -> 0 | AC128: =AC127*$F$128*AC5 -> 0 | AD128: =AD127*$F$128*AD5 -> 0 | AE128: =AE127*$F$128*AE5 -> 0 | AF128: =AF127*$F$128*AF5 -> 0 | AG128: =AG127*$F$128*AG5 -> 0 | AH128: =AH127*$F$128*AH5 -> 0 | AI128: =AI127*$F$128*AI5 -> 0 | AJ128: =AJ127*$F$128*AJ5 -> 0 | AK128: =AK127*$F$128*AK5 -> 0 | AL128: =AL127*$F$128*AL5 -> 0 | AM128: =AM127*$F$128*AM5 -> 0 | AN128: =AN127*$F$128*AN5 -> 0 | AO128: =AO127*$F$128*AO5 -> 0 | AP128: =AP127*$F$128*AP5 -> 0 | AQ128: =AQ127*$F$128*AQ5 -> 0 | AR128: =AR127*$F$128*AR5 -> 0 | AS128: =AS127*$F$128*AS5 -> 0 | AT128: =AT127*$F$128*AT5 -> 0 | AU128: =AU127*$F$128*AU5 -> 0 | AV128: =AV127*$F$128*AV5 -> 0 | AW128: =AW127*$F$128*AW5 -> 0 | AX128: =AX127*$F$128*AX5 -> 0 | AY128: =AY127*$F$128*AY5 -> 0 | AZ128: =AZ127*$F$128*AZ5 -> 0 | BA128: =BA127*$F$128*BA5 -> 0 | BB128: =BB127*$F$128*BB5 -> 0 | BC128: =BC127*$F$128*BC5 -> 0 | BD128: =BD127*$F$128*BD5 -> 0 | BE128: =BE127*$F$128*BE5 -> 0 | BF128: =BF127*$F$128*BF5 -> 0 | BG128: =BG127*$F$128*BG5 -> 0 | BH128: =BH127*$F$128*BH5 -> 0 | BI128: =BI127*$F$128*BI5 -> 0 | BJ128: =BJ127*$F$128*BJ5 -> 0 | BK128: =BK127*$F$128*BK5 -> 0 | BL128: =BL127*$F$128*BL5 -> 0 | BM128: =BM127*$F$128*BM5 -> 0 | BN128: =BN127*$F$128*BN5 -> 0 | BO128: =BO127*$F$128*BO5 -> 0 | BP128: =BP127*$F$128*BP5 -> 0 | BQ128: =BQ127*$F$128*BQ5 -> 0 | BR128: =BR127*$F$128*BR5 -> 0 | BS128: =BS127*$F$128*BS5 -> 0 | BT128: =BT127*$F$128*BT5 -> 0 | BU128: =BU127*$F$128*BU5 -> 0 | BV128: =BV127*$F$128*BV5 -> 0 | BW128: =BW127*$F$128*BW5 -> 0 | BX128: =BX127*$F$128*BX5 -> 0 | BY128: =BY127*$F$128*BY5 -> 0 | BZ128: =BZ127*$F$128*BZ5 -> 0 | CA128: =CA127*$F$128*CA5 -> 0 | CB128: =CB127*$F$128*CB5 -> 0 | CC128: =CC127*$F$128*CC5 -> 0 | CD128: =CD127*$F$128*CD5 -> 0 | CE128: =CE127*$F$128*CE5 -> 0 | CF128: =CF127*$F$128*CF5 -> 0 | CG128: =CG127*$F$128*CG5 -> 0 | CH128: =CH127*$F$128*CH5 -> 0 | CI128: =CI127*$F$128*CI5 -> 0 | CJ128: =CJ127*$F$128*CJ5 -> 0 | CK128: =CK127*$F$128*CK5 -> 0 | CL128: =CL127*$F$128*CL5 -> 0 | CM128: =CM127*$F$128*CM5 -> 0 | CN128: =CN127*$F$128*CN5 -> 0 | CO128: =CO127*$F$128*CO5 -> 0 | CP128: =CP127*$F$128*CP5 -> 0 | CQ128: =CQ127*$F$128*CQ5 -> 0 | CR128: =CR127*$F$128*CR5 -> 0 | CS128: =CS127*$F$128*CS5 -> 0 | CT128: =CT127*$F$128*CT5 -> 0 | CU128: =CU127*$F$128*CU5 -> 0 | CV128: =CV127*$F$128*CV5 -> 0 | CW128: =CW127*$F$128*CW5 -> 0 | CX128: =CX127*$F$128*CX5 -> 0 | CY128: =CY127*$F$128*CY5 -> 0 | CZ128: =CZ127*$F$128*CZ5 -> 0 | DA128: =DA127*$F$128*DA5 -> 0 | DB128: =DB127*$F$128*DB5 -> 0 | DC128: =DC127*$F$128*DC5 -> 0 | DD128: =DD127*$F$128*DD5 -> 0 | DE128: =DE127*$F$128*DE5 -> 0 | DF128: =DF127*$F$128*DF5 -> 0 | DG128: =DG127*$F$128*DG5 -> 0 | DH128: =DH127*$F$128*DH5 -> 0 | DI128: =DI127*$F$128*DI5 -> 0 | DJ128: =DJ127*$F$128*DJ5 -> 0 | DK128: =DK127*$F$128*DK5 -> 0 | DL128: =DL127*$F$128*DL5 -> 0 | DM128: =DM127*$F$128*DM5 -> 0 | DN128: =DN127*$F$128*DN5 -> 0 | DO128: =DO127*$F$128*DO5 -> 0 | DP128: =DP127*$F$128*DP5 -> 0 | DQ128: =DQ127*$F$128*DQ5 -> 0 | DR128: =DR127*$F$128*DR5 -> 0 | DS128: =DS127*$F$128*DS5 -> 0 | DT128: =DT127*$F$128*DT5 -> 0 | DU128: =DU127*$F$128*DU5 -> 0 | DV128: =DV127*$F$128*DV5 -> 0 | DW128: =DW127*$F$128*DW5 -> 0 | DX128: =DX127*$F$128*DX5 -> 0 | DY128: =DY127*$F$128*DY5 -> 0 | DZ128: =DZ127*$F$128*DZ5 -> 0 | EA128: =EA127*$F$128*EA5 -> 0 | EB128: =EB127*$F$128*EB5 -> 0 | EC128: =EC127*$F$128*EC5 -> 0 | ED128: =ED127*$F$128*ED5 -> 0 | EE128: =EE127*$F$128*EE5 -> 0 | EF128: =EF127*$F$128*EF5 -> 0 | EG128: =EG127*$F$128*EG5 -> 0 | EH128: =EH127*$F$128*EH5 -> 0 | EI128: =EI127*$F$128*EI5 -> 0 | EJ128: =EJ127*$F$128*EJ5 -> 0 | EK128: =EK127*$F$128*EK5 -> 0 | EL128: =EL127*$F$128*EL5 -> 0 | EM128: =EM127*$F$128*EM5 -> 0 | EN128: =EN127*$F$128*EN5 -> 0 | EO128: =EO127*$F$128*EO5 -> 0 | EP128: =EP127*$F$128*EP5 -> 0 | EQ128: =EQ127*$F$128*EQ5 -> 0 | ER128: =ER127*$F$128*ER5 -> 0 | ES128: =ES127*$F$128*ES5 -> 0 | ET128: =ET127*$F$128*ET5 -> 0 | EU128: =EU127*$F$128*EU5 -> 0 | EV128: =EV127*$F$128*EV5 -> 0 | EW128: =EW127*$F$128*EW5 -> 0 | EX128: =EX127*$F$128*EX5 -> 0 | EY128: =EY127*$F$128*EY5 -> 0 | EZ128: =EZ127*$F$128*EZ5 -> 0 | FA128: =FA127*$F$128*FA5 -> 0 | FB128: =FB127*$F$128*FB5 -> 0 | FC128: =FC127*$F$128*FC5 -> 0 | FD128: =FD127*$F$128*FD5 -> 0 | FE128: =FE127*$F$128*FE5 -> 0 | FF128: =FF127*$F$128*FF5 -> 0 | FG128: =FG127*$F$128*FG5 -> 0 | FH128: =FH127*$F$128*FH5 -> 0 | FI128: =FI127*$F$128*FI5 -> 0 | FJ128: =FJ127*$F$128*FJ5 -> 0 | FK128: =FK127*$F$128*FK5 -> 0 | FL128: =FL127*$F$128*FL5 -> 0 | FM128: =FM127*$F$128*FM5 -> 0 | FN128: =FN127*$F$128*FN5 -> 0 | FO128: =FO127*$F$128*FO5 -> 0 | FP128: =FP127*$F$128*FP5 -> 0 | FQ128: =FQ127*$F$128*FQ5 -> 0 | FR128: =FR127*$F$128*FR5 -> 0 | FS128: =FS127*$F$128*FS5 -> 0 | FT128: =FT127*$F$128*FT5 -> 0 | FU128: =FU127*$F$128*FU5 -> 0 | FV128: =FV127*$F$128*FV5 -> 0 | FW128: =FW127*$F$128*FW5 -> 0 | FX128: =FX127*$F$128*FX5 -> 0 | FY128: =FY127*$F$128*FY5 -> 0 | FZ128: =FZ127*$F$128*FZ5 -> 0 | GA128: =GA127*$F$128*GA5 -> 0 | GB128: =GB127*$F$128*GB5 -> 0 | GC128: =GC127*$F$128*GC5 -> 0 | GD128: =GD127*$F$128*GD5 -> 0 | GE128: =GE127*$F$128*GE5 -> 0 | GF128: =GF127*$F$128*GF5 -> 0 | GG128: =GG127*$F$128*GG5 -> 0 | GH128: =GH127*$F$128*GH5 -> 0 | GI128: =GI127*$F$128*GI5 -> 0 | GJ128: =GJ127*$F$128*GJ5 -> 0 | GK128: =GK127*$F$128*GK5 -> 0 | GL128: =GL127*$F$128*GL5 -> 0 | GM128: =GM127*$F$128*GM5 -> 0 | GN128: =GN127*$F$128*GN5 -> 0 | GO128: =GO127*$F$128*GO5 -> 0 | GP128: =GP127*$F$128*GP5 -> 0 | GQ128: =GQ127*$F$128*GQ5 -> 0 | GR128: =GR127*$F$128*GR5 -> 0 | GS128: =GS127*$F$128*GS5 -> 0 | GT128: =GT127*$F$128*GT5 -> 0 | GU128: =GU127*$F$128*GU5 -> 0 | GV128: =GV127*$F$128*GV5 -> 0 | GW128: =GW127*$F$128*GW5 -> 0 | GX128: =GX127*$F$128*GX5 -> 0 | GY128: =GY127*$F$128*GY5 -> 0 | GZ128: =GZ127*$F$128*GZ5 -> 0 | HA128: =HA127*$F$128*HA5 -> 0 | HB128: =HB127*$F$128*HB5 -> 0 | HC128: =HC127*$F$128*HC5 -> 0 | HD128: =HD127*$F$128*HD5 -> 0 | HE128: =HE127*$F$128*HE5 -> 0 | HF128: =HF127*$F$128*HF5 -> 0 | HG128: =HG127*$F$128*HG5 -> 0 | HH128: =HH127*$F$128*HH5 -> 0 | HI128: =HI127*$F$128*HI5 -> 0 | HJ128: =HJ127*$F$128*HJ5 -> 0 | HK128: =HK127*$F$128*HK5 -> 0 | HL128: =HL127*$F$128*HL5 -> 0 | HM128: =HM127*$F$128*HM5 -> 0 | HN128: =HN127*$F$128*HN5 -> 0 | HO128: =HO127*$F$128*HO5 -> 0 | HP128: =HP127*$F$128*HP5 -> 0 | HQ128: =HQ127*$F$128*HQ5 -> 0 | HR128: =HR127*$F$128*HR5 -> 0 | HS128: =HS127*$F$128*HS5 -> 0 | HT128: =HT127*$F$128*HT5 -> 0 | HU128: =HU127*$F$128*HU5 -> 0 | HV128: =HV127*$F$128*HV5 -> 0 | HW128: =HW127*$F$128*HW5 -> 0 | HX128: =HX127*$F$128*HX5 -> 0 | HY128: =HY127*$F$128*HY5 -> 0 | HZ128: =HZ127*$F$128*HZ5 -> 0 | IA128: =IA127*$F$128*IA5 -> 0 | IB128: =IB127*$F$128*IB5 -> 0 | IC128: =IC127*$F$128*IC5 -> 0 | ID128: =ID127*$F$128*ID5 -> 0 | IE128: =IE127*$F$128*IE5 -> 0 | IF128: =IF127*$F$128*IF5 -> 0 | IG128: =IG127*$F$128*IG5 -> 0 | IH128: =IH127*$F$128*IH5 -> 0 | II128: =II127*$F$128*II5 -> 0 | IJ128: =IJ127*$F$128*IJ5 -> 0 | IK128: =IK127*$F$128*IK5 -> 0 | IL128: =IL127*$F$128*IL5 -> 0 | IM128: =IM127*$F$128*IM5 -> 0 | IN128: =IN127*$F$128*IN5 -> 0 | IO128: =IO127*$F$128*IO5 -> 0 | IP128: =IP127*$F$128*IP5 -> 0 | IQ128: =IQ127*$F$128*IQ5 -> 0 | IR128: =IR127*$F$128*IR5 -> 0 | IS128: =IS127*$F$128*IS5 -> 0 | IT128: =IT127*$F$128*IT5 -> 0 | IU128: =IU127*$F$128*IU5 -> 0 | IV128: =IV127*$F$128*IV5 -> 0 | IW128: =IW127*$F$128*IW5 -> 0 | IX128: =IX127*$F$128*IX5 -> 0 | IY128: =IY127*$F$128*IY5 -> 0 | IZ128: =IZ127*$F$128*IZ5 -> 0
D129: Payments | I129: EUR | K129: =K16 -> 1000000 | L129: =L16 -> 0 | M129: =M16 -> 0 | N129: =N16 -> 0 | O129: =O16 -> 0 | P129: =P16 -> 0 | Q129: =Q16 -> 0 | R129: =R16 -> 0 | S129: =S16 -> 0 | T129: =T16 -> 0 | U129: =U16 -> 0 | V129: =V16 -> 0 | W129: =W16 -> 0 | X129: =X16 -> 0 | Y129: =Y16 -> 0 | Z129: =Z16 -> 0 | AA129: =AA16 -> 0 | AB129: =AB16 -> 0 | AC129: =AC16 -> 0 | AD129: =AD16 -> 0 | AE129: =AE16 -> 0 | AF129: =AF16 -> 0 | AG129: =AG16 -> 0 | AH129: =AH16 -> 0 | AI129: =AI16 -> 0 | AJ129: =AJ16 -> 0 | AK129: =AK16 -> 0 | AL129: =AL16 -> 0 | AM129: =AM16 -> 0 | AN129: =AN16 -> 0 | AO129: =AO16 -> 0 | AP129: =AP16 -> 0 | AQ129: =AQ16 -> 0 | AR129: =AR16 -> 0 | AS129: =AS16 -> 0 | AT129: =AT16 -> 0 | AU129: =AU16 -> 0 | AV129: =AV16 -> 0 | AW129: =AW16 -> 0 | AX129: =AX16 -> 0 | AY129: =AY16 -> 0 | AZ129: =AZ16 -> 0 | BA129: =BA16 -> 0 | BB129: =BB16 -> 0 | BC129: =BC16 -> 0 | BD129: =BD16 -> 0 | BE129: =BE16 -> 0 | BF129: =BF16 -> 0 | BG129: =BG16 -> 0 | BH129: =BH16 -> 0 | BI129: =BI16 -> 0 | BJ129: =BJ16 -> 0 | BK129: =BK16 -> 0 | BL129: =BL16 -> 0 | BM129: =BM16 -> 0 | BN129: =BN16 -> 0 | BO129: =BO16 -> 0 | BP129: =BP16 -> 0 | BQ129: =BQ16 -> 0 | BR129: =BR16 -> 0 | BS129: =BS16 -> 0 | BT129: =BT16 -> 0 | BU129: =BU16 -> 0 | BV129: =BV16 -> 0 | BW129: =BW16 -> 0 | BX129: =BX16 -> 0 | BY129: =BY16 -> 0 | BZ129: =BZ16 -> 0 | CA129: =CA16 -> 0 | CB129: =CB16 -> 0 | CC129: =CC16 -> 0 | CD129: =CD16 -> 0 | CE129: =CE16 -> 0 | CF129: =CF16 -> 0 | CG129: =CG16 -> 0 | CH129: =CH16 -> 0 | CI129: =CI16 -> 0 | CJ129: =CJ16 -> 0 | CK129: =CK16 -> 0 | CL129: =CL16 -> 0 | CM129: =CM16 -> 0 | CN129: =CN16 -> 0 | CO129: =CO16 -> 0 | CP129: =CP16 -> 0 | CQ129: =CQ16 -> 0 | CR129: =CR16 -> 0 | CS129: =CS16 -> 0 | CT129: =CT16 -> 0 | CU129: =CU16 -> 0 | CV129: =CV16 -> 0 | CW129: =CW16 -> 0 | CX129: =CX16 -> 0 | CY129: =CY16 -> 0 | CZ129: =CZ16 -> 0 | DA129: =DA16 -> 0 | DB129: =DB16 -> 0 | DC129: =DC16 -> 0 | DD129: =DD16 -> 0 | DE129: =DE16 -> 0 | DF129: =DF16 -> 0 | DG129: =DG16 -> 0 | DH129: =DH16 -> 0 | DI129: =DI16 -> 0 | DJ129: =DJ16 -> 0 | DK129: =DK16 -> 0 | DL129: =DL16 -> 0 | DM129: =DM16 -> 0 | DN129: =DN16 -> 0 | DO129: =DO16 -> 0 | DP129: =DP16 -> 0 | DQ129: =DQ16 -> 0 | DR129: =DR16 -> 0 | DS129: =DS16 -> 0 | DT129: =DT16 -> 0 | DU129: =DU16 -> 0 | DV129: =DV16 -> 0 | DW129: =DW16 -> 0 | DX129: =DX16 -> 0 | DY129: =DY16 -> 0 | DZ129: =DZ16 -> 0 | EA129: =EA16 -> 0 | EB129: =EB16 -> 0 | EC129: =EC16 -> 0 | ED129: =ED16 -> 0 | EE129: =EE16 -> 0 | EF129: =EF16 -> 0 | EG129: =EG16 -> 0 | EH129: =EH16 -> 0 | EI129: =EI16 -> 0 | EJ129: =EJ16 -> 0 | EK129: =EK16 -> 0 | EL129: =EL16 -> 0 | EM129: =EM16 -> 0 | EN129: =EN16 -> 0 | EO129: =EO16 -> 0 | EP129: =EP16 -> 0 | EQ129: =EQ16 -> 0 | ER129: =ER16 -> 0 | ES129: =ES16 -> 0 | ET129: =ET16 -> 0 | EU129: =EU16 -> 0 | EV129: =EV16 -> 0 | EW129: =EW16 -> 0 | EX129: =EX16 -> 0 | EY129: =EY16 -> 0 | EZ129: =EZ16 -> 0 | FA129: =FA16 -> 0 | FB129: =FB16 -> 0 | FC129: =FC16 -> 0 | FD129: =FD16 -> 0 | FE129: =FE16 -> 0 | FF129: =FF16 -> 0 | FG129: =FG16 -> 0 | FH129: =FH16 -> 0 | FI129: =FI16 -> 0 | FJ129: =FJ16 -> 0 | FK129: =FK16 -> 0 | FL129: =FL16 -> 0 | FM129: =FM16 -> 0 | FN129: =FN16 -> 0 | FO129: =FO16 -> 0 | FP129: =FP16 -> 0 | FQ129: =FQ16 -> 0 | FR129: =FR16 -> 0 | FS129: =FS16 -> 0 | FT129: =FT16 -> 0 | FU129: =FU16 -> 0 | FV129: =FV16 -> 0 | FW129: =FW16 -> 0 | FX129: =FX16 -> 0 | FY129: =FY16 -> 0 | FZ129: =FZ16 -> 0 | GA129: =GA16 -> 0 | GB129: =GB16 -> 0 | GC129: =GC16 -> 0 | GD129: =GD16 -> 0 | GE129: =GE16 -> 0 | GF129: =GF16 -> 0 | GG129: =GG16 -> 0 | GH129: =GH16 -> 0 | GI129: =GI16 -> 0 | GJ129: =GJ16 -> 0 | GK129: =GK16 -> 0 | GL129: =GL16 -> 0 | GM129: =GM16 -> 0 | GN129: =GN16 -> 0 | GO129: =GO16 -> 0 | GP129: =GP16 -> 0 | GQ129: =GQ16 -> 0 | GR129: =GR16 -> 0 | GS129: =GS16 -> 0 | GT129: =GT16 -> 0 | GU129: =GU16 -> 0 | GV129: =GV16 -> 0 | GW129: =GW16 -> 0 | GX129: =GX16 -> 0 | GY129: =GY16 -> 0 | GZ129: =GZ16 -> 0 | HA129: =HA16 -> 0 | HB129: =HB16 -> 0 | HC129: =HC16 -> 0 | HD129: =HD16 -> 0 | HE129: =HE16 -> 0 | HF129: =HF16 -> 0 | HG129: =HG16 -> 0 | HH129: =HH16 -> 0 | HI129: =HI16 -> 0 | HJ129: =HJ16 -> 0 | HK129: =HK16 -> 0 | HL129: =HL16 -> 0 | HM129: =HM16 -> 0 | HN129: =HN16 -> 0 | HO129: =HO16 -> 0 | HP129: =HP16 -> 0 | HQ129: =HQ16 -> 0 | HR129: =HR16 -> 0 | HS129: =HS16 -> 0 | HT129: =HT16 -> 0 | HU129: =HU16 -> 0 | HV129: =HV16 -> 0 | HW129: =HW16 -> 0 | HX129: =HX16 -> 0 | HY129: =HY16 -> 0 | HZ129: =HZ16 -> 0 | IA129: =IA16 -> 0 | IB129: =IB16 -> 0 | IC129: =IC16 -> 0 | ID129: =ID16 -> 0 | IE129: =IE16 -> 0 | IF129: =IF16 -> 0 | IG129: =IG16 -> 0 | IH129: =IH16 -> 0 | II129: =II16 -> 0 | IJ129: =IJ16 -> 0 | IK129: =IK16 -> 0 | IL129: =IL16 -> 0 | IM129: =IM16 -> 0 | IN129: =IN16 -> 0 | IO129: =IO16 -> 0 | IP129: =IP16 -> 0 | IQ129: =IQ16 -> 0 | IR129: =IR16 -> 0 | IS129: =IS16 -> 0 | IT129: =IT16 -> 0 | IU129: =IU16 -> 0 | IV129: =IV16 -> 0 | IW129: =IW16 -> 0 | IX129: =IX16 -> 0 | IY129: =IY16 -> 0 | IZ129: =IZ16 -> 0
D130: Closing Balance | I130: EUR | K130: =SUM(K127:K129) -> 1000000 | L130: =SUM(L127:L129) -> 1000000 | M130: 1000000 | N130: 1000000 | O130: 1000000 | P130: 1000000 | Q130: 1000000 | R130: 1000000 | S130: 1000000 | T130: 1000000 | U130: 1000000 | V130: 1000000 | W130: 1000000 | X130: 1000000 | Y130: 1000000 | Z130: 1000000 | AA130: 1000000 | AB130: 1000000 | AC130: 1000000 | AD130: 1000000 | AE130: 1000000 | AF130: 1000000 | AG130: 1000000 | AH130: 1000000 | AI130: 1000000 | AJ130: 1000000 | AK130: 1000000 | AL130: 1000000 | AM130: 1000000 | AN130: 1000000 | AO130: 1000000 | AP130: 1000000 | AQ130: 1000000 | AR130: 1000000 | AS130: 1000000 | AT130: 1000000 | AU130: 1000000 | AV130: 1000000 | AW130: 1000000 | AX130: 1000000 | AY130: 1000000 | AZ130: 1000000 | BA130: 1000000 | BB130: 1000000 | BC130: 1000000 | BD130: 1000000 | BE130: 1000000 | BF130: 1000000 | BG130: 1000000 | BH130: 1000000 | BI130: 1000000 | BJ130: 1000000 | BK130: 1000000 | BL130: 1000000 | BM130: 1000000 | BN130: 1000000 | BO130: 1000000 | BP130: 1000000 | BQ130: 1000000 | BR130: 1000000 | BS130: 1000000 | BT130: 1000000 | BU130: 1000000 | BV130: 1000000 | BW130: 1000000 | BX130: =SUM(BX127:BX129) -> 1000000 | BY130: 1000000 | BZ130: 1000000 | CA130: 1000000 | CB130: 1000000 | CC130: 1000000 | CD130: 1000000 | CE130: 1000000 | CF130: 1000000 | CG130: 1000000 | CH130: 1000000 | CI130: 1000000 | CJ130: 1000000 | CK130: 1000000 | CL130: 1000000 | CM130: 1000000 | CN130: 1000000 | CO130: 1000000 | CP130: 1000000 | CQ130: 1000000 | CR130: 1000000 | CS130: 1000000 | CT130: 1000000 | CU130: 1000000 | CV130: 1000000 | CW130: 1000000 | CX130: 1000000 | CY130: 1000000 | CZ130: 1000000 | DA130: 1000000 | DB130: 1000000 | DC130: 1000000 | DD130: 1000000 | DE130: 1000000 | DF130: 1000000 | DG130: 1000000 | DH130: 1000000 | DI130: 1000000 | DJ130: 1000000 | DK130: 1000000 | DL130: 1000000 | DM130: 1000000 | DN130: 1000000 | DO130: 1000000 | DP130: 1000000 | DQ130: 1000000 | DR130: 1000000 | DS130: 1000000 | DT130: 1000000 | DU130: 1000000 | DV130: 1000000 | DW130: 1000000 | DX130: 1000000 | DY130: 1000000 | DZ130: 1000000 | EA130: 1000000 | EB130: 1000000 | EC130: 1000000 | ED130: 1000000 | EE130: 1000000 | EF130: 1000000 | EG130: 1000000 | EH130: 1000000 | EI130: 1000000 | EJ130: =SUM(EJ127:EJ129) -> 1000000 | EK130: 1000000 | EL130: 1000000 | EM130: 1000000 | EN130: 1000000 | EO130: 1000000 | EP130: 1000000 | EQ130: 1000000 | ER130: 1000000 | ES130: 1000000 | ET130: 1000000 | EU130: 1000000 | EV130: 1000000 | EW130: 1000000 | EX130: 1000000 | EY130: 1000000 | EZ130: 1000000 | FA130: 1000000 | FB130: 1000000 | FC130: 1000000 | FD130: 1000000 | FE130: 1000000 | FF130: 1000000 | FG130: 1000000 | FH130: 1000000 | FI130: 1000000 | FJ130: 1000000 | FK130: 1000000 | FL130: 1000000 | FM130: 1000000 | FN130: 1000000 | FO130: 1000000 | FP130: 1000000 | FQ130: 1000000 | FR130: 1000000 | FS130: 1000000 | FT130: 1000000 | FU130: 1000000 | FV130: 1000000 | FW130: 1000000 | FX130: 1000000 | FY130: 1000000 | FZ130: 1000000 | GA130: 1000000 | GB130: 1000000 | GC130: 1000000 | GD130: 1000000 | GE130: 1000000 | GF130: 1000000 | GG130: 1000000 | GH130: 1000000 | GI130: 1000000 | GJ130: 1000000 | GK130: 1000000 | GL130: 1000000 | GM130: 1000000 | GN130: 1000000 | GO130: 1000000 | GP130: 1000000 | GQ130: 1000000 | GR130: 1000000 | GS130: 1000000 | GT130: 1000000 | GU130: 1000000 | GV130: =SUM(GV127:GV129) -> 1000000 | GW130: 1000000 | GX130: 1000000 | GY130: 1000000 | GZ130: 1000000 | HA130: 1000000 | HB130: 1000000 | HC130: 1000000 | HD130: 1000000 | HE130: 1000000 | HF130: 1000000 | HG130: 1000000 | HH130: 1000000 | HI130: 1000000 | HJ130: 1000000 | HK130: 1000000 | HL130: 1000000 | HM130: 1000000 | HN130: 1000000 | HO130: 1000000 | HP130: 1000000 | HQ130: 1000000 | HR130: 1000000 | HS130: 1000000 | HT130: 1000000 | HU130: 1000000 | HV130: 1000000 | HW130: 1000000 | HX130: 1000000 | HY130: 1000000 | HZ130: 1000000 | IA130: 1000000 | IB130: 1000000 | IC130: 1000000 | ID130: 1000000 | IE130: 1000000 | IF130: 1000000 | IG130: 1000000 | IH130: 1000000 | II130: 1000000 | IJ130: 1000000 | IK130: 1000000 | IL130: 1000000 | IM130: 1000000 | IN130: 1000000 | IO130: 1000000 | IP130: 1000000 | IQ130: 1000000 | IR130: 1000000 | IS130: 1000000 | IT130: 1000000 | IU130: 1000000 | IV130: 1000000 | IW130: 1000000 | IX130: 1000000 | IY130: 1000000 | IZ130: 1000000
D132: Cash in Final Construction Period | E132: Period | F132: =H5 -> 1 | G132: =LOOKUP(F132,3:3,130:130) -> 1000000
C134: Cash After COD
D135: Opening Balance | E135: EUR | I135: EUR | K135: =J138 -> 0 | L135: 0 | M135: 100000 | N135: 209307.3398 | O135: 328788.2851 | P135: 459389.7279 | Q135: 602146.6907 | R135: 758190.5292 | S135: 928757.8978 | T135: 1115200.551 | U135: 1318996.055 | V135: 1541759.5 | W135: 1785256.295 | X135: 2051416.164 | Y135: 2342348.437 | Z135: 2660358.764 | AA135: 3007967.394 | AB135: 3387929.139 | AC135: 3803255.215 | AD135: 4257237.101 | AE135: 4753472.623 | AF135: 5295894.471 | AG135: 5888801.363 | AH135: 6536892.114 | AI135: 7245302.874 | AJ135: 8019647.83 | AK135: 8866063.702 | AL135: 9791258.375 | AM135: 10802564.06 | AN135: 11907995.4 | AO135: 13116312.99 | AP135: 14437092.81 | AQ135: 14437092.81 | AR135: 14437092.81 | AS135: 14437092.81 | AT135: 14437092.81 | AU135: 14437092.81 | AV135: 14437092.81 | AW135: 14437092.81 | AX135: 14437092.81 | AY135: 14437092.81 | AZ135: 14437092.81 | BA135: 14437092.81 | BB135: 14437092.81 | BC135: 14437092.81 | BD135: 14437092.81 | BE135: 14437092.81 | BF135: 14437092.81 | BG135: 14437092.81 | BH135: 14437092.81 | BI135: 14437092.81 | BJ135: 14437092.81 | BK135: 14437092.81 | BL135: 14437092.81 | BM135: 14437092.81 | BN135: 14437092.81 | BO135: 14437092.81 | BP135: 14437092.81 | BQ135: 14437092.81 | BR135: 14437092.81 | BS135: 14437092.81 | BT135: 14437092.81 | BU135: 14437092.81 | BV135: 14437092.81 | BW135: =BV138 -> 14437092.81 | BX135: 14437092.81 | BY135: 14437092.81 | BZ135: 14437092.81 | CA135: 14437092.81 | CB135: 14437092.81 | CC135: 14437092.81 | CD135: 14437092.81 | CE135: 14437092.81 | CF135: 14437092.81 | CG135: 14437092.81 | CH135: 14437092.81 | CI135: 14437092.81 | CJ135: 14437092.81 | CK135: 14437092.81 | CL135: 14437092.81 | CM135: 14437092.81 | CN135: 14437092.81 | CO135: 14437092.81 | CP135: 14437092.81 | CQ135: 14437092.81 | CR135: 14437092.81 | CS135: 14437092.81 | CT135: 14437092.81 | CU135: 14437092.81 | CV135: 14437092.81 | CW135: 14437092.81 | CX135: 14437092.81 | CY135: 14437092.81 | CZ135: 14437092.81 | DA135: 14437092.81 | DB135: 14437092.81 | DC135: 14437092.81 | DD135: 14437092.81 | DE135: 14437092.81 | DF135: 14437092.81 | DG135: 14437092.81 | DH135: 14437092.81 | DI135: 14437092.81 | DJ135: 14437092.81 | DK135: 14437092.81 | DL135: 14437092.81 | DM135: 14437092.81 | DN135: 14437092.81 | DO135: 14437092.81 | DP135: 14437092.81 | DQ135: 14437092.81 | DR135: 14437092.81 | DS135: 14437092.81 | DT135: 14437092.81 | DU135: 14437092.81 | DV135: 14437092.81 | DW135: 14437092.81 | DX135: 14437092.81 | DY135: 14437092.81 | DZ135: 14437092.81 | EA135: 14437092.81 | EB135: 14437092.81 | EC135: 14437092.81 | ED135: 14437092.81 | EE135: 14437092.81 | EF135: 14437092.81 | EG135: 14437092.81 | EH135: 14437092.81 | EI135: =EH138 -> 14437092.81 | EJ135: 14437092.81 | EK135: 14437092.81 | EL135: 14437092.81 | EM135: 14437092.81 | EN135: 14437092.81 | EO135: 14437092.81 | EP135: 14437092.81 | EQ135: 14437092.81 | ER135: 14437092.81 | ES135: 14437092.81 | ET135: 14437092.81 | EU135: 14437092.81 | EV135: 14437092.81 | EW135: 14437092.81 | EX135: 14437092.81 | EY135: 14437092.81 | EZ135: 14437092.81 | FA135: 14437092.81 | FB135: 14437092.81 | FC135: 14437092.81 | FD135: 14437092.81 | FE135: 14437092.81 | FF135: 14437092.81 | FG135: 14437092.81 | FH135: 14437092.81 | FI135: 14437092.81 | FJ135: 14437092.81 | FK135: 14437092.81 | FL135: 14437092.81 | FM135: 14437092.81 | FN135: 14437092.81 | FO135: 14437092.81 | FP135: 14437092.81 | FQ135: 14437092.81 | FR135: 14437092.81 | FS135: 14437092.81 | FT135: 14437092.81 | FU135: 14437092.81 | FV135: 14437092.81 | FW135: 14437092.81 | FX135: 14437092.81 | FY135: 14437092.81 | FZ135: 14437092.81 | GA135: 14437092.81 | GB135: 14437092.81 | GC135: 14437092.81 | GD135: 14437092.81 | GE135: 14437092.81 | GF135: 14437092.81 | GG135: 14437092.81 | GH135: 14437092.81 | GI135: 14437092.81 | GJ135: 14437092.81 | GK135: 14437092.81 | GL135: 14437092.81 | GM135: 14437092.81 | GN135: 14437092.81 | GO135: 14437092.81 | GP135: 14437092.81 | GQ135: 14437092.81 | GR135: 14437092.81 | GS135: 14437092.81 | GT135: 14437092.81 | GU135: =GT138 -> 14437092.81 | GV135: 14437092.81 | GW135: 14437092.81 | GX135: 14437092.81 | GY135: 14437092.81 | GZ135: 14437092.81 | HA135: 14437092.81 | HB135: 14437092.81 | HC135: 14437092.81 | HD135: 14437092.81 | HE135: 14437092.81 | HF135: 14437092.81 | HG135: 14437092.81 | HH135: 14437092.81 | HI135: 14437092.81 | HJ135: 14437092.81 | HK135: 14437092.81 | HL135: 14437092.81 | HM135: 14437092.81 | HN135: 14437092.81 | HO135: 14437092.81 | HP135: 14437092.81 | HQ135: 14437092.81 | HR135: 14437092.81 | HS135: 14437092.81 | HT135: 14437092.81 | HU135: 14437092.81 | HV135: 14437092.81 | HW135: 14437092.81 | HX135: 14437092.81 | HY135: 14437092.81 | HZ135: 14437092.81 | IA135: 14437092.81 | IB135: 14437092.81 | IC135: 14437092.81 | ID135: 14437092.81 | IE135: 14437092.81 | IF135: 14437092.81 | IG135: 14437092.81 | IH135: 14437092.81 | II135: 14437092.81 | IJ135: 14437092.81 | IK135: 14437092.81 | IL135: 14437092.81 | IM135: 14437092.81 | IN135: 14437092.81 | IO135: 14437092.81 | IP135: 14437092.81 | IQ135: 14437092.81 | IR135: 14437092.81 | IS135: 14437092.81 | IT135: 14437092.81 | IU135: 14437092.81 | IV135: 14437092.81 | IW135: 14437092.81 | IX135: 14437092.81 | IY135: 14437092.81 | IZ135: 14437092.81
D136: Reinvestment income | E136: EUR | F136: =F28 -> 0.09307339772 | I136: EUR | K136: =K135*$F$136*K9 -> 0 | L136: =L135*$F$136*L9 -> 0 | M136: =M135*$F$136*M9 -> 9307.339772 | N136: =N135*$F$136*N9 -> 19480.94528 | O136: =O135*$F$136*O9 -> 30601.44282 | P136: =P135*$F$136*P9 -> 42756.96285 | Q136: =Q135*$F$136*Q9 -> 56043.83843 | R136: =R135*$F$136*R9 -> 70567.36867 | S136: =S135*$F$136*S9 -> 86442.65321 | T136: =T135*$F$136*T9 -> 103795.5044 | U136: =U135*$F$136*U9 -> 122763.4445 | V136: =V135*$F$136*V9 -> 143496.7951 | W136: =W135*$F$136*W9 -> 166159.8692 | X136: =X135*$F$136*X9 -> 190932.2725 | Y136: =Y135*$F$136*Y9 -> 218010.3276 | Z136: =Z135*$F$136*Z9 -> 247608.6293 | AA136: =AA135*$F$136*AA9 -> 279961.7456 | AB136: =AB135*$F$136*AB9 -> 315326.0762 | AC136: =AC135*$F$136*AC9 -> 353981.8853 | AD136: =AD135*$F$136*AD9 -> 396235.5219 | AE136: =AE135*$F$136*AE9 -> 442421.8479 | AF136: =AF135*$F$136*AF9 -> 492906.8923 | AG136: =AG135*$F$136*AG9 -> 548090.7513 | AH136: =AH135*$F$136*AH9 -> 608410.7596 | AI136: =AI135*$F$136*AI9 -> 674344.956 | AJ136: =AJ135*$F$136*AJ9 -> 746415.872 | AK136: =AK135*$F$136*AK9 -> 825194.6731 | AL136: =AL135*$F$136*AL9 -> 911305.6849 | AM136: =AM135*$F$136*AM9 -> 1005431.341 | AN136: =AN135*$F$136*AN9 -> 1108317.592 | AO136: =AO135*$F$136*AO9 -> 1220779.816 | AP136: =AP135*$F$136*AP9 -> 0 | AQ136: =AQ135*$F$136*AQ9 -> 0 | AR136: =AR135*$F$136*AR9 -> 0 | AS136: =AS135*$F$136*AS9 -> 0 | AT136: =AT135*$F$136*AT9 -> 0 | AU136: =AU135*$F$136*AU9 -> 0 | AV136: =AV135*$F$136*AV9 -> 0 | AW136: =AW135*$F$136*AW9 -> 0 | AX136: =AX135*$F$136*AX9 -> 0 | AY136: =AY135*$F$136*AY9 -> 0 | AZ136: =AZ135*$F$136*AZ9 -> 0 | BA136: =BA135*$F$136*BA9 -> 0 | BB136: =BB135*$F$136*BB9 -> 0 | BC136: =BC135*$F$136*BC9 -> 0 | BD136: =BD135*$F$136*BD9 -> 0 | BE136: =BE135*$F$136*BE9 -> 0 | BF136: =BF135*$F$136*BF9 -> 0 | BG136: =BG135*$F$136*BG9 -> 0 | BH136: =BH135*$F$136*BH9 -> 0 | BI136: =BI135*$F$136*BI9 -> 0 | BJ136: =BJ135*$F$136*BJ9 -> 0 | BK136: =BK135*$F$136*BK9 -> 0 | BL136: =BL135*$F$136*BL9 -> 0 | BM136: =BM135*$F$136*BM9 -> 0 | BN136: =BN135*$F$136*BN9 -> 0 | BO136: =BO135*$F$136*BO9 -> 0 | BP136: =BP135*$F$136*BP9 -> 0 | BQ136: =BQ135*$F$136*BQ9 -> 0 | BR136: =BR135*$F$136*BR9 -> 0 | BS136: =BS135*$F$136*BS9 -> 0 | BT136: =BT135*$F$136*BT9 -> 0 | BU136: =BU135*$F$136*BU9 -> 0 | BV136: =BV135*$F$136*BV9 -> 0 | BW136: =BW135*$F$136*BW9 -> 0 | BX136: =BX135*$F$136*BX9 -> 0 | BY136: =BY135*$F$136*BY9 -> 0 | BZ136: =BZ135*$F$136*BZ9 -> 0 | CA136: =CA135*$F$136*CA9 -> 0 | CB136: =CB135*$F$136*CB9 -> 0 | CC136: =CC135*$F$136*CC9 -> 0 | CD136: =CD135*$F$136*CD9 -> 0 | CE136: =CE135*$F$136*CE9 -> 0 | CF136: =CF135*$F$136*CF9 -> 0 | CG136: =CG135*$F$136*CG9 -> 0 | CH136: =CH135*$F$136*CH9 -> 0 | CI136: =CI135*$F$136*CI9 -> 0 | CJ136: =CJ135*$F$136*CJ9 -> 0 | CK136: =CK135*$F$136*CK9 -> 0 | CL136: =CL135*$F$136*CL9 -> 0 | CM136: =CM135*$F$136*CM9 -> 0 | CN136: =CN135*$F$136*CN9 -> 0 | CO136: =CO135*$F$136*CO9 -> 0 | CP136: =CP135*$F$136*CP9 -> 0 | CQ136: =CQ135*$F$136*CQ9 -> 0 | CR136: =CR135*$F$136*CR9 -> 0 | CS136: =CS135*$F$136*CS9 -> 0 | CT136: =CT135*$F$136*CT9 -> 0 | CU136: =CU135*$F$136*CU9 -> 0 | CV136: =CV135*$F$136*CV9 -> 0 | CW136: =CW135*$F$136*CW9 -> 0 | CX136: =CX135*$F$136*CX9 -> 0 | CY136: =CY135*$F$136*CY9 -> 0 | CZ136: =CZ135*$F$136*CZ9 -> 0 | DA136: =DA135*$F$136*DA9 -> 0 | DB136: =DB135*$F$136*DB9 -> 0 | DC136: =DC135*$F$136*DC9 -> 0 | DD136: =DD135*$F$136*DD9 -> 0 | DE136: =DE135*$F$136*DE9 -> 0 | DF136: =DF135*$F$136*DF9 -> 0 | DG136: =DG135*$F$136*DG9 -> 0 | DH136: =DH135*$F$136*DH9 -> 0 | DI136: =DI135*$F$136*DI9 -> 0 | DJ136: =DJ135*$F$136*DJ9 -> 0 | DK136: =DK135*$F$136*DK9 -> 0 | DL136: =DL135*$F$136*DL9 -> 0 | DM136: =DM135*$F$136*DM9 -> 0 | DN136: =DN135*$F$136*DN9 -> 0 | DO136: =DO135*$F$136*DO9 -> 0 | DP136: =DP135*$F$136*DP9 -> 0 | DQ136: =DQ135*$F$136*DQ9 -> 0 | DR136: =DR135*$F$136*DR9 -> 0 | DS136: =DS135*$F$136*DS9 -> 0 | DT136: =DT135*$F$136*DT9 -> 0 | DU136: =DU135*$F$136*DU9 -> 0 | DV136: =DV135*$F$136*DV9 -> 0 | DW136: =DW135*$F$136*DW9 -> 0 | DX136: =DX135*$F$136*DX9 -> 0 | DY136: =DY135*$F$136*DY9 -> 0 | DZ136: =DZ135*$F$136*DZ9 -> 0 | EA136: =EA135*$F$136*EA9 -> 0 | EB136: =EB135*$F$136*EB9 -> 0 | EC136: =EC135*$F$136*EC9 -> 0 | ED136: =ED135*$F$136*ED9 -> 0 | EE136: =EE135*$F$136*EE9 -> 0 | EF136: =EF135*$F$136*EF9 -> 0 | EG136: =EG135*$F$136*EG9 -> 0 | EH136: =EH135*$F$136*EH9 -> 0 | EI136: =EI135*$F$136*EI9 -> 0 | EJ136: =EJ135*$F$136*EJ9 -> 0 | EK136: =EK135*$F$136*EK9 -> 0 | EL136: =EL135*$F$136*EL9 -> 0 | EM136: =EM135*$F$136*EM9 -> 0 | EN136: =EN135*$F$136*EN9 -> 0 | EO136: =EO135*$F$136*EO9 -> 0 | EP136: =EP135*$F$136*EP9 -> 0 | EQ136: =EQ135*$F$136*EQ9 -> 0 | ER136: =ER135*$F$136*ER9 -> 0 | ES136: =ES135*$F$136*ES9 -> 0 | ET136: =ET135*$F$136*ET9 -> 0 | EU136: =EU135*$F$136*EU9 -> 0 | EV136: =EV135*$F$136*EV9 -> 0 | EW136: =EW135*$F$136*EW9 -> 0 | EX136: =EX135*$F$136*EX9 -> 0 | EY136: =EY135*$F$136*EY9 -> 0 | EZ136: =EZ135*$F$136*EZ9 -> 0 | FA136: =FA135*$F$136*FA9 -> 0 | FB136: =FB135*$F$136*FB9 -> 0 | FC136: =FC135*$F$136*FC9 -> 0 | FD136: =FD135*$F$136*FD9 -> 0 | FE136: =FE135*$F$136*FE9 -> 0 | FF136: =FF135*$F$136*FF9 -> 0 | FG136: =FG135*$F$136*FG9 -> 0 | FH136: =FH135*$F$136*FH9 -> 0 | FI136: =FI135*$F$136*FI9 -> 0 | FJ136: =FJ135*$F$136*FJ9 -> 0 | FK136: =FK135*$F$136*FK9 -> 0 | FL136: =FL135*$F$136*FL9 -> 0 | FM136: =FM135*$F$136*FM9 -> 0 | FN136: =FN135*$F$136*FN9 -> 0 | FO136: =FO135*$F$136*FO9 -> 0 | FP136: =FP135*$F$136*FP9 -> 0 | FQ136: =FQ135*$F$136*FQ9 -> 0 | FR136: =FR135*$F$136*FR9 -> 0 | FS136: =FS135*$F$136*FS9 -> 0 | FT136: =FT135*$F$136*FT9 -> 0 | FU136: =FU135*$F$136*FU9 -> 0 | FV136: =FV135*$F$136*FV9 -> 0 | FW136: =FW135*$F$136*FW9 -> 0 | FX136: =FX135*$F$136*FX9 -> 0 | FY136: =FY135*$F$136*FY9 -> 0 | FZ136: =FZ135*$F$136*FZ9 -> 0 | GA136: =GA135*$F$136*GA9 -> 0 | GB136: =GB135*$F$136*GB9 -> 0 | GC136: =GC135*$F$136*GC9 -> 0 | GD136: =GD135*$F$136*GD9 -> 0 | GE136: =GE135*$F$136*GE9 -> 0 | GF136: =GF135*$F$136*GF9 -> 0 | GG136: =GG135*$F$136*GG9 -> 0 | GH136: =GH135*$F$136*GH9 -> 0 | GI136: =GI135*$F$136*GI9 -> 0 | GJ136: =GJ135*$F$136*GJ9 -> 0 | GK136: =GK135*$F$136*GK9 -> 0 | GL136: =GL135*$F$136*GL9 -> 0 | GM136: =GM135*$F$136*GM9 -> 0 | GN136: =GN135*$F$136*GN9 -> 0 | GO136: =GO135*$F$136*GO9 -> 0 | GP136: =GP135*$F$136*GP9 -> 0 | GQ136: =GQ135*$F$136*GQ9 -> 0 | GR136: =GR135*$F$136*GR9 -> 0 | GS136: =GS135*$F$136*GS9 -> 0 | GT136: =GT135*$F$136*GT9 -> 0 | GU136: =GU135*$F$136*GU9 -> 0 | GV136: =GV135*$F$136*GV9 -> 0 | GW136: =GW135*$F$136*GW9 -> 0 | GX136: =GX135*$F$136*GX9 -> 0 | GY136: =GY135*$F$136*GY9 -> 0 | GZ136: =GZ135*$F$136*GZ9 -> 0 | HA136: =HA135*$F$136*HA9 -> 0 | HB136: =HB135*$F$136*HB9 -> 0 | HC136: =HC135*$F$136*HC9 -> 0 | HD136: =HD135*$F$136*HD9 -> 0 | HE136: =HE135*$F$136*HE9 -> 0 | HF136: =HF135*$F$136*HF9 -> 0 | HG136: =HG135*$F$136*HG9 -> 0 | HH136: =HH135*$F$136*HH9 -> 0 | HI136: =HI135*$F$136*HI9 -> 0 | HJ136: =HJ135*$F$136*HJ9 -> 0 | HK136: =HK135*$F$136*HK9 -> 0 | HL136: =HL135*$F$136*HL9 -> 0 | HM136: =HM135*$F$136*HM9 -> 0 | HN136: =HN135*$F$136*HN9 -> 0 | HO136: =HO135*$F$136*HO9 -> 0 | HP136: =HP135*$F$136*HP9 -> 0 | HQ136: =HQ135*$F$136*HQ9 -> 0 | HR136: =HR135*$F$136*HR9 -> 0 | HS136: =HS135*$F$136*HS9 -> 0 | HT136: =HT135*$F$136*HT9 -> 0 | HU136: =HU135*$F$136*HU9 -> 0 | HV136: =HV135*$F$136*HV9 -> 0 | HW136: =HW135*$F$136*HW9 -> 0 | HX136: =HX135*$F$136*HX9 -> 0 | HY136: =HY135*$F$136*HY9 -> 0 | HZ136: =HZ135*$F$136*HZ9 -> 0 | IA136: =IA135*$F$136*IA9 -> 0 | IB136: =IB135*$F$136*IB9 -> 0 | IC136: =IC135*$F$136*IC9 -> 0 | ID136: =ID135*$F$136*ID9 -> 0 | IE136: =IE135*$F$136*IE9 -> 0 | IF136: =IF135*$F$136*IF9 -> 0 | IG136: =IG135*$F$136*IG9 -> 0 | IH136: =IH135*$F$136*IH9 -> 0 | II136: =II135*$F$136*II9 -> 0 | IJ136: =IJ135*$F$136*IJ9 -> 0 | IK136: =IK135*$F$136*IK9 -> 0 | IL136: =IL135*$F$136*IL9 -> 0 | IM136: =IM135*$F$136*IM9 -> 0 | IN136: =IN135*$F$136*IN9 -> 0 | IO136: =IO135*$F$136*IO9 -> 0 | IP136: =IP135*$F$136*IP9 -> 0 | IQ136: =IQ135*$F$136*IQ9 -> 0 | IR136: =IR135*$F$136*IR9 -> 0 | IS136: =IS135*$F$136*IS9 -> 0 | IT136: =IT135*$F$136*IT9 -> 0 | IU136: =IU135*$F$136*IU9 -> 0 | IV136: =IV135*$F$136*IV9 -> 0 | IW136: =IW135*$F$136*IW9 -> 0 | IX136: =IX135*$F$136*IX9 -> 0 | IY136: =IY135*$F$136*IY9 -> 0 | IZ136: =IZ135*$F$136*IZ9 -> 0
D137: Dividends | E137: EUR | I137: EUR | K137: =K25 -> 0 | L137: =L25 -> 100000 | M137: =M25 -> 100000 | N137: =N25 -> 100000 | O137: =O25 -> 100000 | P137: =P25 -> 100000 | Q137: =Q25 -> 100000 | R137: =R25 -> 100000 | S137: =S25 -> 100000 | T137: =T25 -> 100000 | U137: =U25 -> 100000 | V137: =V25 -> 100000 | W137: =W25 -> 100000 | X137: =X25 -> 100000 | Y137: =Y25 -> 100000 | Z137: =Z25 -> 100000 | AA137: =AA25 -> 100000 | AB137: =AB25 -> 100000 | AC137: =AC25 -> 100000 | AD137: =AD25 -> 100000 | AE137: =AE25 -> 100000 | AF137: =AF25 -> 100000 | AG137: =AG25 -> 100000 | AH137: =AH25 -> 100000 | AI137: =AI25 -> 100000 | AJ137: =AJ25 -> 100000 | AK137: =AK25 -> 100000 | AL137: =AL25 -> 100000 | AM137: =AM25 -> 100000 | AN137: =AN25 -> 100000 | AO137: =AO25 -> 100000 | AP137: =AP25 -> 0 | AQ137: =AQ25 -> 0 | AR137: =AR25 -> 0 | AS137: =AS25 -> 0 | AT137: =AT25 -> 0 | AU137: =AU25 -> 0 | AV137: =AV25 -> 0 | AW137: =AW25 -> 0 | AX137: =AX25 -> 0 | AY137: =AY25 -> 0 | AZ137: =AZ25 -> 0 | BA137: =BA25 -> 0 | BB137: =BB25 -> 0 | BC137: =BC25 -> 0 | BD137: =BD25 -> 0 | BE137: =BE25 -> 0 | BF137: =BF25 -> 0 | BG137: =BG25 -> 0 | BH137: =BH25 -> 0 | BI137: =BI25 -> 0 | BJ137: =BJ25 -> 0 | BK137: =BK25 -> 0 | BL137: =BL25 -> 0 | BM137: =BM25 -> 0 | BN137: =BN25 -> 0 | BO137: =BO25 -> 0 | BP137: =BP25 -> 0 | BQ137: =BQ25 -> 0 | BR137: =BR25 -> 0 | BS137: =BS25 -> 0 | BT137: =BT25 -> 0 | BU137: =BU25 -> 0 | BV137: =BV25 -> 0 | BW137: =BW25 -> 0 | BX137: =BX25 -> 0 | BY137: =BY25 -> 0 | BZ137: =BZ25 -> 0 | CA137: =CA25 -> 0 | CB137: =CB25 -> 0 | CC137: =CC25 -> 0 | CD137: =CD25 -> 0 | CE137: =CE25 -> 0 | CF137: =CF25 -> 0 | CG137: =CG25 -> 0 | CH137: =CH25 -> 0 | CI137: =CI25 -> 0 | CJ137: =CJ25 -> 0 | CK137: =CK25 -> 0 | CL137: =CL25 -> 0 | CM137: =CM25 -> 0 | CN137: =CN25 -> 0 | CO137: =CO25 -> 0 | CP137: =CP25 -> 0 | CQ137: =CQ25 -> 0 | CR137: =CR25 -> 0 | CS137: =CS25 -> 0 | CT137: =CT25 -> 0 | CU137: =CU25 -> 0 | CV137: =CV25 -> 0 | CW137: =CW25 -> 0 | CX137: =CX25 -> 0 | CY137: =CY25 -> 0 | CZ137: =CZ25 -> 0 | DA137: =DA25 -> 0 | DB137: =DB25 -> 0 | DC137: =DC25 -> 0 | DD137: =DD25 -> 0 | DE137: =DE25 -> 0 | DF137: =DF25 -> 0 | DG137: =DG25 -> 0 | DH137: =DH25 -> 0 | DI137: =DI25 -> 0 | DJ137: =DJ25 -> 0 | DK137: =DK25 -> 0 | DL137: =DL25 -> 0 | DM137: =DM25 -> 0 | DN137: =DN25 -> 0 | DO137: =DO25 -> 0 | DP137: =DP25 -> 0 | DQ137: =DQ25 -> 0 | DR137: =DR25 -> 0 | DS137: =DS25 -> 0 | DT137: =DT25 -> 0 | DU137: =DU25 -> 0 | DV137: =DV25 -> 0 | DW137: =DW25 -> 0 | DX137: =DX25 -> 0 | DY137: =DY25 -> 0 | DZ137: =DZ25 -> 0 | EA137: =EA25 -> 0 | EB137: =EB25 -> 0 | EC137: =EC25 -> 0 | ED137: =ED25 -> 0 | EE137: =EE25 -> 0 | EF137: =EF25 -> 0 | EG137: =EG25 -> 0 | EH137: =EH25 -> 0 | EI137: =EI25 -> 0 | EJ137: =EJ25 -> 0 | EK137: =EK25 -> 0 | EL137: =EL25 -> 0 | EM137: =EM25 -> 0 | EN137: =EN25 -> 0 | EO137: =EO25 -> 0 | EP137: =EP25 -> 0 | EQ137: =EQ25 -> 0 | ER137: =ER25 -> 0 | ES137: =ES25 -> 0 | ET137: =ET25 -> 0 | EU137: =EU25 -> 0 | EV137: =EV25 -> 0 | EW137: =EW25 -> 0 | EX137: =EX25 -> 0 | EY137: =EY25 -> 0 | EZ137: =EZ25 -> 0 | FA137: =FA25 -> 0 | FB137: =FB25 -> 0 | FC137: =FC25 -> 0 | FD137: =FD25 -> 0 | FE137: =FE25 -> 0 | FF137: =FF25 -> 0 | FG137: =FG25 -> 0 | FH137: =FH25 -> 0 | FI137: =FI25 -> 0 | FJ137: =FJ25 -> 0 | FK137: =FK25 -> 0 | FL137: =FL25 -> 0 | FM137: =FM25 -> 0 | FN137: =FN25 -> 0 | FO137: =FO25 -> 0 | FP137: =FP25 -> 0 | FQ137: =FQ25 -> 0 | FR137: =FR25 -> 0 | FS137: =FS25 -> 0 | FT137: =FT25 -> 0 | FU137: =FU25 -> 0 | FV137: =FV25 -> 0 | FW137: =FW25 -> 0 | FX137: =FX25 -> 0 | FY137: =FY25 -> 0 | FZ137: =FZ25 -> 0 | GA137: =GA25 -> 0 | GB137: =GB25 -> 0 | GC137: =GC25 -> 0 | GD137: =GD25 -> 0 | GE137: =GE25 -> 0 | GF137: =GF25 -> 0 | GG137: =GG25 -> 0 | GH137: =GH25 -> 0 | GI137: =GI25 -> 0 | GJ137: =GJ25 -> 0 | GK137: =GK25 -> 0 | GL137: =GL25 -> 0 | GM137: =GM25 -> 0 | GN137: =GN25 -> 0 | GO137: =GO25 -> 0 | GP137: =GP25 -> 0 | GQ137: =GQ25 -> 0 | GR137: =GR25 -> 0 | GS137: =GS25 -> 0 | GT137: =GT25 -> 0 | GU137: =GU25 -> 0 | GV137: =GV25 -> 0 | GW137: =GW25 -> 0 | GX137: =GX25 -> 0 | GY137: =GY25 -> 0 | GZ137: =GZ25 -> 0 | HA137: =HA25 -> 0 | HB137: =HB25 -> 0 | HC137: =HC25 -> 0 | HD137: =HD25 -> 0 | HE137: =HE25 -> 0 | HF137: =HF25 -> 0 | HG137: =HG25 -> 0 | HH137: =HH25 -> 0 | HI137: =HI25 -> 0 | HJ137: =HJ25 -> 0 | HK137: =HK25 -> 0 | HL137: =HL25 -> 0 | HM137: =HM25 -> 0 | HN137: =HN25 -> 0 | HO137: =HO25 -> 0 | HP137: =HP25 -> 0 | HQ137: =HQ25 -> 0 | HR137: =HR25 -> 0 | HS137: =HS25 -> 0 | HT137: =HT25 -> 0 | HU137: =HU25 -> 0 | HV137: =HV25 -> 0 | HW137: =HW25 -> 0 | HX137: =HX25 -> 0 | HY137: =HY25 -> 0 | HZ137: =HZ25 -> 0 | IA137: =IA25 -> 0 | IB137: =IB25 -> 0 | IC137: =IC25 -> 0 | ID137: =ID25 -> 0 | IE137: =IE25 -> 0 | IF137: =IF25 -> 0 | IG137: =IG25 -> 0 | IH137: =IH25 -> 0 | II137: =II25 -> 0 | IJ137: =IJ25 -> 0 | IK137: =IK25 -> 0 | IL137: =IL25 -> 0 | IM137: =IM25 -> 0 | IN137: =IN25 -> 0 | IO137: =IO25 -> 0 | IP137: =IP25 -> 0 | IQ137: =IQ25 -> 0 | IR137: =IR25 -> 0 | IS137: =IS25 -> 0 | IT137: =IT25 -> 0 | IU137: =IU25 -> 0 | IV137: =IV25 -> 0 | IW137: =IW25 -> 0 | IX137: =IX25 -> 0 | IY137: =IY25 -> 0 | IZ137: =IZ25 -> 0
D138: Closing Balance | E138: EUR | I138: EUR | K138: =SUM(K135:K137) -> 0 | L138: 100000 | M138: 209307.3398 | N138: 328788.2851 | O138: 459389.7279 | P138: 602146.6907 | Q138: 758190.5292 | R138: 928757.8978 | S138: 1115200.551 | T138: 1318996.055 | U138: 1541759.5 | V138: 1785256.295 | W138: 2051416.164 | X138: 2342348.437 | Y138: 2660358.764 | Z138: 3007967.394 | AA138: 3387929.139 | AB138: 3803255.215 | AC138: 4257237.101 | AD138: 4753472.623 | AE138: 5295894.471 | AF138: 5888801.363 | AG138: 6536892.114 | AH138: 7245302.874 | AI138: 8019647.83 | AJ138: 8866063.702 | AK138: 9791258.375 | AL138: 10802564.06 | AM138: 11907995.4 | AN138: 13116312.99 | AO138: 14437092.81 | AP138: 14437092.81 | AQ138: 14437092.81 | AR138: 14437092.81 | AS138: 14437092.81 | AT138: 14437092.81 | AU138: 14437092.81 | AV138: 14437092.81 | AW138: 14437092.81 | AX138: 14437092.81 | AY138: 14437092.81 | AZ138: 14437092.81 | BA138: 14437092.81 | BB138: 14437092.81 | BC138: 14437092.81 | BD138: 14437092.81 | BE138: 14437092.81 | BF138: 14437092.81 | BG138: 14437092.81 | BH138: 14437092.81 | BI138: 14437092.81 | BJ138: 14437092.81 | BK138: 14437092.81 | BL138: 14437092.81 | BM138: 14437092.81 | BN138: 14437092.81 | BO138: 14437092.81 | BP138: 14437092.81 | BQ138: 14437092.81 | BR138: 14437092.81 | BS138: 14437092.81 | BT138: 14437092.81 | BU138: 14437092.81 | BV138: 14437092.81 | BW138: =SUM(BW135:BW137) -> 14437092.81 | BX138: 14437092.81 | BY138: 14437092.81 | BZ138: 14437092.81 | CA138: 14437092.81 | CB138: 14437092.81 | CC138: 14437092.81 | CD138: 14437092.81 | CE138: 14437092.81 | CF138: 14437092.81 | CG138: 14437092.81 | CH138: 14437092.81 | CI138: 14437092.81 | CJ138: 14437092.81 | CK138: 14437092.81 | CL138: 14437092.81 | CM138: 14437092.81 | CN138: 14437092.81 | CO138: 14437092.81 | CP138: 14437092.81 | CQ138: 14437092.81 | CR138: 14437092.81 | CS138: 14437092.81 | CT138: 14437092.81 | CU138: 14437092.81 | CV138: 14437092.81 | CW138: 14437092.81 | CX138: 14437092.81 | CY138: 14437092.81 | CZ138: 14437092.81 | DA138: 14437092.81 | DB138: 14437092.81 | DC138: 14437092.81 | DD138: 14437092.81 | DE138: 14437092.81 | DF138: 14437092.81 | DG138: 14437092.81 | DH138: 14437092.81 | DI138: 14437092.81 | DJ138: 14437092.81 | DK138: 14437092.81 | DL138: 14437092.81 | DM138: 14437092.81 | DN138: 14437092.81 | DO138: 14437092.81 | DP138: 14437092.81 | DQ138: 14437092.81 | DR138: 14437092.81 | DS138: 14437092.81 | DT138: 14437092.81 | DU138: 14437092.81 | DV138: 14437092.81 | DW138: 14437092.81 | DX138: 14437092.81 | DY138: 14437092.81 | DZ138: 14437092.81 | EA138: 14437092.81 | EB138: 14437092.81 | EC138: 14437092.81 | ED138: 14437092.81 | EE138: 14437092.81 | EF138: 14437092.81 | EG138: 14437092.81 | EH138: 14437092.81 | EI138: =SUM(EI135:EI137) -> 14437092.81 | EJ138: 14437092.81 | EK138: 14437092.81 | EL138: 14437092.81 | EM138: 14437092.81 | EN138: 14437092.81 | EO138: 14437092.81 | EP138: 14437092.81 | EQ138: 14437092.81 | ER138: 14437092.81 | ES138: 14437092.81 | ET138: 14437092.81 | EU138: 14437092.81 | EV138: 14437092.81 | EW138: 14437092.81 | EX138: 14437092.81 | EY138: 14437092.81 | EZ138: 14437092.81 | FA138: 14437092.81 | FB138: 14437092.81 | FC138: 14437092.81 | FD138: 14437092.81 | FE138: 14437092.81 | FF138: 14437092.81 | FG138: 14437092.81 | FH138: 14437092.81 | FI138: 14437092.81 | FJ138: 14437092.81 | FK138: 14437092.81 | FL138: 14437092.81 | FM138: 14437092.81 | FN138: 14437092.81 | FO138: 14437092.81 | FP138: 14437092.81 | FQ138: 14437092.81 | FR138: 14437092.81 | FS138: 14437092.81 | FT138: 14437092.81 | FU138: 14437092.81 | FV138: 14437092.81 | FW138: 14437092.81 | FX138: 14437092.81 | FY138: 14437092.81 | FZ138: 14437092.81 | GA138: 14437092.81 | GB138: 14437092.81 | GC138: 14437092.81 | GD138: 14437092.81 | GE138: 14437092.81 | GF138: 14437092.81 | GG138: 14437092.81 | GH138: 14437092.81 | GI138: 14437092.81 | GJ138: 14437092.81 | GK138: 14437092.81 | GL138: 14437092.81 | GM138: 14437092.81 | GN138: 14437092.81 | GO138: 14437092.81 | GP138: 14437092.81 | GQ138: 14437092.81 | GR138: 14437092.81 | GS138: 14437092.81 | GT138: 14437092.81 | GU138: =SUM(GU135:GU137) -> 14437092.81 | GV138: 14437092.81 | GW138: 14437092.81 | GX138: 14437092.81 | GY138: 14437092.81 | GZ138: 14437092.81 | HA138: 14437092.81 | HB138: 14437092.81 | HC138: 14437092.81 | HD138: 14437092.81 | HE138: 14437092.81 | HF138: 14437092.81 | HG138: 14437092.81 | HH138: 14437092.81 | HI138: 14437092.81 | HJ138: 14437092.81 | HK138: 14437092.81 | HL138: 14437092.81 | HM138: 14437092.81 | HN138: 14437092.81 | HO138: 14437092.81 | HP138: 14437092.81 | HQ138: 14437092.81 | HR138: 14437092.81 | HS138: 14437092.81 | HT138: 14437092.81 | HU138: 14437092.81 | HV138: 14437092.81 | HW138: 14437092.81 | HX138: 14437092.81 | HY138: 14437092.81 | HZ138: 14437092.81 | IA138: 14437092.81 | IB138: 14437092.81 | IC138: 14437092.81 | ID138: 14437092.81 | IE138: 14437092.81 | IF138: 14437092.81 | IG138: 14437092.81 | IH138: 14437092.81 | II138: 14437092.81 | IJ138: 14437092.81 | IK138: 14437092.81 | IL138: 14437092.81 | IM138: 14437092.81 | IN138: 14437092.81 | IO138: 14437092.81 | IP138: 14437092.81 | IQ138: 14437092.81 | IR138: 14437092.81 | IS138: 14437092.81 | IT138: 14437092.81 | IU138: 14437092.81 | IV138: 14437092.81 | IW138: 14437092.81 | IX138: 14437092.81 | IY138: 14437092.81 | IZ138: 14437092.81
D140: Cash accumulated in final period | E140: EUR | F140: =H9+H5 -> 31 | G140: =LOOKUP(F140,3:3,138:138) -> 14437092.81
D141: Investment | E141: EUR | G141: =G132 -> 1000000
D142: Ratio of accumulated cash / initial cash | E142: EUR | G142: =G140/G141 -> 14.43709281
D143: Number of periods | E143: Period | G143: =H9 -> 30
D144: Compound Periodic Growth Rate (CAGR) | E144: % p.p. | G144: =G142^(1/(G143))-1 -> 0.09307339772
D145: Compound Annual Growth Rate (CAGR) | E145: % p.a. | G145: =(1+G144)^(months/G6)-1 -> 0.09307339772
C147: MIRR | E147: % p.a. | G147: =MIRR(K27:IZ27,F136,F136) -> 0.09307339772
C149: Risk Premium Method
D150: Future Cash Flow with for Discounting | E150: EUR | K150: =IF(K9,K25) -> FALSE | L150: =IF(L9,L25) -> 100000 | M150: =IF(M9,M25) -> 100000 | N150: =IF(N9,N25) -> 100000 | O150: =IF(O9,O25) -> 100000 | P150: =IF(P9,P25) -> 100000 | Q150: =IF(Q9,Q25) -> 100000 | R150: =IF(R9,R25) -> 100000 | S150: =IF(S9,S25) -> 100000 | T150: =IF(T9,T25) -> 100000 | U150: =IF(U9,U25) -> 100000 | V150: =IF(V9,V25) -> 100000 | W150: =IF(W9,W25) -> 100000 | X150: =IF(X9,X25) -> 100000 | Y150: =IF(Y9,Y25) -> 100000 | Z150: =IF(Z9,Z25) -> 100000 | AA150: =IF(AA9,AA25) -> 100000 | AB150: =IF(AB9,AB25) -> 100000 | AC150: =IF(AC9,AC25) -> 100000 | AD150: =IF(AD9,AD25) -> 100000 | AE150: =IF(AE9,AE25) -> 100000 | AF150: =IF(AF9,AF25) -> 100000 | AG150: =IF(AG9,AG25) -> 100000 | AH150: =IF(AH9,AH25) -> 100000 | AI150: =IF(AI9,AI25) -> 100000 | AJ150: =IF(AJ9,AJ25) -> 100000 | AK150: =IF(AK9,AK25) -> 100000 | AL150: =IF(AL9,AL25) -> 100000 | AM150: =IF(AM9,AM25) -> 100000 | AN150: =IF(AN9,AN25) -> 100000 | AO150: =IF(AO9,AO25) -> 100000 | AP150: =IF(AP9,AP25) -> FALSE | AQ150: =IF(AQ9,AQ25) -> FALSE | AR150: =IF(AR9,AR25) -> FALSE | AS150: =IF(AS9,AS25) -> FALSE | AT150: =IF(AT9,AT25) -> FALSE | AU150: =IF(AU9,AU25) -> FALSE | AV150: =IF(AV9,AV25) -> FALSE | AW150: =IF(AW9,AW25) -> FALSE | AX150: =IF(AX9,AX25) -> FALSE | AY150: =IF(AY9,AY25) -> FALSE | AZ150: =IF(AZ9,AZ25) -> FALSE | BA150: =IF(BA9,BA25) -> FALSE | BB150: =IF(BB9,BB25) -> FALSE | BC150: =IF(BC9,BC25) -> FALSE | BD150: =IF(BD9,BD25) -> FALSE | BE150: =IF(BE9,BE25) -> FALSE | BF150: =IF(BF9,BF25) -> FALSE | BG150: =IF(BG9,BG25) -> FALSE | BH150: =IF(BH9,BH25) -> FALSE | BI150: =IF(BI9,BI25) -> FALSE | BJ150: =IF(BJ9,BJ25) -> FALSE | BK150: =IF(BK9,BK25) -> FALSE | BL150: =IF(BL9,BL25) -> FALSE | BM150: =IF(BM9,BM25) -> FALSE | BN150: =IF(BN9,BN25) -> FALSE | BO150: =IF(BO9,BO25) -> FALSE | BP150: =IF(BP9,BP25) -> FALSE | BQ150: =IF(BQ9,BQ25) -> FALSE | BR150: =IF(BR9,BR25) -> FALSE | BS150: =IF(BS9,BS25) -> FALSE | BT150: =IF(BT9,BT25) -> FALSE | BU150: =IF(BU9,BU25) -> FALSE | BV150: =IF(BV9,BV25) -> FALSE | BW150: =IF(BW9,BW25) -> FALSE | BX150: =IF(BX9,BX25) -> FALSE | BY150: =IF(BY9,BY25) -> FALSE | BZ150: =IF(BZ9,BZ25) -> FALSE | CA150: =IF(CA9,CA25) -> FALSE | CB150: =IF(CB9,CB25) -> FALSE | CC150: =IF(CC9,CC25) -> FALSE | CD150: =IF(CD9,CD25) -> FALSE | CE150: =IF(CE9,CE25) -> FALSE | CF150: =IF(CF9,CF25) -> FALSE | CG150: =IF(CG9,CG25) -> FALSE | CH150: =IF(CH9,CH25) -> FALSE | CI150: =IF(CI9,CI25) -> FALSE | CJ150: =IF(CJ9,CJ25) -> FALSE | CK150: =IF(CK9,CK25) -> FALSE | CL150: =IF(CL9,CL25) -> FALSE | CM150: =IF(CM9,CM25) -> FALSE | CN150: =IF(CN9,CN25) -> FALSE | CO150: =IF(CO9,CO25) -> FALSE | CP150: =IF(CP9,CP25) -> FALSE | CQ150: =IF(CQ9,CQ25) -> FALSE | CR150: =IF(CR9,CR25) -> FALSE | CS150: =IF(CS9,CS25) -> FALSE | CT150: =IF(CT9,CT25) -> FALSE | CU150: =IF(CU9,CU25) -> FALSE | CV150: =IF(CV9,CV25) -> FALSE | CW150: =IF(CW9,CW25) -> FALSE | CX150: =IF(CX9,CX25) -> FALSE | CY150: =IF(CY9,CY25) -> FALSE | CZ150: =IF(CZ9,CZ25) -> FALSE | DA150: =IF(DA9,DA25) -> FALSE | DB150: =IF(DB9,DB25) -> FALSE | DC150: =IF(DC9,DC25) -> FALSE | DD150: =IF(DD9,DD25) -> FALSE | DE150: =IF(DE9,DE25) -> FALSE | DF150: =IF(DF9,DF25) -> FALSE | DG150: =IF(DG9,DG25) -> FALSE | DH150: =IF(DH9,DH25) -> FALSE | DI150: =IF(DI9,DI25) -> FALSE | DJ150: =IF(DJ9,DJ25) -> FALSE | DK150: =IF(DK9,DK25) -> FALSE | DL150: =IF(DL9,DL25) -> FALSE | DM150: =IF(DM9,DM25) -> FALSE | DN150: =IF(DN9,DN25) -> FALSE | DO150: =IF(DO9,DO25) -> FALSE | DP150: =IF(DP9,DP25) -> FALSE | DQ150: =IF(DQ9,DQ25) -> FALSE | DR150: =IF(DR9,DR25) -> FALSE | DS150: =IF(DS9,DS25) -> FALSE | DT150: =IF(DT9,DT25) -> FALSE | DU150: =IF(DU9,DU25) -> FALSE | DV150: =IF(DV9,DV25) -> FALSE | DW150: =IF(DW9,DW25) -> FALSE | DX150: =IF(DX9,DX25) -> FALSE | DY150: =IF(DY9,DY25) -> FALSE | DZ150: =IF(DZ9,DZ25) -> FALSE | EA150: =IF(EA9,EA25) -> FALSE | EB150: =IF(EB9,EB25) -> FALSE | EC150: =IF(EC9,EC25) -> FALSE | ED150: =IF(ED9,ED25) -> FALSE | EE150: =IF(EE9,EE25) -> FALSE | EF150: =IF(EF9,EF25) -> FALSE | EG150: =IF(EG9,EG25) -> FALSE | EH150: =IF(EH9,EH25) -> FALSE | EI150: =IF(EI9,EI25) -> FALSE | EJ150: =IF(EJ9,EJ25) -> FALSE | EK150: =IF(EK9,EK25) -> FALSE | EL150: =IF(EL9,EL25) -> FALSE | EM150: =IF(EM9,EM25) -> FALSE | EN150: =IF(EN9,EN25) -> FALSE | EO150: =IF(EO9,EO25) -> FALSE | EP150: =IF(EP9,EP25) -> FALSE | EQ150: =IF(EQ9,EQ25) -> FALSE | ER150: =IF(ER9,ER25) -> FALSE | ES150: =IF(ES9,ES25) -> FALSE | ET150: =IF(ET9,ET25) -> FALSE | EU150: =IF(EU9,EU25) -> FALSE | EV150: =IF(EV9,EV25) -> FALSE | EW150: =IF(EW9,EW25) -> FALSE | EX150: =IF(EX9,EX25) -> FALSE | EY150: =IF(EY9,EY25) -> FALSE | EZ150: =IF(EZ9,EZ25) -> FALSE | FA150: =IF(FA9,FA25) -> FALSE | FB150: =IF(FB9,FB25) -> FALSE | FC150: =IF(FC9,FC25) -> FALSE | FD150: =IF(FD9,FD25) -> FALSE | FE150: =IF(FE9,FE25) -> FALSE | FF150: =IF(FF9,FF25) -> FALSE | FG150: =IF(FG9,FG25) -> FALSE | FH150: =IF(FH9,FH25) -> FALSE | FI150: =IF(FI9,FI25) -> FALSE | FJ150: =IF(FJ9,FJ25) -> FALSE | FK150: =IF(FK9,FK25) -> FALSE | FL150: =IF(FL9,FL25) -> FALSE | FM150: =IF(FM9,FM25) -> FALSE | FN150: =IF(FN9,FN25) -> FALSE | FO150: =IF(FO9,FO25) -> FALSE | FP150: =IF(FP9,FP25) -> FALSE | FQ150: =IF(FQ9,FQ25) -> FALSE | FR150: =IF(FR9,FR25) -> FALSE | FS150: =IF(FS9,FS25) -> FALSE | FT150: =IF(FT9,FT25) -> FALSE | FU150: =IF(FU9,FU25) -> FALSE | FV150: =IF(FV9,FV25) -> FALSE | FW150: =IF(FW9,FW25) -> FALSE | FX150: =IF(FX9,FX25) -> FALSE | FY150: =IF(FY9,FY25) -> FALSE | FZ150: =IF(FZ9,FZ25) -> FALSE | GA150: =IF(GA9,GA25) -> FALSE | GB150: =IF(GB9,GB25) -> FALSE | GC150: =IF(GC9,GC25) -> FALSE | GD150: =IF(GD9,GD25) -> FALSE | GE150: =IF(GE9,GE25) -> FALSE | GF150: =IF(GF9,GF25) -> FALSE | GG150: =IF(GG9,GG25) -> FALSE | GH150: =IF(GH9,GH25) -> FALSE | GI150: =IF(GI9,GI25) -> FALSE | GJ150: =IF(GJ9,GJ25) -> FALSE | GK150: =IF(GK9,GK25) -> FALSE | GL150: =IF(GL9,GL25) -> FALSE | GM150: =IF(GM9,GM25) -> FALSE | GN150: =IF(GN9,GN25) -> FALSE | GO150: =IF(GO9,GO25) -> FALSE | GP150: =IF(GP9,GP25) -> FALSE | GQ150: =IF(GQ9,GQ25) -> FALSE | GR150: =IF(GR9,GR25) -> FALSE | GS150: =IF(GS9,GS25) -> FALSE | GT150: =IF(GT9,GT25) -> FALSE | GU150: =IF(GU9,GU25) -> FALSE | GV150: =IF(GV9,GV25) -> FALSE | GW150: =IF(GW9,GW25) -> FALSE | GX150: =IF(GX9,GX25) -> FALSE | GY150: =IF(GY9,GY25) -> FALSE | GZ150: =IF(GZ9,GZ25) -> FALSE | HA150: =IF(HA9,HA25) -> FALSE | HB150: =IF(HB9,HB25) -> FALSE | HC150: =IF(HC9,HC25) -> FALSE | HD150: =IF(HD9,HD25) -> FALSE | HE150: =IF(HE9,HE25) -> FALSE | HF150: =IF(HF9,HF25) -> FALSE | HG150: =IF(HG9,HG25) -> FALSE | HH150: =IF(HH9,HH25) -> FALSE | HI150: =IF(HI9,HI25) -> FALSE | HJ150: =IF(HJ9,HJ25) -> FALSE | HK150: =IF(HK9,HK25) -> FALSE | HL150: =IF(HL9,HL25) -> FALSE | HM150: =IF(HM9,HM25) -> FALSE | HN150: =IF(HN9,HN25) -> FALSE | HO150: =IF(HO9,HO25) -> FALSE | HP150: =IF(HP9,HP25) -> FALSE | HQ150: =IF(HQ9,HQ25) -> FALSE | HR150: =IF(HR9,HR25) -> FALSE | HS150: =IF(HS9,HS25) -> FALSE | HT150: =IF(HT9,HT25) -> FALSE | HU150: =IF(HU9,HU25) -> FALSE | HV150: =IF(HV9,HV25) -> FALSE | HW150: =IF(HW9,HW25) -> FALSE | HX150: =IF(HX9,HX25) -> FALSE | HY150: =IF(HY9,HY25) -> FALSE | HZ150: =IF(HZ9,HZ25) -> FALSE | IA150: =IF(IA9,IA25) -> FALSE | IB150: =IF(IB9,IB25) -> FALSE | IC150: =IF(IC9,IC25) -> FALSE | ID150: =IF(ID9,ID25) -> FALSE | IE150: =IF(IE9,IE25) -> FALSE | IF150: =IF(IF9,IF25) -> FALSE | IG150: =IF(IG9,IG25) -> FALSE | IH150: =IF(IH9,IH25) -> FALSE | II150: =IF(II9,II25) -> FALSE | IJ150: =IF(IJ9,IJ25) -> FALSE | IK150: =IF(IK9,IK25) -> FALSE | IL150: =IF(IL9,IL25) -> FALSE | IM150: =IF(IM9,IM25) -> FALSE | IN150: =IF(IN9,IN25) -> FALSE | IO150: =IF(IO9,IO25) -> FALSE | IP150: =IF(IP9,IP25) -> FALSE | IQ150: =IF(IQ9,IQ25) -> FALSE | IR150: =IF(IR9,IR25) -> FALSE | IS150: =IF(IS9,IS25) -> FALSE | IT150: =IF(IT9,IT25) -> FALSE | IU150: =IF(IU9,IU25) -> FALSE | IV150: =IF(IV9,IV25) -> FALSE | IW150: =IF(IW9,IW25) -> FALSE | IX150: =IF(IX9,IX25) -> FALSE | IY150: =IF(IY9,IY25) -> FALSE | IZ150: =IF(IZ9,IZ25) -> FALSE
D151: Rf Discount Rate | E151: % | F151: =InputC!F27 -> 0.035 | G151: =(1+F151)^(G6/months)-1 -> 0.035
D152: NPV of cashflow at the risk free rate | E152: EUR | F152: =G151 -> 0.035 | G152: =K27:IZ27=NPV(F152,G10) -> FALSE | H152: FALSE | I152: FALSE | J152: FALSE | K152: FALSE | L152: FALSE | M152: FALSE | N152: FALSE | O152: FALSE | P152: FALSE | Q152: FALSE | R152: FALSE | S152: FALSE | T152: FALSE | U152: FALSE | V152: FALSE | W152: FALSE | X152: FALSE | Y152: FALSE | Z152: FALSE | AA152: FALSE | AB152: FALSE | AC152: FALSE | AD152: FALSE | AE152: FALSE | AF152: FALSE | AG152: FALSE | AH152: FALSE | AI152: FALSE | AJ152: FALSE | AK152: FALSE | AL152: TRUE | AM152: TRUE | AN152: TRUE | AO152: TRUE | AP152: TRUE | AQ152: TRUE | AR152: TRUE | AS152: TRUE | AT152: TRUE | AU152: TRUE | AV152: TRUE | AW152: TRUE | AX152: TRUE | AY152: TRUE | AZ152: TRUE | BA152: TRUE | BB152: TRUE | BC152: TRUE | BD152: TRUE | BE152: TRUE | BF152: TRUE | BG152: TRUE | BH152: TRUE | BI152: TRUE | BJ152: TRUE | BK152: TRUE | BL152: TRUE | BM152: TRUE | BN152: TRUE | BO152: TRUE | BP152: TRUE | BQ152: TRUE | BR152: TRUE | BS152: TRUE | BT152: TRUE | BU152: TRUE | BV152: TRUE | BW152: TRUE | BX152: TRUE | BY152: TRUE | BZ152: TRUE | CA152: TRUE | CB152: TRUE | CC152: TRUE | CD152: TRUE | CE152: TRUE | CF152: TRUE | CG152: TRUE | CH152: TRUE | CI152: TRUE | CJ152: TRUE | CK152: TRUE | CL152: TRUE | CM152: TRUE | CN152: TRUE | CO152: TRUE | CP152: TRUE | CQ152: TRUE | CR152: TRUE | CS152: TRUE | CT152: TRUE | CU152: TRUE | CV152: TRUE | CW152: TRUE | CX152: TRUE | CY152: TRUE | CZ152: TRUE | DA152: TRUE | DB152: TRUE | DC152: TRUE | DD152: TRUE | DE152: TRUE | DF152: TRUE | DG152: TRUE | DH152: TRUE | DI152: TRUE | DJ152: TRUE | DK152: TRUE | DL152: TRUE | DM152: TRUE | DN152: TRUE | DO152: TRUE | DP152: TRUE | DQ152: TRUE | DR152: TRUE | DS152: TRUE | DT152: TRUE | DU152: TRUE | DV152: TRUE | DW152: TRUE | DX152: TRUE | DY152: TRUE | DZ152: TRUE | EA152: TRUE | EB152: TRUE | EC152: TRUE | ED152: TRUE | EE152: TRUE | EF152: TRUE | EG152: TRUE | EH152: TRUE | EI152: TRUE | EJ152: TRUE | EK152: TRUE | EL152: TRUE | EM152: TRUE | EN152: TRUE | EO152: TRUE | EP152: TRUE | EQ152: TRUE | ER152: TRUE | ES152: TRUE | ET152: TRUE | EU152: TRUE | EV152: TRUE | EW152: TRUE | EX152: TRUE | EY152: TRUE | EZ152: TRUE | FA152: TRUE | FB152: TRUE | FC152: TRUE | FD152: TRUE | FE152: TRUE | FF152: TRUE | FG152: TRUE | FH152: TRUE | FI152: TRUE | FJ152: TRUE | FK152: TRUE | FL152: TRUE | FM152: TRUE | FN152: TRUE | FO152: TRUE | FP152: TRUE | FQ152: TRUE | FR152: TRUE | FS152: TRUE | FT152: TRUE | FU152: TRUE | FV152: TRUE | FW152: TRUE | FX152: TRUE | FY152: TRUE | FZ152: TRUE | GA152: TRUE | GB152: TRUE | GC152: TRUE | GD152: TRUE | GE152: TRUE | GF152: TRUE | GG152: TRUE | GH152: TRUE | GI152: TRUE | GJ152: TRUE | GK152: TRUE | GL152: TRUE | GM152: TRUE | GN152: TRUE | GO152: TRUE | GP152: TRUE | GQ152: TRUE | GR152: TRUE | GS152: TRUE | GT152: TRUE | GU152: TRUE | GV152: TRUE | GW152: TRUE | GX152: TRUE | GY152: TRUE | GZ152: TRUE | HA152: TRUE | HB152: TRUE | HC152: TRUE | HD152: TRUE | HE152: TRUE | HF152: TRUE | HG152: TRUE | HH152: TRUE | HI152: TRUE | HJ152: TRUE | HK152: TRUE | HL152: TRUE | HM152: TRUE | HN152: TRUE | HO152: TRUE | HP152: TRUE | HQ152: TRUE | HR152: TRUE | HS152: TRUE | HT152: TRUE | HU152: TRUE | HV152: TRUE | HW152: TRUE | HX152: TRUE | HY152: TRUE | HZ152: TRUE | IA152: TRUE | IB152: TRUE | IC152: TRUE | ID152: TRUE | IE152: TRUE | IF152: TRUE | IG152: TRUE | IH152: TRUE | II152: TRUE | IJ152: TRUE | IK152: TRUE | IL152: TRUE | IM152: TRUE | IN152: TRUE | IO152: TRUE | IP152: TRUE | IQ152: TRUE | IR152: TRUE | IS152: TRUE | IT152: TRUE | IU152: TRUE | IV152: TRUE
D153: Initial Investment | E153: EUR | G153: =NPV(F152,K25:IZ25) -> 1777009.218
D154: Premium earned above riskfree rate | E154: Ratio | G154: =G153/G132-1 -> 0.7770092185
D155: Periods for Annualisation | E155: Periods | G155: =H9 -> 30
D156: Annualised premium earned | E156: % p.p. | G156: =PMT(F152,F140,-G154) -> 0.04147084663
D157: Total Return - Rp + Rf | E157: % p.p. | G157: =G156+F152 -> 0.07647084663
D158: Annual Return | E158: % p.a. | G158: =(1+G157)^(months/G6)-1 -> 0.07647084663

Sheet Sensitivity
B3: Data Tables
F4: Growth | G4: =I4/1000 -> 0.02 | I4: 20
O5: IRR Table - Life Sensitivity
F7: IRR Table | P7: EBITDA Sensitivity
G8: ='Financial Model'!F29 -> 0.09300350845 | H8: 50000 | I8: 70000 | J8: 100000 | K8: 125000 | L8: 150000 | O8: 50000 | P8: 70000 | Q8: 100000 | R8: 125000 | S8: 150000
G9: 15 | N9: 15 | O9: -0.02430078834 | P9: 0.01621136963 | Q9: 0.06607053578 | R9: 0.1021167934 | S9: 0.1351683676
F10: Life | G10: 30 | M10: Life | N10: 30 | O10: 0.03870281279 | P10: 0.06708253324 | Q10: 0.1039256513 | R10: 0.1320381463 | S10: 0.1589386523
G11: 50 | N11: 50 | O11: 0.05466993153 | P11: 0.07791992128 | Q11: 0.1100213349 | R11: 0.1357906401 | S11: 0.1612333477
G12: 100 | N12: 100 | O12: 0.06005807221 | P12: 0.08055883348 | Q12: 0.1109092295 | R12: 0.1361445844 | S12: 0.1613738
O14: Risk Premium Table - Life Sensitivity
P16: EBITDA Sensitivity
F17: Rf + Rp Table | G17: ='Financial Model'!G158 -> 0.07647084663 | H17: 50000 | I17: 70000 | J17: 100000 | K17: 125000 | L17: 150000 | O17: 50000 | P17: 70000 | Q17: 100000 | R17: 125000 | S17: 150000
G18: 15 | N18: 15 | O18: 0.001861966189 | P18: 0.02168068492 | Q18: 0.05140876302 | R18: 0.07618216143 | S18: 0.1009555598
G19: 30 | M19: Life | N19: 30 | O19: 0.03577232039 | P19: 0.05743020845 | Q19: 0.08991704054 | R19: 0.1169894006 | S19: 0.1440617607
F20: Life | G20: 50 | N20: 50 | O20: 0.05095366387 | P20: 0.07426375507 | Q20: 0.1092288919 | R20: 0.1383665059 | S20: 0.1675041199
G21: 100 | N21: 100 | O21: 0.06326104981 | P21: 0.08901299561 | Q21: 0.1276409143 | R21: 0.1598308466 | S21: 0.1920207788
O23: Total EBITDA - Life Sensitvity
O25: 50000 | P25: 70000 | Q25: 100000 | R25: 125000 | S25: 150000
N26: 15 | O26: 881964.2627 | P26: 1234749.968 | Q26: 1763928.525 | R26: 2204910.657 | S26: 2204910.657
M27: Life | N27: 30 | O27: 2068972.039 | P27: 2896560.855 | Q27: 4137944.079 | R27: 5172430.099 | S27: 5172430.099
N28: 50 | O28: 4313549.474 | P28: 6038969.264 | Q28: 8627098.948 | R28: 10783873.69 | S28: 10783873.69
N29: 100 | O29: 15923847.6 | P29: 22293386.64 | Q29: 31847695.2 | R29: 39809619 | S29: 39809619
O32: IRR - Construction Period Sensitivity
P34: Life of Project
O35: 15 | P35: 30 | Q35: 50 | R35: 75 | S35: 100
N36: 12 | O36: 0.06607053578 | P36: 0.1039256513 | Q36: 0.1100213349 | R36: 0.1108367383 | S36: 0.1109092295
M37: Constr Months | N37: 24 | O37: 0.06149146259 | P37: 0.09843768477 | Q37: 0.1048074424 | R37: 0.1057346165 | S37: 0.1058264911
N38: 36 | O38: 0.0575224787 | P38: 0.09357128441 | Q38: 0.1001778066 | R38: 0.1012141407 | S38: 0.101327163
N39: 48 | O39: 0.05403715074 | P39: 0.08920706809 | Q39: 0.09601843059 | R39: 0.09716100097 | S39: 0.09729675651
O42: Risk Preium + Rf - Construction Sensitivity
P43: Life of Project
O44: 15 | P44: 30 | Q44: 50 | R44: 75 | S44: 100
N45: 12 | O45: 0.05140876302 | P45: 0.08991704054 | Q45: 0.1092288919 | R45: 0.1210887644 | S45: 0.1276409143
M46: Constr Months | N46: 24 | O46: 0.04475043434 | P46: 0.08053499461 | Q46: 0.09922177973 | R46: 0.11068515 | S46: 0.1169415915
N47: 36 | O47: 0.03930388664 | P47: 0.07250607573 | Q47: 0.09049393167 | R47: 0.1015456871 | S47: 0.107520934
N48: 48 | O48: 0.03478849661 | P48: 0.06557593851 | Q48: 0.08282363612 | R48: 0.09345577679 | S48: 0.09916270859
E50: Scenario Input | G50: 1
H51: =LOOKUP(H52,InputC!4:4,InputC!5:5) -> Base Case - Annual | I51: =LOOKUP(I52,InputC!4:4,InputC!5:5) -> Longer-Construction | J51: =LOOKUP(J52,InputC!4:4,InputC!5:5) -> Shorter-Life | K51: =LOOKUP(K52,InputC!4:4,InputC!5:5) -> Higher Capital Expenditure | L51: =LOOKUP(L52,InputC!4:4,InputC!5:5) -> Lower Base EBITDA | M51: =LOOKUP(M52,InputC!4:4,InputC!5:5) -> Lower Growth Rate
H52: 1 | I52: 3 | J52: 4 | K52: 5 | L52: 6 | M52: 7
F53: Project IRR
F54: EBITDA
F55: DSCR
F56: LLCR
F57: PLCR

Sheet Time Series
B2: Time Period
C3: Period | G3: 0 | H3: 1 | I3: 2 | J3: 3 | K3: 4 | L3: 5 | M3: 6 | N3: 7 | O3: 8 | P3: 9 | Q3: 10 | R3: 11 | S3: 12 | T3: 13 | U3: 14 | V3: 15 | W3: 16 | X3: 17 | Y3: 18 | Z3: 19 | AA3: 20 | AB3: 21 | AC3: 22 | AD3: 23 | AE3: 24 | AF3: 25 | AG3: 26 | AH3: 27 | AI3: 28 | AJ3: 29 | AK3: 30
C4: Volatility | E4: =InputC!F23 -> 0 | F4: =E5 -> 0.1 | G4: EBITDA
C5: Mean Reversion | E5: =InputC!F24 -> 0.1
P8: Default Count
P9: Total Loss
P10: Average Loss
P11: Loss Percent
B17: Simulatons | E17: 200
B20: Simulation
F21: DSCR | G21: LLCR | H21: PLCR | I21: Project IRR | J21: Default
D22: Current
D23: Average

Sheet Simple Rp
B2: Examples
F5: =_xlfn.SEQUENCE(,2,0) -> 0 | G5: 1
E6: Cap Exp | F6: 1000
E7: EBITDA | F7: 0 | G7: 1100
E8: FCF | F8: =F7-F6 -> -1000 | G8: =G7-G6 -> 1100
E9: IRR | F9: =IRR(F8:G8) -> 0.1
E10: RF | F10: 0.05
E11: RP | F11: =(1+F9)/(1+F10)-1 -> 0.04761904762
E14: Gross NPV at Rf | F14: =NPV(F10,G7) -> 1047.619048
E15: NPV at Rf | F15: =NPV(F10,F8:G8) -> 45.35147392
E16: Outlay | F16: =F6 -> 1000
E17: Rp | F17: =F14/F16-1 -> 0.04761904762
F20: =_xlfn.SEQUENCE(,3,0) -> 0 | G20: 1 | H20: 2
E21: Cap Exp | F21: 1000
E22: EBITDA | F22: 0 | G22: 576.1904762 | H22: =G22 -> 576.1904762
E23: FCF | F23: =F22-F21 -> -1000 | G23: =G22-G21 -> 576.1904762 | H23: 576.1904762
E25: NPV at Target | F25: =NPV(F9,F23:H23) -> 0
E26: IRR | F26: =IRR(F23:H23) -> 0.1
E28: Gross at Rf | F28: =NPV(F10,F22:H22) -> 1020.356744
E29: NPV at Rf | F29: =NPV(F10,F23:H23) -> 67.97579198
E30: Outlay | F30: =F21 -> 1000
E31: Total Rp | F31: =F29/F30 -> 0.06797579198
E32: Level Rp | F32: =PMT(F10,H20,-F31) -> 0.03655771252

Sheet Volatility
K2: Monthly | L2: Monthly | P2: Annual | Q2: Annual | U2: 5-yr | V2: 5-yr | AG2: Monthly | AH2: Monthly | AL2: Annual | AM2: Annual | AQ2: 5-yr | AR2: 5-yr | BC2: Monthly | BD2: Monthly | BI2: Annual | BJ2: Annual | BN2: 5-Year | BO2: 5-Year
K3: =_xlfn.STDEV.S(K9:K637) -> 0.1238404826 | L3: =_xlfn.STDEV.S(L9:L637) -> 0.1001657428 | P3: =_xlfn.STDEV.S(P10:P60) -> 0.3047138882 | Q3: =_xlfn.STDEV.S(Q10:Q60) -> 0.276273976 | U3: =_xlfn.STDEV.S(U10:U60) -> 0.5257889865 | V3: =_xlfn.STDEV.S(V10:V60) -> 0.5019675415 | AG3: =_xlfn.STDEV.S(AG9:AG637) -> 0.1205384155 | AH3: =_xlfn.STDEV.S(AH9:AH637) -> 0.1230616511 | AL3: =_xlfn.STDEV.S(AL9:AL637) -> 0.4654873883 | AM3: =_xlfn.STDEV.S(AM9:AM637) -> 0.3627256937 | AQ3: =_xlfn.STDEV.S(AQ9:AQ16) -> 2.333338399 | AR3: =_xlfn.STDEV.S(AR9:AR16) -> 0.7446674978 | BC3: =_xlfn.STDEV.S(BC9:BC637) -> 0.1997902217 | BD3: =_xlfn.STDEV.S(BD9:BD637) -> 0.192599903 | BI3: =_xlfn.STDEV.S(BI9:BI48) -> 0.8202854049 | BJ3: =_xlfn.STDEV.S(BJ9:BJ48) -> 0.5619296073 | BN3: =_xlfn.STDEV.S(BN9:BN13) -> 2.542971464 | BO3: =_xlfn.STDEV.S(BO9:BO13) -> 1.152359157
K4: 12 | L4: 12 | P4: 1 | Q4: 1 | U4: =1/5 -> 0.2 | V4: =1/5 -> 0.2 | AG4: 12 | AH4: 12 | AL4: 1 | AM4: 1 | AQ4: =1/5 -> 0.2 | AR4: =1/5 -> 0.2 | BC4: 12 | BD4: 12 | BI4: 1 | BJ4: 1 | BN4: 0.2 | BO4: 0.2
K5: =K3*(K4^0.5) -> 0.4289960158 | L5: =L3*(L4^0.5) -> 0.3469843115 | P5: =P3*(P4^0.5) -> 0.3047138882 | Q5: =Q3*(Q4^0.5) -> 0.276273976 | U5: =U3*(U4^0.5) -> 0.2351399831 | V5: =V3*(V4^0.5) -> 0.2244867091 | AG5: =AG3*(AG4^0.5) -> 0.4175573197 | AH5: =AH3*(AH4^0.5) -> 0.4262980644 | AL5: =AL3*(AL4^0.5) -> 0.4654873883 | AM5: =AM3*(AM4^0.5) -> 0.3627256937 | AQ5: =AQ3*(AQ4^0.5) -> 1.043500655 | AR5: =AR3*(AR4^0.5) -> 0.3330254292 | BC5: =BC3*(BC4^0.5) -> 0.6920936298 | BD5: =BD3*(BD4^0.5) -> 0.667185635 | BI5: =BI3*(BI4^0.5) -> 0.8202854049 | BJ5: =BJ3*(BJ4^0.5) -> 0.5619296073 | BN5: =BN3*(BN4^0.5) -> 1.137251412 | BO5: =BO3*(BO4^0.5) -> 0.515350682
D7: Year | E7: 5-Year | F7: Month 1 | G7: Flag | H7: Counter | I7: Nominal | J7: Real | K7: Change | L7: LN Change | N7: Year | O7: Average | P7: Change | Q7: LN Change | S7: 5-yr | T7: Average | U7: Change | V7: LN Change | Z7: Date | AA7: AAPL | AB7: Year | AC7: 5-Year | AD7: Month 1 | AE7: Flag | AF7: Counter | AG7: Change | AH7: LN Change | AJ7: Year | AK7: Average | AL7: Change | AM7: LN Change | AP7: Average | AQ7: Change | AR7: LN Change | AV7: Date | AW7: BB | AX7: Year | AY7: 5-Year | AZ7: Month 1 | BA7: Flag | BC7: Change | BD7: LN Change | BG7: Year | BH7: Average | BI7: Change | BJ7: LN Change | BM7: Average | BN7: Change | BO7: LN Change
C8: 1973-01-01 | D8: =YEAR(C8) -> 1973 | E8: =MOD(D8,5)=0 -> FALSE | F8: =MONTH(C8)=1 -> TRUE | G8: =AND(F8,E8) -> FALSE | H8: 1 | I8: 2.08 | J8: 15.75221457 | Z8: 1985-01-01 | AA8: 0.09934119135 | AB8: =YEAR(Z8) -> 1985 | AC8: =MOD(AB8,5)=0 -> TRUE | AD8: =MONTH(Z8)=1 -> TRUE | AE8: =AND(AD8,AC8) -> TRUE | AF8: 1 | AJ8: 1985 | AK8: =AVERAGEIF(AB:AB,AJ8,AA:AA) -> 0.06847559785 | AO8: 1 | AP8: =AVERAGEIF(AF:AF,AO8,AA:AA) -> 0.20574217 | AV8: 1999-02-01 | AW8: 1.479166985 | AX8: =YEAR(AV8) -> 1999 | AY8: =MOD(AX8,5)=0 -> FALSE | AZ8: =MONTH(AV8)=1 -> FALSE | BA8: =AND(AZ8,AY8) -> FALSE | BB8: =BA8+BB7 -> 0 | BG8: 1999 | BH8: =AVERAGEIF(AX:AX,BG8,AW:AW) -> 4.21401518 | BL8: 1 | BM8: =AVERAGEIF(BB:BB,BL8,AW:AW) -> 9.217694537
C9: 1973-02-01 | D9: 1973 | E9: FALSE | F9: FALSE | G9: FALSE | H9: =H8+G9 -> 1 | I9: 2.08 | J9: 15.70239925 | K9: =J9/J8-1 -> -0.003162432765 | L9: =LN(J9/J8) -> -0.003167443823 | N9: 1974 | O9: =AVERAGEIF(D:D,N9,J:J) -> 73.10020057 | S9: 1 | T9: =AVERAGEIF(H:H,S9,J:J) -> 50.1456769 | Z9: 1985-02-01 | AA9: 0.08478268981 | AB9: =YEAR(Z9) -> 1985 | AC9: =MOD(AB9,5)=0 -> TRUE | AD9: =MONTH(Z9)=1 -> FALSE | AE9: =AND(AD9,AC9) -> FALSE | AF9: =AF8+AE9 -> 1 | AG9: =AA9/AA8-1 -> -0.1465505028 | AH9: =LN(AA9/AA8) -> -0.1584689099 | AJ9: 1986 | AK9: =AVERAGEIF(AB:AB,AJ9,AA:AA) -> 0.1131508444 | AL9: =AK9/AK8-1 -> 0.652425797 | AM9: =LN(AK9/AK8) -> 0.5022443883 | AO9: 2 | AP9: =AVERAGEIF(AF:AF,AO9,AA:AA) -> 0.3166067287 | AQ9: =AP9/AP8-1 -> 0.5388518974 | AR9: =LN(AP9/AP8) -> 0.4310366172 | AV9: 1999-03-01 | AW9: 1.75 | AX9: =YEAR(AV9) -> 1999 | AY9: =MOD(AX9,5)=0 -> FALSE | AZ9: =MONTH(AV9)=1 -> FALSE | BA9: =AND(AZ9,AY9) -> FALSE | BB9: =BA9+BB8 -> 0 | BC9: =AW9/AW8-1 -> 0.1830983373 | BD9: =LN(AW9/AW8) -> 0.1681367069 | BG9: 2000 | BH9: =AVERAGEIF(AX:AX,BG9,AW:AW) -> 12.51041667 | BI9: =BH9/BH8-1 -> 1.968764025 | BJ9: =LN(BH9/BH8) -> 1.088145713 | BL9: 2 | BM9: =AVERAGEIF(BB:BB,BL9,AW:AW) -> 57.27511113 | BN9: =BM9/BM8-1 -> 5.213604813 | BO9: =LN(BM9/BM8) -> 1.826741213
C10: 1973-03-01 | D10: 1973 | E10: FALSE | F10: FALSE | G10: FALSE | H10: 1 | I10: 2.35 | J10: 17.67447734 | K10: =J10/J9-1 -> 0.1255908768 | L10: =LN(J10/J9) -> 0.1183081216 | N10: 1975 | O10: 64.42027073 | P10: =O10/O9-1 -> -0.1187401645 | Q10: =LN(O10/O9) -> -0.126402764 | S10: 2 | T10: =AVERAGEIF(H:H,S10,J:J) -> 84.48757973 | U10: =T10/T9-1 -> 0.6848427412 | V10: =LN(T10/T9) -> 0.5216722308 | Z10: 1985-03-01 | AA10: 0.07579037547 | AB10: 1985 | AC10: TRUE | AD10: FALSE | AE10: FALSE | AF10: =AF9+AE10 -> 1 | AG10: =AA10/AA9-1 -> -0.1060630933 | AH10: =LN(AA10/AA9) -> -0.1121200804 | AJ10: 1987 | AK10: 0.2744893568 | AL10: =AK10/AK9-1 -> 1.425871043 | AM10: =LN(AK10/AK9) -> 0.886190653 | AO10: 3 | AP10: 0.2557748235 | AQ10: =AP10/AP9-1 -> -0.1921371208 | AR10: =LN(AP10/AP9) -> -0.2133629388 | AV10: 1999-04-01 | AW10: 2.03125 | AX10: 1999 | AY10: FALSE | AZ10: FALSE | BA10: FALSE | BB10: 0 | BC10: =AW10/AW9-1 -> 0.1607142857 | BD10: =LN(AW10/AW9) -> 0.1490355792 | BG10: 2001 | BH10: =AVERAGEIF(AX:AX,BG10,AW:AW) -> 4.770833433 | BI10: =BH10/BH9-1 -> -0.6186511161 | BJ10: =LN(BH10/BH9) -> -0.9640406171 | BL10: 3 | BM10: 25.36849992 | BN10: =BM10/BM9-1 -> -0.5570763737 | BO10: =LN(BM10/BM9) -> -0.8143579248
C11: 1973-04-01 | D11: 1973 | E11: FALSE | F11: FALSE | G11: FALSE | H11: 1 | I11: 2.35 | J11: 17.60192018 | K11: -0.00410519418 | L11: -0.004113643622 | N11: 1976 | O11: 66.97043087 | P11: =O11/O10-1 -> 0.03958629964 | Q11: =LN(O11/O10) -> 0.03882284521 | S11: 3 | T11: 116.782695 | U11: =T11/T10-1 -> 0.3822468976 | V11: =LN(T11/T10) -> 0.3237103617 | Z11: 1985-04-01 | AA11: 0.07279321551 | AB11: 1985 | AC11: TRUE | AD11: FALSE | AE11: FALSE | AF11: 1 | AG11: -0.03954539002 | AH11: -0.04034855455 | AJ11: 1988 | AK11: 0.2863463884 | AL11: 0.04319668956 | AM11: 0.04228973883 | AO11: 4 | AP11: 0.4166848622 | AQ11: 0.6291081999 | AR11: =LN(AP11/AP10) -> 0.4880327485 | AV11: 1999-05-01 | AW11: 2.34375 | AX11: 1999 | AY11: FALSE | AZ11: FALSE | BA11: FALSE | BB11: 0 | BC11: 0.1538461538 | BD11: 0.1431008436 | BG11: 2002 | BH11: 2.682361186 | BI11: -0.4377583658 | BJ11: -0.5758235674 | BL11: 4 | BM11: 8.675666706 | BN11: -0.6580142014 | BO11: =LN(BM11/BM10) -> -1.072986067
C12: 1973-05-01 | D12: 1973 | E12: FALSE | F12: FALSE | G12: FALSE | H12: 1 | I12: 2.35 | J12: 17.52316088 | K12: -0.004474472201 | L12: -0.004484512613 | N12: 1977 | O12: 67.90743276 | P12: 0.01399127759 | Q12: =LN(O12/O11) -> 0.01389430315 | S12: 4 | T12: 52.88790126 | U12: -0.5471255285 | V12: -0.7921402967 | Z12: 1985-05-01 | AA12: 0.05951922759 | AB12: 1985 | AC12: TRUE | AD12: FALSE | AE12: FALSE | AF12: 1 | AG12: -0.1823519929 | AH12: -0.2013233442 | AJ12: 1989 | AK12: 0.2862486628 | AL12: -0.0003412843478 | AM12: -0.0003413425986 | AO12: 5 | AP12: 3.256837402 | AQ12: 6.816068442 | AR12: 2.056181671 | AV12: 1999-06-01 | AW12: 3.375 | AX12: 1999 | AY12: FALSE | AZ12: FALSE | BA12: FALSE | BB12: 0 | BC12: 0.44 | BD12: 0.3646431136 | BG12: 2003 | BH12: 4.752361139 | BI12: 0.7717081369 | BJ12: 0.5719441303 | BL12: 5 | BM12: 5.678833322 | BN12: -0.3454297503 | BO12: -0.423776366
C13: 1973-06-01 | D13: 1973 | E13: FALSE | F13: FALSE | G13: FALSE | H13: 1 | I13: 2.7 | J13: 20.03554523 | K13: 0.1433750664 | L13: 0.133984473 | N13: 1978 | O13: 67.75967787 | P13: -0.002175827889 | Q13: =LN(O13/O12) -> -0.002178198442 | S13: 5 | T13: 44.44568126 | U13: -0.1596247876 | V13: -0.1739068054 | Z13: 1985-06-01 | AA13: 0.06166006252 | AB13: 1985 | AC13: TRUE | AD13: FALSE | AE13: FALSE | AF13: 1 | AG13: 0.03596879553 | AH13: 0.03533702324 | AJ13: 1990 | AK13: 0.2656811513 | AL13: -0.07185190427 | AM13: -0.07456397301 | AO13: 6 | AP13: 14.31573504 | AQ13: 3.395594029 | AR13: 1.480602682 | AV13: 1999-07-01 | AW13: 3.895833015 | AX13: 1999 | AY13: FALSE | AZ13: FALSE | BA13: FALSE | BB13: 0 | BC13: 0.1543208935 | BD13: 0.1435122 | BG13: 2004 | BH13: 21.37250026 | BI13: 3.497238244 | BJ13: 1.503463485 | BL13: 6 | BM13: 4.030587524 | BN13: -0.2902437357 | BO13: -0.3428336576
C14: 1973-07-01 | D14: 1973 | E14: FALSE | F14: FALSE | G14: FALSE | H14: 1 | I14: 2.7 | J14: 19.94276433 | K14: -0.004630814908 | L14: -0.004641570349 | N14: 1979 | O14: 155.3800864 | P14: 1.293105447 | Q14: =LN(O14/O13) -> 0.8299069893 | S14: 6 | T14: 35.43694352 | U14: -0.2026909586 | V14: -0.2265129195 | Z14: 1985-07-01 | AA14: 0.05438122898 | AB14: 1985 | AC14: TRUE | AD14: FALSE | AE14: FALSE | AF14: 1 | AG14: -0.1180477807 | AH14: -0.1256173976 | AJ14: 1991 | AK14: 0.3752059316 | AL14: 0.4122414395 | AM14: 0.3451781156 | AO14: 7 | AP14: 36.26576589 | AQ14: 1.533280044 | AR14: 0.9295149232 | AV14: 1999-08-01 | AW14: 4.958333015 | AX14: 1999 | AY14: FALSE | AZ14: FALSE | BA14: FALSE | BB14: 0 | BC14: 0.272727295 | BD14: 0.2411620743 | BG14: 2005 | BH14: 23.35361099 | BI14: 0.09269438332 | BJ14: 0.0886465574
C15: 1973-08-01 | D15: 1973 | E15: FALSE | F15: FALSE | G15: FALSE | H15: 1 | I15: 2.7 | J15: 19.82476675 | K15: -0.005916811705 | L15: -0.00593438539 | N15: 1980 | O15: 154.7548251 | P15: -0.004024076461 | Q15: =LN(O15/O14) -> -0.004032194843 | S15: 7 | T15: 51.9898688 | U15: 0.467109283 | V15: 0.3832939906 | Z15: 1985-08-01 | AA15: 0.05138326064 | AB15: 1985 | AC15: TRUE | AD15: FALSE | AE15: FALSE | AF15: 1 | AG15: -0.05512873471 | AH15: -0.05670658798 | AJ15: 1992 | AK15: 0.3990832195 | AL15: 0.06363782098 | AM15: 0.06169493916 | AO15: 8 | AP15: 153.0575446 | AQ15: 3.220441535 | AR15: 1.439939752 | AV15: 1999-09-01 | AW15: 5.15625 | AX15: 1999 | AY15: FALSE | AZ15: FALSE | BA15: FALSE | BB15: 0 | BC15: 0.03991603306 | BD15: 0.03913997245 | BG15: 2006 | BH15: 29.69722239 | BI15: 0.2716329993 | BJ15: 0.2403019008
C16: 1973-09-01 | D16: 1973 | E16: FALSE | F16: FALSE | G16: FALSE | H16: 1 | I16: 4.1 | J16: 29.92656131 | K16: 0.5095542706 | L16: 0.4118144222 | N16: 1981 | O16: 132.6365248 | P16: -0.142924786 | Q16: =LN(O16/O15) -> -0.1542295999 | S16: 8 | T16: 109.9421947 | U16: 1.114684981 | V16: 0.7489058563 | Z16: 1985-09-01 | AA16: 0.05395304039 | AB16: 1985 | AC16: TRUE | AD16: FALSE | AE16: FALSE | AF16: 1 | AG16: 0.05001200239 | AH16: 0.04880159495 | AJ16: 1993 | AK16: 0.2905449693 | AL16: -0.271968965 | AM16: -0.3174116011 | AO16: 9 | AP16: 219.1406422 | AQ16: 0.4317532839 | AR16: 0.3588997659 | AV16: 1999-10-01 | AW16: 5.125 | AX16: 1999 | AY16: FALSE | AZ16: FALSE | BA16: FALSE | BB16: 0 | BC16: -0.006060606061 | BD16: -0.006079046076 | BG16: 2007 | BH16: 75.65555636 | BI16: 1.547563384 | BJ16: 0.9351373665
C17: 1973-10-01 | D17: 1973 | E17: FALSE | F17: FALSE | G17: FALSE | H17: 1 | I17: 4.1 | J17: 29.73980464 | K17: -0.006240498895 | L17: -0.006260052199 | N17: 1982 | O17: 111.2843419 | P17: -0.1609826776 | Q17: =LN(O17/O16) -> -0.1755239262 | S17: 9 | T17: 142.4606557 | U17: 0.2957778046 | V17: 0.2591111362 | Z17: 1985-10-01 | AA17: 0.06380093843 | AB17: 1985 | AC17: TRUE | AD17: FALSE | AE17: FALSE | AF17: 1 | AG17: 0.1825272119 | AH17: 0.1676538533 | AJ17: 1994 | AK17: 0.252518372 | AL17: -0.130880247 | AM17: -0.1402743577 | AV17: 1999-11-01 | AW17: 8.541666985 | AX17: 1999 | AY17: FALSE | AZ17: FALSE | BA17: FALSE | BB17: 0 | BC17: 0.6666667287 | BD17: 0.510825661 | BG17: 2008 | BH17: 94.45916684 | BI17: 0.2485423595 | BJ17: 0.2219767584
C18: 1973-11-01 | D18: 1973 | E18: FALSE | F18: FALSE | G18: FALSE | H18: 1 | I18: 4.1 | J18: 29.54388079 | K18: -0.00658793337 | L18: -0.006609729584 | N18: 1983 | O18: 96.12474957 | P18: -0.1362239473 | Q18: =LN(O18/O17) -> -0.1464417421 | S18: 10 | T18: 74.5747735 | U18: -0.4765237241 | V18: -0.647263568 | Z18: 1985-11-01 | AA18: 0.06893972307 | AB18: 1985 | AC18: TRUE | AD18: FALSE | AE18: FALSE | AF18: 1 | AG18: 0.08054402919 | AH18: 0.07746464504 | AJ18: 1995 | AK18: 0.2938975493 | AL18: 0.163866007 | AM18: 0.1517472285 | AV18: 1999-12-01 | AW18: 7.697916985 | AX18: 1999 | AY18: FALSE | AZ18: FALSE | BA18: FALSE | BB18: 0 | BC18: -0.09878048413 | BD18: -0.1040064152 | BG18: 2009 | BH18: 63.20999908 | BI18: -0.3308219711 | BJ18: -0.4017051422
C19: 1973-12-01 | D19: 1973 | E19: FALSE | F19: FALSE | G19: FALSE | H19: 1 | I19: 13 | J19: 93.02634348 | K19: 2.148751654 | L19: 1.147006074 | N19: 1984 | O19: 89.11303346 | P19: -0.07294392063 | Q19: =LN(O19/O18) -> -0.0757412197 | S19: 11 | T19: 84.22111437 | U19: 0.1293512594 | V19: 0.1216433612 | Z19: 1985-12-01 | AA19: 0.07536222041 | AB19: 1985 | AC19: TRUE | AD19: FALSE | AE19: FALSE | AF19: 1 | AG19: 0.09316105499 | AH19: 0.08907354965 | AJ19: 1996 | AK19: 0.1798862914 | AL19: -0.3879285763 | AM19: -0.4909062979 | AV19: 2000-01-01 | AW19: 10.95833302 | AX19: 2000 | AY19: TRUE | AZ19: TRUE | BA19: TRUE | BB19: 1 | BC19: 0.4235452314 | BD19: 0.353150402 | BG19: 2010 | BH19: 59.56999969 | BI19: -0.05758581621 | BJ19: -0.05931041548
C20: 1974-01-01 | D20: 1974 | E20: FALSE | F20: TRUE | G20: FALSE | H20: 1 | I20: 13 | J20: 92.33320792 | K20: -0.007450959984 | L20: -0.007478857046 | N20: 1985 | O20: 81.70213202 | P20: -0.08316293539 | Q20: =LN(O20/O19) -> -0.0868255056 | Z20: 1986-01-01 | AA20: 0.07921651751 | AB20: 1986 | AC20: FALSE | AD20: TRUE | AE20: FALSE | AF20: 1 | AG20: 0.05114362449 | AH20: 0.04987873764 | AJ20: 1997 | AK20: 0.1299894657 | AL20: -0.2773798122 | AM20: -0.3248715229 | AV20: 2000-02-01 | AW20: 22.54166794 | AX20: 2000 | AY20: TRUE | AZ20: FALSE | BA20: FALSE | BB20: 1 | BC20: 1.057034396 | BD20: 0.7212653321 | BG20: 2011 | BH20: 36.04583343 | BI20: -0.3948995532 | BJ20: -0.502360807
C21: 1974-02-01 | D21: 1974 | E21: FALSE | F21: FALSE | G21: FALSE | H21: 1 | I21: 13 | J21: 91.60113726 | K21: -0.007928573931 | L21: -0.007960172204 | N21: 1986 | O21: 41.30542774 | P21: -0.4944388021 | Q21: =LN(O21/O20) -> -0.6820861837 | Z21: 1986-02-01 | AA21: 0.08563905954 | AB21: 1986 | AC21: FALSE | AD21: FALSE | AE21: FALSE | AF21: 1 | AG21: 0.08107579376 | AH21: 0.07795665068 | AJ21: 1998 | AK21: 0.2289424439 | AL21: 0.7612384411 | AM21: 0.5660172213 | AV21: 2000-03-01 | AW21: 17.75 | AX21: 2000 | AY21: TRUE | AZ21: FALSE | BA21: FALSE | BB21: 1 | BC21: -0.2125693605 | BD21: -0.238979989 | BG21: 2012 | BH21: 10.85499994 | BI21: -0.6988556261 | BJ21: -1.200165482
C22: 1974-03-01 | D22: 1974 | E22: FALSE | F22: FALSE | G22: FALSE | H22: 1 | I22: 10.59999847 | J22: 74.07727236 | K22: -0.1913061936 | L22: -0.2123349176 | N22: 1987 | O22: 51.89080834 | P22: 0.2562709353 | Q22: =LN(O22/O21) -> 0.2281477576 | Z22: 1986-03-01 | AA22: 0.09677217901 | AB22: 1986 | AC22: FALSE | AD22: FALSE | AE22: FALSE | AF22: 1 | AG22: 0.1300004872 | AH22: 0.1222180639 | AJ22: 1999 | AK22: 0.4461583669 | AL22: 0.9487796114 | AM22: 0.6672033363 | AV22: 2000-04-01 | AW22: 7.083333015 | AX22: 2000 | AY22: TRUE | AZ22: FALSE | BA22: FALSE | BB22: 1 | BC22: -0.600938985 | BD22: -0.9186409541 | BG22: 2013 | BH22: 10.84249997 | BI22: -0.001151540146 | BJ22: -0.001152203677
C23: 1974-04-01 | D23: 1974 | E23: FALSE | F23: FALSE | G23: FALSE | H23: 1 | I23: 10.59999847 | J23: 73.48613754 | K23: -0.007979975604 | L23: -0.008011986018 | N23: 1988 | O23: 41.01991265 | P23: -0.2094955934 | Q23: =LN(O23/O22) -> -0.2350840479 | Z23: 1986-04-01 | AA23: 0.1036236435 | AB23: 1986 | AC23: FALSE | AD23: FALSE | AE23: FALSE | AF23: 1 | AG23: 0.07079994044 | AH23: 0.06840597704 | AJ23: 2000 | AK23: 0.6528594171 | AL23: 0.463290763 | AM23: 0.3806878466 | AV23: 2000-05-01 | AW23: 5.364583015 | AX23: 2000 | AY23: TRUE | AZ23: FALSE | BA23: FALSE | BB23: 1 | BC23: -0.2426470697 | BD23: -0.2779259119 | BG23: 2014 | BH23: 9.529166579 | BI23: -0.1211282818 | BJ23: -0.1291163326
C24: 1974-05-01 | D24: 1974 | E24: FALSE | F24: FALSE | G24: FALSE | H24: 1 | I24: 10.59999847 | J24: 72.86591826 | K24: -0.008439949262 | L24: -0.008475767312 | N24: 1989 | O24: 48.52122556 | P24: 0.1828700361 | Q24: =LN(O24/O23) -> 0.1679437194 | Z24: 1986-05-01 | AA24: 0.1267462671 | AB24: 1986 | AC24: FALSE | AD24: FALSE | AE24: FALSE | AF24: 1 | AG24: 0.2231404222 | AH24: 0.2014216679 | AJ24: 2001 | AK24: 0.3055109642 | AL24: -0.5320417287 | AM24: -0.7593761509 | AV24: 2000-06-01 | AW24: 7.541666985 | AX24: 2000 | AY24: TRUE | AZ24: FALSE | BA24: FALSE | BB24: 1 | BC24: 0.4058253853 | BD24: 0.3406245931 | BG24: 2015 | BH24: 8.666666706 | BI24: -0.09051157472 | BJ24: -0.09487300757
C25: 1974-06-01 | D25: 1974 | E25: FALSE | F25: FALSE | G25: FALSE | H25: 1 | I25: 10 | J25: 68.15339398 | K25: -0.06467391615 | L25: -0.06686005771 | N25: 1990 | O25: 59.44674144 | P25: 0.2251698253 | Q25: =LN(O25/O24) -> 0.2030794673 | Z25: 1986-06-01 | AA25: 0.1228919923 | AB25: 1986 | AC25: FALSE | AD25: FALSE | AE25: FALSE | AF25: 1 | AG25: -0.03040937488 | AH25: -0.03088133252 | AJ25: 2002 | AK25: 0.2824268999 | AL25: -0.07555887358 | AM25: -0.07856591172 | AV25: 2000-07-01 | AW25: 9.03125 | AX25: 2000 | AY25: TRUE | AZ25: FALSE | BA25: FALSE | BB25: 1 | BC25: 0.1975137617 | BD25: 0.1802475422 | BG25: 2016 | BH25: 7.406666676 | BI25: -0.1453846182 | BJ25: -0.1571037571
C26: 1974-07-01 | D26: 1974 | E26: FALSE | F26: FALSE | G26: FALSE | H26: 1 | I26: 10 | J26: 67.5373301 | K26: -0.009039371924 | L26: -0.009080474931 | N26: 1991 | O26: 46.49299425 | P26: -0.2179050842 | Q26: =LN(O26/O25) -> -0.24577917 | Z26: 1986-07-01 | AA26: 0.1070489809 | AB26: 1986 | AC26: FALSE | AD26: FALSE | AE26: FALSE | AF26: 1 | AG26: -0.1289181755 | AH26: -0.1380193634 | AJ26: 2003 | AK26: 0.2805881364 | AL26: -0.006510582226 | AM26: -0.006531868508 | AV26: 2000-08-01 | AW26: 12.59375 | AX26: 2000 | AY26: TRUE | AZ26: FALSE | BA26: FALSE | BB26: 1 | BC26: 0.3944636678 | BD26: 0.3325098738 | BG26: 2017 | BH26: 9.531666716 | BI26: 0.2869036954 | BJ26: 0.252239097
C27: 1974-08-01 | D27: 1974 | E27: FALSE | F27: FALSE | G27: FALSE | H27: 1 | I27: 10 | J27: 66.95932976 | K27: -0.008558235005 | L27: -0.008595066993 | N27: 1992 | O27: 44.18471569 | P27: -0.04964787901 | Q27: =LN(O27/O26) -> -0.05092270939 | Z27: 1986-08-01 | AA27: 0.1267462671 | AB27: 1986 | AC27: FALSE | AD27: FALSE | AE27: FALSE | AF27: 1 | AG27: 0.1840025568 | AH27: 0.1689006959 | AJ27: 2004 | AK27: 0.5620388935 | AL27: 1.003074331 | AM27: 0.6946831658 | AV27: 2000-09-01 | AW27: 16.42708206 | AX27: 2000 | AY27: TRUE | AZ27: FALSE | BA27: FALSE | BB27: 1 | BC27: 0.3043836873 | BD27: 0.2657306589 | BG27: 2018 | BH27: 10.43833339 | BI27: 0.09512152525 | BJ27: 0.09086533907
C28: 1974-09-01 | D28: 1974 | E28: FALSE | F28: FALSE | G28: FALSE | H28: 1 | I28: 10.29999924 | J28: 68.32253174 | K28: 0.02035865634 | L28: 0.02015418936 | N28: 1993 | O28: 37.35011978 | P28: -0.1546823558 | Q28: =LN(O28/O27) -> -0.168042812 | Z28: 1986-09-01 | AA28: 0.1147567704 | AB28: 1986 | AC28: FALSE | AD28: FALSE | AE28: FALSE | AF28: 1 | AG28: -0.09459447544 | AH28: -0.09937234221 | AJ28: 2005 | AK28: 1.446119189 | AL28: 1.572987752 | AM28: 0.9450677732 | AV28: 2000-10-01 | AW28: 16.66666794 | AX28: 2000 | AY28: TRUE | AZ28: FALSE | BA28: FALSE | BB28: 1 | BC28: 0.01458481035 | BD28: 0.01447947497 | BG28: 2019 | BH28: 7.335000038 | BI28: -0.297301613 | BJ28: -0.3528275161
C29: 1974-10-01 | D29: 1974 | E29: FALSE | F29: FALSE | G29: FALSE | H29: 1 | I29: 10.29999924 | J29: 67.6772361 | K29: -0.009444843731 | L29: -0.009489729115 | N29: 1994 | O29: 34.75383512 | P29: -0.06951208397 | Q29: =LN(O29/O28) -> -0.07204618952 | Z29: 1986-10-01 | AA29: 0.1186103374 | AB29: 1986 | AC29: FALSE | AD29: FALSE | AE29: FALSE | AF29: 1 | AG29: 0.03358030145 | AH29: 0.03302879567 | AJ29: 2006 | AK29: 2.1627494 | AL29: 0.4955540427 | AM29: 0.4024967353 | AV29: 2000-11-01 | AW29: 10.83333302 | AX29: 2000 | AY29: TRUE | AZ29: FALSE | BA29: FALSE | BB29: 1 | BC29: -0.3500000687 | BD29: -0.4307830217 | BG29: 2020 | BH29: 5.06249996 | BI29: -0.3098159599 | BJ29: -0.3707969922
C30: 1974-11-01 | D30: 1974 | E30: FALSE | F30: FALSE | G30: FALSE | H30: 1 | I30: 10.29999924 | J30: 67.0311084 | K30: -0.009547194099 | L30: -0.009593060722 | N30: 1995 | O30: 36.24665385 | P30: 0.04295407192 | Q30: =LN(O30/O29) -> 0.04205714046 | Z30: 1986-11-01 | AA30: 0.1370223314 | AB30: 1986 | AC30: FALSE | AD30: FALSE | AE30: FALSE | AF30: 1 | AG30: 0.1552309384 | AH30: 0.1443002707 | AJ30: 2007 | AK30: 4.003282468 | AL30: 0.8510154103 | AM30: 0.6157343589 | AV30: 2000-12-01 | AW30: 13.33333302 | AX30: 2000 | AY30: TRUE | AZ30: FALSE | BA30: FALSE | BB30: 1 | BC30: 0.2307692375 | BD30: 0.2076393703 | BG30: 2021 | BH30: 10.38916675 | BI30: 1.052181103 | BJ30: 0.7189031802
C31: 1974-12-01 | D31: 1974 | E31: FALSE | F31: FALSE | G31: FALSE | H31: 1 | I31: 10.42000008 | J31: 67.15780337 | K31: 0.001890092187 | L31: 0.00188830821 | N31: 1996 | O31: 43.31121563 | P31: 0.1949024539 | Q31: =LN(O31/O30) -> 0.1780645535 | Z31: 1986-12-01 | AA31: 0.1387357861 | AB31: 1986 | AC31: FALSE | AD31: FALSE | AE31: FALSE | AF31: 1 | AG31: 0.01250493045 | AH31: 0.01242738956 | AJ31: 2008 | AK31: 4.157210767 | AL31: 0.03845052179 | AM31: 0.03772971928 | AV31: 2001-01-01 | AW31: 10.96875 | AX31: 2001 | AY31: FALSE | AZ31: TRUE | BA31: FALSE | BB31: 1 | BC31: -0.1773437304 | BD31: -0.1952168209 | BG31: 2022 | BH31: 5.773333251 | BI31: -0.4442929458 | BJ31: -0.5875140045
C32: 1975-01-01 | D32: 1975 | E32: TRUE | F32: TRUE | G32: TRUE | H32: 2 | I32: 10.42000008 | J32: 66.53632816 | K32: -0.009253953782 | L32: -0.009297037616 | N32: 1997 | O32: 36.75116559 | P32: -0.1514630781 | Q32: =LN(O32/O31) -> -0.1642416809 | Z32: 1987-01-01 | AA32: 0.1901190281 | AB32: 1987 | AC32: FALSE | AD32: TRUE | AE32: FALSE | AF32: 1 | AG32: 0.3703676136 | AH32: 0.3150790349 | AJ32: 2009 | AK32: 4.514825185 | AL32: 0.08602268153 | AM32: 0.08252210668 | AV32: 2001-02-01 | AW32: 6.447916985 | AX32: 2001 | AY32: FALSE | AZ32: FALSE | BA32: FALSE | BB32: 1 | BC32: -0.4121557165 | BD32: -0.5312931901 | BG32: 2023 | BH32: 4.470000009 | BI32: -0.2257505649 | BJ32: -0.2558611897
C33: 1975-02-01 | D33: 1975 | E33: TRUE | F33: FALSE | G33: FALSE | H33: 2 | I33: 10.42000008 | J33: 65.94887471 | K33: -0.008829063292 | L33: -0.008868270417 | N33: 1998 | O33: 24.30563758 | P33: -0.3386430828 | Q33: =LN(O33/O32) -> -0.4134616194 | Z33: 1987-02-01 | AA33: 0.2397896051 | AB33: 1987 | AC33: FALSE | AD33: FALSE | AE33: FALSE | AF33: 1 | AG33: 0.2612604196 | AH33: 0.232111554 | AJ33: 2010 | AK33: 7.805155754 | AL33: 0.7287836038 | AM33: 0.547418042 | AV33: 2001-03-01 | AW33: 3.661667109 | AX33: 2001 | AY33: FALSE | AZ33: FALSE | BA33: FALSE | BB33: 1 | BC33: -0.4321162761 | BD33: -0.5658385927 | BG33: 2024 | BH33: 2.699166636 | BI33: -0.3961595905 | BJ33: -0.5044453387
C34: 1975-03-01 | D34: 1975 | E34: TRUE | F34: FALSE | G34: FALSE | H34: 2 | I34: 10.42000008 | J34: 65.41472124 | K34: -0.008099508459 | L34: -0.008132487675 | N34: 1999 | O34: 36.57004494 | P34: 0.504591057 | Q34: =LN(O34/O33) -> 0.4085211383 | Z34: 1987-03-01 | AA34: 0.220948711 | AB34: 1987 | AC34: FALSE | AD34: FALSE | AE34: FALSE | AF34: 1 | AG34: -0.07857260573 | AH34: -0.08183129579 | AJ34: 2011 | AK34: 11.06561502 | AL34: 0.4177314799 | AM34: 0.3490580448 | AV34: 2001-04-01 | AW34: 5.653333187 | AX34: 2001 | AY34: FALSE | AZ34: FALSE | BA34: FALSE | BB34: 1 | BC34: 0.5439233058 | BD34: 0.434326778 | BG34: 2025 | BH34: 4.030587524 | BI34: 0.4932710974 | BJ34: 0.4009690811
C35: 1975-04-01 | D35: 1975 | E35: TRUE | F35: FALSE | G35: FALSE | H35: 2 | I35: 10.42000008 | J35: 64.88698972 | K35: -0.008067473326 | L35: -0.008100191476 | N35: 2000 | O35: 52.99788585 | P35: 0.4492157705 | Q35: =LN(O35/O34) -> 0.3710225622 | Z35: 1987-04-01 | AA35: 0.271476388 | AB35: 1987 | AC35: FALSE | AD35: FALSE | AE35: FALSE | AF35: 1 | AG35: 0.2286850948 | AH35: 0.205944569 | AJ35: 2012 | AK35: 17.54352872 | AL35: 0.5854092779 | AM35: 0.4608425935 | AV35: 2001-05-01 | AW35: 5.436666965 | AX35: 2001 | AY35: FALSE | AZ35: FALSE | BA35: FALSE | BB35: 1 | BC35: -0.03832539397 | BD35: -0.0390791329 | BG35: 2012 | BH35: 10.85499994 | BI35: 1.693155743 | BJ35: 0.9907136448
C36: 1975-05-01 | D36: 1975 | E36: TRUE | F36: FALSE | G36: FALSE | H36: 2 | I36: 10.42000008 | J36: 64.39982391 | K36: -0.007507912106 | L36: -0.007536238348 | N36: 2001 | O36: 43.40574287 | P36: -0.1809910494 | Q36: =LN(O36/O35) -> -0.1996602665 | Z36: 1987-05-01 | AA36: 0.2706200778 | AB36: 1987 | AC36: FALSE | AD36: FALSE | AE36: FALSE | AF36: 1 | AG36: -0.003154271116 | AH36: -0.003159256315 | AJ36: 2013 | AK36: 14.52061192 | AL36: -0.1723095076 | AM36: -0.1891159959 | AV36: 2001-06-01 | AW36: 5.375 | AX36: 2001 | AY36: FALSE | AZ36: FALSE | BA36: FALSE | BB36: 1 | BC36: -0.01134278886 | BD36: -0.01140760891 | BG36: 2013 | BH36: 10.84249997 | BI36: -0.001151540146 | BJ36: -0.001152203677
C37: 1975-06-01 | D37: 1975 | E37: TRUE | F37: FALSE | G37: FALSE | H37: 2 | I37: 10.43000031 | J37: 63.98142174 | K37: -0.006496945781 | L37: -0.006518142794 | N37: 2002 | O37: 46.181574 | P37: 0.0639507804 | Q37: =LN(O37/O36) -> 0.06198913083 | Z37: 1987-06-01 | AA37: 0.277893126 | AB37: 1987 | AC37: FALSE | AD37: FALSE | AE37: FALSE | AF37: 1 | AG37: 0.02687549357 | AH37: 0.02652069046 | AJ37: 2014 | AK37: 20.64376378 | AL37: 0.4216869021 | AM37: 0.3518441258 | AV37: 2001-07-01 | AW37: 3.921667099 | AX37: 2001 | AY37: FALSE | AZ37: FALSE | BA37: FALSE | BB37: 1 | BC37: -0.2703875165 | BD37: -0.3152417303 | BG37: 2014 | BH37: 9.529166579 | BI37: -0.1211282818 | BJ37: -0.1291163326
C38: 1975-07-01 | D38: 1975 | E38: TRUE | F38: FALSE | G38: FALSE | H38: 2 | I38: 10.43000031 | J38: 63.48890814 | K38: -0.007697759531 | L38: -0.00772754021 | N38: 2003 | O38: 50.2758115 | P38: 0.08865521768 | Q38: =LN(O38/O37) -> 0.08494318931 | Z38: 1987-07-01 | AA38: 0.2830396891 | AB38: 1987 | AC38: FALSE | AD38: FALSE | AE38: FALSE | AF38: 1 | AG38: 0.01851993652 | AH38: 0.01835053089 | AJ38: 2015 | AK38: 26.79468425 | AL38: 0.2979553795 | AM38: 0.2607902413 | AV38: 2001-08-01 | AW38: 2.809999943 | AX38: 2001 | AY38: FALSE | AZ38: FALSE | BA38: FALSE | BB38: 1 | BC38: -0.2834680069 | BD38: -0.3333323808 | BG38: 2015 | BH38: 8.666666706 | BI38: -0.09051157472 | BJ38: -0.09487300757
C39: 1975-08-01 | D39: 1975 | E39: TRUE | F39: FALSE | G39: FALSE | H39: 2 | I39: 10.43000031 | J39: 63.05391247 | K39: -0.006851522348 | L39: -0.006875101793 | N39: 2004 | O39: 67.08832975 | P39: 0.3344057062 | Q39: =LN(O39/O38) -> 0.2884860288 | Z39: 1987-08-01 | AA39: 0.370524466 | AB39: 1987 | AC39: FALSE | AD39: FALSE | AE39: FALSE | AF39: 1 | AG39: 0.3090901395 | AH39: 0.2693323459 | AJ39: 2016 | AK39: 23.86554114 | AL39: -0.1093180678 | AM39: -0.1157678937 | AV39: 2001-09-01 | AW39: 2.680000067 | AX39: 2001 | AY39: FALSE | AZ39: FALSE | BA39: FALSE | BB39: 1 | BC39: -0.04626330202 | BD39: -0.04736764355 | BG39: 2016 | BH39: 7.406666676 | BI39: -0.1453846182 | BJ39: -0.1571037571
C40: 1975-09-01 | D40: 1975 | E40: TRUE | F40: FALSE | G40: FALSE | H40: 2 | I40: 10.46000004 | J40: 62.83561848 | K40: -0.003462021268 | L40: -0.003468027931 | N40: 2005 | O40: 92.57859624 | P40: 0.3799508289 | Q40: =LN(O40/O39) -> 0.3220478673 | Z40: 1987-09-01 | AA40: 0.3881790638 | AB40: 1987 | AC40: FALSE | AD40: FALSE | AE40: FALSE | AF40: 1 | AG40: 0.04764758977 | AH40: 0.04654726005 | AJ40: 2017 | AK40: 35.26119026 | AL40: 0.4774938497 | AM40: 0.3903473077 | AV40: 2001-10-01 | AW40: 2.710000038 | AX40: 2001 | AY40: FALSE | AZ40: FALSE | BA40: FALSE | BB40: 1 | BC40: 0.0111940189 | BD40: 0.01113182954 | BG40: 2017 | BH40: 9.531666716 | BI40: 0.2869036954 | BJ40: 0.252239097
C41: 1975-10-01 | D41: 1975 | E41: TRUE | F41: FALSE | G41: FALSE | H41: 2 | I41: 10.46000004 | J41: 62.4611449 | K41: -0.005959574969 | L41: -0.005977404107 | N41: 2006 | O41: 103.1590625 | P41: 0.1142863112 | Q41: =LN(O41/O40) -> 0.1082141204 | Z41: 1987-10-01 | AA41: 0.265370369 | AB41: 1987 | AC41: FALSE | AD41: FALSE | AE41: FALSE | AF41: 1 | AG41: -0.3163712479 | AH41: -0.3803402689 | AJ41: 2018 | AK41: 44.26312764 | AL41: 0.2552930665 | AM41: 0.2273690645 | AV41: 2001-11-01 | AW41: 3.631666899 | AX41: 2001 | AY41: FALSE | AZ41: FALSE | BA41: FALSE | BB41: 1 | BC41: 0.3400984678 | BD41: 0.2927430947 | BG41: 2018 | BH41: 10.43833339 | BI41: 0.09512152525 | BJ41: 0.09086533907
C42: 1975-11-01 | D42: 1975 | E42: TRUE | F42: FALSE | G42: FALSE | H42: 2 | I42: 10.46000004 | J42: 62.09168543 | K42: -0.005915028837 | L42: -0.005932591912 | N42: 2007 | O42: 117.71307 | P42: 0.1410831691 | Q42: =LN(O42/O41) -> 0.1319779596 | Z42: 1987-11-01 | AA42: 0.2267242968 | AB42: 1987 | AC42: FALSE | AD42: FALSE | AE42: FALSE | AF42: 1 | AG42: -0.1456306983 | AH42: -0.1573917411 | AJ42: 2019 | AK42: 51.14428616 | AL42: 0.1554602866 | AM42: 0.1444987812 | AV42: 2001-12-01 | AW42: 3.953332901 | AX42: 2001 | AY42: FALSE | AZ42: FALSE | BA42: FALSE | BB42: 1 | BC42: 0.08857255118 | BD42: 0.08486725191 | BG42: 2019 | BH42: 7.335000038 | BI42: -0.297301613 | BJ42: -0.3528275161
C43: 1975-12-01 | D43: 1975 | E43: TRUE | F43: FALSE | G43: FALSE | H43: 2 | I43: 11.51000023 | J43: 67.94381982 | K43: 0.09424988785 | L43: 0.0900690946 | N43: 2008 | O43: 140.7616676 | P43: 0.1958032161 | Q43: =LN(O43/O42) -> 0.1788181069 | Z43: 1987-12-01 | AA43: 0.2891874611 | AB43: 1987 | AC43: FALSE | AD43: FALSE | AE43: FALSE | AF43: 1 | AG43: 0.2755027371 | AH43: 0.2433404045 | AJ43: 2020 | AK43: 94.25673771 | AL43: 0.8429573427 | AM43: 0.6113715329 | AV43: 2002-01-01 | AW43: 4.268332958 | AX43: 2002 | AY43: FALSE | AZ43: TRUE | BA43: FALSE | BB43: 1 | BC43: 0.07967961847 | BD43: 0.07666434756 | BG43: 2020 | BH43: 5.06249996 | BI43: -0.3098159599 | BJ43: -0.3707969922
C44: 1976-01-01 | D44: 1976 | E44: FALSE | F44: TRUE | G44: FALSE | H44: 2 | I44: 11.51000023 | J44: 67.57668297 | K44: -0.00540353558 | L44: -0.005418187483 | N44: 2009 | O44: 95.4985772 | P44: -0.321558356 | Q44: =LN(O44/O43) -> -0.3879568108 | Z44: 1988-01-01 | AA44: 0.2857449055 | AB44: 1988 | AC44: FALSE | AD44: TRUE | AE44: FALSE | AF44: 1 | AG44: -0.01190423559 | AH44: -0.01197565839 | AJ44: 2021 | AK44: 138.4823011 | AL44: 0.4692032044 | AM44: 0.384720216 | AV44: 2002-02-01 | AW44: 3.815000057 | AX44: 2002 | AY44: FALSE | AZ44: FALSE | BA44: FALSE | BB44: 1 | BC44: -0.1062084203 | BD44: -0.1122826634 | BG44: 2021 | BH44: 10.38916675 | BI44: 1.052181103 | BJ44: 0.7189031802
C45: 1976-02-01 | D45: =YEAR(C45) -> 1976 | E45: =MOD(D45,5)=0 -> FALSE | F45: =MONTH(C45)=1 -> FALSE | G45: =AND(F45,E45) -> FALSE | H45: 2 | I45: 11.51000023 | J45: 67.23426 | K45: -0.005067176419 | L45: -0.005080058092 | N45: 2010 | O45: 119.124152 | P45: 0.2473919039 | Q45: =LN(O45/O44) -> 0.2210548947 | Z45: 1988-02-01 | AA45: 0.2960730493 | AB45: 1988 | AC45: FALSE | AD45: FALSE | AE45: FALSE | AF45: 1 | AG45: 0.03614462983 | AH45: 0.03550673818 | AJ45: 2022 | AK45: 151.2589404 | AL45: 0.09226189342 | AM45: 0.08825067771 | AV45: 2002-03-01 | AW45: 4.628333092 | AX45: 2002 | AY45: FALSE | AZ45: FALSE | BA45: FALSE | BB45: 1 | BC45: 0.2131934528 | BD45: 0.1932561002 | BG45: 2022 | BH45: 5.773333251 | BI45: -0.4442929458 | BJ45: -0.5875140045
C46: 1976-03-01 | D46: 1976 | E46: FALSE | F46: FALSE | G46: FALSE | H46: =H45+G46 -> 2 | I46: 11.51000023 | J46: 66.90478765 | K46: -0.004900364025 | L46: -0.004912410179 | N46: 2011 | O46: 160.8987512 | P46: 0.3506811883 | Q46: =LN(O46/O45) -> 0.3006090491 | Z46: 1988-03-01 | AA46: 0.2759598792 | AB46: 1988 | AC46: FALSE | AD46: FALSE | AE46: FALSE | AF46: 1 | AG46: -0.06793313405 | AH46: -0.07035072229 | AJ46: 2023 | AK46: 173.5598501 | AL46: 0.147435316 | AM46: 0.1375292919 | AV46: 2002-04-01 | AW46: 2.950000048 | AX46: 2002 | AY46: FALSE | AZ46: FALSE | BA46: FALSE | BB46: 1 | BC46: -0.3626214905 | BD46: -0.4503915934 | BG46: 2023 | BH46: 4.470000009 | BI46: -0.2257505649 | BJ46: -0.2558611897
C47: 1976-04-01 | D47: 1976 | E47: FALSE | F47: FALSE | G47: FALSE | H47: 2 | I47: 11.51000023 | J47: 66.57813068 | K47: -0.004882415397 | L47: -0.004894373325 | N47: 2012 | O47: 156.4420543 | P47: -0.02769876636 | Q47: =LN(O47/O46) -> -0.02808961138 | Z47: 1988-04-01 | AA47: 0.2828582525 | AB47: 1988 | AC47: FALSE | AD47: FALSE | AE47: FALSE | AF47: 1 | AG47: 0.0249977402 | AH47: 0.02469040791 | AJ47: 2024 | AK47: 207.729894 | AL47: 0.1968775839 | AM47: 0.1797161523 | AV47: 2002-05-01 | AW47: 2.519999981 | AX47: 2002 | AY47: FALSE | AZ47: FALSE | BA47: FALSE | BB47: 1 | BC47: -0.1457627321 | BD47: -0.1575462926 | BG47: 2024 | BH47: 2.699166636 | BI47: -0.3961595905 | BJ47: -0.5044453387
C48: 1976-05-01 | D48: 1976 | E48: FALSE | F48: FALSE | G48: FALSE | H48: 2 | I48: 11.51000023 | J48: 66.24506479 | K48: -0.005002632141 | L48: -0.005015187195 | N48: 2013 | O48: 148.7242739 | P48: -0.04933315695 | Q48: =LN(O48/O47) -> -0.05059160058 | Z48: 1988-05-01 | AA48: 0.2863085568 | AB48: 1988 | AC48: FALSE | AD48: FALSE | AE48: FALSE | AF48: 1 | AG48: 0.01219799754 | AH48: 0.01212420148 | AJ48: 2025 | AK48: 219.1406422 | AL48: 0.05493069844 | AM48: 0.05347507609 | AV48: 2002-06-01 | AW48: 1.896667004 | AX48: 2002 | AY48: FALSE | AZ48: FALSE | BA48: FALSE | BB48: 1 | BC48: -0.2473543579 | BD48: -0.2841607568 | BG48: 2025 | BH48: 4.030587524 | BI48: 0.4932710974 | BJ48: 0.4009690811
C49: 1976-06-01 | D49: 1976 | E49: FALSE | F49: FALSE | G49: FALSE | H49: 2 | I49: 11.60000038 | J49: 66.44121591 | K49: 0.00296099221 | L49: 0.002956617107 | N49: 2014 | O49: 127.114047 | P49: -0.1453039663 | Q49: =LN(O49/O48) -> -0.1570093894 | Z49: 1988-06-01 | AA49: 0.3197095096 | AB49: 1988 | AC49: FALSE | AD49: FALSE | AE49: FALSE | AF49: 1 | AG49: 0.1166606866 | AH49: 0.1103427019 | AV49: 2002-07-01 | AW49: 1.956666946 | AX49: 2002 | AY49: FALSE | AZ49: FALSE | BA49: FALSE | BB49: 1 | BC49: 0.03163441061 | BD49: 0.03114435101
C50: 1976-07-01 | D50: 1976 | E50: FALSE | F50: FALSE | G50: FALSE | H50: 2 | I50: 11.60000038 | J50: 66.15324763 | K50: -0.004334181284 | L50: -0.004343601076 | N50: 2015 | O50: 68.33370359 | P50: -0.462422091 | Q50: =LN(O50/O49) -> -0.6206815825 | Z50: 1988-07-01 | AA50: 0.3067481518 | AB50: 1988 | AC50: FALSE | AD50: FALSE | AE50: FALSE | AF50: 1 | AG50: -0.04054104568 | AH50: -0.04138574264 | AV50: 2002-08-01 | AW50: 1.766667008 | AX50: 2002 | AY50: FALSE | AZ50: FALSE | BA50: FALSE | BB50: 1 | BC50: -0.09710387266 | BD50: -0.1021477628
C51: 1976-08-01 | D51: 1976 | E51: FALSE | F51: FALSE | G51: FALSE | H51: 2 | I51: 11.60000038 | J51: 65.84788513 | K51: -0.004615986514 | L51: -0.004626673079 | N51: 2016 | O51: 61.32156149 | P51: -0.1026161576 | Q51: =LN(O51/O50) -> -0.1082715906 | Z51: 1988-08-01 | AA51: 0.2756417394 | AB51: 1988 | AC51: FALSE | AD51: FALSE | AE51: FALSE | AF51: 1 | AG51: -0.1014070084 | AH51: -0.1069250816 | AV51: 2002-09-01 | AW51: 1.570000052 | AX51: 2002 | AY51: FALSE | AZ51: FALSE | BA51: FALSE | BB51: 1 | BC51: -0.1113208969 | BD51: -0.1180190726
C52: 1976-09-01 | D52: 1976 | E52: FALSE | F52: FALSE | G52: FALSE | H52: 2 | I52: 11.89999962 | J52: 67.2504129 | K52: 0.02129951125 | L52: 0.02107584704 | N52: 2017 | O52: 72.64155245 | P52: 0.1846005007 | Q52: =LN(O52/O51) -> 0.1694055875 | Z52: 1988-09-01 | AA52: 0.2995356321 | AB52: 1988 | AC52: FALSE | AD52: FALSE | AE52: FALSE | AF52: 1 | AG52: 0.08668459581 | AH52: 0.08313140578 | AV52: 2002-10-01 | AW52: 2.083333015 | AX52: 2002 | AY52: FALSE | AZ52: FALSE | BA52: FALSE | BB52: 1 | BC52: 0.3269636598 | BD52: 0.2828933697
C53: 1976-10-01 | D53: 1976 | E53: FALSE | F53: FALSE | G53: FALSE | H53: 2 | I53: 11.89999962 | J53: 66.95290679 | K53: -0.004423855567 | L53: -0.004433669771 | N53: 2018 | O53: 89.87528803 | P53: 0.2372434922 | Q53: =LN(O53/O52) -> 0.2128859149 | Z53: 1988-10-01 | AA53: 0.2675041854 | AB53: 1988 | AC53: FALSE | AD53: FALSE | AE53: FALSE | AF53: 1 | AG53: -0.106937016 | AH53: -0.1130981698 | AV53: 2002-11-01 | AW53: 2.546667099 | AX53: 2002 | AY53: FALSE | AZ53: FALSE | BA53: FALSE | BB53: 1 | BC53: 0.222400394 | BD53: 0.2008164618
C54: 1976-11-01 | D54: 1976 | E54: FALSE | F54: FALSE | G54: FALSE | H54: 2 | I54: 11.89999962 | J54: 66.6874634 | K54: -0.00396462828 | L54: -0.003972508253 | N54: 2019 | O54: 80.70176194 | P54: -0.1020695042 | Q54: =LN(O54/O53) -> -0.1076626125 | Z54: 1988-11-01 | AA54: 0.2605787516 | AB54: 1988 | AC54: FALSE | AD54: FALSE | AE54: FALSE | AF54: 1 | AG54: -0.02588906735 | AH54: -0.02623008794 | AV54: 2002-12-01 | AW54: 2.186666965 | AX54: 2002 | AY54: FALSE | AZ54: FALSE | BA54: FALSE | BB54: 1 | BC54: -0.141361285 | BD54: -0.1524070333
C55: 1976-12-01 | D55: 1976 | E55: FALSE | F55: FALSE | G55: FALSE | H55: 2 | I55: 12.5 | J55: 69.77311255 | K55: 0.04627030319 | L55: 0.04523174831 | N55: 2020 | O55: 51.23413828 | P55: -0.365142259 | Q55: =LN(O55/O54) -> -0.4543543351 | Z55: 1988-12-01 | AA55: 0.2794940472 | AB55: 1988 | AC55: FALSE | AD55: FALSE | AE55: FALSE | AF55: 1 | AG55: 0.07258955493 | AH55: 0.07007586944 | AV55: 2003-01-01 | AW55: 2.126667023 | AX55: 2003 | AY55: FALSE | AZ55: TRUE | BA55: FALSE | BB55: 1 | BC55: -0.02743899447 | BD55: -0.02782247484
C56: 1977-01-01 | D56: 1977 | E56: FALSE | F56: TRUE | G56: FALSE | H56: 2 | I56: 12.5 | J56: 69.47811189 | K56: -0.004227999219 | L56: -0.004236962481 | N56: 2021 | O56: 87.73571784 | P56: 0.7124464426 | Q56: =LN(O56/O55) -> 0.5379230163 | Z56: 1989-01-01 | AA56: 0.2621345222 | AB56: 1989 | AC56: FALSE | AD56: TRUE | AE56: FALSE | AF56: 1 | AG56: -0.0621105356 | AH56: -0.06412317871 | AV56: 2003-02-01 | AW56: 2.116667032 | AX56: 2003 | AY56: FALSE | AZ56: FALSE | BA56: FALSE | BB56: 1 | BC56: -0.004702189086 | BD56: -0.004713279156
C57: 1977-02-01 | D57: 1977 | E57: FALSE | F57: FALSE | G57: FALSE | H57: 2 | I57: 12.5 | J57: 69.1462397 | K57: -0.004776643695 | L57: -0.004788088316 | N57: 2022 | O57: 112.1891131 | P57: 0.2787165346 | Q57: =LN(O57/O56) -> 0.2458568676 | Z57: 1989-02-01 | AA57: 0.2517184615 | AB57: 1989 | AC57: FALSE | AD57: FALSE | AE57: FALSE | AF57: 1 | AG57: -0.03973555485 | AH57: -0.04054656876 | AV57: 2003-03-01 | AW57: 2.176666975 | AX57: 2003 | AY57: FALSE | AZ57: FALSE | BA57: FALSE | BB57: 1 | BC57: 0.02834642476 | BD57: 0.02795209933
C58: 1977-03-01 | D58: 1977 | E58: FALSE | F58: FALSE | G58: FALSE | H58: 2 | I58: 12.44999981 | J58: 68.51239285 | K58: -0.009166758165 | L58: -0.00920903143 | N58: 2023 | O58: 87.24352506 | P58: -0.2223530192 | Q58: =LN(O58/O57) -> -0.25148261 | Z58: 1989-03-01 | AA58: 0.2480600178 | AB58: 1989 | AC58: FALSE | AD58: FALSE | AE58: FALSE | AF58: 1 | AG58: -0.01453387116 | AH58: -0.0146405225 | AV58: 2003-04-01 | AW58: 2.601666927 | AX58: 2003 | AY58: FALSE | AZ58: FALSE | BA58: FALSE | BB58: 1 | BC58: 0.1952526304 | BD58: 0.1783575692
C59: 1977-04-01 | D59: 1977 | E59: FALSE | F59: FALSE | G59: FALSE | H59: 2 | I59: 12.44999981 | J59: 68.12974602 | K59: -0.005585074563 | L59: -0.005600729408 | N59: 2024 | O59: 82.7030776 | P59: -0.05204337467 | Q59: =LN(O59/O58) -> -0.05344653164 | Z59: 1989-04-01 | AA59: 0.2715605497 | AB59: 1989 | AC59: FALSE | AD59: FALSE | AE59: FALSE | AF59: 1 | AG59: 0.0947372822 | AH59: 0.09051440955 | AV59: 2003-05-01 | AW59: 3.170000076 | AX59: 2003 | AY59: FALSE | AZ59: FALSE | BA59: FALSE | BB59: 1 | BC59: 0.218449619 | BD59: 0.1975792465
C60: 1977-05-01 | D60: 1977 | E60: FALSE | F60: FALSE | G60: FALSE | H60: 2 | I60: 12.44999981 | J60: 67.76119107 | K60: -0.005409604128 | L60: -0.00542428902 | N60: 2025 | O60: 70.69453524 | P60: -0.1452006709 | Q60: =LN(O60/O59) -> -0.1568885405 | Z60: 1989-05-01 | AA60: 0.3324875832 | AB60: 1989 | AC60: FALSE | AD60: FALSE | AE60: FALSE | AF60: 1 | AG60: 0.2243589265 | AH60: 0.2024173817 | AV60: 2003-06-01 | AW60: 3.603332996 | AX60: 2003 | AY60: FALSE | AZ60: FALSE | BA60: FALSE | BB60: 1 | BC60: 0.1366980788 | BD60: 0.1281276375
C61: 1977-06-01 | D61: 1977 | E61: FALSE | F61: FALSE | G61: FALSE | H61: 2 | I61: 12.63000011 | J61: 68.36151487 | K61: 0.008859404545 | L61: 0.00882039028 | Z61: 1989-06-01 | AA61: 0.2878572643 | AB61: 1989 | AC61: FALSE | AD61: FALSE | AE61: FALSE | AF61: 1 | AG61: -0.1342315357 | AH61: -0.1441377684 | AV61: 2003-07-01 | AW61: 4.013332844 | AX61: 2003 | AY61: FALSE | AZ61: FALSE | BA61: FALSE | BB61: 1 | BC61: 0.1137835021 | BD61: 0.1077627798
C62: 1977-07-01 | D62: 1977 | E62: FALSE | F62: FALSE | G62: FALSE | H62: 2 | I62: 12.63000011 | J62: 67.98616349 | K62: -0.005490682628 | L62: -0.005505811831 | Z62: 1989-07-01 | AA62: 0.2773897648 | AB62: 1989 | AC62: FALSE | AD62: FALSE | AE62: FALSE | AF62: 1 | AG62: -0.03636350648 | AH62: -0.03704113689 | AV62: 2003-08-01 | AW62: 4.746666908 | AX62: 2003 | AY62: FALSE | AZ62: FALSE | BA62: FALSE | BB62: 1 | BC62: 0.182724457 | BD62: 0.167820639
C63: 1977-08-01 | D63: 1977 | E63: FALSE | F63: FALSE | G63: FALSE | H63: 2 | I63: 12.63000011 | J63: 67.62395602 | K63: -0.005327664523 | L63: -0.005341907136 | Z63: 1989-08-01 | AA63: 0.3105362952 | AB63: 1989 | AC63: FALSE | AD63: FALSE | AE63: FALSE | AF63: 1 | AG63: 0.1194944248 | AH63: 0.112877177 | AV63: 2003-09-01 | AW63: 6.366666794 | AX63: 2003 | AY63: FALSE | AZ63: FALSE | BA63: FALSE | BB63: 1 | BC63: 0.3412920934 | BD63: 0.2936333981
C64: 1977-09-01 | D64: 1977 | E64: FALSE | F64: FALSE | G64: FALSE | H64: 2 | I64: 12.68000031 | J64: 67.53117804 | K64: -0.001371969116 | L64: -0.001372911127 | Z64: 1989-09-01 | AA64: 0.3112731874 | AB64: 1989 | AC64: FALSE | AD64: FALSE | AE64: FALSE | AF64: 1 | AG64: 0.002372966493 | AH64: 0.002370155454 | AV64: 2003-10-01 | AW64: 7.353332996 | AX64: 2003 | AY64: FALSE | AZ64: FALSE | BA64: FALSE | BB64: 1 | BC64: 0.154973746 | BD64: 0.144077613
C65: 1977-10-01 | D65: 1977 | E65: FALSE | F65: FALSE | G65: FALSE | H65: 2 | I65: 12.68000031 | J65: 67.18347757 | K65: -0.005148739943 | L65: -0.005162040378 | Z65: 1989-10-01 | AA65: 0.3252635896 | AB65: 1989 | AC65: FALSE | AD65: FALSE | AE65: FALSE | AF65: 1 | AG65: 0.04494573509 | AH65: 0.04396495593 | AV65: 2003-11-01 | AW65: 7.614999771 | AX65: 2003 | AY65: FALSE | AZ65: FALSE | BA65: FALSE | BB65: 1 | BC65: 0.03558478514 | BD65: 0.03496627696
C66: 1977-11-01 | D66: 1977 | E66: FALSE | F66: FALSE | G66: FALSE | H66: 2 | I66: 12.68000031 | J66: 66.82012117 | K66: -0.005408419036 | L66: -0.005423097483 | Z66: 1989-11-01 | AA66: 0.3095247447 | AB66: 1989 | AC66: FALSE | AD66: FALSE | AE66: FALSE | AF66: 1 | AG66: -0.04838797017 | AH66: -0.04959785894 | AV66: 2003-12-01 | AW66: 11.13833332 | AX66: 2003 | AY66: FALSE | AZ66: FALSE | BA66: FALSE | BB66: 1 | BC66: 0.4626833428 | BD66: 0.3802726549
C67: 1977-12-01 | D67: 1977 | E67: FALSE | F67: FALSE | G67: FALSE | H67: 2 | I67: 12.65999985 | J67: 66.3551004 | K67: -0.006959292504 | L67: -0.00698362132 | Z67: 1989-12-01 | AA67: 0.2471779734 | AB67: 1989 | AC67: FALSE | AD67: FALSE | AE67: FALSE | AF67: 1 | AG67: -0.2014274219 | AH67: -0.2249294225 | AV67: 2004-01-01 | AW67: 14.50333309 | AX67: 2004 | AY67: FALSE | AZ67: TRUE | BA67: FALSE | BB67: 1 | BC67: 0.3021098107 | BD67: 0.2639858803
C68: 1978-01-01 | D68: 1978 | E68: FALSE | F68: TRUE | G68: FALSE | H68: 2 | I68: 12.65999985 | J68: 65.99038031 | K68: -0.005496489058 | L68: -0.005511650335 | Z68: 1990-01-01 | AA68: 0.2384125143 | AB68: 1990 | AC68: TRUE | AD68: TRUE | AE68: TRUE | AF68: 2 | AG68: -0.03546213662 | AH68: -0.0361061904 | AV68: 2004-02-01 | AW68: 16.48333359 | AX68: 2004 | AY68: FALSE | AZ68: FALSE | BA68: FALSE | BB68: 1 | BC68: 0.1365203766 | BD68: 0.1279712934
C69: 1978-02-01 | D69: 1978 | E69: FALSE | F69: FALSE | G69: FALSE | H69: 2 | I69: 12.65999985 | J69: 65.64858468 | K69: -0.005179476595 | L69: -0.005192936581 | Z69: 1990-02-01 | AA69: 0.2384125143 | AB69: 1990 | AC69: TRUE | AD69: FALSE | AE69: FALSE | AF69: 2 | AG69: 0 | AH69: 0 | AV69: 2004-03-01 | AW69: 15.55500031 | AX69: 2004 | AY69: FALSE | AZ69: FALSE | BA69: FALSE | BB69: 1 | BC69: -0.05631951071 | BD69: -0.05796763486
C70: 1978-03-01 | D70: 1978 | E70: FALSE | F70: FALSE | G70: FALSE | H70: 2 | I70: 12.68000031 | J70: 65.40534489 | K70: -0.003705179598 | L70: -0.003712060779 | Z70: 1990-03-01 | AA70: 0.2831481397 | AB70: 1990 | AC70: TRUE | AD70: FALSE | AE70: FALSE | AF70: 2 | AG70: 0.1876395856 | AH70: 0.1719677958 | AV70: 2004-04-01 | AW70: 14.51666737 | AX70: 2004 | AY70: FALSE | AZ70: FALSE | BA70: FALSE | BB70: 1 | BC70: -0.06675235736 | BD70: -0.06908468716
C71: 1978-04-01 | D71: 1978 | E71: FALSE | F71: FALSE | G71: FALSE | H71: 2 | I71: 12.69999981 | J71: 65.16562374 | K71: -0.003665161399 | L71: -0.003671894561 | Z71: 1990-04-01 | AA71: 0.2769929469 | AB71: 1990 | AC71: TRUE | AD71: FALSE | AE71: FALSE | AF71: 2 | AG71: -0.02173841883 | AH71: -0.0219781793 | AV71: 2004-05-01 | AW71: 19.98833275 | AX71: 2004 | AY71: FALSE | AZ71: FALSE | BA71: FALSE | BB71: 1 | BC71: 0.3769229703 | BD71: 0.3198512779
C72: 1978-05-01 | D72: 1978 | E72: FALSE | F72: FALSE | G72: FALSE | H72: 2 | I72: 12.72999954 | J72: 64.95406915 | K72: -0.00324641404 | L72: -0.003251695075 | Z72: 1990-05-01 | AA72: 0.2901831269 | AB72: 1990 | AC72: TRUE | AD72: FALSE | AE72: FALSE | AF72: 2 | AG72: 0.04761919108 | AH72: 0.04652015257 | AV72: 2004-06-01 | AW72: 22.81666756 | AX72: 2004 | AY72: FALSE | AZ72: FALSE | BA72: FALSE | BB72: 1 | BC72: 0.1414992858 | BD72: 0.1323425613
C73: 1978-06-01 | D73: 1978 | E73: FALSE | F73: FALSE | G73: FALSE | H73: 2 | I73: 12.77000046 | J73: 64.77100654 | K73: -0.002818339248 | L73: -0.002822318244 | Z73: 1990-06-01 | AA73: 0.3156781495 | AB73: =YEAR(Z73) -> 1990 | AC73: =MOD(AB73,5)=0 -> TRUE | AD73: =MONTH(Z73)=1 -> FALSE | AE73: =AND(AD73,AC73) -> FALSE | AF73: 2 | AG73: 0.08785839068 | AH73: 0.08421098434 | AV73: 2004-07-01 | AW73: 20.55666733 | AX73: =YEAR(AV73) -> 2004 | AY73: =MOD(AX73,5)=0 -> FALSE | AZ73: =MONTH(AV73)=1 -> FALSE | BA73: =AND(AZ73,AY73) -> FALSE | BB73: =BA73+BB72 -> 1 | BC73: -0.09905040792 | BD73: -0.1043059696
C74: 1978-07-01 | D74: 1978 | E74: FALSE | F74: FALSE | G74: FALSE | H74: 2 | I74: 12.78999996 | J74: 64.47242147 | K74: =J74/J73-1 -> -0.004609856876 | L74: =LN(J74/J73) -> -0.004620515034 | Z74: 1990-07-01 | AA74: 0.2962786257 | AB74: 1990 | AC74: TRUE | AD74: FALSE | AE74: FALSE | AF74: =AF73+AE74 -> 2 | AG74: =AA74/AA73-1 -> -0.06145348916 | AH74: =LN(AA74/AA73) -> -0.06342286548 | AV74: 2004-08-01 | AW74: 20.07333374 | AX74: 2004 | AY74: FALSE | AZ74: FALSE | BA74: FALSE | BB74: 1 | BC74: =AW74/AW73-1 -> -0.0235122542 | BD74: =LN(AW74/AW73) -> -0.02379307784
C75: 1978-08-01 | D75: 1978 | E75: FALSE | F75: FALSE | G75: FALSE | H75: 2 | I75: 12.80000019 | J75: 64.118109 | K75: -0.005495566448 | L75: -0.005510722627 | Z75: 1990-08-01 | AA75: 0.2610072196 | AB75: 1990 | AC75: TRUE | AD75: FALSE | AE75: FALSE | AF75: 2 | AG75: -0.1190480956 | AH75: -0.1267522466 | AV75: 2004-09-01 | AW75: 25.44666672 | AX75: 2004 | AY75: FALSE | AZ75: FALSE | BA75: FALSE | BB75: 1 | BC75: 0.2676851313 | BD75: 0.237192506
C76: 1978-09-01 | D76: 1978 | E76: FALSE | F76: FALSE | G76: FALSE | H76: 2 | I76: 12.85000038 | J76: 63.94198246 | K76: -0.002746907891 | L76: -0.002750687565 | Z76: 1990-09-01 | AA76: 0.205191955 | AB76: 1990 | AC76: TRUE | AD76: FALSE | AE76: FALSE | AF76: 2 | AG76: -0.2138456732 | AH76: -0.2406021613 | AV76: 2004-10-01 | AW76: 29.39999962 | AX76: 2004 | AY76: FALSE | AZ76: FALSE | BA76: FALSE | BB76: 1 | BC76: 0.1553575934 | BD76: 0.1444099007
C77: 1978-10-01 | D77: 1978 | E77: FALSE | F77: FALSE | G77: FALSE | H77: 2 | I77: 13.19999981 | J77: 65.21713714 | K77: 0.0199423702 | L77: 0.01974612589 | Z77: 1990-10-01 | AA77: 0.2175742686 | AB77: 1990 | AC77: TRUE | AD77: FALSE | AE77: FALSE | AF77: 2 | AG77: 0.06034502479 | AH77: 0.05859435025 | AV77: 2004-11-01 | AW77: 29.65666771 | AX77: 2004 | AY77: FALSE | AZ77: FALSE | BA77: FALSE | BB77: 1 | BC77: 0.008730207284 | BD77: 0.008692319378
C78: 1978-11-01 | D78: 1978 | E78: FALSE | F78: FALSE | G78: FALSE | H78: 2 | I78: 14.5 | J78: 71.13364074 | K78: 0.09072007529 | L78: 0.08683809766 | Z78: 1990-11-01 | AA78: 0.2600272596 | AB78: 1990 | AC78: TRUE | AD78: FALSE | AE78: FALSE | AF78: 2 | AG78: 0.1951195391 | AH78: 0.1782462131 | AV78: 2004-12-01 | AW78: 27.47333336 | AX78: 2004 | AY78: FALSE | AZ78: FALSE | BA78: FALSE | BB78: 1 | BC78: -0.07362035317 | BD78: -0.07647114258
C79: 1978-12-01 | D79: 1978 | E79: FALSE | F79: FALSE | G79: FALSE | H79: 2 | I79: 17.45000029 | J79: 92.29783431 | K79: 0.2975272087 | L79: 0.260460306 | Z79: 1990-12-01 | AA79: 0.3052670956 | AB79: 1990 | AC79: TRUE | AD79: FALSE | AE79: FALSE | AF79: 2 | AG79: 0.1739811282 | AH79: 0.1604006465 | AV79: 2005-01-01 | AW79: 23.76333237 | AX79: 2005 | AY79: TRUE | AZ79: TRUE | BA79: TRUE | BB79: 2 | BC79: -0.1350400748 | BD79: -0.1450721024
C80: 1979-01-01 | D80: 1979 | E80: FALSE | F80: TRUE | G80: FALSE | H80: 2 | I80: 20.75 | J80: 106.3636509 | K80: 0.1523959549 | L80: 0.1418432141 | Z80: 1991-01-01 | AA80: 0.394007355 | AB80: 1991 | AC80: FALSE | AD80: TRUE | AE80: FALSE | AF80: 2 | AG80: 0.2906971 | AH80: 0.25518246 | AV80: 2005-02-01 | AW80: 22.03666687 | AX80: 2005 | AY80: TRUE | AZ80: FALSE | BA80: FALSE | BB80: 2 | BC80: -0.07266091599 | BD80: -0.07543599388
C81: 1979-02-01 | D81: 1979 | E81: FALSE | F81: FALSE | G81: FALSE | H81: 2 | I81: 22.02499962 | J81: 111.5298785 | K81: 0.04857136399 | L81: 0.04742863198 | Z81: 1991-02-01 | AA81: 0.4064310193 | AB81: 1991 | AC81: FALSE | AD81: FALSE | AE81: FALSE | AF81: 2 | AG81: 0.03153155436 | AH81: 0.03104464381 | AV81: 2005-03-01 | AW81: 25.47333336 | AX81: 2005 | AY81: TRUE | AZ81: FALSE | BA81: FALSE | BB81: 2 | BC81: 0.1559521914 | BD81: 0.1449244124
C82: 1979-03-01 | D82: 1979 | E82: FALSE | F82: FALSE | G82: FALSE | H82: 2 | I82: 22.42500019 | J82: 112.5431056 | K82: 0.009084804237 | L82: 0.009043785646 | Z82: 1991-03-01 | AA82: 0.4837635159 | AB82: 1991 | AC82: FALSE | AD82: FALSE | AE82: FALSE | AF82: 2 | AG82: 0.1902721322 | AH82: 0.1741819635 | AV82: 2005-04-01 | AW82: 21.46999931 | AX82: 2005 | AY82: TRUE | AZ82: FALSE | BA82: FALSE | BB82: 2 | BC82: -0.1571578399 | BD82: -0.1709755744
C83: 1979-04-01 | D83: 1979 | E83: FALSE | F83: FALSE | G83: FALSE | H83: 2 | I83: 33.5 | J83: 154.5576155 | K83: 0.373319269 | L83: 0.3172306336 | Z83: 1991-04-01 | AA83: 0.3912786841 | AB83: 1991 | AC83: FALSE | AD83: FALSE | AE83: FALSE | AF83: 2 | AG83: -0.1911777734 | AH83: -0.2121761306 | AV83: 2005-05-01 | AW83: 27.60666656 | AX83: 2005 | AY83: TRUE | AZ83: FALSE | BA83: FALSE | BB83: 2 | BC83: 0.2858252188 | BD83: 0.2514007059
C84: 1979-05-01 | D84: 1979 | E84: FALSE | F84: FALSE | G84: FALSE | H84: 2 | I84: 34.67499924 | J84: 170.7823989 | K84: 0.1049756318 | L84: 0.09982328207 | Z84: 1991-05-01 | AA84: 0.3343659043 | AB84: 1991 | AC84: FALSE | AD84: FALSE | AE84: FALSE | AF84: 2 | AG84: -0.1454533102 | AH84: -0.157184138 | AV84: 2005-06-01 | AW84: 24.59666634 | AX84: 2005 | AY84: TRUE | AZ84: FALSE | BA84: FALSE | BB84: 2 | BC84: -0.1090316436 | BD84: -0.1154463668
C85: 1979-06-01 | D85: 1979 | E85: FALSE | F85: FALSE | G85: FALSE | H85: 2 | I85: 33.5 | J85: 162.3593851 | K85: -0.04932015154 | L85: -0.05057792037 | Z85: 1991-06-01 | AA85: 0.2959936261 | AB85: 1991 | AC85: FALSE | AD85: FALSE | AE85: FALSE | AF85: 2 | AG85: -0.114761337 | AH85: -0.1218979946 | AV85: 2005-07-01 | AW85: 23.55333328 | AX85: 2005 | AY85: TRUE | AZ85: FALSE | BA85: FALSE | BB85: 2 | BC85: -0.04241766097 | BD85: -0.04334356786
C86: 1979-07-01 | D86: 1979 | E86: FALSE | F86: FALSE | G86: FALSE | H86: 2 | I86: 34 | J86: 164.3700668 | K86: 0.01238414234 | L86: 0.01230808613 | Z86: 1991-07-01 | AA86: 0.3298716843 | AB86: 1991 | AC86: FALSE | AD86: FALSE | AE86: FALSE | AF86: 2 | AG86: 0.1144553639 | AH86: 0.1083658227 | AV86: 2005-08-01 | AW86: 26.10000038 | AX86: 2005 | AY86: TRUE | AZ86: FALSE | BA86: FALSE | BB86: 2 | BC86: 0.1081234265 | BD86: 0.1026679778
C87: 1979-08-01 | D87: 1979 | E87: FALSE | F87: FALSE | G87: FALSE | H87: 2 | I87: 35.5 | J87: 166.2634732 | K87: 0.01151916748 | L87: 0.01145332701 | Z87: 1991-08-01 | AA87: 0.378015399 | AB87: 1991 | AC87: FALSE | AD87: FALSE | AE87: FALSE | AF87: 2 | AG87: 0.1459467937 | AH87: 0.1362311894 | AV87: 2005-09-01 | AW87: 22.76666641 | AX87: 2005 | AY87: TRUE | AZ87: FALSE | BA87: FALSE | BB87: 2 | BC87: -0.1277139433 | BD87: -0.1366378622
C88: 1979-09-01 | D88: 1979 | E88: FALSE | F88: FALSE | G88: FALSE | H88: 2 | I88: 37.25 | J88: 173.7020519 | K88: 0.04473970498 | L88: 0.04376776825 | Z88: 1991-09-01 | AA88: 0.353849113 | AB88: 1991 | AC88: FALSE | AD88: FALSE | AE88: FALSE | AF88: 2 | AG88: -0.06392936917 | AH88: -0.06606434506 | AV88: 2005-10-01 | AW88: 20.49666786 | AX88: 2005 | AY88: TRUE | AZ88: FALSE | BA88: FALSE | BB88: 2 | BC88: -0.09970711167 | BD88: -0.1050351371
C89: 1979-10-01 | D89: 1979 | E89: FALSE | F89: FALSE | G89: FALSE | H89: 2 | I89: 40.75 | J89: 187.7019991 | K89: 0.0805974771 | L89: 0.07751410771 | Z89: 1991-10-01 | AA89: 0.3681459129 | AB89: 1991 | AC89: FALSE | AD89: FALSE | AE89: FALSE | AF89: 2 | AG89: 0.04040366182 | AH89: 0.03960877422 | AV89: 2005-11-01 | AW89: 20.37666702 | AX89: 2005 | AY89: TRUE | AZ89: FALSE | BA89: FALSE | BB89: 2 | BC89: -0.005854651109 | BD89: -0.005871856767
C90: 1979-11-01 | D90: 1979 | E90: FALSE | F90: FALSE | G90: FALSE | H90: 2 | I90: 39.75 | J90: 179.2157357 | K90: -0.0452113635 | L90: -0.04626528603 | Z90: 1991-11-01 | AA90: 0.3627850115 | AB90: 1991 | AC90: FALSE | AD90: FALSE | AE90: FALSE | AF90: 2 | AG90: -0.0145618929 | AH90: -0.01466895792 | AV90: 2005-12-01 | AW90: 22.00333214 | AX90: 2005 | AY90: TRUE | AZ90: FALSE | BA90: FALSE | BB90: 2 | BC90: 0.07982979324 | BD90: 0.07680342986
C91: 1979-12-01 | D91: 1979 | E91: FALSE | F91: FALSE | G91: FALSE | H91: 2 | I91: 39 | J91: 175.1716756 | K91: -0.02256531834 | L91: -0.02282381119 | Z91: 1991-12-01 | AA91: 0.4039639533 | AB91: 1991 | AC91: FALSE | AD91: FALSE | AE91: FALSE | AF91: 2 | AG91: 0.1135078364 | AH91: 0.1075152453 | AV91: 2006-01-01 | AW91: 22.51000023 | AX91: 2006 | AY91: FALSE | AZ91: TRUE | BA91: FALSE | BB91: 2 | BC91: 0.02302688009 | BD91: 0.02276576238
C92: 1980-01-01 | D92: 1980 | E92: TRUE | F92: TRUE | G92: TRUE | H92: 3 | I92: 37.25 | J92: 166.7828468 | K92: -0.04788918495 | L92: -0.0490738486 | Z92: 1992-01-01 | AA92: 0.4639768004 | AB92: 1992 | AC92: FALSE | AD92: TRUE | AE92: FALSE | AF92: 2 | AG92: 0.1485599066 | AH92: 0.1385089026 | AV92: 2006-02-01 | AW92: 23.51000023 | AX92: 2006 | AY92: FALSE | AZ92: FALSE | BA92: FALSE | BB92: 2 | BC92: 0.04442469968 | BD92: 0.0434662072
C93: 1980-02-01 | D93: 1980 | E93: TRUE | F93: FALSE | G93: FALSE | H93: 3 | I93: 37 | J93: 163.8785758 | K93: -0.0174134877 | L93: -0.01756688588 | Z93: 1992-02-01 | AA93: 0.4836826026 | AB93: 1992 | AC93: FALSE | AD93: FALSE | AE93: FALSE | AF93: 2 | AG93: 0.04247152483 | AH93: 0.04159436001 | AV93: 2006-03-01 | AW93: 28.29333305 | AX93: 2006 | AY93: FALSE | AZ93: FALSE | BA93: FALSE | BB93: 2 | BC93: 0.2034594972 | BD93: 0.1852003235
C94: 1980-03-01 | D94: 1980 | E94: TRUE | F94: FALSE | G94: FALSE | H94: 3 | I94: 36.57500076 | J94: 161.5860541 | K94: -0.01398914807 | L94: -0.01408791842 | Z94: 1992-03-01 | AA94: 0.4181803763 | AB94: 1992 | AC94: FALSE | AD94: FALSE | AE94: FALSE | AF94: 2 | AG94: -0.1354239867 | AH94: -0.1455160503 | AV94: 2006-04-01 | AW94: 25.54333305 | AX94: 2006 | AY94: FALSE | AZ94: FALSE | BA94: FALSE | BB94: 2 | BC94: -0.09719604243 | BD94: -0.1022498504
C95: 1980-04-01 | D95: 1980 | E95: TRUE | F95: FALSE | G95: FALSE | H95: 3 | I95: 37.04999924 | J95: 161.2117473 | K95: -0.0023164548 | L95: -0.002319141932 | Z95: 1992-04-01 | AA95: 0.4316408932 | AB95: 1992 | AC95: FALSE | AD95: FALSE | AE95: FALSE | AF95: 2 | AG95: 0.03218830364 | AH95: 0.03168111519 | AV95: 2006-05-01 | AW95: 21.62999916 | AX95: 2006 | AY95: FALSE | AZ95: FALSE | BA95: FALSE | BB95: 2 | BC95: -0.1532037297 | BD95: -0.1662951442
C96: 1980-05-01 | D96: 1980 | E96: TRUE | F96: FALSE | G96: FALSE | H96: 3 | I96: 37 | J96: 157.3435515 | K96: -0.02399450375 | L96: -0.02428706118 | Z96: 1992-05-01 | AA96: 0.4289490283 | AB96: 1992 | AC96: FALSE | AD96: FALSE | AE96: FALSE | AF96: 2 | AG96: -0.006236352972 | AH96: -0.00625588025 | AV96: 2006-06-01 | AW96: 23.25666618 | AX96: 2006 | AY96: FALSE | AZ96: FALSE | BA96: FALSE | BB96: 2 | BC96: 0.07520421109 | BD96: 0.07251060734
C97: 1980-06-01 | D97: 1980 | E97: TRUE | F97: FALSE | G97: FALSE | H97: 3 | I97: 35.375 | J97: 153.1344973 | K97: -0.02675072555 | L97: -0.02711503798 | Z97: 1992-06-01 | AA97: 0.3445949256 | AB97: 1992 | AC97: FALSE | AD97: FALSE | AE97: FALSE | AF97: 2 | AG97: -0.1966529752 | AH97: -0.218968498 | AV97: 2006-07-01 | AW97: 21.87666702 | AX97: 2006 | AY97: FALSE | AZ97: FALSE | BA97: FALSE | BB97: 2 | BC97: -0.05933778943 | BD97: -0.06117117241
C98: 1980-07-01 | D98: 1980 | E98: TRUE | F98: FALSE | G98: FALSE | H98: 3 | I98: 32.94999886 | J98: 136.1679802 | K98: -0.1107948724 | L98: -0.1174273303 | Z98: 1992-07-01 | AA98: 0.3362965584 | AB98: 1992 | AC98: FALSE | AD98: FALSE | AE98: FALSE | AF98: 2 | AG98: -0.02408151323 | AH98: -0.02437621371 | AV98: 2006-08-01 | AW98: 27.5 | AX98: 2006 | AY98: FALSE | AZ98: FALSE | BA98: FALSE | BB98: 2 | BC98: 0.2570470617 | BD98: 0.2287653686
C99: 1980-08-01 | D99: 1980 | E99: TRUE | F99: FALSE | G99: FALSE | H99: 3 | I99: 32.82500076 | J99: 133.9984694 | K99: -0.01593260651 | L99: -0.01606089496 | Z99: 1992-08-01 | AA99: 0.3309011757 | AB99: 1992 | AC99: FALSE | AD99: FALSE | AE99: FALSE | AF99: 2 | AG99: -0.01604352619 | AH99: -0.01617361684 | AV99: 2006-09-01 | AW99: 34.21666718 | AX99: 2006 | AY99: FALSE | AZ99: FALSE | BA99: FALSE | BB99: 2 | BC99: 0.2442424427 | BD99: 0.218526865
C100: 1980-09-01 | D100: 1980 | E100: TRUE | F100: FALSE | G100: FALSE | H100: 3 | I100: 37.35000038 | J100: 150.5558166 | K100: 0.1235637045 | L100: 0.1165055129 | Z100: 1992-09-01 | AA100: 0.3254796267 | AB100: 1992 | AC100: FALSE | AD100: FALSE | AE100: FALSE | AF100: 2 | AG100: -0.01638419407 | AH100: -0.0165198993 | AV100: 2006-10-01 | AW100: 39.15999985 | AX100: 2006 | AY100: FALSE | AZ100: FALSE | BA100: FALSE | BB100: 2 | BC100: 0.1444714836 | BD100: 0.1349429441
C101: 1980-10-01 | D101: 1980 | E101: TRUE | F101: FALSE | G101: FALSE | H101: 3 | I101: 40.29999924 | J101: 160.6579376 | K101: 0.06709884229 | L101: 0.06494360373 | Z101: 1992-10-01 | AA101: 0.3786742389 | AB101: 1992 | AC101: FALSE | AD101: FALSE | AE101: FALSE | AF101: 2 | AG101: 0.1634345376 | AH101: 0.1513764388 | AV101: 2006-11-01 | AW101: 46.27666855 | AX101: 2006 | AY101: FALSE | AZ101: FALSE | BA101: FALSE | BB101: 2 | BC101: 0.1817331136 | BD101: 0.1669821013
C102: 1980-11-01 | D102: 1980 | E102: TRUE | F102: FALSE | G102: FALSE | H102: 3 | I102: 39.75 | J102: 156.3454864 | K102: -0.02684244109 | L102: -0.02720927886 | Z102: 1992-11-01 | AA102: 0.4147383869 | AB102: 1992 | AC102: FALSE | AD102: FALSE | AE102: FALSE | AF102: 2 | AG102: 0.09523792284 | AH102: 0.0909716208 | AV102: 2006-12-01 | AW102: 42.5933342 | AX102: 2006 | AY102: FALSE | AZ102: FALSE | BA102: FALSE | BB102: 2 | BC102: -0.07959376649 | BD102: -0.08294014824
C103: 1980-12-01 | D103: 1980 | E103: TRUE | F103: FALSE | G103: FALSE | H103: 3 | I103: 39.77499962 | J103: 155.3949375 | K103: -0.006079797325 | L103: -0.006098354547 | Z103: 1992-12-01 | AA103: 0.4318840206 | AB103: 1992 | AC103: FALSE | AD103: FALSE | AE103: FALSE | AF103: 2 | AG103: 0.04134084097 | AH103: 0.04050915293 | AV103: 2007-01-01 | AW103: 42.5933342 | AX103: 2007 | AY103: FALSE | AZ103: TRUE | BA103: FALSE | BB103: 2 | BC103: 0 | BD103: 0
C104: 1981-01-01 | D104: 1981 | E104: FALSE | F104: TRUE | G104: FALSE | H104: 3 | I104: 37.89999962 | J104: 147.8420008 | K104: -0.04860477965 | L104: -0.04982571881 | Z104: 1993-01-01 | AA104: 0.4300769866 | AB104: 1993 | AC104: FALSE | AD104: TRUE | AE104: FALSE | AF104: 2 | AG104: -0.004184072412 | AH104: -0.004192850136 | AV104: 2007-02-01 | AW104: 46.86999893 | AX104: 2007 | AY104: FALSE | AZ104: FALSE | BA104: FALSE | BB104: 2 | BC104: 0.100406902 | BD104: 0.09568002234
C105: 1981-02-01 | D105: 1981 | E105: FALSE | F105: FALSE | G105: FALSE | H105: 3 | I105: 37.59999847 | J105: 145.1920669 | K105: -0.01792409445 | L105: -0.01808667672 | Z105: 1993-02-01 | AA105: 0.3830938339 | AB105: 1993 | AC105: FALSE | AD105: FALSE | AE105: FALSE | AF105: 2 | AG105: -0.1092435868 | AH105: -0.1156842748 | AV105: 2007-03-01 | AW105: 45.49666595 | AX105: 2007 | AY105: FALSE | AZ105: FALSE | BA105: FALSE | BB105: 2 | BC105: -0.02930089628 | BD105: -0.0297387416
C106: 1981-03-01 | D106: 1981 | E106: FALSE | F106: FALSE | G106: FALSE | H106: 3 | I106: 36.36999893 | J106: 139.635058 | K106: -0.03827350179 | L106: -0.03902517413 | Z106: 1993-03-01 | AA106: 0.3730630577 | AB106: 1993 | AC106: FALSE | AD106: FALSE | AE106: FALSE | AF106: 2 | AG106: -0.02618360144 | AH106: -0.02653249562 | AV106: 2007-04-01 | AW106: 43.86000061 | AX106: 2007 | AY106: FALSE | AZ106: FALSE | BA106: FALSE | BB106: 2 | BC106: -0.03597330288 | BD106: -0.03663629064
C107: 1981-04-01 | D107: 1981 | E107: FALSE | F107: FALSE | G107: FALSE | H107: 3 | I107: 34.28499985 | J107: 131.0805234 | K107: -0.06126351582 | L107: -0.06322047369 | Z107: 1993-04-01 | AA107: 0.3712521791 | AB107: 1993 | AC107: FALSE | AD107: FALSE | AE107: FALSE | AF107: 2 | AG107: -0.004854081577 | AH107: -0.004865900894 | AV107: 2007-05-01 | AW107: 55.36000061 | AX107: 2007 | AY107: FALSE | AZ107: FALSE | BA107: FALSE | BB107: 2 | BC107: 0.2621978988 | BD107: 0.2328545654
C108: 1981-05-01 | D108: 1981 | E108: FALSE | F108: FALSE | G108: FALSE | H108: 3 | I108: 32.70999908 | J108: 122.8948397 | K108: -0.06244775008 | L108: -0.06448278944 | Z108: 1993-05-01 | AA108: 0.4101883769 | AB108: 1993 | AC108: FALSE | AD108: FALSE | AE108: FALSE | AF108: 2 | AG108: 0.1048780316 | AH108: 0.09973495019 | AV108: 2007-06-01 | AW108: 66.66333008 | AX108: 2007 | AY108: FALSE | AZ108: FALSE | BA108: FALSE | BB108: 2 | BC108: 0.204178637 | BD108: 0.1857977055
C109: 1981-06-01 | D109: =YEAR(C109) -> 1981 | E109: =MOD(D109,5)=0 -> FALSE | F109: =MONTH(C109)=1 -> FALSE | G109: =AND(F109,E109) -> FALSE | H109: 3 | I109: 33.51000023 | J109: 128.6032772 | K109: 0.04644977362 | L109: 0.04540326713 | Z109: 1993-06-01 | AA109: 0.2867344618 | AB109: 1993 | AC109: FALSE | AD109: FALSE | AE109: FALSE | AF109: 2 | AG109: -0.3009688282 | AH109: -0.3580599428 | AV109: 2007-07-01 | AW109: 71.33333588 | AX109: 2007 | AY109: FALSE | AZ109: FALSE | BA109: FALSE | BB109: 2 | BC109: 0.07005359308 | BD109: 0.06770873421
C110: 1981-07-01 | D110: 1981 | E110: FALSE | F110: FALSE | G110: FALSE | H110: =H109+G110 -> 3 | I110: 33.9849987 | J110: 130.2038903 | K110: 0.01244613035 | L110: 0.01236931399 | Z110: 1993-07-01 | AA110: 0.2014399618 | AB110: 1993 | AC110: FALSE | AD110: FALSE | AE110: FALSE | AF110: 2 | AG110: -0.2974686037 | AH110: -0.3530651866 | AV110: 2007-08-01 | AW110: 85.41000366 | AX110: 2007 | AY110: FALSE | AZ110: FALSE | BA110: FALSE | BB110: 2 | BC110: 0.1973364572 | BD110: 0.1800994708
C111: 1981-08-01 | D111: 1981 | E111: FALSE | F111: FALSE | G111: FALSE | H111: 3 | I111: 33.98500061 | J111: 129.4921044 | K111: -0.005466702402 | L111: -0.005481699501 | Z111: 1993-08-01 | AA111: 0.192365855 | AB111: 1993 | AC111: FALSE | AD111: FALSE | AE111: FALSE | AF111: 2 | AG111: -0.04504620996 | AH111: -0.04609232706 | AV111: 2007-09-01 | AW111: 98.55000305 | AX111: 2007 | AY111: FALSE | AZ111: FALSE | BA111: FALSE | BB111: 2 | BC111: 0.1538461401 | BD111: 0.1431008317
C112: 1981-09-01 | D112: 1981 | E112: FALSE | F112: FALSE | G112: FALSE | H112: 3 | I112: 34.61000061 | J112: 130.627632 | K112: 0.00876908764 | L112: 0.008730862495 | Z112: 1993-09-01 | AA112: 0.1704277247 | AB112: 1993 | AC112: FALSE | AD112: FALSE | AE112: FALSE | AF112: 2 | AG112: -0.1140437853 | AH112: -0.1210877486 | AV112: 2007-10-01 | AW112: 124.5100021 | AX112: 2007 | AY112: FALSE | AZ112: FALSE | BA112: FALSE | BB112: 2 | BC112: 0.2634195665 | BD112: 0.2338219866
C113: 1981-10-01 | D113: 1981 | E113: FALSE | F113: FALSE | G113: FALSE | H113: 3 | I113: 35.68000031 | J113: 131.6371698 | K113: 0.007728363327 | L113: 0.007698652506 | Z113: 1993-10-01 | AA113: 0.2241998613 | AB113: 1993 | AC113: FALSE | AD113: FALSE | AE113: FALSE | AF113: 2 | AG113: 0.3155128466 | AH113: 0.274226587 | AV113: 2007-11-01 | AW113: 113.8199997 | AX113: 2007 | AY113: FALSE | AZ113: FALSE | BA113: FALSE | BB113: 2 | BC113: -0.08585657584 | BD113: -0.08976780063
C114: 1981-11-01 | D114: 1981 | E114: FALSE | F114: FALSE | G114: FALSE | H114: 3 | I114: 35.40999985 | J114: 129.1582638 | K114: -0.01883135302 | L114: -0.01901092086 | Z114: 1993-11-01 | AA114: 0.2296677232 | AB114: 1993 | AC114: FALSE | AD114: FALSE | AE114: FALSE | AF114: 2 | AG114: 0.02438833753 | AH114: 0.02409569059 | AV114: 2007-12-01 | AW114: 113.4000015 | AX114: 2007 | AY114: FALSE | AZ114: FALSE | BA114: FALSE | BB114: 2 | BC114: -0.003690020823 | BD114: -0.003696845744
C115: 1981-12-01 | D115: 1981 | E115: FALSE | F115: FALSE | G115: FALSE | H115: 3 | I115: 35.04999949 | J115: 125.2714714 | K115: -0.03009325392 | L115: -0.03055535017 | Z115: 1993-12-01 | AA115: 0.2140296102 | AB115: 1993 | AC115: FALSE | AD115: FALSE | AE115: FALSE | AF115: 2 | AG115: -0.06809016437 | AH115: -0.07051921186 | AV115: 2008-01-01 | AW115: 93.87999725 | AX115: 2008 | AY115: FALSE | AZ115: TRUE | BA115: FALSE | BB115: 2 | BC115: -0.1721340742 | BD115: -0.188904063
C116: 1982-01-01 | D116: 1982 | E116: FALSE | F116: TRUE | G116: FALSE | H116: 3 | I116: 32.27333349 | J116: 109.7510989 | K116: -0.1238939102 | L116: -0.1322680883 | Z116: 1994-01-01 | AA116: 0.2396398932 | AB116: 1994 | AC116: FALSE | AD116: TRUE | AE116: FALSE | AF116: 2 | AG116: 0.1196576632 | AH116: 0.1130229808 | AV116: 2008-02-01 | AW116: 103.8000031 | AX116: 2008 | AY116: FALSE | AZ116: FALSE | BA116: FALSE | BB116: 2 | BC116: 0.1056668735 | BD116: 0.1004486584
C117: 1982-02-01 | D117: 1982 | E117: FALSE | F117: FALSE | G117: FALSE | H117: 3 | I117: 30.16666654 | J117: 101.0778714 | K117: -0.07902633854 | L117: -0.0823238409 | Z117: 1994-02-01 | AA117: 0.2670793533 | AB117: 1994 | AC117: FALSE | AD117: FALSE | AE117: FALSE | AF117: 2 | AG117: 0.1145028893 | AH117: 0.1084084663 | AV117: 2008-03-01 | AW117: 112.2300034 | AX117: 2008 | AY117: FALSE | AZ117: FALSE | BA117: FALSE | BB117: 2 | BC117: 0.08121387338 | BD117: 0.07808436681
C118: 1982-03-01 | D118: 1982 | E118: FALSE | F118: FALSE | G118: FALSE | H118: 3 | I118: 31.56666603 | J118: 113.6330721 | K118: 0.1242131482 | L118: 0.1170833671 | Z118: 1994-03-01 | AA118: 0.2441724986 | AB118: 1994 | AC118: FALSE | AD118: FALSE | AE118: FALSE | AF118: 2 | AG118: -0.08576797294 | AH118: -0.08967088081 | AV118: 2008-04-01 | AW118: 121.6299973 | AX118: 2008 | AY118: FALSE | AZ118: FALSE | BA118: FALSE | BB118: 2 | BC118: 0.08375651444 | BD118: 0.08043326011
C119: 1982-04-01 | D119: 1982 | E119: FALSE | F119: FALSE | G119: FALSE | H119: 3 | I119: 33.04333293 | J119: 120.0681715 | K119: 0.05663051567 | L119: 0.05508508633 | Z119: 1994-04-01 | AA119: 0.2203059196 | AB119: 1994 | AC119: FALSE | AD119: FALSE | AE119: FALSE | AF119: 2 | AG119: -0.09774474634 | AH119: -0.1028578126 | AV119: 2008-05-01 | AW119: 138.8699951 | AX119: 2008 | AY119: FALSE | AZ119: FALSE | BA119: FALSE | BB119: 2 | BC119: 0.1417413323 | BD119: 0.1325545815
C120: 1982-05-01 | D120: 1982 | E120: FALSE | F120: FALSE | G120: FALSE | H120: 3 | I120: 32.76666667 | J120: 117.4538815 | K120: -0.02177338077 | L120: -0.02201391879 | Z120: 1994-05-01 | AA120: 0.214798674 | AB120: 1994 | AC120: FALSE | AD120: FALSE | AE120: FALSE | AF120: 2 | AG120: -0.02499817376 | AH120: -0.02531593492 | AV120: 2008-06-01 | AW120: 116.9000015 | AX120: 2008 | AY120: FALSE | AZ120: FALSE | BA120: FALSE | BB120: 2 | BC120: -0.1582054754 | BD120: -0.172219327
C121: 1982-06-01 | D121: 1982 | E121: FALSE | F121: FALSE | G121: FALSE | H121: 3 | I121: 32.91666718 | J121: 113.7498702 | K121: -0.03153587827 | L121: -0.03204384202 | Z121: 1994-06-01 | AA121: 0.1953719407 | AB121: 1994 | AC121: FALSE | AD121: FALSE | AE121: FALSE | AF121: 2 | AG121: -0.09044158837 | AH121: -0.09479605919 | AV121: 2008-07-01 | AW121: 122.8199997 | AX121: 2008 | AY121: FALSE | AZ121: FALSE | BA121: FALSE | BB121: 2 | BC121: 0.05064155767 | BD121: 0.04940098489
C122: 1982-07-01 | D122: 1982 | E122: FALSE | F122: FALSE | G122: FALSE | H122: 3 | I122: 32.41666641 | J122: 110.3055229 | K122: -0.03028001106 | L122: -0.03074792035 | Z122: 1994-07-01 | AA122: 0.2483619452 | AB122: 1994 | AC122: FALSE | AD122: FALSE | AE122: FALSE | AF122: 2 | AG122: 0.2712262786 | AH122: 0.2399820083 | AV122: 2008-08-01 | AW122: 121.5999985 | AX122: 2008 | AY122: FALSE | AZ122: FALSE | BA122: FALSE | BB122: 2 | BC122: -0.009933245593 | BD122: -0.009982909433
C123: 1982-08-01 | D123: 1982 | E123: FALSE | F123: FALSE | G123: FALSE | H123: 3 | I123: 33.46666641 | J123: 114.462899 | K123: 0.03768964599 | L123: 0.03699674774 | Z123: 1994-08-01 | AA123: 0.2667936981 | AB123: 1994 | AC123: FALSE | AD123: FALSE | AE123: FALSE | AF123: 2 | AG123: 0.07421327333 | AH123: 0.07158855489 | AV123: 2008-09-01 | AW123: 68.30000305 | AX123: 2008 | AY123: FALSE | AZ123: FALSE | BA123: FALSE | BB123: 2 | BC123: -0.4383223363 | BD123: -0.5768271457
C124: 1982-09-01 | D124: 1982 | E124: FALSE | F124: FALSE | G124: FALSE | H124: 3 | I124: 33.78333384 | J124: 116.4908045 | K124: 0.01771670549 | L124: 0.01756159403 | Z124: 1994-09-01 | AA124: 0.2492222041 | AB124: 1994 | AC124: FALSE | AD124: FALSE | AE124: FALSE | AF124: 2 | AG124: -0.06586172803 | AH124: -0.06813080892 | AV124: 2008-10-01 | AW124: 50.43000031 | AX124: 2008 | AY124: FALSE | AZ124: FALSE | BA124: FALSE | BB124: 2 | BC124: -0.2616398528 | BD124: -0.3033235691
C125: 1982-10-01 | D125: 1982 | E125: FALSE | F125: FALSE | G125: FALSE | H125: 3 | I125: 32.84999975 | J125: 112.0279975 | K125: -0.03831037981 | L125: -0.03906352052 | Z125: 1994-10-01 | AA125: 0.3195042908 | AB125: 1994 | AC125: FALSE | AD125: FALSE | AE125: FALSE | AF125: 2 | AG125: 0.2820057185 | AH125: 0.2484258191 | AV125: 2008-11-01 | AW125: 42.47000122 | AX125: 2008 | AY125: FALSE | AZ125: FALSE | BA125: FALSE | BB125: 2 | BC125: -0.1578425349 | BD125: -0.1717882691
C126: 1982-11-01 | D126: 1982 | E126: FALSE | F126: FALSE | G126: FALSE | H126: 3 | I126: 31.46666679 | J126: 104.8406581 | K126: -0.06415663526 | L126: -0.06630716188 | Z126: 1994-11-01 | AA126: 0.2755777836 | AB126: 1994 | AC126: FALSE | AD126: FALSE | AE126: FALSE | AF126: 2 | AG126: -0.1374833093 | AH126: -0.1479007787 | AV126: 2008-12-01 | AW126: 40.58000183 | AX126: 2008 | AY126: FALSE | AZ126: FALSE | BA126: FALSE | BB126: 2 | BC126: -0.04450198576 | BD126: -0.04552259355
C127: 1982-12-01 | D127: 1982 | E127: FALSE | F127: FALSE | G127: FALSE | H127: 3 | I127: 30.65333303 | J127: 101.5502552 | K127: -0.03138479869 | L127: -0.03188785503 | Z127: 1994-12-01 | AA127: 0.2893922627 | AB127: 1994 | AC127: FALSE | AD127: FALSE | AE127: FALSE | AF127: 2 | AG127: 0.0501291466 | AH127: 0.04891315337 | AV127: 2009-01-01 | AW127: 55.40000153 | AX127: 2009 | AY127: FALSE | AZ127: TRUE | BA127: FALSE | BB127: 2 | BC127: 0.3652045103 | BD127: 0.3113042418
C128: 1983-01-01 | D128: 1983 | E128: FALSE | F128: TRUE | G128: FALSE | H128: 3 | I128: 29.11333338 | J128: 95.49923875 | K128: -0.05958642258 | L128: -0.0614355245 | Z128: 1995-01-01 | AA128: 0.2995953858 | AB128: 1995 | AC128: TRUE | AD128: TRUE | AE128: TRUE | AF128: 3 | AG128: 0.03525706941 | AH128: 0.03464977212 | AV128: 2009-02-01 | AW128: 39.93999863 | AX128: 2009 | AY128: FALSE | AZ128: FALSE | BA128: FALSE | BB128: 2 | BC128: -0.2790614165 | BD128: -0.3272013277
C129: 1983-02-01 | D129: 1983 | E129: FALSE | F129: FALSE | G129: FALSE | H129: 3 | I129: 28.32000033 | J129: 92.28159073 | K129: -0.03369291799 | L129: -0.034273605 | Z129: 1995-02-01 | AA129: 0.2931028306 | AB129: 1995 | AC129: TRUE | AD129: FALSE | AE129: FALSE | AF129: 3 | AG129: -0.02167107856 | AH129: -0.021909345 | AV129: 2009-03-01 | AW129: 43.11000061 | AX129: 2009 | AY129: FALSE | AZ129: FALSE | BA129: FALSE | BB129: 2 | BC129: 0.07936910597 | BD129: 0.07637670931
C130: 1983-03-01 | D130: 1983 | E130: FALSE | F130: FALSE | G130: FALSE | H130: 3 | I130: 29.69333331 | J130: 97.06746365 | K130: 0.05186162141 | L130: 0.05056156708 | Z130: 1995-03-01 | AA130: 0.2622851729 | AB130: 1995 | AC130: TRUE | AD130: FALSE | AE130: FALSE | AF130: 3 | AG130: -0.1051428184 | AH130: -0.1110911471 | AV130: 2009-04-01 | AW130: 69.5 | AX130: 2009 | AY130: FALSE | AZ130: FALSE | BA130: FALSE | BB130: 2 | BC130: 0.6121549296 | BD130: 0.4775717497
C131: 1983-04-01 | D131: 1983 | E131: FALSE | F131: FALSE | G131: FALSE | H131: 3 | I131: 29.35999997 | J131: 96.27071628 | K131: -0.008208181594 | L131: -0.008242054199 | Z131: 1995-04-01 | AA131: 0.2846077979 | AB131: 1995 | AC131: TRUE | AD131: FALSE | AE131: FALSE | AF131: 3 | AG131: 0.08510822275 | AH131: 0.08167972649 | AV131: 2009-05-01 | AW131: 78.63999939 | AX131: 2009 | AY131: FALSE | AZ131: FALSE | BA131: FALSE | BB131: 2 | BC131: 0.1315107826 | BD131: 0.1235537155
C132: 1983-05-01 | D132: 1983 | E132: FALSE | F132: FALSE | G132: FALSE | H132: 3 | I132: 29.96666718 | J132: 97.93710449 | K132: 0.01730939867 | L132: 0.01716129762 | Z132: 1995-05-01 | AA132: 0.3092550933 | AB132: 1995 | AC132: TRUE | AD132: FALSE | AE132: FALSE | AF132: 3 | AG132: 0.08660091417 | AH132: 0.08305439645 | AV132: 2009-06-01 | AW132: 71.08999634 | AX132: 2009 | AY132: FALSE | AZ132: FALSE | BA132: FALSE | BB132: 2 | BC132: -0.09600716061 | BD132: -0.1009338396
C133: 1983-06-01 | D133: 1983 | E133: FALSE | F133: FALSE | G133: FALSE | H133: 3 | I133: 30.46666654 | J133: 99.671287 | K133: 0.01770710412 | L133: 0.01755215976 | Z133: 1995-06-01 | AA133: 0.3464870155 | AB133: 1995 | AC133: TRUE | AD133: FALSE | AE133: FALSE | AF133: 3 | AG133: 0.1203922682 | AH133: 0.1136788635 | AV133: 2009-07-01 | AW133: 75.98999786 | AX133: 2009 | AY133: FALSE | AZ133: FALSE | BA133: FALSE | BB133: 2 | BC133: 0.06892673763 | BD133: 0.06665509614
C134: 1983-07-01 | D134: 1983 | E134: FALSE | F134: FALSE | G134: FALSE | H134: 3 | I134: 30.65333303 | J134: 100.438376 | K134: 0.007696188076 | L134: 0.0076667235 | Z134: 1995-07-01 | AA134: 0.3357612193 | AB134: 1995 | AC134: TRUE | AD134: FALSE | AE134: FALSE | AF134: 3 | AG134: -0.03095583887 | AH134: -0.03144509421 | AV134: 2009-08-01 | AW134: 73.05999756 | AX134: 2009 | AY134: FALSE | AZ134: FALSE | BA134: FALSE | BB134: 2 | BC134: -0.03855771006 | BD134: -0.03932073662
C135: 1983-08-01 | D135: 1983 | E135: FALSE | F135: FALSE | G135: FALSE | H135: 3 | I135: 30.07000033 | J135: 97.81006744 | K135: -0.0261683694 | L135: -0.02651685414 | Z135: 1995-08-01 | AA135: 0.3208385408 | AB135: 1995 | AC135: TRUE | AD135: FALSE | AE135: FALSE | AF135: 3 | AG135: -0.04444431821 | AH135: -0.04546224197 | AV135: 2009-09-01 | AW135: 67.62999725 | AX135: 2009 | AY135: FALSE | AZ135: FALSE | BA135: FALSE | BB135: 2 | BC135: -0.07432248134 | BD135: -0.07722935698
C136: 1983-09-01 | D136: 1983 | E136: FALSE | F136: FALSE | G136: FALSE | H136: 3 | I136: 29.61666679 | J136: 95.97290347 | K136: -0.01878297421 | L136: -0.01896161474 | Z136: 1995-09-01 | AA136: 0.2786939442 | AB136: 1995 | AC136: TRUE | AD136: FALSE | AE136: FALSE | AF136: 3 | AG136: -0.1313576495 | AH136: -0.1408238028 | AV136: 2009-10-01 | AW136: 58.72999954 | AX136: 2009 | AY136: FALSE | AZ136: FALSE | BA136: FALSE | BB136: 2 | BC136: -0.1315983746 | BD136: -0.1411009692
C137: 1983-10-01 | D137: 1983 | E137: FALSE | F137: FALSE | G137: FALSE | H137: 3 | I137: 29.16666667 | J137: 93.66334527 | K137: -0.0240646903 | L137: -0.02435897581 | Z137: 1995-10-01 | AA137: 0.2716802359 | AB137: =YEAR(Z137) -> 1995 | AC137: =MOD(AB137,5)=0 -> TRUE | AD137: =MONTH(Z137)=1 -> FALSE | AE137: =AND(AD137,AC137) -> FALSE | AF137: 3 | AG137: -0.02516634645 | AH137: -0.02548843428 | AV137: 2009-11-01 | AW137: 57.88999939 | AX137: =YEAR(AV137) -> 2009 | AY137: =MOD(AX137,5)=0 -> FALSE | AZ137: =MONTH(AV137)=1 -> FALSE | BA137: =AND(AZ137,AY137) -> FALSE | BB137: =BA137+BB136 -> 2 | BC137: -0.01430274407 | BD137: -0.01440601419
C138: 1983-11-01 | D138: 1983 | E138: FALSE | F138: FALSE | G138: FALSE | H138: 3 | I138: 28.81333351 | J138: 92.61311931 | K138: =J138/J137-1 -> -0.01121277439 | L138: =LN(J138/J137) -> -0.01127611145 | Z138: 1995-11-01 | AA138: 0.2852407694 | AB138: 1995 | AC138: TRUE | AD138: FALSE | AE138: FALSE | AF138: =AF137+AE138 -> 3 | AG138: =AA138/AA137-1 -> 0.04991358124 | AH138: =LN(AA138/AA137) -> 0.0487078572 | AV138: 2009-12-01 | AW138: 67.54000092 | AX138: 2009 | AY138: FALSE | AZ138: FALSE | BA138: FALSE | BB138: 2 | BC138: =AW138/AW137-1 -> 0.166695485 | BD138: =LN(AW138/AW137) -> 0.154175381
C139: 1983-12-01 | D139: 1983 | E139: FALSE | F139: FALSE | G139: FALSE | H139: 3 | I139: 29.04333305 | J139: 94.27178244 | K139: 0.01790959141 | L139: 0.01775110417 | Z139: 1995-12-01 | AA139: 0.2392225862 | AB139: 1995 | AC139: TRUE | AD139: FALSE | AE139: FALSE | AF139: 3 | AG139: -0.1613310164 | AH139: -0.1759391871 | AV139: 2010-01-01 | AW139: 62.90999985 | AX139: 2010 | AY139: TRUE | AZ139: TRUE | BA139: TRUE | BB139: 3 | BC139: -0.06855198409 | BD139: -0.07101489736
C140: 1984-01-01 | D140: 1984 | E140: FALSE | F140: TRUE | G140: FALSE | H140: 3 | I140: 29.2033329 | J140: 94.96675538 | K140: 0.007372014415 | L140: 0.00734497393 | Z140: 1996-01-01 | AA140: 0.2073266059 | AB140: 1996 | AC140: FALSE | AD140: TRUE | AE140: FALSE | AF140: 3 | AG140: -0.1333318093 | AH140: -0.1430990851 | AV140: 2010-02-01 | AW140: 70.87999725 | AX140: 2010 | AY140: TRUE | AZ140: FALSE | BA140: FALSE | BB140: 3 | BC140: 0.1266888798 | BD140: 0.1192831364
C141: 1984-02-01 | D141: 1984 | E141: FALSE | F141: FALSE | G141: FALSE | H141: 3 | I141: 29.53333346 | J141: 95.24504939 | K141: 0.002930436191 | L141: 0.002926150833 | Z141: 1996-02-01 | AA141: 0.2063885182 | AB141: 1996 | AC141: FALSE | AD141: FALSE | AE141: FALSE | AF141: 3 | AG141: -0.004524685569 | AH141: -0.004534952941 | AV141: 2010-03-01 | AW141: 73.97000122 | AX141: 2010 | AY141: TRUE | AZ141: FALSE | BA141: FALSE | BB141: 3 | BC141: 0.04359486579 | BD141: 0.04267135456
C142: 1984-03-01 | D142: 1984 | E142: FALSE | F142: FALSE | G142: FALSE | H142: 3 | I142: 29.57333247 | J142: 95.03129433 | K142: -0.002244264261 | L142: -0.002246786396 | Z142: 1996-03-01 | AA142: 0.1843422651 | AB142: 1996 | AC142: FALSE | AD142: FALSE | AE142: FALSE | AF142: 3 | AG142: -0.1068191839 | AH142: -0.112966237 | AV142: 2010-04-01 | AW142: 71.19000244 | AX142: 2010 | AY142: TRUE | AZ142: FALSE | BA142: FALSE | BB142: 3 | BC142: -0.03758278672 | BD142: -0.03830722869
C143: 1984-04-01 | D143: 1984 | E143: FALSE | F143: FALSE | G143: FALSE | H143: 3 | I143: 29.46000036 | J143: 93.95579283 | K143: -0.0113173404 | L143: -0.01138186881 | Z143: 1996-04-01 | AA143: 0.1829351336 | AB143: 1996 | AC143: FALSE | AD143: FALSE | AE143: FALSE | AF143: 3 | AG143: -0.007633255194 | AH143: -0.007662537595 | AV143: 2010-05-01 | AW143: 60.68999863 | AX143: 2010 | AY143: TRUE | AZ143: FALSE | BA143: FALSE | BB143: 3 | BC143: -0.1474926739 | BD143: -0.1595734762
C144: 1984-05-01 | D144: 1984 | E144: FALSE | F144: FALSE | G144: FALSE | H144: 3 | I144: 29.05000051 | J144: 91.43963898 | K144: -0.02678018853 | L144: -0.02714531124 | Z144: 1996-05-01 | AA144: 0.1960689574 | AB144: 1996 | AC144: FALSE | AD144: FALSE | AE144: FALSE | AF144: 3 | AG144: 0.0717949779 | AH144: 0.0693347924 | AV144: 2010-06-01 | AW144: 49.25999832 | AX144: 2010 | AY144: TRUE | AZ144: FALSE | BA144: FALSE | BB144: 3 | BC144: -0.1883341665 | BD144: -0.2086665586
C145: 1984-06-01 | D145: 1984 | E145: FALSE | F145: FALSE | G145: FALSE | H145: 3 | I145: 27.986667 | J145: 87.09940086 | K145: -0.04746560871 | L145: -0.04862906629 | Z145: 1996-06-01 | AA145: 0.1576056778 | AB145: 1996 | AC145: FALSE | AD145: FALSE | AE145: FALSE | AF145: 3 | AG145: -0.1961722044 | AH145: -0.2183702174 | AV145: 2010-07-01 | AW145: 57.52999878 | AX145: 2010 | AY145: TRUE | AZ145: FALSE | BA145: FALSE | BB145: 3 | BC145: 0.1678847085 | BD145: 0.155194171
C146: 1984-07-01 | D146: 1984 | E146: FALSE | F146: FALSE | G146: FALSE | H146: 3 | I146: 28.17000008 | J146: 87.42300929 | K146: 0.003715392238 | L146: 0.003708507216 | Z146: 1996-07-01 | AA146: 0.1651110351 | AB146: 1996 | AC146: FALSE | AD146: FALSE | AE146: FALSE | AF146: 3 | AG146: 0.04762110965 | AH146: 0.04652198393 | AV146: 2010-08-01 | AW146: 42.84000015 | AX146: 2010 | AY146: TRUE | AZ146: FALSE | BA146: FALSE | BB146: 3 | BC146: -0.2553450189 | BD146: -0.2948342805
C147: 1984-08-01 | D147: 1984 | E147: FALSE | F147: FALSE | G147: FALSE | H147: 3 | I147: 28.35333316 | J147: 87.89221686 | K147: 0.005367094648 | L147: 0.005352743124 | Z147: 1996-08-01 | AA147: 0.1819970906 | AB147: 1996 | AC147: FALSE | AD147: FALSE | AE147: FALSE | AF147: 3 | AG147: 0.1022709079 | AH147: 0.09737251348 | AV147: 2010-09-01 | AW147: 48.68999863 | AX147: 2010 | AY147: TRUE | AZ147: FALSE | BA147: FALSE | BB147: 3 | BC147: 0.1365545857 | BD147: 0.1280013928
C148: 1984-09-01 | D148: 1984 | E148: FALSE | F148: FALSE | G148: FALSE | H148: 3 | I148: 27.85333316 | J148: 85.88787234 | K148: -0.02280457351 | L148: -0.02306861982 | Z148: 1996-09-01 | AA148: 0.1665181369 | AB148: 1996 | AC148: FALSE | AD148: FALSE | AE148: FALSE | AF148: 3 | AG148: -0.08505055586 | AH148: -0.08888646754 | AV148: 2010-10-01 | AW148: 56.91999817 | AX148: 2010 | AY148: TRUE | AZ148: FALSE | BA148: FALSE | BB148: 3 | BC148: 0.1690285433 | BD148: 0.1561730991
C149: 1984-10-01 | D149: 1984 | E149: FALSE | F149: FALSE | G149: FALSE | H149: 3 | I149: 27.65000025 | J149: 85.25144094 | K149: -0.007410026408 | L149: -0.007437617036 | Z149: 1996-10-01 | AA149: 0.1726155728 | AB149: 1996 | AC149: FALSE | AD149: FALSE | AE149: FALSE | AF149: 3 | AG149: 0.03661724822 | AH149: 0.03596276586 | AV149: 2010-11-01 | AW149: 61.83000183 | AX149: 2010 | AY149: TRUE | AZ149: FALSE | BA149: FALSE | BB149: 3 | BC149: 0.08626148665 | BD149: 0.08274197213
C150: 1984-11-01 | D150: 1984 | E150: FALSE | F150: FALSE | G150: FALSE | H150: 3 | I150: 26.81333351 | J150: 82.76115897 | K150: -0.02921102499 | L150: -0.02964616179 | Z150: 1996-11-01 | AA150: 0.1810589731 | AB150: 1996 | AC150: FALSE | AD150: FALSE | AE150: FALSE | AF150: 3 | AG150: 0.04891447583 | AH150: 0.04775579685 | AV150: 2010-12-01 | AW150: 58.13000107 | AX150: 2010 | AY150: TRUE | AZ150: FALSE | BA150: FALSE | BB150: 3 | BC150: -0.05984151146 | BD150: -0.0617068131
C151: 1984-12-01 | D151: 1984 | E151: FALSE | F151: FALSE | G151: FALSE | H151: 3 | I151: 26.63333333 | J151: 82.4027714 | K151: -0.004330383587 | L151: -0.004339786855 | Z151: 1996-12-01 | AA151: 0.1566675305 | AB151: 1996 | AC151: FALSE | AD151: FALSE | AE151: FALSE | AF151: 3 | AG151: -0.1347154583 | AH151: -0.1446968762 | AV151: 2011-01-01 | AW151: 59.11000061 | AX151: 2011 | AY151: FALSE | AZ151: TRUE | BA151: FALSE | BB151: 3 | BC151: 0.01685875665 | BD151: 0.01671822507
C152: 1985-01-01 | D152: 1985 | E152: TRUE | F152: TRUE | G152: TRUE | H152: 4 | I152: 27.6 | J152: 85.97568293 | K152: 0.04335911853 | L152: 0.04244542983 | Z152: 1997-01-01 | AA152: 0.124771513 | AB152: 1997 | AC152: FALSE | AD152: TRUE | AE152: FALSE | AF152: 3 | AG152: -0.2035904784 | AH152: -0.2276417511 | AV152: 2011-02-01 | AW152: 66.19999695 | AX152: 2011 | AY152: FALSE | AZ152: FALSE | BA152: FALSE | BB152: 3 | BC152: 0.1199458005 | BD152: 0.1132802917
C153: 1985-02-01 | D153: 1985 | E153: TRUE | F153: FALSE | G153: FALSE | H153: 4 | I153: 27.85 | J153: 85.4244819 | K153: -0.006411127192 | L153: -0.00643176673 | Z153: 1997-02-01 | AA153: 0.1219565049 | AB153: 1997 | AC153: FALSE | AD153: FALSE | AE153: FALSE | AF153: 3 | AG153: -0.02256130502 | AH153: -0.02281970522 | AV153: 2011-03-01 | AW153: 56.54000092 | AX153: 2011 | AY153: FALSE | AZ153: FALSE | BA153: FALSE | BB153: 3 | BC153: -0.1459213969 | BD153: -0.1577320484
C154: 1985-03-01 | D154: 1985 | E154: TRUE | F154: FALSE | G154: FALSE | H154: 4 | I154: 27.8 | J154: 84.5598196 | K154: -0.01012194951 | L154: -0.01017352476 | Z154: 1997-03-01 | AA154: 0.1369664222 | AB154: 1997 | AC154: FALSE | AD154: FALSE | AE154: FALSE | AF154: 3 | AG154: 0.1230759879 | AH154: 0.1160713386 | AV154: 2011-04-01 | AW154: 48.65000153 | AX154: 2011 | AY154: FALSE | AZ154: FALSE | BA154: FALSE | BB154: 3 | BC154: -0.1395472102 | BD154: -0.1502965285
C155: 1985-04-01 | D155: 1985 | E155: TRUE | F155: FALSE | G155: FALSE | H155: 4 | I155: 26.65 | J155: 80.52804169 | K155: -0.04767959455 | L155: -0.04885374047 | Z155: 1997-04-01 | AA155: 0.1275857538 | AB155: 1997 | AC155: FALSE | AD155: FALSE | AE155: FALSE | AF155: 3 | AG155: -0.06848881829 | AH155: -0.07094708503 | AV155: 2011-05-01 | AW155: 42.84999847 | AX155: 2011 | AY155: FALSE | AZ155: FALSE | BA155: FALSE | BB155: 3 | BC155: -0.1192189696 | BD155: -0.1269462306
C156: 1985-05-01 | D156: 1985 | E156: TRUE | F156: FALSE | G156: FALSE | H156: 4 | I156: 26.36666667 | J156: 79.6774945 | K156: -0.01056212434 | L156: -0.01061829948 | Z156: 1997-05-01 | AA156: 0.124771513 | AB156: 1997 | AC156: FALSE | AD156: FALSE | AE156: FALSE | AF156: 3 | AG156: -0.022057641 | AH156: -0.02230454831 | AV156: 2011-06-01 | AW156: 28.85000038 | AX156: 2011 | AY156: FALSE | AZ156: FALSE | BA156: FALSE | BB156: 3 | BC156: -0.3267210873 | BD156: -0.3955956033
C157: 1985-06-01 | D157: 1985 | E157: TRUE | F157: FALSE | G157: FALSE | H157: 4 | I157: 26.38333333 | J157: 79.88320904 | K157: 0.002581840012 | L157: 0.002578512789 | Z157: 1997-06-01 | AA157: 0.1069465354 | AB157: 1997 | AC157: FALSE | AD157: FALSE | AE157: FALSE | AF157: 3 | AG157: -0.142860956 | AH157: -0.1541551285 | AV157: 2011-07-01 | AW157: 25 | AX157: 2011 | AY157: FALSE | AZ157: FALSE | BA157: FALSE | BB157: 3 | BC157: -0.1334488849 | BD157: -0.1432341813
C158: 1985-07-01 | D158: 1985 | E158: TRUE | F158: FALSE | G158: FALSE | H158: 4 | I158: 27.01666667 | J158: 81.29796926 | K158: 0.01771035779 | L158: 0.01755535681 | Z158: 1997-07-01 | AA158: 0.131338045 | AB158: 1997 | AC158: FALSE | AD158: FALSE | AE158: FALSE | AF158: 3 | AG158: 0.2280719941 | AH158: 0.2054454551 | AV158: 2011-08-01 | AW158: 32.49000168 | AX158: 2011 | AY158: FALSE | AZ158: FALSE | BA158: FALSE | BB158: 3 | BC158: 0.2996000671 | BD158: 0.2620565765
C159: 1985-08-01 | D159: 1985 | E159: TRUE | F159: FALSE | G159: FALSE | H159: 4 | I159: 26.98333333 | J159: 81.07508428 | K159: -0.002741581054 | L159: -0.002745346071 | Z159: 1997-08-01 | AA159: 0.1632340252 | AB159: 1997 | AC159: FALSE | AD159: FALSE | AE159: FALSE | AF159: 3 | AG159: 0.2428540812 | AH159: 0.2174104132 | AV159: 2011-09-01 | AW159: 20.29999924 | AX159: 2011 | AY159: FALSE | AZ159: FALSE | BA159: FALSE | BB159: 3 | BC159: -0.3751924226 | BD159: -0.4703115529
C160: 1985-09-01 | D160: 1985 | E160: TRUE | F160: FALSE | G160: FALSE | H160: 4 | I160: 27.81666667 | J160: 83.10015779 | K160: 0.02497775397 | L160: 0.02467090891 | Z160: 1997-09-01 | AA160: 0.1627649963 | AB160: 1997 | AC160: FALSE | AD160: FALSE | AE160: FALSE | AF160: 3 | AG160: -0.002873352838 | AH160: -0.002877488841 | AV160: 2011-10-01 | AW160: 20.20000076 | AX160: 2011 | AY160: FALSE | AZ160: FALSE | BA160: FALSE | BB160: 3 | BC160: -0.004926033393 | BD160: -0.004938206288
C161: 1985-10-01 | D161: 1985 | E161: TRUE | F161: FALSE | G161: FALSE | H161: 4 | I161: 28.6 | J161: 86.29659977 | K161: 0.03846493267 | L161: 0.03774359647 | Z161: 1997-10-01 | AA161: 0.1278202087 | AB161: 1997 | AC161: FALSE | AD161: FALSE | AE161: FALSE | AF161: 3 | AG161: -0.2146947342 | AH161: -0.2416827632 | AV161: 2011-11-01 | AW161: 17.86000061 | AX161: 2011 | AY161: FALSE | AZ161: FALSE | BA161: FALSE | BB161: 3 | BC161: -0.1158415873 | BD161: -0.1231190326
C162: 1985-11-01 | D162: 1985 | E162: TRUE | F162: FALSE | G162: FALSE | H162: 4 | I162: 26.5 | J162: 76.56993016 | K162: -0.112712084 | L162: -0.1195857541 | Z162: 1997-11-01 | AA162: 0.1332141459 | AB162: 1997 | AC162: FALSE | AD162: FALSE | AE162: FALSE | AF162: 3 | AG162: 0.04219940873 | AH162: 0.04133329617 | AV162: 2011-12-01 | AW162: 14.5 | AX162: 2011 | AY162: FALSE | AZ162: FALSE | BA162: FALSE | BB162: 3 | BC162: -0.188129927 | BD162: -0.2084149602
C163: 1985-12-01 | D163: 1985 | E163: TRUE | F163: FALSE | G163: FALSE | H163: 4 | I163: 24.68333333 | J163: 76.03711331 | K163: -0.006958565225 | L163: -0.006982888944 | Z163: 1997-12-01 | AA163: 0.09850392491 | AB163: 1997 | AC163: FALSE | AD163: FALSE | AE163: FALSE | AF163: 3 | AG163: -0.2605595731 | AH163: -0.3018615588 | AV163: 2012-01-01 | AW163: 16.62999916 | AX163: 2012 | AY163: FALSE | AZ163: TRUE | BA163: FALSE | BB163: 3 | BC163: 0.1468964938 | BD163: 0.1370595933
C164: 1986-01-01 | D164: 1986 | E164: FALSE | F164: TRUE | G164: FALSE | H164: 4 | I164: 15.91666667 | J164: 51.65896099 | K164: -0.3206085983 | L164: -0.3865578791 | Z164: 1998-01-01 | AA164: 0.1374355108 | AB164: 1998 | AC164: FALSE | AD164: TRUE | AE164: FALSE | AF164: 3 | AG164: 0.3952287778 | AH164: 0.3330584002 | AV164: 2012-02-01 | AW164: 14.17000008 | AX164: 2012 | AY164: FALSE | AZ164: FALSE | BA164: FALSE | BB164: 3 | BC164: -0.1479253884 | BD164: -0.1600811837
C165: 1986-02-01 | D165: 1986 | E165: FALSE | F165: FALSE | G165: FALSE | H165: 4 | I165: 12.65 | J165: 40.6638781 | K165: -0.2128397994 | L165: -0.2393234927 | Z165: 1998-02-01 | AA165: 0.1773066968 | AB165: 1998 | AC165: FALSE | AD165: FALSE | AE165: FALSE | AF165: 3 | AG165: 0.2901083264 | AH165: 0.2547261888 | AV165: 2012-03-01 | AW165: 14.69999981 | AX165: 2012 | AY165: FALSE | AZ165: FALSE | BA165: FALSE | BB165: 3 | BC165: 0.03740294496 | BD165: 0.03672042172
C166: 1986-03-01 | D166: 1986 | E166: FALSE | F166: FALSE | G166: FALSE | H166: 4 | I166: 11.9 | J166: 36.63209545 | K166: -0.09914899506 | L166: -0.1044154014 | Z166: 1998-03-01 | AA166: 0.2063885182 | AB166: 1998 | AC166: FALSE | AD166: FALSE | AE166: FALSE | AF166: 3 | AG166: 0.1640198705 | AH166: 0.15187942 | AV166: 2012-04-01 | AW166: 14.30000019 | AX166: 2012 | AY166: FALSE | AZ166: FALSE | BA166: FALSE | BB166: 3 | BC166: -0.02721085876 | BD166: -0.02758793021
C167: 1986-04-01 | D167: 1986 | E167: FALSE | F167: FALSE | G167: FALSE | H167: 4 | I167: 13.71666667 | J167: 41.55938226 | K167: 0.1345073699 | L167: 0.1261985214 | Z167: 1998-04-01 | AA167: 0.2054504901 | AB167: 1998 | AC167: FALSE | AD167: FALSE | AE167: FALSE | AF167: 3 | AG167: -0.004544962604 | AH167: -0.004555322348 | AV167: 2012-05-01 | AW167: 10.32999992 | AX167: 2012 | AY167: FALSE | AZ167: FALSE | BA167: FALSE | BB167: 3 | BC167: -0.2776223926 | BD167: -0.3252072749
C168: 1986-05-01 | D168: 1986 | E168: FALSE | F168: FALSE | G168: FALSE | H168: 4 | I168: 11.85 | J168: 34.63884559 | K168: -0.1665216443 | L168: -0.1821475451 | Z168: 1998-05-01 | AA168: 0.1998211741 | AB168: 1998 | AC168: FALSE | AD168: FALSE | AE168: FALSE | AF168: 3 | AG168: -0.02739986636 | AH168: -0.02778224361 | AV168: 2012-06-01 | AW168: 7.389999866 | AX168: 2012 | AY168: FALSE | AZ168: FALSE | BA168: FALSE | BB168: 3 | BC168: -0.2846079457 | BD168: -0.3349245589
C169: 1986-06-01 | D169: 1986 | E169: FALSE | F169: FALSE | G169: FALSE | H169: 4 | I169: 9.616666667 | J169: 27.58311949 | K169: -0.2036940314 | L169: -0.2277717843 | Z169: 1998-06-01 | AA169: 0.2153001279 | AB169: 1998 | AC169: FALSE | AD169: FALSE | AE169: FALSE | AF169: 3 | AG169: 0.07746403145 | AH169: 0.07461016096 | AV169: 2012-07-01 | AW169: 7.150000095 | AX169: 2012 | AY169: FALSE | AZ169: FALSE | BA169: FALSE | BB169: 3 | BC169: -0.03247628897 | BD169: -0.03301534685
C170: 1986-07-01 | D170: 1986 | E170: FALSE | F170: FALSE | G170: FALSE | H170: 4 | I170: 13.7 | J170: 39.79036692 | K170: 0.4425622503 | L170: 0.3664208729 | Z170: 1998-07-01 | AA170: 0.2598618269 | AB170: 1998 | AC170: FALSE | AD170: FALSE | AE170: FALSE | AF170: 3 | AG170: 0.2069747913 | AH170: 0.1881170565 | AV170: 2012-08-01 | AW170: 6.690000057 | AX170: 2012 | AY170: FALSE | AZ170: FALSE | BA170: FALSE | BB170: 3 | BC170: -0.06433566881 | BD170: -0.06649848735
C171: 1986-08-01 | D171: 1986 | E171: FALSE | F171: FALSE | G171: FALSE | H171: 4 | I171: 14.08333333 | J171: 41.33980252 | K171: 0.03893996752 | L171: 0.03820093136 | Z171: 1998-08-01 | AA171: 0.2340632081 | AB171: 1998 | AC171: FALSE | AD171: FALSE | AE171: FALSE | AF171: 3 | AG171: -0.09927821682 | AH171: -0.1045588558 | AV171: 2012-09-01 | AW171: 7.5 | AX171: 2012 | AY171: FALSE | AZ171: FALSE | BA171: FALSE | BB171: 3 | BC171: 0.1210762236 | BD171: 0.1142891378
C172: 1986-09-01 | D172: 1986 | E172: FALSE | F172: FALSE | G172: FALSE | H172: 4 | I172: 13.95 | J172: 40.11711667 | K172: -0.02957648014 | L172: -0.03002268437 | Z172: 1998-09-01 | AA172: 0.2861293256 | AB172: 1998 | AC172: FALSE | AD172: FALSE | AE172: FALSE | AF172: 3 | AG172: 0.222444689 | AH172: 0.2008526971 | AV172: 2012-10-01 | AW172: 7.929999828 | AX172: 2012 | AY172: FALSE | AZ172: FALSE | BA172: FALSE | BB172: 3 | BC172: 0.05733331045 | BD172: 0.05574999346
C173: 1986-10-01 | D173: =YEAR(C173) -> 1986 | E173: =MOD(D173,5)=0 -> FALSE | F173: =MONTH(C173)=1 -> FALSE | G173: =AND(F173,E173) -> FALSE | H173: 4 | I173: 14.45 | J173: 42.2459215 | K173: 0.05306475172 | L173: 0.05170472388 | Z173: 1998-10-01 | AA173: 0.2786239982 | AB173: 1998 | AC173: FALSE | AD173: FALSE | AE173: FALSE | AF173: 3 | AG173: -0.02623054259 | AH173: -0.02658070006 | AV173: 2012-11-01 | AW173: 11.60000038 | AX173: 2012 | AY173: FALSE | AZ173: FALSE | BA173: FALSE | BB173: 3 | BC173: 0.4627995754 | BD173: 0.380352117
C174: 1986-11-01 | D174: 1986 | E174: FALSE | F174: FALSE | G174: FALSE | H174: =H173+G174 -> 4 | I174: 15.68333333 | J174: 46.11657413 | K174: 0.09162192448 | L174: 0.08766459437 | Z174: 1998-11-01 | AA174: 0.23969163 | AB174: 1998 | AC174: FALSE | AD174: FALSE | AE174: FALSE | AF174: 3 | AG174: -0.1397308502 | AH174: -0.1505099739 | AV174: 2012-12-01 | AW174: 11.86999989 | AX174: 2012 | AY174: FALSE | AZ174: FALSE | BA174: FALSE | BB174: 3 | BC174: 0.02327581855 | BD174: 0.02300906798
C175: 1986-12-01 | D175: 1986 | E175: FALSE | F175: FALSE | G175: FALSE | H175: 4 | I175: 18.06666667 | J175: 53.31906924 | K175: 0.1561801856 | L175: 0.145121628 | Z175: 1998-12-01 | AA175: 0.3072368205 | AB175: 1998 | AC175: FALSE | AD175: FALSE | AE175: FALSE | AF175: 3 | AG175: 0.2818003718 | AH175: 0.2482656302 | AV175: 2013-01-01 | AW175: 12.97999954 | AX175: 2013 | AY175: FALSE | AZ175: TRUE | BA175: FALSE | BB175: 3 | BC175: 0.09351303011 | BD175: 0.08939547703
C176: 1987-01-01 | D176: 1987 | E176: FALSE | F176: TRUE | G176: FALSE | H176: 4 | I176: 17.25 | J176: 50.07100637 | K176: -0.06091747136 | L176: -0.06285191371 | Z176: 1999-01-01 | AA176: 0.3091136813 | AB176: 1999 | AC176: FALSE | AD176: TRUE | AE176: FALSE | AF176: 3 | AG176: 0.006108840907 | AH176: 0.006090257582 | AV176: 2013-02-01 | AW176: 13.35999966 | AX176: 2013 | AY176: FALSE | AZ176: FALSE | BA176: FALSE | BB176: 3 | BC176: 0.02927581879 | BD176: 0.0288554664
C177: 1987-02-01 | D177: 1987 | E177: FALSE | F177: FALSE | G177: FALSE | H177: 4 | I177: 17.75 | J177: 51.7177448 | K177: 0.03288806335 | L177: 0.03235882352 | Z177: 1999-02-01 | AA177: 0.2612689734 | AB177: 1999 | AC177: FALSE | AD177: FALSE | AE177: FALSE | AF177: 3 | AG177: -0.1547802988 | AH177: -0.168158684 | AV177: 2013-03-01 | AW177: 14.44999981 | AX177: 2013 | AY177: FALSE | AZ177: FALSE | BA177: FALSE | BB177: 3 | BC177: 0.08158683987 | BD177: 0.07842925895
C178: 1987-03-01 | D178: 1987 | E178: FALSE | F178: FALSE | G178: FALSE | H178: 4 | I178: 17.9 | J178: 52.16554267 | K178: 0.008658495773 | L178: 0.008621225977 | Z178: 1999-03-01 | AA178: 0.2697123289 | AB178: 1999 | AC178: FALSE | AD178: FALSE | AE178: FALSE | AF178: 3 | AG178: 0.03231671734 | AH178: 0.03180551662 | AV178: 2013-04-01 | AW178: 16.29000092 | AX178: 2013 | AY178: FALSE | AZ178: FALSE | BA178: FALSE | BB178: 3 | BC178: 0.1273357184 | BD178: 0.1198570775
C179: 1987-04-01 | D179: 1987 | E179: FALSE | F179: FALSE | G179: FALSE | H179: 4 | I179: 18.4 | J179: 53.87226715 | K179: 0.03271746815 | L179: 0.03219364658 | Z179: 1999-04-01 | AA179: 0.3452311456 | AB179: 1999 | AC179: FALSE | AD179: FALSE | AE179: FALSE | AF179: 3 | AG179: 0.2799976442 | AH179: 0.2468582375 | AV179: 2013-05-01 | AW179: 13.96000004 | AX179: 2013 | AY179: FALSE | AZ179: FALSE | BA179: FALSE | BB179: 3 | BC179: -0.1430325811 | BD179: -0.1543553787
C180: 1987-05-01 | D180: 1987 | E180: FALSE | F180: FALSE | G180: FALSE | H180: 4 | I180: 18.71666667 | J180: 53.98906109 | K180: 0.002167978971 | L180: 0.002165632295 | Z180: 1999-05-01 | AA180: 0.3306901753 | AB180: 1999 | AC180: FALSE | AD180: FALSE | AE180: FALSE | AF180: 3 | AG180: -0.04211952053 | AH180: -0.04303226926 | AV180: 2013-06-01 | AW180: 10.46000004 | AX180: 2013 | AY180: FALSE | AZ180: FALSE | BA180: FALSE | BB180: 3 | BC180: -0.2507163317 | BD180: -0.2886376378
C181: 1987-06-01 | D181: 1987 | E181: FALSE | F181: FALSE | G181: FALSE | H181: 4 | I181: 19.61666667 | J181: 56.54069363 | K181: 0.04726202845 | L181: 0.04617916653 | Z181: 1999-06-01 | AA181: 0.34757635 | AB181: 1999 | AC181: FALSE | AD181: FALSE | AE181: FALSE | AF181: 3 | AG181: 0.05106343018 | AH181: 0.04980244229 | AV181: 2013-07-01 | AW181: 8.840000153 | AX181: 2013 | AY181: FALSE | AZ181: FALSE | BA181: FALSE | BB181: 3 | BC181: -0.1548757055 | BD181: -0.1682715684
C182: 1987-07-01 | D182: 1987 | E182: FALSE | F182: FALSE | G182: FALSE | H182: 4 | I182: 18.81666667 | J182: 53.94002508 | K182: -0.04599640338 | L182: -0.0470878375 | Z182: 1999-07-01 | AA182: 0.4179364443 | AB182: 1999 | AC182: FALSE | AD182: FALSE | AE182: FALSE | AF182: 3 | AG182: 0.2024306151 | AH182: 0.1843450208 | AV182: 2013-08-01 | AW182: 10.11999989 | AX182: 2013 | AY182: FALSE | AZ182: FALSE | BA182: FALSE | BB182: 3 | BC182: 0.1447963474 | BD182: 0.1352267586
C183: 1987-08-01 | D183: 1987 | E183: FALSE | F183: FALSE | G183: FALSE | H183: 4 | I183: 18.28333333 | J183: 52.04987793 | K183: -0.035041644 | L183: -0.03567033297 | Z183: 1999-08-01 | AA183: 0.4897027612 | AB183: 1999 | AC183: FALSE | AD183: FALSE | AE183: FALSE | AF183: 3 | AG183: 0.1717158622 | AH183: 0.1584692234 | AV183: 2013-09-01 | AW183: 7.949999809 | AX183: 2013 | AY183: FALSE | AZ183: FALSE | BA183: FALSE | BB183: 3 | BC183: -0.2144268874 | BD183: -0.2413417479
C184: 1987-09-01 | D184: 1987 | E184: FALSE | F184: FALSE | G184: FALSE | H184: 4 | I184: 18.56666667 | J184: 53.13717668 | K184: 0.02088955428 | L184: 0.02067435927 | Z184: 1999-09-01 | AA184: 0.4751619101 | AB184: 1999 | AC184: FALSE | AD184: FALSE | AE184: FALSE | AF184: 3 | AG184: -0.02969321856 | AH184: -0.03014298796 | AV184: 2013-10-01 | AW184: 7.929999828 | AX184: 2013 | AY184: FALSE | AZ184: FALSE | BA184: FALSE | BB184: 3 | BC184: -0.002515720932 | BD184: -0.002518890675
C185: 1987-10-01 | D185: 1987 | E185: FALSE | F185: FALSE | G185: FALSE | H185: 4 | I185: 17.75 | J185: 50.12520311 | K185: -0.0566829808 | L185: -0.0583528713 | Z185: 1999-10-01 | AA185: 0.6013407111 | AB185: 1999 | AC185: FALSE | AD185: FALSE | AE185: FALSE | AF185: 3 | AG185: 0.2655490653 | AH185: 0.2355060717 | AV185: 2013-11-01 | AW185: 6.329999924 | AX185: 2013 | AY185: FALSE | AZ185: FALSE | BA185: FALSE | BB185: 3 | BC185: -0.20176544 | BD185: -0.2253527899
C186: 1987-11-01 | D186: 1987 | E186: FALSE | F186: FALSE | G186: FALSE | H186: 4 | I186: 16.63333333 | J186: 47.97656961 | K186: -0.04286533266 | L186: -0.0438111792 | Z186: 1999-11-01 | AA186: 0.7345548272 | AB186: 1999 | AC186: FALSE | AD186: FALSE | AE186: FALSE | AF186: 3 | AG186: 0.2215285173 | AH186: 0.2001029575 | AV186: 2013-12-01 | AW186: 7.440000057 | AX186: 2013 | AY186: FALSE | AZ186: FALSE | BA186: FALSE | BB186: 3 | BC186: 0.1753554734 | BD186: 0.1615706324
C187: 1987-12-01 | D187: 1987 | E187: FALSE | F187: FALSE | G187: FALSE | H187: 4 | I187: 16.46666667 | J187: 47.10453194 | K187: -0.01817632393 | L187: -0.01834354269 | Z187: 1999-12-01 | AA187: 0.7716110945 | AB187: 1999 | AC187: FALSE | AD187: FALSE | AE187: FALSE | AF187: 3 | AG187: 0.0504472449 | AH187: 0.049216021 | AV187: 2014-01-01 | AW187: 9.449999809 | AX187: 2014 | AY187: FALSE | AZ187: TRUE | BA187: FALSE | BB187: 3 | BC187: 0.2701612549 | BD187: 0.2391438648
C188: 1988-01-01 | D188: 1988 | E188: FALSE | F188: TRUE | G188: FALSE | H188: 4 | I188: 15.85 | J188: 43.884144 | K188: -0.06836683859 | L188: -0.07081614542 | Z188: 2000-01-01 | AA188: 0.7786466479 | AB188: 2000 | AC188: TRUE | AD188: TRUE | AE188: TRUE | AF188: 4 | AG188: 0.009118004531 | AH188: 0.009076686496 | AV188: 2014-02-01 | AW188: 10 | AX188: 2014 | AY188: FALSE | AZ188: FALSE | BA188: FALSE | BB188: 3 | BC188: 0.05820107956 | BD188: 0.05657037167
C189: 1988-02-01 | D189: 1988 | E189: FALSE | F189: FALSE | G189: FALSE | H189: 4 | I189: 14.78333333 | J189: 40.96562743 | K189: -0.06650503589 | L189: -0.06881971065 | Z189: 2000-02-01 | AA189: 0.8602641821 | AB189: 2000 | AC189: TRUE | AD189: FALSE | AE189: FALSE | AF189: 4 | AG189: 0.1048197335 | AH189: 0.0996821846 | AV189: 2014-03-01 | AW189: 8.079999924 | AX189: 2014 | AY189: FALSE | AZ189: FALSE | BA189: FALSE | BB189: 3 | BC189: -0.1920000076 | BD189: -0.2131932299
C190: 1988-03-01 | D190: 1988 | E190: FALSE | F190: FALSE | G190: FALSE | H190: 4 | I190: 16.46666667 | J190: 45.95601042 | K190: 0.1218187856 | L190: 0.1149512839 | Z190: 2000-03-01 | AA190: 1.019277096 | AB190: 2000 | AC190: TRUE | AD190: FALSE | AE190: FALSE | AF190: 4 | AG190: 0.1848419555 | AH190: 0.1696093948 | AV190: 2014-04-01 | AW190: 7.659999847 | AX190: 2014 | AY190: FALSE | AZ190: FALSE | BA190: FALSE | BB190: 3 | BC190: -0.05198020795 | BD190: -0.05337989926
C191: 1988-04-01 | D191: 1988 | E191: FALSE | F191: FALSE | G191: FALSE | H191: 4 | I191: 16.21666667 | J191: 45.25764982 | K191: -0.01519628427 | L191: -0.01531293104 | Z191: 2000-04-01 | AA191: 0.9310927987 | AB191: 2000 | AC191: TRUE | AD191: FALSE | AE191: FALSE | AF191: 4 | AG191: -0.08651651003 | AH191: -0.09048997671 | AV191: 2014-05-01 | AW191: 7.599999905 | AX191: 2014 | AY191: FALSE | AZ191: FALSE | BA191: FALSE | BB191: 3 | BC191: -0.007832890858 | BD191: -0.007863729088
C192: 1988-05-01 | D192: 1988 | E192: FALSE | F192: FALSE | G192: FALSE | H192: 4 | I192: 15.33333333 | J192: 42.77571437 | K192: -0.05484013121 | L192: -0.05640119247 | Z192: 2000-05-01 | AA192: 0.6304227114 | AB192: 2000 | AC192: TRUE | AD192: FALSE | AE192: FALSE | AF192: 4 | AG192: -0.3229217192 | AH192: -0.3899683839 | AV192: 2014-06-01 | AW192: 10.23999977 | AX192: 2014 | AY192: FALSE | AZ192: FALSE | BA192: FALSE | BB192: 3 | BC192: 0.3473684078 | BD192: 0.2981533625
C193: 1988-06-01 | D193: 1988 | E193: FALSE | F193: FALSE | G193: FALSE | H193: 4 | I193: 14.48333333 | J193: 40.85507078 | K193: -0.04490032753 | L193: -0.04593957487 | Z193: 2000-06-01 | AA193: 0.7861519456 | AB193: 2000 | AC193: TRUE | AD193: FALSE | AE193: FALSE | AF193: 4 | AG193: 0.2470235152 | AH193: 0.2207595239 | AV193: 2014-07-01 | AW193: 9.329999924 | AX193: 2014 | AY193: FALSE | AZ193: FALSE | BA193: FALSE | BB193: 3 | BC193: -0.08886717459 | BD193: -0.09306659058
C194: 1988-07-01 | D194: 1988 | E194: FALSE | F194: FALSE | G194: FALSE | H194: 4 | I194: 14.55 | J194: 40.8541536 | K194: -2.244965712e-05 | L194: -2.244990911e-05 | Z194: 2000-07-01 | AA194: 0.7626984119 | AB194: 2000 | AC194: TRUE | AD194: FALSE | AE194: FALSE | AF194: 4 | AG194: -0.0298333341 | AH194: -0.03028740173 | AV194: 2014-08-01 | AW194: 10.18000031 | AX194: 2014 | AY194: FALSE | AZ194: FALSE | BA194: FALSE | BB194: 3 | BC194: 0.09110400733 | BD194: 0.08719003442
C195: 1988-08-01 | D195: 1988 | E195: FALSE | F195: FALSE | G195: FALSE | H195: 4 | I195: 13.1 | J195: 36.22596148 | K195: -0.113285718 | L195: -0.1202324658 | Z195: 2000-08-01 | AA195: 0.9146757722 | AB195: 2000 | AC195: TRUE | AD195: FALSE | AE195: FALSE | AF195: 4 | AG195: 0.1992627202 | AH195: 0.1817069681 | AV195: 2014-09-01 | AW195: 9.93999958 | AX195: 2014 | AY195: FALSE | AZ195: FALSE | BA195: FALSE | BB195: 3 | BC195: -0.023575709 | BD195: -0.02385806265
C196: 1988-09-01 | D196: 1988 | E196: FALSE | F196: FALSE | G196: FALSE | H196: 4 | I196: 12.18333333 | J196: 33.79540977 | K196: -0.06709419459 | L196: -0.06945104206 | Z196: 2000-09-01 | AA196: 0.3865087032 | AB196: 2000 | AC196: TRUE | AD196: FALSE | AE196: FALSE | AF196: 4 | AG196: -0.5774363824 | AH196: -0.8614152693 | AV196: 2014-10-01 | AW196: 10.5 | AX196: 2014 | AY196: FALSE | AZ196: FALSE | BA196: FALSE | BB196: 3 | BC196: 0.05633807276 | BD196: 0.05480827871
C197: 1988-10-01 | D197: 1988 | E197: FALSE | F197: FALSE | G197: FALSE | H197: 4 | I197: 12.53333333 | J197: 35.16620101 | K197: 0.04056146235 | L197: 0.03976043512 | Z197: 2000-10-01 | AA197: 0.2936339974 | AB197: 2000 | AC197: TRUE | AD197: FALSE | AE197: FALSE | AF197: 4 | AG197: -0.2402913699 | AH197: -0.2748203007 | AV197: 2014-11-01 | AW197: 10.39000034 | AX197: 2014 | AY197: FALSE | AZ197: FALSE | BA197: FALSE | BB197: 3 | BC197: -0.01047615778 | BD197: -0.01053141901
C198: 1988-11-01 | D198: 1988 | E198: FALSE | F198: FALSE | G198: FALSE | H198: 4 | I198: 14.65 | J198: 40.84037771 | K198: 0.1613531329 | L198: 0.1495858192 | Z198: 2000-11-01 | AA198: 0.2476661056 | AB198: 2000 | AC198: TRUE | AD198: FALSE | AE198: FALSE | AF198: 4 | AG198: -0.1565482615 | AH198: -0.1702525944 | AV198: 2014-12-01 | AW198: 10.97999954 | AX198: 2014 | AY198: FALSE | AZ198: FALSE | BA198: FALSE | BB198: 3 | BC198: 0.05678529157 | BD198: 0.05523155624
C199: 1988-12-01 | D199: 1988 | E199: FALSE | F199: FALSE | G199: FALSE | H199: 4 | I199: 16.48333333 | J199: 45.66263143 | K199: 0.1180756396 | L199: 0.1116090287 | Z199: 2000-12-01 | AA199: 0.2232746333 | AB199: 2000 | AC199: TRUE | AD199: FALSE | AE199: FALSE | AF199: 4 | AG199: -0.09848530657 | AH199: -0.1036789376 | AV199: 2015-01-01 | AW199: 10.14999962 | AX199: 2015 | AY199: TRUE | AZ199: TRUE | BA199: TRUE | BB199: 4 | BC199: -0.07559198163 | BD199: -0.07860172649
C200: 1989-01-01 | D200: 1989 | E200: FALSE | F200: TRUE | G200: FALSE | H200: 4 | I200: 16.35 | J200: 44.55283588 | K200: -0.02430423996 | L200: -0.02460446243 | Z200: 2001-01-01 | AA200: 0.3245927989 | AB200: 2001 | AC200: FALSE | AD200: TRUE | AE200: FALSE | AF200: 4 | AG200: 0.4537826988 | AH200: 0.3741689173 | AV200: 2015-02-01 | AW200: 10.81000042 | AX200: 2015 | AY200: TRUE | AZ200: FALSE | BA200: FALSE | BB200: 4 | BC200: 0.06502471191 | BD200: 0.06299800256
C201: 1989-02-01 | D201: 1989 | E201: FALSE | F201: FALSE | G201: FALSE | H201: 4 | I201: 18.03333333 | J201: 49.84211042 | K201: 0.1187191439 | L201: 0.1121844094 | Z201: 2001-02-01 | AA201: 0.2739337087 | AB201: =YEAR(Z201) -> 2001 | AC201: =MOD(AB201,5)=0 -> FALSE | AD201: =MONTH(Z201)=1 -> FALSE | AE201: =AND(AD201,AC201) -> FALSE | AF201: 4 | AG201: -0.1560696677 | AH201: -0.1696853325 | AV201: 2015-03-01 | AW201: 8.930000305 | AX201: =YEAR(AV201) -> 2015 | AY201: =MOD(AX201,5)=0 -> TRUE | AZ201: =MONTH(AV201)=1 -> FALSE | BA201: =AND(AZ201,AY201) -> FALSE | BB201: =BA201+BB200 -> 4 | BC201: -0.1739130473 | BD201: -0.1910552414
C202: 1989-03-01 | D202: 1989 | E202: FALSE | F202: FALSE | G202: FALSE | H202: 4 | I202: 19.2 | J202: 52.42802993 | K202: =J202/J201-1 -> 0.05188222346 | L202: =LN(J202/J201) -> 0.05058115317 | Z202: 2001-03-01 | AA202: 0.3312718868 | AB202: 2001 | AC202: FALSE | AD202: FALSE | AE202: FALSE | AF202: =AF201+AE202 -> 4 | AG202: =AA202/AA201-1 -> 0.2093140652 | AH202: =LN(AA202/AA201) -> 0.1900533106 | AV202: 2015-04-01 | AW202: 10.15999985 | AX202: 2015 | AY202: TRUE | AZ202: FALSE | BA202: FALSE | BB202: 4 | BC202: =AW202/AW201-1 -> 0.137737906 | BD202: =LN(AW202/AW201) -> 0.1290419981
... 435 more rows

Sheet Time Line Video
C3: Work with Days instead of months
C4: Accumulate days for Construction
C5: Use time periods for construction and operation
C6: End up with days

Sheet InputC Partial Month
E2: Project IRR | G2: ='FM with Complex Timeline'!F26 -> 0.07255711854
B5: Timeline
D6: Financial Close Date | E6: Date | F6: 2026-08-14
D7: Construction End Date | E7: Date | F7: 2028-08-12
D8: Commercial Operation Date | E8: Date | F8: =F7+1 -> 2028-08-13
D9: Operating Life | E9: Years | F9: 40
D10: End of Operating Life | E10: Date | F10: =EDATE(F7,F9*months) -> 2068-08-12
D12: Construction Days | E12: Days | F12: =F7-F6 -> 729 | G12: =DATEDIF(F6,F7,"d") -> 729
D13: Operating Days | E13: Days | F13: =F10-F8 -> 14609 | G13: =DATEDIF(F8,F10,"d") -> 14609
D15: Months in period - construction | E15: months | F15: 1
D16: Months in period - operations | E16: months | F16: 1
B18: Operations
D20: Capex | E20: EUR | F20: 1000000
D21: EBITDA | E21: EUR | F21: 80000
D22: EBITDA/Day | E22: EUR | F22: =F21/365.24 -> 219.0340598
D23: EBITDA Growth - Annual | E23: % p.a. | F23: 0.02
B25: Debt Structuring
C26: Max Debt to Capital | E26: % | F26: 0.8
C27: Min DSCR | E27: x | F27: 1.4
C29: Debt Tenure | E29: Years | F29: 20
C31: Repayment Months | E31: Months | F31: 6
C32: Repayment Start | E32: Date | F32: =EOMONTH(F8,F31) -> 2029-02-28
C33: Second Repayment | E33: Date | F33: =EOMONTH(F32,F31) -> 2029-08-31
C35: First Repayment Month | E35: Month | F35: =MONTH(F32) -> 2
C36: Second Repayment Month | E36: Month | F36: =MONTH(F33) -> 8
C38: Start of Repayment Period | E38: Date | F38: =EOMONTH(F8,-1)+1 -> 2028-08-01
C39: End of Repayment | E39: Date | F39: =EOMONTH(F8,F29*12) -> 2048-08-31
C40: Years of Repayment | E40: Years | F40: =DATEDIF(F38,F39,"y") -> 20
C42: Base SOFR Swap Rate | E42: % p.a. | F42: 0.035
C43: Credit Spread | E43: % p.a. | F43: 1
C44: Credit Spread | E44: Description | F44: =INDEX(InputS!$C$6:$C$8,InputS!$E$3) -> Loan Agreeement
C46: Pro-Rata Funding | E46: Flag | F46: TRUE
C47: Equity Up-front | E47: Flag | F47: =NOT(F46) -> FALSE
B52: Valuation
D53: Risk Free Rate | E53: % p.a. | F53: 0.035
D54: Valuation Discount Rate | E54: % p.a. | F54: 0.06
B58: Constants
D59: Months in a year | F59: 12 | G59: months
D60: One Range Name | F60: 1 | G60: One

Sheet InputS
B2: Varying Credit Spreads
C3: Credit Spread Code Number | E3: ='InputC Partial Month'!F43 -> 1
I5: ='InputC Partial Month'!F6 -> 2026-08-14 | J5: ='InputC Partial Month'!F8 -> 2028-08-13 | K5: =EOMONTH(J5,24) -> 2030-08-31 | L5: =EOMONTH(K5,24) -> 2032-08-31 | M5: 2034-08-31 | N5: 2036-08-31
C6: Loan Agreeement | I6: 0.01 | J6: 0.012 | K6: 0.014 | L6: 0.015 | M6: 0.0155 | N6: 0.016
C7: Re-financing - Base | I7: 0.01 | J7: 0.012 | K7: 0.013 | L7: 0.013 | M7: 0.013 | N7: 0.013
C8: Re-financing - Low | I8: 0.01 | J8: 0.012 | K8: 0.012 | L8: 0.012 | M8: 0.012 | N8: 0.012
C10: =INDEX(C6:C8,$E$3) -> Loan Agreeement | I10: =INDEX(I6:I8,$E$3) -> 0.01 | J10: =INDEX(J6:J8,$E$3) -> 0.012 | K10: =INDEX(K6:K8,$E$3) -> 0.014 | L10: =INDEX(L6:L8,$E$3) -> 0.015 | M10: =INDEX(M6:M8,$E$3) -> 0.0155 | N10: =INDEX(N6:N8,$E$3) -> 0.016
B13: Seasonal Variation from Technical Analysis
J15: 1 | K15: 2 | L15: 3 | M15: 4 | N15: 5 | O15: 6 | P15: 7 | Q15: 8 | R15: 9 | S15: 10 | T15: 11 | U15: 12 | V15: 13 | W15: 14 | X15: 15 | Y15: 16 | Z15: 17 | AA15: 18 | AB15: 19 | AC15: 20 | AD15: 21 | AE15: 22 | AF15: 23 | AG15: 24 | AH15: 25 | AI15: 26 | AJ15: 27 | AK15: 28 | AL15: 29 | AM15: 30 | AN15: 31 | AO15: 32 | AP15: 33 | AQ15: 34 | AR15: 35 | AS15: 36 | AT15: 37 | AU15: 38 | AV15: 39 | AW15: 40 | AX15: 41 | AY15: 42 | AZ15: 43 | BA15: 44 | BB15: 45 | BC15: 46 | BD15: 47 | BE15: 48 | BF15: 49 | BG15: 50 | BH15: 51 | BI15: 52 | BJ15: 53 | BK15: 54 | BL15: 55 | BM15: 56 | BN15: 57 | BO15: 58 | BP15: 59 | BQ15: 60 | BR15: 61 | BS15: 62 | BT15: 63 | BU15: 64 | BV15: 65 | BW15: 66 | BX15: 67 | BY15: 68 | BZ15: 69 | CA15: 70 | CB15: 71 | CC15: 72 | CD15: 73 | CE15: 74 | CF15: 75 | CG15: 76 | CH15: 77 | CI15: 78 | CJ15: 79 | CK15: 80 | CL15: 81 | CM15: 82 | CN15: 83 | CO15: 84 | CP15: 85 | CQ15: 86 | CR15: 87 | CS15: 88 | CT15: 89 | CU15: 90 | CV15: 91 | CW15: 92 | CX15: 93 | CY15: 94 | CZ15: 95 | DA15: 96 | DB15: 97 | DC15: 98 | DD15: 99 | DE15: 100 | DF15: 101 | DG15: 102 | DH15: 103 | DI15: 104 | DJ15: 105 | DK15: 106 | DL15: 107 | DM15: 108 | DN15: 109 | DO15: 110 | DP15: 111 | DQ15: 112 | DR15: 113 | DS15: 114 | DT15: 115 | DU15: 116 | DV15: 117 | DW15: 118 | DX15: 119 | DY15: 120 | DZ15: 121 | EA15: 122 | EB15: 123 | EC15: 124 | ED15: 125 | EE15: 126 | EF15: 127 | EG15: 128 | EH15: 129 | EI15: 130 | EJ15: 131 | EK15: 132 | EL15: 133 | EM15: 134 | EN15: 135 | EO15: 136 | EP15: 137 | EQ15: 138 | ER15: 139 | ES15: 140 | ET15: 141 | EU15: 142 | EV15: 143 | EW15: 144 | EX15: 145 | EY15: 146 | EZ15: 147 | FA15: 148 | FB15: 149 | FC15: 150 | FD15: 151 | FE15: 152 | FF15: 153 | FG15: 154 | FH15: 155 | FI15: 156 | FJ15: 157 | FK15: 158 | FL15: 159 | FM15: 160 | FN15: 161 | FO15: 162 | FP15: 163 | FQ15: 164 | FR15: 165 | FS15: 166 | FT15: 167 | FU15: 168 | FV15: 169 | FW15: 170 | FX15: 171 | FY15: 172 | FZ15: 173 | GA15: 174 | GB15: 175 | GC15: 176 | GD15: 177 | GE15: 178 | GF15: 179 | GG15: 180 | GH15: 181 | GI15: 182 | GJ15: 183 | GK15: 184 | GL15: 185 | GM15: 186 | GN15: 187 | GO15: 188 | GP15: 189 | GQ15: 190 | GR15: 191 | GS15: 192 | GT15: 193 | GU15: 194 | GV15: 195 | GW15: 196 | GX15: 197 | GY15: 198 | GZ15: 199 | HA15: 200 | HB15: 201 | HC15: 202 | HD15: 203 | HE15: 204 | HF15: 205 | HG15: 206 | HH15: 207 | HI15: 208 | HJ15: 209 | HK15: 210 | HL15: 211 | HM15: 212 | HN15: 213 | HO15: 214 | HP15: 215 | HQ15: 216 | HR15: 217 | HS15: 218 | HT15: 219 | HU15: 220 | HV15: 221 | HW15: 222 | HX15: 223 | HY15: 224 | HZ15: 225 | IA15: 226 | IB15: 227 | IC15: 228 | ID15: 229 | IE15: 230 | IF15: 231 | IG15: 232 | IH15: 233 | II15: 234 | IJ15: 235 | IK15: 236 | IL15: 237 | IM15: 238 | IN15: 239 | IO15: 240 | IP15: 241 | IQ15: 242 | IR15: 243 | IS15: 244 | IT15: 245 | IU15: 246 | IV15: 247 | IW15: 248 | IX15: 249 | IY15: 250 | IZ15: 251 | JA15: 252 | JB15: 253 | JC15: 254 | JD15: 255 | JE15: 256 | JF15: 257 | JG15: 258 | JH15: 259 | JI15: 260 | JJ15: 261 | JK15: 262 | JL15: 263 | JM15: 264 | JN15: 265 | JO15: 266 | JP15: 267 | JQ15: 268 | JR15: 269 | JS15: 270 | JT15: 271 | JU15: 272 | JV15: 273 | JW15: 274 | JX15: 275 | JY15: 276 | JZ15: 277 | KA15: 278 | KB15: 279 | KC15: 280 | KD15: 281 | KE15: 282 | KF15: 283 | KG15: 284 | KH15: 285 | KI15: 286 | KJ15: 287 | KK15: 288 | KL15: 289 | KM15: 290 | KN15: 291 | KO15: 292 | KP15: 293 | KQ15: 294 | KR15: 295 | KS15: 296 | KT15: 297 | KU15: 298 | KV15: 299 | KW15: 300 | KX15: 301 | KY15: 302 | KZ15: 303 | LA15: 304 | LB15: 305 | LC15: 306 | LD15: 307 | LE15: 308 | LF15: 309 | LG15: 310 | LH15: 311 | LI15: 312 | LJ15: 313 | LK15: 314 | LL15: 315 | LM15: 316 | LN15: 317 | LO15: 318 | LP15: 319 | LQ15: 320 | LR15: 321 | LS15: 322 | LT15: 323 | LU15: 324 | LV15: 325 | LW15: 326 | LX15: 327 | LY15: 328 | LZ15: 329 | MA15: 330 | MB15: 331 | MC15: 332 | MD15: 333 | ME15: 334 | MF15: 335 | MG15: 336 | MH15: 337 | MI15: 338 | MJ15: 339 | MK15: 340 | ML15: 341 | MM15: 342 | MN15: 343 | MO15: 344 | MP15: 345 | MQ15: 346 | MR15: 347 | MS15: 348 | MT15: 349 | MU15: 350 | MV15: 351 | MW15: 352 | MX15: 353 | MY15: 354 | MZ15: 355 | NA15: 356 | NB15: 357 | NC15: 358 | ND15: 359 | NE15: 360 | NF15: 361 | NG15: 362 | NH15: 363 | NI15: 364 | NJ15: 365 | NK15: 366 | NL15: 367 | NM15: 368 | NN15: 369 | NO15: 370 | NP15: 371 | NQ15: 372 | NR15: 373 | NS15: 374 | NT15: 375 | NU15: 376 | NV15: 377 | NW15: 378 | NX15: 379 | NY15: 380 | NZ15: 381 | OA15: 382 | OB15: 383 | OC15: 384 | OD15: 385 | OE15: 386 | OF15: 387 | OG15: 388 | OH15: 389 | OI15: 390 | OJ15: 391 | OK15: 392 | OL15: 393 | OM15: 394 | ON15: 395 | OO15: 396 | OP15: 397 | OQ15: 398 | OR15: 399 | OS15: 400 | OT15: 401 | OU15: 402 | OV15: 403 | OW15: 404 | OX15: 405 | OY15: 406 | OZ15: 407 | PA15: 408 | PB15: 409 | PC15: 410 | PD15: 411 | PE15: 412 | PF15: 413 | PG15: 414 | PH15: 415 | PI15: 416 | PJ15: 417 | PK15: 418 | PL15: 419 | PM15: 420 | PN15: 421 | PO15: 422 | PP15: 423 | PQ15: 424 | PR15: 425 | PS15: 426 | PT15: 427 | PU15: 428 | PV15: 429 | PW15: 430 | PX15: 431 | PY15: 432 | PZ15: 433 | QA15: 434 | QB15: 435 | QC15: 436 | QD15: 437 | QE15: 438 | QF15: 439 | QG15: 440 | QH15: 441 | QI15: 442 | QJ15: 443 | QK15: 444 | QL15: 445 | QM15: 446 | QN15: 447 | QO15: 448 | QP15: 449 | QQ15: 450 | QR15: 451 | QS15: 452 | QT15: 453 | QU15: 454 | QV15: 455 | QW15: 456 | QX15: 457 | QY15: 458 | QZ15: 459 | RA15: 460 | RB15: 461 | RC15: 462 | RD15: 463 | RE15: 464 | RF15: 465 | RG15: 466 | RH15: 467 | RI15: 468 | RJ15: 469 | RK15: 470 | RL15: 471 | RM15: 472 | RN15: 473 | RO15: 474 | RP15: 475 | RQ15: 476 | RR15: 477 | RS15: 478 | RT15: 479 | RU15: 480 | RV15: 481 | RW15: 482 | RX15: 483 | RY15: 484 | RZ15: 485 | SA15: 486 | SB15: 487 | SC15: 488 | SD15: 489 | SE15: 490 | SF15: 491 | SG15: 492 | SH15: 493 | SI15: 494 | SJ15: 495 | SK15: 496 | SL15: 497 | SM15: 498 | SN15: 499 | SO15: 500 | SP15: 501 | SQ15: 502 | SR15: 503 | SS15: 504 | ST15: 505 | SU15: 506 | SV15: 507 | SW15: 508 | SX15: 509 | SY15: 510 | SZ15: 511 | TA15: 512 | TB15: 513 | TC15: 514 | TD15: 515 | TE15: 516 | TF15: 517 | TG15: 518 | TH15: 519 | TI15: 520 | TJ15: 521 | TK15: 522 | TL15: 523 | TM15: 524 | TN15: 525 | TO15: 526 | TP15: 527 | TQ15: 528 | TR15: 529 | TS15: 530 | TT15: 531 | TU15: 532 | TV15: 533 | TW15: 534 | TX15: 535 | TY15: 536 | TZ15: 537 | UA15: 538 | UB15: 539 | UC15: 540 | UD15: 541 | UE15: 542 | UF15: 543 | UG15: 544 | UH15: 545 | UI15: 546 | UJ15: 547 | UK15: 548 | UL15: 549 | UM15: 550
J16: ='Complex Time Line'!K9 -> 2026-08-14 | K16: ='Complex Time Line'!L9 -> 2026-09-01 | L16: ='Complex Time Line'!M9 -> 2026-10-01 | M16: ='Complex Time Line'!N9 -> 2026-11-01 | N16: ='Complex Time Line'!O9 -> 2026-12-01 | O16: ='Complex Time Line'!P9 -> 2027-01-01 | P16: ='Complex Time Line'!Q9 -> 2027-02-01 | Q16: ='Complex Time Line'!R9 -> 2027-03-01 | R16: ='Complex Time Line'!S9 -> 2027-04-01 | S16: ='Complex Time Line'!T9 -> 2027-05-01 | T16: ='Complex Time Line'!U9 -> 2027-06-01 | U16: ='Complex Time Line'!V9 -> 2027-07-01 | V16: ='Complex Time Line'!W9 -> 2027-08-01 | W16: ='Complex Time Line'!X9 -> 2027-09-01 | X16: ='Complex Time Line'!Y9 -> 2027-10-01 | Y16: ='Complex Time Line'!Z9 -> 2027-11-01 | Z16: ='Complex Time Line'!AA9 -> 2027-12-01 | AA16: ='Complex Time Line'!AB9 -> 2028-01-01 | AB16: ='Complex Time Line'!AC9 -> 2028-02-01 | AC16: ='Complex Time Line'!AD9 -> 2028-03-01 | AD16: ='Complex Time Line'!AE9 -> 2028-04-01 | AE16: ='Complex Time Line'!AF9 -> 2028-05-01 | AF16: ='Complex Time Line'!AG9 -> 2028-06-01 | AG16: ='Complex Time Line'!AH9 -> 2028-07-01 | AH16: ='Complex Time Line'!AI9 -> 2028-08-01 | AI16: ='Complex Time Line'!AJ9 -> 2028-09-01 | AJ16: ='Complex Time Line'!AK9 -> 2028-10-01 | AK16: ='Complex Time Line'!AL9 -> 2028-11-01 | AL16: ='Complex Time Line'!AM9 -> 2028-12-01 | AM16: ='Complex Time Line'!AN9 -> 2029-01-01 | AN16: ='Complex Time Line'!AO9 -> 2029-02-01 | AO16: ='Complex Time Line'!AP9 -> 2029-03-01 | AP16: ='Complex Time Line'!AQ9 -> 2029-04-01 | AQ16: ='Complex Time Line'!AR9 -> 2029-05-01 | AR16: ='Complex Time Line'!AS9 -> 2029-06-01 | AS16: ='Complex Time Line'!AT9 -> 2029-07-01 | AT16: ='Complex Time Line'!AU9 -> 2029-08-01 | AU16: ='Complex Time Line'!AV9 -> 2029-09-01 | AV16: ='Complex Time Line'!AW9 -> 2029-10-01 | AW16: ='Complex Time Line'!AX9 -> 2029-11-01 | AX16: ='Complex Time Line'!AY9 -> 2029-12-01 | AY16: ='Complex Time Line'!AZ9 -> 2030-01-01 | AZ16: ='Complex Time Line'!BA9 -> 2030-02-01 | BA16: ='Complex Time Line'!BB9 -> 2030-03-01 | BB16: ='Complex Time Line'!BC9 -> 2030-04-01 | BC16: ='Complex Time Line'!BD9 -> 2030-05-01 | BD16: ='Complex Time Line'!BE9 -> 2030-06-01 | BE16: ='Complex Time Line'!BF9 -> 2030-07-01 | BF16: ='Complex Time Line'!BG9 -> 2030-08-01 | BG16: ='Complex Time Line'!BH9 -> 2030-09-01 | BH16: ='Complex Time Line'!BI9 -> 2030-10-01 | BI16: ='Complex Time Line'!BJ9 -> 2030-11-01 | BJ16: ='Complex Time Line'!BK9 -> 2030-12-01 | BK16: ='Complex Time Line'!BL9 -> 2031-01-01 | BL16: ='Complex Time Line'!BM9 -> 2031-02-01 | BM16: ='Complex Time Line'!BN9 -> 2031-03-01 | BN16: ='Complex Time Line'!BO9 -> 2031-04-01 | BO16: ='Complex Time Line'!BP9 -> 2031-05-01 | BP16: ='Complex Time Line'!BQ9 -> 2031-06-01 | BQ16: ='Complex Time Line'!BR9 -> 2031-07-01 | BR16: ='Complex Time Line'!BS9 -> 2031-08-01 | BS16: ='Complex Time Line'!BT9 -> 2031-09-01 | BT16: ='Complex Time Line'!BU9 -> 2031-10-01 | BU16: ='Complex Time Line'!BV9 -> 2031-11-01 | BV16: ='Complex Time Line'!BW9 -> 2031-12-01 | BW16: ='Complex Time Line'!BX9 -> 2032-01-01 | BX16: ='Complex Time Line'!BY9 -> 2032-02-01 | BY16: ='Complex Time Line'!BZ9 -> 2032-03-01 | BZ16: ='Complex Time Line'!CA9 -> 2032-04-01 | CA16: ='Complex Time Line'!CB9 -> 2032-05-01 | CB16: ='Complex Time Line'!CC9 -> 2032-06-01 | CC16: ='Complex Time Line'!CD9 -> 2032-07-01 | CD16: ='Complex Time Line'!CE9 -> 2032-08-01 | CE16: ='Complex Time Line'!CF9 -> 2032-09-01 | CF16: ='Complex Time Line'!CG9 -> 2032-10-01 | CG16: ='Complex Time Line'!CH9 -> 2032-11-01 | CH16: ='Complex Time Line'!CI9 -> 2032-12-01 | CI16: ='Complex Time Line'!CJ9 -> 2033-01-01 | CJ16: ='Complex Time Line'!CK9 -> 2033-02-01 | CK16: ='Complex Time Line'!CL9 -> 2033-03-01 | CL16: ='Complex Time Line'!CM9 -> 2033-04-01 | CM16: ='Complex Time Line'!CN9 -> 2033-05-01 | CN16: ='Complex Time Line'!CO9 -> 2033-06-01 | CO16: ='Complex Time Line'!CP9 -> 2033-07-01 | CP16: ='Complex Time Line'!CQ9 -> 2033-08-01 | CQ16: ='Complex Time Line'!CR9 -> 2033-09-01 | CR16: ='Complex Time Line'!CS9 -> 2033-10-01 | CS16: ='Complex Time Line'!CT9 -> 2033-11-01 | CT16: ='Complex Time Line'!CU9 -> 2033-12-01 | CU16: ='Complex Time Line'!CV9 -> 2034-01-01 | CV16: ='Complex Time Line'!CW9 -> 2034-02-01 | CW16: ='Complex Time Line'!CX9 -> 2034-03-01 | CX16: ='Complex Time Line'!CY9 -> 2034-04-01 | CY16: ='Complex Time Line'!CZ9 -> 2034-05-01 | CZ16: ='Complex Time Line'!DA9 -> 2034-06-01 | DA16: ='Complex Time Line'!DB9 -> 2034-07-01 | DB16: ='Complex Time Line'!DC9 -> 2034-08-01 | DC16: ='Complex Time Line'!DD9 -> 2034-09-01 | DD16: ='Complex Time Line'!DE9 -> 2034-10-01 | DE16: ='Complex Time Line'!DF9 -> 2034-11-01 | DF16: ='Complex Time Line'!DG9 -> 2034-12-01 | DG16: ='Complex Time Line'!DH9 -> 2035-01-01 | DH16: ='Complex Time Line'!DI9 -> 2035-02-01 | DI16: ='Complex Time Line'!DJ9 -> 2035-03-01 | DJ16: ='Complex Time Line'!DK9 -> 2035-04-01 | DK16: ='Complex Time Line'!DL9 -> 2035-05-01 | DL16: ='Complex Time Line'!DM9 -> 2035-06-01 | DM16: ='Complex Time Line'!DN9 -> 2035-07-01 | DN16: ='Complex Time Line'!DO9 -> 2035-08-01 | DO16: ='Complex Time Line'!DP9 -> 2035-09-01 | DP16: ='Complex Time Line'!DQ9 -> 2035-10-01 | DQ16: ='Complex Time Line'!DR9 -> 2035-11-01 | DR16: ='Complex Time Line'!DS9 -> 2035-12-01 | DS16: ='Complex Time Line'!DT9 -> 2036-01-01 | DT16: ='Complex Time Line'!DU9 -> 2036-02-01 | DU16: ='Complex Time Line'!DV9 -> 2036-03-01 | DV16: ='Complex Time Line'!DW9 -> 2036-04-01 | DW16: ='Complex Time Line'!DX9 -> 2036-05-01 | DX16: ='Complex Time Line'!DY9 -> 2036-06-01 | DY16: ='Complex Time Line'!DZ9 -> 2036-07-01 | DZ16: ='Complex Time Line'!EA9 -> 2036-08-01 | EA16: ='Complex Time Line'!EB9 -> 2036-09-01 | EB16: ='Complex Time Line'!EC9 -> 2036-10-01 | EC16: ='Complex Time Line'!ED9 -> 2036-11-01 | ED16: ='Complex Time Line'!EE9 -> 2036-12-01 | EE16: ='Complex Time Line'!EF9 -> 2037-01-01 | EF16: ='Complex Time Line'!EG9 -> 2037-02-01 | EG16: ='Complex Time Line'!EH9 -> 2037-03-01 | EH16: ='Complex Time Line'!EI9 -> 2037-04-01 | EI16: ='Complex Time Line'!EJ9 -> 2037-05-01 | EJ16: ='Complex Time Line'!EK9 -> 2037-06-01 | EK16: ='Complex Time Line'!EL9 -> 2037-07-01 | EL16: ='Complex Time Line'!EM9 -> 2037-08-01 | EM16: ='Complex Time Line'!EN9 -> 2037-09-01 | EN16: ='Complex Time Line'!EO9 -> 2037-10-01 | EO16: ='Complex Time Line'!EP9 -> 2037-11-01 | EP16: ='Complex Time Line'!EQ9 -> 2037-12-01 | EQ16: ='Complex Time Line'!ER9 -> 2038-01-01 | ER16: ='Complex Time Line'!ES9 -> 2038-02-01 | ES16: ='Complex Time Line'!ET9 -> 2038-03-01 | ET16: ='Complex Time Line'!EU9 -> 2038-04-01 | EU16: ='Complex Time Line'!EV9 -> 2038-05-01 | EV16: ='Complex Time Line'!EW9 -> 2038-06-01 | EW16: ='Complex Time Line'!EX9 -> 2038-07-01 | EX16: ='Complex Time Line'!EY9 -> 2038-08-01 | EY16: ='Complex Time Line'!EZ9 -> 2038-09-01 | EZ16: ='Complex Time Line'!FA9 -> 2038-10-01 | FA16: ='Complex Time Line'!FB9 -> 2038-11-01 | FB16: ='Complex Time Line'!FC9 -> 2038-12-01 | FC16: ='Complex Time Line'!FD9 -> 2039-01-01 | FD16: ='Complex Time Line'!FE9 -> 2039-02-01 | FE16: ='Complex Time Line'!FF9 -> 2039-03-01 | FF16: ='Complex Time Line'!FG9 -> 2039-04-01 | FG16: ='Complex Time Line'!FH9 -> 2039-05-01 | FH16: ='Complex Time Line'!FI9 -> 2039-06-01 | FI16: ='Complex Time Line'!FJ9 -> 2039-07-01 | FJ16: ='Complex Time Line'!FK9 -> 2039-08-01 | FK16: ='Complex Time Line'!FL9 -> 2039-09-01 | FL16: ='Complex Time Line'!FM9 -> 2039-10-01 | FM16: ='Complex Time Line'!FN9 -> 2039-11-01 | FN16: ='Complex Time Line'!FO9 -> 2039-12-01 | FO16: ='Complex Time Line'!FP9 -> 2040-01-01 | FP16: ='Complex Time Line'!FQ9 -> 2040-02-01 | FQ16: ='Complex Time Line'!FR9 -> 2040-03-01 | FR16: ='Complex Time Line'!FS9 -> 2040-04-01 | FS16: ='Complex Time Line'!FT9 -> 2040-05-01 | FT16: ='Complex Time Line'!FU9 -> 2040-06-01 | FU16: ='Complex Time Line'!FV9 -> 2040-07-01 | FV16: ='Complex Time Line'!FW9 -> 2040-08-01 | FW16: ='Complex Time Line'!FX9 -> 2040-09-01 | FX16: ='Complex Time Line'!FY9 -> 2040-10-01 | FY16: ='Complex Time Line'!FZ9 -> 2040-11-01 | FZ16: ='Complex Time Line'!GA9 -> 2040-12-01 | GA16: ='Complex Time Line'!GB9 -> 2041-01-01 | GB16: ='Complex Time Line'!GC9 -> 2041-02-01 | GC16: ='Complex Time Line'!GD9 -> 2041-03-01 | GD16: ='Complex Time Line'!GE9 -> 2041-04-01 | GE16: ='Complex Time Line'!GF9 -> 2041-05-01 | GF16: ='Complex Time Line'!GG9 -> 2041-06-01 | GG16: ='Complex Time Line'!GH9 -> 2041-07-01 | GH16: ='Complex Time Line'!GI9 -> 2041-08-01 | GI16: ='Complex Time Line'!GJ9 -> 2041-09-01 | GJ16: ='Complex Time Line'!GK9 -> 2041-10-01 | GK16: ='Complex Time Line'!GL9 -> 2041-11-01 | GL16: ='Complex Time Line'!GM9 -> 2041-12-01 | GM16: ='Complex Time Line'!GN9 -> 2042-01-01 | GN16: ='Complex Time Line'!GO9 -> 2042-02-01 | GO16: ='Complex Time Line'!GP9 -> 2042-03-01 | GP16: ='Complex Time Line'!GQ9 -> 2042-04-01 | GQ16: ='Complex Time Line'!GR9 -> 2042-05-01 | GR16: ='Complex Time Line'!GS9 -> 2042-06-01 | GS16: ='Complex Time Line'!GT9 -> 2042-07-01 | GT16: ='Complex Time Line'!GU9 -> 2042-08-01 | GU16: ='Complex Time Line'!GV9 -> 2042-09-01 | GV16: ='Complex Time Line'!GW9 -> 2042-10-01 | GW16: ='Complex Time Line'!GX9 -> 2042-11-01 | GX16: ='Complex Time Line'!GY9 -> 2042-12-01 | GY16: ='Complex Time Line'!GZ9 -> 2043-01-01 | GZ16: ='Complex Time Line'!HA9 -> 2043-02-01 | HA16: ='Complex Time Line'!HB9 -> 2043-03-01 | HB16: ='Complex Time Line'!HC9 -> 2043-04-01 | HC16: ='Complex Time Line'!HD9 -> 2043-05-01 | HD16: ='Complex Time Line'!HE9 -> 2043-06-01 | HE16: ='Complex Time Line'!HF9 -> 2043-07-01 | HF16: ='Complex Time Line'!HG9 -> 2043-08-01 | HG16: ='Complex Time Line'!HH9 -> 2043-09-01 | HH16: ='Complex Time Line'!HI9 -> 2043-10-01 | HI16: ='Complex Time Line'!HJ9 -> 2043-11-01 | HJ16: ='Complex Time Line'!HK9 -> 2043-12-01 | HK16: ='Complex Time Line'!HL9 -> 2044-01-01 | HL16: ='Complex Time Line'!HM9 -> 2044-02-01 | HM16: ='Complex Time Line'!HN9 -> 2044-03-01 | HN16: ='Complex Time Line'!HO9 -> 2044-04-01 | HO16: ='Complex Time Line'!HP9 -> 2044-05-01 | HP16: ='Complex Time Line'!HQ9 -> 2044-06-01 | HQ16: ='Complex Time Line'!HR9 -> 2044-07-01 | HR16: ='Complex Time Line'!HS9 -> 2044-08-01 | HS16: ='Complex Time Line'!HT9 -> 2044-09-01 | HT16: ='Complex Time Line'!HU9 -> 2044-10-01 | HU16: ='Complex Time Line'!HV9 -> 2044-11-01 | HV16: ='Complex Time Line'!HW9 -> 2044-12-01 | HW16: ='Complex Time Line'!HX9 -> 2045-01-01 | HX16: ='Complex Time Line'!HY9 -> 2045-02-01 | HY16: ='Complex Time Line'!HZ9 -> 2045-03-01 | HZ16: ='Complex Time Line'!IA9 -> 2045-04-01 | IA16: ='Complex Time Line'!IB9 -> 2045-05-01 | IB16: ='Complex Time Line'!IC9 -> 2045-06-01 | IC16: ='Complex Time Line'!ID9 -> 2045-07-01 | ID16: ='Complex Time Line'!IE9 -> 2045-08-01 | IE16: ='Complex Time Line'!IF9 -> 2045-09-01 | IF16: ='Complex Time Line'!IG9 -> 2045-10-01 | IG16: ='Complex Time Line'!IH9 -> 2045-11-01 | IH16: ='Complex Time Line'!II9 -> 2045-12-01 | II16: ='Complex Time Line'!IJ9 -> 2046-01-01 | IJ16: ='Complex Time Line'!IK9 -> 2046-02-01 | IK16: ='Complex Time Line'!IL9 -> 2046-03-01 | IL16: ='Complex Time Line'!IM9 -> 2046-04-01 | IM16: ='Complex Time Line'!IN9 -> 2046-05-01 | IN16: ='Complex Time Line'!IO9 -> 2046-06-01 | IO16: ='Complex Time Line'!IP9 -> 2046-07-01 | IP16: ='Complex Time Line'!IQ9 -> 2046-08-01 | IQ16: ='Complex Time Line'!IR9 -> 2046-09-01 | IR16: ='Complex Time Line'!IS9 -> 2046-10-01 | IS16: ='Complex Time Line'!IT9 -> 2046-11-01 | IT16: ='Complex Time Line'!IU9 -> 2046-12-01 | IU16: ='Complex Time Line'!IV9 -> 2047-01-01 | IV16: ='Complex Time Line'!IW9 -> 2047-02-01 | IW16: ='Complex Time Line'!IX9 -> 2047-03-01 | IX16: ='Complex Time Line'!IY9 -> 2047-04-01 | IY16: ='Complex Time Line'!IZ9 -> 2047-05-01 | IZ16: ='Complex Time Line'!JA9 -> 2047-06-01 | JA16: ='Complex Time Line'!JB9 -> 2047-07-01 | JB16: ='Complex Time Line'!JC9 -> 2047-08-01 | JC16: ='Complex Time Line'!JD9 -> 2047-09-01 | JD16: ='Complex Time Line'!JE9 -> 2047-10-01 | JE16: ='Complex Time Line'!JF9 -> 2047-11-01 | JF16: ='Complex Time Line'!JG9 -> 2047-12-01 | JG16: ='Complex Time Line'!JH9 -> 2048-01-01 | JH16: ='Complex Time Line'!JI9 -> 2048-02-01 | JI16: ='Complex Time Line'!JJ9 -> 2048-03-01 | JJ16: ='Complex Time Line'!JK9 -> 2048-04-01 | JK16: ='Complex Time Line'!JL9 -> 2048-05-01 | JL16: ='Complex Time Line'!JM9 -> 2048-06-01 | JM16: ='Complex Time Line'!JN9 -> 2048-07-01 | JN16: ='Complex Time Line'!JO9 -> 2048-08-01 | JO16: ='Complex Time Line'!JP9 -> 2048-09-01 | JP16: ='Complex Time Line'!JQ9 -> 2048-10-01 | JQ16: ='Complex Time Line'!JR9 -> 2048-11-01 | JR16: ='Complex Time Line'!JS9 -> 2048-12-01 | JS16: ='Complex Time Line'!JT9 -> 2049-01-01 | JT16: ='Complex Time Line'!JU9 -> 2049-02-01 | JU16: ='Complex Time Line'!JV9 -> 2049-03-01 | JV16: ='Complex Time Line'!JW9 -> 2049-04-01 | JW16: ='Complex Time Line'!JX9 -> 2049-05-01 | JX16: ='Complex Time Line'!JY9 -> 2049-06-01 | JY16: ='Complex Time Line'!JZ9 -> 2049-07-01 | JZ16: ='Complex Time Line'!KA9 -> 2049-08-01 | KA16: ='Complex Time Line'!KB9 -> 2049-09-01 | KB16: ='Complex Time Line'!KC9 -> 2049-10-01 | KC16: ='Complex Time Line'!KD9 -> 2049-11-01 | KD16: ='Complex Time Line'!KE9 -> 2049-12-01 | KE16: ='Complex Time Line'!KF9 -> 2050-01-01 | KF16: ='Complex Time Line'!KG9 -> 2050-02-01 | KG16: ='Complex Time Line'!KH9 -> 2050-03-01 | KH16: ='Complex Time Line'!KI9 -> 2050-04-01 | KI16: ='Complex Time Line'!KJ9 -> 2050-05-01 | KJ16: ='Complex Time Line'!KK9 -> 2050-06-01 | KK16: ='Complex Time Line'!KL9 -> 2050-07-01 | KL16: ='Complex Time Line'!KM9 -> 2050-08-01 | KM16: ='Complex Time Line'!KN9 -> 2050-09-01 | KN16: ='Complex Time Line'!KO9 -> 2050-10-01 | KO16: ='Complex Time Line'!KP9 -> 2050-11-01 | KP16: ='Complex Time Line'!KQ9 -> 2050-12-01 | KQ16: ='Complex Time Line'!KR9 -> 2051-01-01 | KR16: ='Complex Time Line'!KS9 -> 2051-02-01 | KS16: ='Complex Time Line'!KT9 -> 2051-03-01 | KT16: ='Complex Time Line'!KU9 -> 2051-04-01 | KU16: ='Complex Time Line'!KV9 -> 2051-05-01 | KV16: ='Complex Time Line'!KW9 -> 2051-06-01 | KW16: ='Complex Time Line'!KX9 -> 2051-07-01 | KX16: ='Complex Time Line'!KY9 -> 2051-08-01 | KY16: ='Complex Time Line'!KZ9 -> 2051-09-01 | KZ16: ='Complex Time Line'!LA9 -> 2051-10-01 | LA16: ='Complex Time Line'!LB9 -> 2051-11-01 | LB16: ='Complex Time Line'!LC9 -> 2051-12-01 | LC16: ='Complex Time Line'!LD9 -> 2052-01-01 | LD16: ='Complex Time Line'!LE9 -> 2052-02-01 | LE16: ='Complex Time Line'!LF9 -> 2052-03-01 | LF16: ='Complex Time Line'!LG9 -> 2052-04-01 | LG16: ='Complex Time Line'!LH9 -> 2052-05-01 | LH16: ='Complex Time Line'!LI9 -> 2052-06-01 | LI16: ='Complex Time Line'!LJ9 -> 2052-07-01 | LJ16: ='Complex Time Line'!LK9 -> 2052-08-01 | LK16: ='Complex Time Line'!LL9 -> 2052-09-01 | LL16: ='Complex Time Line'!LM9 -> 2052-10-01 | LM16: ='Complex Time Line'!LN9 -> 2052-11-01 | LN16: ='Complex Time Line'!LO9 -> 2052-12-01 | LO16: ='Complex Time Line'!LP9 -> 2053-01-01 | LP16: ='Complex Time Line'!LQ9 -> 2053-02-01 | LQ16: ='Complex Time Line'!LR9 -> 2053-03-01 | LR16: ='Complex Time Line'!LS9 -> 2053-04-01 | LS16: ='Complex Time Line'!LT9 -> 2053-05-01 | LT16: ='Complex Time Line'!LU9 -> 2053-06-01 | LU16: ='Complex Time Line'!LV9 -> 2053-07-01 | LV16: ='Complex Time Line'!LW9 -> 2053-08-01 | LW16: ='Complex Time Line'!LX9 -> 2053-09-01 | LX16: ='Complex Time Line'!LY9 -> 2053-10-01 | LY16: ='Complex Time Line'!LZ9 -> 2053-11-01 | LZ16: ='Complex Time Line'!MA9 -> 2053-12-01 | MA16: ='Complex Time Line'!MB9 -> 2054-01-01 | MB16: ='Complex Time Line'!MC9 -> 2054-02-01 | MC16: ='Complex Time Line'!MD9 -> 2054-03-01 | MD16: ='Complex Time Line'!ME9 -> 2054-04-01 | ME16: ='Complex Time Line'!MF9 -> 2054-05-01 | MF16: ='Complex Time Line'!MG9 -> 2054-06-01 | MG16: ='Complex Time Line'!MH9 -> 2054-07-01 | MH16: ='Complex Time Line'!MI9 -> 2054-08-01 | MI16: ='Complex Time Line'!MJ9 -> 2054-09-01 | MJ16: ='Complex Time Line'!MK9 -> 2054-10-01 | MK16: ='Complex Time Line'!ML9 -> 2054-11-01 | ML16: ='Complex Time Line'!MM9 -> 2054-12-01 | MM16: ='Complex Time Line'!MN9 -> 2055-01-01 | MN16: ='Complex Time Line'!MO9 -> 2055-02-01 | MO16: ='Complex Time Line'!MP9 -> 2055-03-01 | MP16: ='Complex Time Line'!MQ9 -> 2055-04-01 | MQ16: ='Complex Time Line'!MR9 -> 2055-05-01 | MR16: ='Complex Time Line'!MS9 -> 2055-06-01 | MS16: ='Complex Time Line'!MT9 -> 2055-07-01 | MT16: ='Complex Time Line'!MU9 -> 2055-08-01 | MU16: ='Complex Time Line'!MV9 -> 2055-09-01 | MV16: ='Complex Time Line'!MW9 -> 2055-10-01 | MW16: ='Complex Time Line'!MX9 -> 2055-11-01 | MX16: ='Complex Time Line'!MY9 -> 2055-12-01 | MY16: ='Complex Time Line'!MZ9 -> 2056-01-01 | MZ16: ='Complex Time Line'!NA9 -> 2056-02-01 | NA16: ='Complex Time Line'!NB9 -> 2056-03-01 | NB16: ='Complex Time Line'!NC9 -> 2056-04-01 | NC16: ='Complex Time Line'!ND9 -> 2056-05-01 | ND16: ='Complex Time Line'!NE9 -> 2056-06-01 | NE16: ='Complex Time Line'!NF9 -> 2056-07-01 | NF16: ='Complex Time Line'!NG9 -> 2056-08-01 | NG16: ='Complex Time Line'!NH9 -> 2056-09-01 | NH16: ='Complex Time Line'!NI9 -> 2056-10-01 | NI16: ='Complex Time Line'!NJ9 -> 2056-11-01 | NJ16: ='Complex Time Line'!NK9 -> 2056-12-01 | NK16: ='Complex Time Line'!NL9 -> 2057-01-01 | NL16: ='Complex Time Line'!NM9 -> 2057-02-01 | NM16: ='Complex Time Line'!NN9 -> 2057-03-01 | NN16: ='Complex Time Line'!NO9 -> 2057-04-01 | NO16: ='Complex Time Line'!NP9 -> 2057-05-01 | NP16: ='Complex Time Line'!NQ9 -> 2057-06-01 | NQ16: ='Complex Time Line'!NR9 -> 2057-07-01 | NR16: ='Complex Time Line'!NS9 -> 2057-08-01 | NS16: ='Complex Time Line'!NT9 -> 2057-09-01 | NT16: ='Complex Time Line'!NU9 -> 2057-10-01 | NU16: ='Complex Time Line'!NV9 -> 2057-11-01 | NV16: ='Complex Time Line'!NW9 -> 2057-12-01 | NW16: ='Complex Time Line'!NX9 -> 2058-01-01 | NX16: ='Complex Time Line'!NY9 -> 2058-02-01 | NY16: ='Complex Time Line'!NZ9 -> 2058-03-01 | NZ16: ='Complex Time Line'!OA9 -> 2058-04-01 | OA16: ='Complex Time Line'!OB9 -> 2058-05-01 | OB16: ='Complex Time Line'!OC9 -> 2058-06-01 | OC16: ='Complex Time Line'!OD9 -> 2058-07-01 | OD16: ='Complex Time Line'!OE9 -> 2058-08-01 | OE16: ='Complex Time Line'!OF9 -> 2058-09-01 | OF16: ='Complex Time Line'!OG9 -> 2058-10-01 | OG16: ='Complex Time Line'!OH9 -> 2058-11-01 | OH16: ='Complex Time Line'!OI9 -> 2058-12-01 | OI16: ='Complex Time Line'!OJ9 -> 2059-01-01 | OJ16: ='Complex Time Line'!OK9 -> 2059-02-01 | OK16: ='Complex Time Line'!OL9 -> 2059-03-01 | OL16: ='Complex Time Line'!OM9 -> 2059-04-01 | OM16: ='Complex Time Line'!ON9 -> 2059-05-01 | ON16: ='Complex Time Line'!OO9 -> 2059-06-01 | OO16: ='Complex Time Line'!OP9 -> 2059-07-01 | OP16: ='Complex Time Line'!OQ9 -> 2059-08-01 | OQ16: ='Complex Time Line'!OR9 -> 2059-09-01 | OR16: ='Complex Time Line'!OS9 -> 2059-10-01 | OS16: ='Complex Time Line'!OT9 -> 2059-11-01 | OT16: ='Complex Time Line'!OU9 -> 2059-12-01 | OU16: ='Complex Time Line'!OV9 -> 2060-01-01 | OV16: ='Complex Time Line'!OW9 -> 2060-02-01 | OW16: ='Complex Time Line'!OX9 -> 2060-03-01 | OX16: ='Complex Time Line'!OY9 -> 2060-04-01 | OY16: ='Complex Time Line'!OZ9 -> 2060-05-01 | OZ16: ='Complex Time Line'!PA9 -> 2060-06-01 | PA16: ='Complex Time Line'!PB9 -> 2060-07-01 | PB16: ='Complex Time Line'!PC9 -> 2060-08-01 | PC16: ='Complex Time Line'!PD9 -> 2060-09-01 | PD16: ='Complex Time Line'!PE9 -> 2060-10-01 | PE16: ='Complex Time Line'!PF9 -> 2060-11-01 | PF16: ='Complex Time Line'!PG9 -> 2060-12-01 | PG16: ='Complex Time Line'!PH9 -> 2061-01-01 | PH16: ='Complex Time Line'!PI9 -> 2061-02-01 | PI16: ='Complex Time Line'!PJ9 -> 2061-03-01 | PJ16: ='Complex Time Line'!PK9 -> 2061-04-01 | PK16: ='Complex Time Line'!PL9 -> 2061-05-01 | PL16: ='Complex Time Line'!PM9 -> 2061-06-01 | PM16: ='Complex Time Line'!PN9 -> 2061-07-01 | PN16: ='Complex Time Line'!PO9 -> 2061-08-01 | PO16: ='Complex Time Line'!PP9 -> 2061-09-01 | PP16: ='Complex Time Line'!PQ9 -> 2061-10-01 | PQ16: ='Complex Time Line'!PR9 -> 2061-11-01 | PR16: ='Complex Time Line'!PS9 -> 2061-12-01 | PS16: ='Complex Time Line'!PT9 -> 2062-01-01 | PT16: ='Complex Time Line'!PU9 -> 2062-02-01 | PU16: ='Complex Time Line'!PV9 -> 2062-03-01 | PV16: ='Complex Time Line'!PW9 -> 2062-04-01 | PW16: ='Complex Time Line'!PX9 -> 2062-05-01 | PX16: ='Complex Time Line'!PY9 -> 2062-06-01 | PY16: ='Complex Time Line'!PZ9 -> 2062-07-01 | PZ16: ='Complex Time Line'!QA9 -> 2062-08-01 | QA16: ='Complex Time Line'!QB9 -> 2062-09-01 | QB16: ='Complex Time Line'!QC9 -> 2062-10-01 | QC16: ='Complex Time Line'!QD9 -> 2062-11-01 | QD16: ='Complex Time Line'!QE9 -> 2062-12-01 | QE16: ='Complex Time Line'!QF9 -> 2063-01-01 | QF16: ='Complex Time Line'!QG9 -> 2063-02-01 | QG16: ='Complex Time Line'!QH9 -> 2063-03-01 | QH16: ='Complex Time Line'!QI9 -> 2063-04-01 | QI16: ='Complex Time Line'!QJ9 -> 2063-05-01 | QJ16: ='Complex Time Line'!QK9 -> 2063-06-01 | QK16: ='Complex Time Line'!QL9 -> 2063-07-01 | QL16: ='Complex Time Line'!QM9 -> 2063-08-01 | QM16: ='Complex Time Line'!QN9 -> 2063-09-01 | QN16: ='Complex Time Line'!QO9 -> 2063-10-01 | QO16: ='Complex Time Line'!QP9 -> 2063-11-01 | QP16: ='Complex Time Line'!QQ9 -> 2063-12-01 | QQ16: ='Complex Time Line'!QR9 -> 2064-01-01 | QR16: ='Complex Time Line'!QS9 -> 2064-02-01 | QS16: ='Complex Time Line'!QT9 -> 2064-03-01 | QT16: ='Complex Time Line'!QU9 -> 2064-04-01 | QU16: ='Complex Time Line'!QV9 -> 2064-05-01 | QV16: ='Complex Time Line'!QW9 -> 2064-06-01 | QW16: ='Complex Time Line'!QX9 -> 2064-07-01 | QX16: ='Complex Time Line'!QY9 -> 2064-08-01 | QY16: ='Complex Time Line'!QZ9 -> 2064-09-01 | QZ16: ='Complex Time Line'!RA9 -> 2064-10-01 | RA16: ='Complex Time Line'!RB9 -> 2064-11-01 | RB16: ='Complex Time Line'!RC9 -> 2064-12-01 | RC16: ='Complex Time Line'!RD9 -> 2065-01-01 | RD16: ='Complex Time Line'!RE9 -> 2065-02-01 | RE16: ='Complex Time Line'!RF9 -> 2065-03-01 | RF16: ='Complex Time Line'!RG9 -> 2065-04-01 | RG16: ='Complex Time Line'!RH9 -> 2065-05-01 | RH16: ='Complex Time Line'!RI9 -> 2065-06-01 | RI16: ='Complex Time Line'!RJ9 -> 2065-07-01 | RJ16: ='Complex Time Line'!RK9 -> 2065-08-01 | RK16: ='Complex Time Line'!RL9 -> 2065-09-01 | RL16: ='Complex Time Line'!RM9 -> 2065-10-01 | RM16: ='Complex Time Line'!RN9 -> 2065-11-01 | RN16: ='Complex Time Line'!RO9 -> 2065-12-01 | RO16: ='Complex Time Line'!RP9 -> 2066-01-01 | RP16: ='Complex Time Line'!RQ9 -> 2066-02-01 | RQ16: ='Complex Time Line'!RR9 -> 2066-03-01 | RR16: ='Complex Time Line'!RS9 -> 2066-04-01 | RS16: ='Complex Time Line'!RT9 -> 2066-05-01 | RT16: ='Complex Time Line'!RU9 -> 2066-06-01 | RU16: ='Complex Time Line'!RV9 -> 2066-07-01 | RV16: ='Complex Time Line'!RW9 -> 2066-08-01 | RW16: ='Complex Time Line'!RX9 -> 2066-09-01 | RX16: ='Complex Time Line'!RY9 -> 2066-10-01 | RY16: ='Complex Time Line'!RZ9 -> 2066-11-01 | RZ16: ='Complex Time Line'!SA9 -> 2066-12-01 | SA16: ='Complex Time Line'!SB9 -> 2067-01-01 | SB16: ='Complex Time Line'!SC9 -> 2067-02-01 | SC16: ='Complex Time Line'!SD9 -> 2067-03-01 | SD16: ='Complex Time Line'!SE9 -> 2067-04-01 | SE16: ='Complex Time Line'!SF9 -> 2067-05-01 | SF16: ='Complex Time Line'!SG9 -> 2067-06-01 | SG16: ='Complex Time Line'!SH9 -> 2067-07-01 | SH16: ='Complex Time Line'!SI9 -> 2067-08-01 | SI16: ='Complex Time Line'!SJ9 -> 2067-09-01 | SJ16: ='Complex Time Line'!SK9 -> 2067-10-01 | SK16: ='Complex Time Line'!SL9 -> 2067-11-01 | SL16: ='Complex Time Line'!SM9 -> 2067-12-01 | SM16: ='Complex Time Line'!SN9 -> 2068-01-01 | SN16: ='Complex Time Line'!SO9 -> 2068-02-01 | SO16: ='Complex Time Line'!SP9 -> 2068-03-01 | SP16: ='Complex Time Line'!SQ9 -> 2068-04-01 | SQ16: ='Complex Time Line'!SR9 -> 2068-05-01 | SR16: ='Complex Time Line'!SS9 -> 2068-06-01 | SS16: ='Complex Time Line'!ST9 -> 2068-07-01 | ST16: ='Complex Time Line'!SU9 -> 2068-08-01 | SU16: ='Complex Time Line'!SV9 -> 2068-09-01 | SV16: ='Complex Time Line'!SW9 -> 2068-10-01 | SW16: ='Complex Time Line'!SX9 -> 2068-11-01 | SX16: ='Complex Time Line'!SY9 -> 2068-12-01 | SY16: ='Complex Time Line'!SZ9 -> 2069-01-01 | SZ16: ='Complex Time Line'!TA9 -> 2069-02-01 | TA16: ='Complex Time Line'!TB9 -> 2069-03-01 | TB16: ='Complex Time Line'!TC9 -> 2069-04-01 | TC16: ='Complex Time Line'!TD9 -> 2069-05-01 | TD16: ='Complex Time Line'!TE9 -> 2069-06-01 | TE16: ='Complex Time Line'!TF9 -> 2069-07-01 | TF16: ='Complex Time Line'!TG9 -> 2069-08-01 | TG16: ='Complex Time Line'!TH9 -> 2069-09-01 | TH16: ='Complex Time Line'!TI9 -> 2069-10-01 | TI16: ='Complex Time Line'!TJ9 -> 2069-11-01 | TJ16: ='Complex Time Line'!TK9 -> 2069-12-01 | TK16: ='Complex Time Line'!TL9 -> 2070-01-01 | TL16: ='Complex Time Line'!TM9 -> 2070-02-01 | TM16: ='Complex Time Line'!TN9 -> 2070-03-01 | TN16: ='Complex Time Line'!TO9 -> 2070-04-01 | TO16: ='Complex Time Line'!TP9 -> 2070-05-01 | TP16: ='Complex Time Line'!TQ9 -> 2070-06-01 | TQ16: ='Complex Time Line'!TR9 -> 2070-07-01 | TR16: ='Complex Time Line'!TS9 -> 2070-08-01 | TS16: ='Complex Time Line'!TT9 -> 2070-09-01 | TT16: ='Complex Time Line'!TU9 -> 2070-10-01 | TU16: ='Complex Time Line'!TV9 -> 2070-11-01 | TV16: ='Complex Time Line'!TW9 -> 2070-12-01 | TW16: ='Complex Time Line'!TX9 -> 2071-01-01 | TX16: ='Complex Time Line'!TY9 -> 2071-02-01 | TY16: ='Complex Time Line'!TZ9 -> 2071-03-01 | TZ16: ='Complex Time Line'!UA9 -> 2071-04-01 | UA16: ='Complex Time Line'!UB9 -> 2071-05-01 | UB16: ='Complex Time Line'!UC9 -> 2071-06-01 | UC16: ='Complex Time Line'!UD9 -> 2071-07-01 | UD16: ='Complex Time Line'!UE9 -> 2071-08-01 | UE16: ='Complex Time Line'!UF9 -> 2071-09-01 | UF16: ='Complex Time Line'!UG9 -> 2071-10-01 | UG16: ='Complex Time Line'!UH9 -> 2071-11-01 | UH16: ='Complex Time Line'!UI9 -> 2071-12-01 | UI16: ='Complex Time Line'!UJ9 -> 2072-01-01 | UJ16: ='Complex Time Line'!UK9 -> 2072-02-01 | UK16: ='Complex Time Line'!UL9 -> 2072-03-01 | UL16: ='Complex Time Line'!UM9 -> 2072-04-01 | UM16: ='Complex Time Line'!UN9 -> 2072-05-01
J17: ='Complex Time Line'!K10 -> 2026-08-31 | K17: ='Complex Time Line'!L10 -> 2026-09-30 | L17: ='Complex Time Line'!M10 -> 2026-10-31 | M17: ='Complex Time Line'!N10 -> 2026-11-30 | N17: ='Complex Time Line'!O10 -> 2026-12-31 | O17: ='Complex Time Line'!P10 -> 2027-01-31 | P17: ='Complex Time Line'!Q10 -> 2027-02-28 | Q17: ='Complex Time Line'!R10 -> 2027-03-31 | R17: ='Complex Time Line'!S10 -> 2027-04-30 | S17: ='Complex Time Line'!T10 -> 2027-05-31 | T17: ='Complex Time Line'!U10 -> 2027-06-30 | U17: ='Complex Time Line'!V10 -> 2027-07-31 | V17: ='Complex Time Line'!W10 -> 2027-08-31 | W17: ='Complex Time Line'!X10 -> 2027-09-30 | X17: ='Complex Time Line'!Y10 -> 2027-10-31 | Y17: ='Complex Time Line'!Z10 -> 2027-11-30 | Z17: ='Complex Time Line'!AA10 -> 2027-12-31 | AA17: ='Complex Time Line'!AB10 -> 2028-01-31 | AB17: ='Complex Time Line'!AC10 -> 2028-02-29 | AC17: ='Complex Time Line'!AD10 -> 2028-03-31 | AD17: ='Complex Time Line'!AE10 -> 2028-04-30 | AE17: ='Complex Time Line'!AF10 -> 2028-05-31 | AF17: ='Complex Time Line'!AG10 -> 2028-06-30 | AG17: ='Complex Time Line'!AH10 -> 2028-07-31 | AH17: ='Complex Time Line'!AI10 -> 2028-08-31 | AI17: ='Complex Time Line'!AJ10 -> 2028-09-30 | AJ17: ='Complex Time Line'!AK10 -> 2028-10-31 | AK17: ='Complex Time Line'!AL10 -> 2028-11-30 | AL17: ='Complex Time Line'!AM10 -> 2028-12-31 | AM17: ='Complex Time Line'!AN10 -> 2029-01-31 | AN17: ='Complex Time Line'!AO10 -> 2029-02-28 | AO17: ='Complex Time Line'!AP10 -> 2029-03-31 | AP17: ='Complex Time Line'!AQ10 -> 2029-04-30 | AQ17: ='Complex Time Line'!AR10 -> 2029-05-31 | AR17: ='Complex Time Line'!AS10 -> 2029-06-30 | AS17: ='Complex Time Line'!AT10 -> 2029-07-31 | AT17: ='Complex Time Line'!AU10 -> 2029-08-31 | AU17: ='Complex Time Line'!AV10 -> 2029-09-30 | AV17: ='Complex Time Line'!AW10 -> 2029-10-31 | AW17: ='Complex Time Line'!AX10 -> 2029-11-30 | AX17: ='Complex Time Line'!AY10 -> 2029-12-31 | AY17: ='Complex Time Line'!AZ10 -> 2030-01-31 | AZ17: ='Complex Time Line'!BA10 -> 2030-02-28 | BA17: ='Complex Time Line'!BB10 -> 2030-03-31 | BB17: ='Complex Time Line'!BC10 -> 2030-04-30 | BC17: ='Complex Time Line'!BD10 -> 2030-05-31 | BD17: ='Complex Time Line'!BE10 -> 2030-06-30 | BE17: ='Complex Time Line'!BF10 -> 2030-07-31 | BF17: ='Complex Time Line'!BG10 -> 2030-08-31 | BG17: ='Complex Time Line'!BH10 -> 2030-09-30 | BH17: ='Complex Time Line'!BI10 -> 2030-10-31 | BI17: ='Complex Time Line'!BJ10 -> 2030-11-30 | BJ17: ='Complex Time Line'!BK10 -> 2030-12-31 | BK17: ='Complex Time Line'!BL10 -> 2031-01-31 | BL17: ='Complex Time Line'!BM10 -> 2031-02-28 | BM17: ='Complex Time Line'!BN10 -> 2031-03-31 | BN17: ='Complex Time Line'!BO10 -> 2031-04-30 | BO17: ='Complex Time Line'!BP10 -> 2031-05-31 | BP17: ='Complex Time Line'!BQ10 -> 2031-06-30 | BQ17: ='Complex Time Line'!BR10 -> 2031-07-31 | BR17: ='Complex Time Line'!BS10 -> 2031-08-31 | BS17: ='Complex Time Line'!BT10 -> 2031-09-30 | BT17: ='Complex Time Line'!BU10 -> 2031-10-31 | BU17: ='Complex Time Line'!BV10 -> 2031-11-30 | BV17: ='Complex Time Line'!BW10 -> 2031-12-31 | BW17: ='Complex Time Line'!BX10 -> 2032-01-31 | BX17: ='Complex Time Line'!BY10 -> 2032-02-29 | BY17: ='Complex Time Line'!BZ10 -> 2032-03-31 | BZ17: ='Complex Time Line'!CA10 -> 2032-04-30 | CA17: ='Complex Time Line'!CB10 -> 2032-05-31 | CB17: ='Complex Time Line'!CC10 -> 2032-06-30 | CC17: ='Complex Time Line'!CD10 -> 2032-07-31 | CD17: ='Complex Time Line'!CE10 -> 2032-08-31 | CE17: ='Complex Time Line'!CF10 -> 2032-09-30 | CF17: ='Complex Time Line'!CG10 -> 2032-10-31 | CG17: ='Complex Time Line'!CH10 -> 2032-11-30 | CH17: ='Complex Time Line'!CI10 -> 2032-12-31 | CI17: ='Complex Time Line'!CJ10 -> 2033-01-31 | CJ17: ='Complex Time Line'!CK10 -> 2033-02-28 | CK17: ='Complex Time Line'!CL10 -> 2033-03-31 | CL17: ='Complex Time Line'!CM10 -> 2033-04-30 | CM17: ='Complex Time Line'!CN10 -> 2033-05-31 | CN17: ='Complex Time Line'!CO10 -> 2033-06-30 | CO17: ='Complex Time Line'!CP10 -> 2033-07-31 | CP17: ='Complex Time Line'!CQ10 -> 2033-08-31 | CQ17: ='Complex Time Line'!CR10 -> 2033-09-30 | CR17: ='Complex Time Line'!CS10 -> 2033-10-31 | CS17: ='Complex Time Line'!CT10 -> 2033-11-30 | CT17: ='Complex Time Line'!CU10 -> 2033-12-31 | CU17: ='Complex Time Line'!CV10 -> 2034-01-31 | CV17: ='Complex Time Line'!CW10 -> 2034-02-28 | CW17: ='Complex Time Line'!CX10 -> 2034-03-31 | CX17: ='Complex Time Line'!CY10 -> 2034-04-30 | CY17: ='Complex Time Line'!CZ10 -> 2034-05-31 | CZ17: ='Complex Time Line'!DA10 -> 2034-06-30 | DA17: ='Complex Time Line'!DB10 -> 2034-07-31 | DB17: ='Complex Time Line'!DC10 -> 2034-08-31 | DC17: ='Complex Time Line'!DD10 -> 2034-09-30 | DD17: ='Complex Time Line'!DE10 -> 2034-10-31 | DE17: ='Complex Time Line'!DF10 -> 2034-11-30 | DF17: ='Complex Time Line'!DG10 -> 2034-12-31 | DG17: ='Complex Time Line'!DH10 -> 2035-01-31 | DH17: ='Complex Time Line'!DI10 -> 2035-02-28 | DI17: ='Complex Time Line'!DJ10 -> 2035-03-31 | DJ17: ='Complex Time Line'!DK10 -> 2035-04-30 | DK17: ='Complex Time Line'!DL10 -> 2035-05-31 | DL17: ='Complex Time Line'!DM10 -> 2035-06-30 | DM17: ='Complex Time Line'!DN10 -> 2035-07-31 | DN17: ='Complex Time Line'!DO10 -> 2035-08-31 | DO17: ='Complex Time Line'!DP10 -> 2035-09-30 | DP17: ='Complex Time Line'!DQ10 -> 2035-10-31 | DQ17: ='Complex Time Line'!DR10 -> 2035-11-30 | DR17: ='Complex Time Line'!DS10 -> 2035-12-31 | DS17: ='Complex Time Line'!DT10 -> 2036-01-31 | DT17: ='Complex Time Line'!DU10 -> 2036-02-29 | DU17: ='Complex Time Line'!DV10 -> 2036-03-31 | DV17: ='Complex Time Line'!DW10 -> 2036-04-30 | DW17: ='Complex Time Line'!DX10 -> 2036-05-31 | DX17: ='Complex Time Line'!DY10 -> 2036-06-30 | DY17: ='Complex Time Line'!DZ10 -> 2036-07-31 | DZ17: ='Complex Time Line'!EA10 -> 2036-08-31 | EA17: ='Complex Time Line'!EB10 -> 2036-09-30 | EB17: ='Complex Time Line'!EC10 -> 2036-10-31 | EC17: ='Complex Time Line'!ED10 -> 2036-11-30 | ED17: ='Complex Time Line'!EE10 -> 2036-12-31 | EE17: ='Complex Time Line'!EF10 -> 2037-01-31 | EF17: ='Complex Time Line'!EG10 -> 2037-02-28 | EG17: ='Complex Time Line'!EH10 -> 2037-03-31 | EH17: ='Complex Time Line'!EI10 -> 2037-04-30 | EI17: ='Complex Time Line'!EJ10 -> 2037-05-31 | EJ17: ='Complex Time Line'!EK10 -> 2037-06-30 | EK17: ='Complex Time Line'!EL10 -> 2037-07-31 | EL17: ='Complex Time Line'!EM10 -> 2037-08-31 | EM17: ='Complex Time Line'!EN10 -> 2037-09-30 | EN17: ='Complex Time Line'!EO10 -> 2037-10-31 | EO17: ='Complex Time Line'!EP10 -> 2037-11-30 | EP17: ='Complex Time Line'!EQ10 -> 2037-12-31 | EQ17: ='Complex Time Line'!ER10 -> 2038-01-31 | ER17: ='Complex Time Line'!ES10 -> 2038-02-28 | ES17: ='Complex Time Line'!ET10 -> 2038-03-31 | ET17: ='Complex Time Line'!EU10 -> 2038-04-30 | EU17: ='Complex Time Line'!EV10 -> 2038-05-31 | EV17: ='Complex Time Line'!EW10 -> 2038-06-30 | EW17: ='Complex Time Line'!EX10 -> 2038-07-31 | EX17: ='Complex Time Line'!EY10 -> 2038-08-31 | EY17: ='Complex Time Line'!EZ10 -> 2038-09-30 | EZ17: ='Complex Time Line'!FA10 -> 2038-10-31 | FA17: ='Complex Time Line'!FB10 -> 2038-11-30 | FB17: ='Complex Time Line'!FC10 -> 2038-12-31 | FC17: ='Complex Time Line'!FD10 -> 2039-01-31 | FD17: ='Complex Time Line'!FE10 -> 2039-02-28 | FE17: ='Complex Time Line'!FF10 -> 2039-03-31 | FF17: ='Complex Time Line'!FG10 -> 2039-04-30 | FG17: ='Complex Time Line'!FH10 -> 2039-05-31 | FH17: ='Complex Time Line'!FI10 -> 2039-06-30 | FI17: ='Complex Time Line'!FJ10 -> 2039-07-31 | FJ17: ='Complex Time Line'!FK10 -> 2039-08-31 | FK17: ='Complex Time Line'!FL10 -> 2039-09-30 | FL17: ='Complex Time Line'!FM10 -> 2039-10-31 | FM17: ='Complex Time Line'!FN10 -> 2039-11-30 | FN17: ='Complex Time Line'!FO10 -> 2039-12-31 | FO17: ='Complex Time Line'!FP10 -> 2040-01-31 | FP17: ='Complex Time Line'!FQ10 -> 2040-02-29 | FQ17: ='Complex Time Line'!FR10 -> 2040-03-31 | FR17: ='Complex Time Line'!FS10 -> 2040-04-30 | FS17: ='Complex Time Line'!FT10 -> 2040-05-31 | FT17: ='Complex Time Line'!FU10 -> 2040-06-30 | FU17: ='Complex Time Line'!FV10 -> 2040-07-31 | FV17: ='Complex Time Line'!FW10 -> 2040-08-31 | FW17: ='Complex Time Line'!FX10 -> 2040-09-30 | FX17: ='Complex Time Line'!FY10 -> 2040-10-31 | FY17: ='Complex Time Line'!FZ10 -> 2040-11-30 | FZ17: ='Complex Time Line'!GA10 -> 2040-12-31 | GA17: ='Complex Time Line'!GB10 -> 2041-01-31 | GB17: ='Complex Time Line'!GC10 -> 2041-02-28 | GC17: ='Complex Time Line'!GD10 -> 2041-03-31 | GD17: ='Complex Time Line'!GE10 -> 2041-04-30 | GE17: ='Complex Time Line'!GF10 -> 2041-05-31 | GF17: ='Complex Time Line'!GG10 -> 2041-06-30 | GG17: ='Complex Time Line'!GH10 -> 2041-07-31 | GH17: ='Complex Time Line'!GI10 -> 2041-08-31 | GI17: ='Complex Time Line'!GJ10 -> 2041-09-30 | GJ17: ='Complex Time Line'!GK10 -> 2041-10-31 | GK17: ='Complex Time Line'!GL10 -> 2041-11-30 | GL17: ='Complex Time Line'!GM10 -> 2041-12-31 | GM17: ='Complex Time Line'!GN10 -> 2042-01-31 | GN17: ='Complex Time Line'!GO10 -> 2042-02-28 | GO17: ='Complex Time Line'!GP10 -> 2042-03-31 | GP17: ='Complex Time Line'!GQ10 -> 2042-04-30 | GQ17: ='Complex Time Line'!GR10 -> 2042-05-31 | GR17: ='Complex Time Line'!GS10 -> 2042-06-30 | GS17: ='Complex Time Line'!GT10 -> 2042-07-31 | GT17: ='Complex Time Line'!GU10 -> 2042-08-31 | GU17: ='Complex Time Line'!GV10 -> 2042-09-30 | GV17: ='Complex Time Line'!GW10 -> 2042-10-31 | GW17: ='Complex Time Line'!GX10 -> 2042-11-30 | GX17: ='Complex Time Line'!GY10 -> 2042-12-31 | GY17: ='Complex Time Line'!GZ10 -> 2043-01-31 | GZ17: ='Complex Time Line'!HA10 -> 2043-02-28 | HA17: ='Complex Time Line'!HB10 -> 2043-03-31 | HB17: ='Complex Time Line'!HC10 -> 2043-04-30 | HC17: ='Complex Time Line'!HD10 -> 2043-05-31 | HD17: ='Complex Time Line'!HE10 -> 2043-06-30 | HE17: ='Complex Time Line'!HF10 -> 2043-07-31 | HF17: ='Complex Time Line'!HG10 -> 2043-08-31 | HG17: ='Complex Time Line'!HH10 -> 2043-09-30 | HH17: ='Complex Time Line'!HI10 -> 2043-10-31 | HI17: ='Complex Time Line'!HJ10 -> 2043-11-30 | HJ17: ='Complex Time Line'!HK10 -> 2043-12-31 | HK17: ='Complex Time Line'!HL10 -> 2044-01-31 | HL17: ='Complex Time Line'!HM10 -> 2044-02-29 | HM17: ='Complex Time Line'!HN10 -> 2044-03-31 | HN17: ='Complex Time Line'!HO10 -> 2044-04-30 | HO17: ='Complex Time Line'!HP10 -> 2044-05-31 | HP17: ='Complex Time Line'!HQ10 -> 2044-06-30 | HQ17: ='Complex Time Line'!HR10 -> 2044-07-31 | HR17: ='Complex Time Line'!HS10 -> 2044-08-31 | HS17: ='Complex Time Line'!HT10 -> 2044-09-30 | HT17: ='Complex Time Line'!HU10 -> 2044-10-31 | HU17: ='Complex Time Line'!HV10 -> 2044-11-30 | HV17: ='Complex Time Line'!HW10 -> 2044-12-31 | HW17: ='Complex Time Line'!HX10 -> 2045-01-31 | HX17: ='Complex Time Line'!HY10 -> 2045-02-28 | HY17: ='Complex Time Line'!HZ10 -> 2045-03-31 | HZ17: ='Complex Time Line'!IA10 -> 2045-04-30 | IA17: ='Complex Time Line'!IB10 -> 2045-05-31 | IB17: ='Complex Time Line'!IC10 -> 2045-06-30 | IC17: ='Complex Time Line'!ID10 -> 2045-07-31 | ID17: ='Complex Time Line'!IE10 -> 2045-08-31 | IE17: ='Complex Time Line'!IF10 -> 2045-09-30 | IF17: ='Complex Time Line'!IG10 -> 2045-10-31 | IG17: ='Complex Time Line'!IH10 -> 2045-11-30 | IH17: ='Complex Time Line'!II10 -> 2045-12-31 | II17: ='Complex Time Line'!IJ10 -> 2046-01-31 | IJ17: ='Complex Time Line'!IK10 -> 2046-02-28 | IK17: ='Complex Time Line'!IL10 -> 2046-03-31 | IL17: ='Complex Time Line'!IM10 -> 2046-04-30 | IM17: ='Complex Time Line'!IN10 -> 2046-05-31 | IN17: ='Complex Time Line'!IO10 -> 2046-06-30 | IO17: ='Complex Time Line'!IP10 -> 2046-07-31 | IP17: ='Complex Time Line'!IQ10 -> 2046-08-31 | IQ17: ='Complex Time Line'!IR10 -> 2046-09-30 | IR17: ='Complex Time Line'!IS10 -> 2046-10-31 | IS17: ='Complex Time Line'!IT10 -> 2046-11-30 | IT17: ='Complex Time Line'!IU10 -> 2046-12-31 | IU17: ='Complex Time Line'!IV10 -> 2047-01-31 | IV17: ='Complex Time Line'!IW10 -> 2047-02-28 | IW17: ='Complex Time Line'!IX10 -> 2047-03-31 | IX17: ='Complex Time Line'!IY10 -> 2047-04-30 | IY17: ='Complex Time Line'!IZ10 -> 2047-05-31 | IZ17: ='Complex Time Line'!JA10 -> 2047-06-30 | JA17: ='Complex Time Line'!JB10 -> 2047-07-31 | JB17: ='Complex Time Line'!JC10 -> 2047-08-31 | JC17: ='Complex Time Line'!JD10 -> 2047-09-30 | JD17: ='Complex Time Line'!JE10 -> 2047-10-31 | JE17: ='Complex Time Line'!JF10 -> 2047-11-30 | JF17: ='Complex Time Line'!JG10 -> 2047-12-31 | JG17: ='Complex Time Line'!JH10 -> 2048-01-31 | JH17: ='Complex Time Line'!JI10 -> 2048-02-29 | JI17: ='Complex Time Line'!JJ10 -> 2048-03-31 | JJ17: ='Complex Time Line'!JK10 -> 2048-04-30 | JK17: ='Complex Time Line'!JL10 -> 2048-05-31 | JL17: ='Complex Time Line'!JM10 -> 2048-06-30 | JM17: ='Complex Time Line'!JN10 -> 2048-07-31 | JN17: ='Complex Time Line'!JO10 -> 2048-08-31 | JO17: ='Complex Time Line'!JP10 -> 2048-09-30 | JP17: ='Complex Time Line'!JQ10 -> 2048-10-31 | JQ17: ='Complex Time Line'!JR10 -> 2048-11-30 | JR17: ='Complex Time Line'!JS10 -> 2048-12-31 | JS17: ='Complex Time Line'!JT10 -> 2049-01-31 | JT17: ='Complex Time Line'!JU10 -> 2049-02-28 | JU17: ='Complex Time Line'!JV10 -> 2049-03-31 | JV17: ='Complex Time Line'!JW10 -> 2049-04-30 | JW17: ='Complex Time Line'!JX10 -> 2049-05-31 | JX17: ='Complex Time Line'!JY10 -> 2049-06-30 | JY17: ='Complex Time Line'!JZ10 -> 2049-07-31 | JZ17: ='Complex Time Line'!KA10 -> 2049-08-31 | KA17: ='Complex Time Line'!KB10 -> 2049-09-30 | KB17: ='Complex Time Line'!KC10 -> 2049-10-31 | KC17: ='Complex Time Line'!KD10 -> 2049-11-30 | KD17: ='Complex Time Line'!KE10 -> 2049-12-31 | KE17: ='Complex Time Line'!KF10 -> 2050-01-31 | KF17: ='Complex Time Line'!KG10 -> 2050-02-28 | KG17: ='Complex Time Line'!KH10 -> 2050-03-31 | KH17: ='Complex Time Line'!KI10 -> 2050-04-30 | KI17: ='Complex Time Line'!KJ10 -> 2050-05-31 | KJ17: ='Complex Time Line'!KK10 -> 2050-06-30 | KK17: ='Complex Time Line'!KL10 -> 2050-07-31 | KL17: ='Complex Time Line'!KM10 -> 2050-08-31 | KM17: ='Complex Time Line'!KN10 -> 2050-09-30 | KN17: ='Complex Time Line'!KO10 -> 2050-10-31 | KO17: ='Complex Time Line'!KP10 -> 2050-11-30 | KP17: ='Complex Time Line'!KQ10 -> 2050-12-31 | KQ17: ='Complex Time Line'!KR10 -> 2051-01-31 | KR17: ='Complex Time Line'!KS10 -> 2051-02-28 | KS17: ='Complex Time Line'!KT10 -> 2051-03-31 | KT17: ='Complex Time Line'!KU10 -> 2051-04-30 | KU17: ='Complex Time Line'!KV10 -> 2051-05-31 | KV17: ='Complex Time Line'!KW10 -> 2051-06-30 | KW17: ='Complex Time Line'!KX10 -> 2051-07-31 | KX17: ='Complex Time Line'!KY10 -> 2051-08-31 | KY17: ='Complex Time Line'!KZ10 -> 2051-09-30 | KZ17: ='Complex Time Line'!LA10 -> 2051-10-31 | LA17: ='Complex Time Line'!LB10 -> 2051-11-30 | LB17: ='Complex Time Line'!LC10 -> 2051-12-31 | LC17: ='Complex Time Line'!LD10 -> 2052-01-31 | LD17: ='Complex Time Line'!LE10 -> 2052-02-29 | LE17: ='Complex Time Line'!LF10 -> 2052-03-31 | LF17: ='Complex Time Line'!LG10 -> 2052-04-30 | LG17: ='Complex Time Line'!LH10 -> 2052-05-31 | LH17: ='Complex Time Line'!LI10 -> 2052-06-30 | LI17: ='Complex Time Line'!LJ10 -> 2052-07-31 | LJ17: ='Complex Time Line'!LK10 -> 2052-08-31 | LK17: ='Complex Time Line'!LL10 -> 2052-09-30 | LL17: ='Complex Time Line'!LM10 -> 2052-10-31 | LM17: ='Complex Time Line'!LN10 -> 2052-11-30 | LN17: ='Complex Time Line'!LO10 -> 2052-12-31 | LO17: ='Complex Time Line'!LP10 -> 2053-01-31 | LP17: ='Complex Time Line'!LQ10 -> 2053-02-28 | LQ17: ='Complex Time Line'!LR10 -> 2053-03-31 | LR17: ='Complex Time Line'!LS10 -> 2053-04-30 | LS17: ='Complex Time Line'!LT10 -> 2053-05-31 | LT17: ='Complex Time Line'!LU10 -> 2053-06-30 | LU17: ='Complex Time Line'!LV10 -> 2053-07-31 | LV17: ='Complex Time Line'!LW10 -> 2053-08-31 | LW17: ='Complex Time Line'!LX10 -> 2053-09-30 | LX17: ='Complex Time Line'!LY10 -> 2053-10-31 | LY17: ='Complex Time Line'!LZ10 -> 2053-11-30 | LZ17: ='Complex Time Line'!MA10 -> 2053-12-31 | MA17: ='Complex Time Line'!MB10 -> 2054-01-31 | MB17: ='Complex Time Line'!MC10 -> 2054-02-28 | MC17: ='Complex Time Line'!MD10 -> 2054-03-31 | MD17: ='Complex Time Line'!ME10 -> 2054-04-30 | ME17: ='Complex Time Line'!MF10 -> 2054-05-31 | MF17: ='Complex Time Line'!MG10 -> 2054-06-30 | MG17: ='Complex Time Line'!MH10 -> 2054-07-31 | MH17: ='Complex Time Line'!MI10 -> 2054-08-31 | MI17: ='Complex Time Line'!MJ10 -> 2054-09-30 | MJ17: ='Complex Time Line'!MK10 -> 2054-10-31 | MK17: ='Complex Time Line'!ML10 -> 2054-11-30 | ML17: ='Complex Time Line'!MM10 -> 2054-12-31 | MM17: ='Complex Time Line'!MN10 -> 2055-01-31 | MN17: ='Complex Time Line'!MO10 -> 2055-02-28 | MO17: ='Complex Time Line'!MP10 -> 2055-03-31 | MP17: ='Complex Time Line'!MQ10 -> 2055-04-30 | MQ17: ='Complex Time Line'!MR10 -> 2055-05-31 | MR17: ='Complex Time Line'!MS10 -> 2055-06-30 | MS17: ='Complex Time Line'!MT10 -> 2055-07-31 | MT17: ='Complex Time Line'!MU10 -> 2055-08-31 | MU17: ='Complex Time Line'!MV10 -> 2055-09-30 | MV17: ='Complex Time Line'!MW10 -> 2055-10-31 | MW17: ='Complex Time Line'!MX10 -> 2055-11-30 | MX17: ='Complex Time Line'!MY10 -> 2055-12-31 | MY17: ='Complex Time Line'!MZ10 -> 2056-01-31 | MZ17: ='Complex Time Line'!NA10 -> 2056-02-29 | NA17: ='Complex Time Line'!NB10 -> 2056-03-31 | NB17: ='Complex Time Line'!NC10 -> 2056-04-30 | NC17: ='Complex Time Line'!ND10 -> 2056-05-31 | ND17: ='Complex Time Line'!NE10 -> 2056-06-30 | NE17: ='Complex Time Line'!NF10 -> 2056-07-31 | NF17: ='Complex Time Line'!NG10 -> 2056-08-31 | NG17: ='Complex Time Line'!NH10 -> 2056-09-30 | NH17: ='Complex Time Line'!NI10 -> 2056-10-31 | NI17: ='Complex Time Line'!NJ10 -> 2056-11-30 | NJ17: ='Complex Time Line'!NK10 -> 2056-12-31 | NK17: ='Complex Time Line'!NL10 -> 2057-01-31 | NL17: ='Complex Time Line'!NM10 -> 2057-02-28 | NM17: ='Complex Time Line'!NN10 -> 2057-03-31 | NN17: ='Complex Time Line'!NO10 -> 2057-04-30 | NO17: ='Complex Time Line'!NP10 -> 2057-05-31 | NP17: ='Complex Time Line'!NQ10 -> 2057-06-30 | NQ17: ='Complex Time Line'!NR10 -> 2057-07-31 | NR17: ='Complex Time Line'!NS10 -> 2057-08-31 | NS17: ='Complex Time Line'!NT10 -> 2057-09-30 | NT17: ='Complex Time Line'!NU10 -> 2057-10-31 | NU17: ='Complex Time Line'!NV10 -> 2057-11-30 | NV17: ='Complex Time Line'!NW10 -> 2057-12-31 | NW17: ='Complex Time Line'!NX10 -> 2058-01-31 | NX17: ='Complex Time Line'!NY10 -> 2058-02-28 | NY17: ='Complex Time Line'!NZ10 -> 2058-03-31 | NZ17: ='Complex Time Line'!OA10 -> 2058-04-30 | OA17: ='Complex Time Line'!OB10 -> 2058-05-31 | OB17: ='Complex Time Line'!OC10 -> 2058-06-30 | OC17: ='Complex Time Line'!OD10 -> 2058-07-31 | OD17: ='Complex Time Line'!OE10 -> 2058-08-31 | OE17: ='Complex Time Line'!OF10 -> 2058-09-30 | OF17: ='Complex Time Line'!OG10 -> 2058-10-31 | OG17: ='Complex Time Line'!OH10 -> 2058-11-30 | OH17: ='Complex Time Line'!OI10 -> 2058-12-31 | OI17: ='Complex Time Line'!OJ10 -> 2059-01-31 | OJ17: ='Complex Time Line'!OK10 -> 2059-02-28 | OK17: ='Complex Time Line'!OL10 -> 2059-03-31 | OL17: ='Complex Time Line'!OM10 -> 2059-04-30 | OM17: ='Complex Time Line'!ON10 -> 2059-05-31 | ON17: ='Complex Time Line'!OO10 -> 2059-06-30 | OO17: ='Complex Time Line'!OP10 -> 2059-07-31 | OP17: ='Complex Time Line'!OQ10 -> 2059-08-31 | OQ17: ='Complex Time Line'!OR10 -> 2059-09-30 | OR17: ='Complex Time Line'!OS10 -> 2059-10-31 | OS17: ='Complex Time Line'!OT10 -> 2059-11-30 | OT17: ='Complex Time Line'!OU10 -> 2059-12-31 | OU17: ='Complex Time Line'!OV10 -> 2060-01-31 | OV17: ='Complex Time Line'!OW10 -> 2060-02-29 | OW17: ='Complex Time Line'!OX10 -> 2060-03-31 | OX17: ='Complex Time Line'!OY10 -> 2060-04-30 | OY17: ='Complex Time Line'!OZ10 -> 2060-05-31 | OZ17: ='Complex Time Line'!PA10 -> 2060-06-30 | PA17: ='Complex Time Line'!PB10 -> 2060-07-31 | PB17: ='Complex Time Line'!PC10 -> 2060-08-31 | PC17: ='Complex Time Line'!PD10 -> 2060-09-30 | PD17: ='Complex Time Line'!PE10 -> 2060-10-31 | PE17: ='Complex Time Line'!PF10 -> 2060-11-30 | PF17: ='Complex Time Line'!PG10 -> 2060-12-31 | PG17: ='Complex Time Line'!PH10 -> 2061-01-31 | PH17: ='Complex Time Line'!PI10 -> 2061-02-28 | PI17: ='Complex Time Line'!PJ10 -> 2061-03-31 | PJ17: ='Complex Time Line'!PK10 -> 2061-04-30 | PK17: ='Complex Time Line'!PL10 -> 2061-05-31 | PL17: ='Complex Time Line'!PM10 -> 2061-06-30 | PM17: ='Complex Time Line'!PN10 -> 2061-07-31 | PN17: ='Complex Time Line'!PO10 -> 2061-08-31 | PO17: ='Complex Time Line'!PP10 -> 2061-09-30 | PP17: ='Complex Time Line'!PQ10 -> 2061-10-31 | PQ17: ='Complex Time Line'!PR10 -> 2061-11-30 | PR17: ='Complex Time Line'!PS10 -> 2061-12-31 | PS17: ='Complex Time Line'!PT10 -> 2062-01-31 | PT17: ='Complex Time Line'!PU10 -> 2062-02-28 | PU17: ='Complex Time Line'!PV10 -> 2062-03-31 | PV17: ='Complex Time Line'!PW10 -> 2062-04-30 | PW17: ='Complex Time Line'!PX10 -> 2062-05-31 | PX17: ='Complex Time Line'!PY10 -> 2062-06-30 | PY17: ='Complex Time Line'!PZ10 -> 2062-07-31 | PZ17: ='Complex Time Line'!QA10 -> 2062-08-31 | QA17: ='Complex Time Line'!QB10 -> 2062-09-30 | QB17: ='Complex Time Line'!QC10 -> 2062-10-31 | QC17: ='Complex Time Line'!QD10 -> 2062-11-30 | QD17: ='Complex Time Line'!QE10 -> 2062-12-31 | QE17: ='Complex Time Line'!QF10 -> 2063-01-31 | QF17: ='Complex Time Line'!QG10 -> 2063-02-28 | QG17: ='Complex Time Line'!QH10 -> 2063-03-31 | QH17: ='Complex Time Line'!QI10 -> 2063-04-30 | QI17: ='Complex Time Line'!QJ10 -> 2063-05-31 | QJ17: ='Complex Time Line'!QK10 -> 2063-06-30 | QK17: ='Complex Time Line'!QL10 -> 2063-07-31 | QL17: ='Complex Time Line'!QM10 -> 2063-08-31 | QM17: ='Complex Time Line'!QN10 -> 2063-09-30 | QN17: ='Complex Time Line'!QO10 -> 2063-10-31 | QO17: ='Complex Time Line'!QP10 -> 2063-11-30 | QP17: ='Complex Time Line'!QQ10 -> 2063-12-31 | QQ17: ='Complex Time Line'!QR10 -> 2064-01-31 | QR17: ='Complex Time Line'!QS10 -> 2064-02-29 | QS17: ='Complex Time Line'!QT10 -> 2064-03-31 | QT17: ='Complex Time Line'!QU10 -> 2064-04-30 | QU17: ='Complex Time Line'!QV10 -> 2064-05-31 | QV17: ='Complex Time Line'!QW10 -> 2064-06-30 | QW17: ='Complex Time Line'!QX10 -> 2064-07-31 | QX17: ='Complex Time Line'!QY10 -> 2064-08-31 | QY17: ='Complex Time Line'!QZ10 -> 2064-09-30 | QZ17: ='Complex Time Line'!RA10 -> 2064-10-31 | RA17: ='Complex Time Line'!RB10 -> 2064-11-30 | RB17: ='Complex Time Line'!RC10 -> 2064-12-31 | RC17: ='Complex Time Line'!RD10 -> 2065-01-31 | RD17: ='Complex Time Line'!RE10 -> 2065-02-28 | RE17: ='Complex Time Line'!RF10 -> 2065-03-31 | RF17: ='Complex Time Line'!RG10 -> 2065-04-30 | RG17: ='Complex Time Line'!RH10 -> 2065-05-31 | RH17: ='Complex Time Line'!RI10 -> 2065-06-30 | RI17: ='Complex Time Line'!RJ10 -> 2065-07-31 | RJ17: ='Complex Time Line'!RK10 -> 2065-08-31 | RK17: ='Complex Time Line'!RL10 -> 2065-09-30 | RL17: ='Complex Time Line'!RM10 -> 2065-10-31 | RM17: ='Complex Time Line'!RN10 -> 2065-11-30 | RN17: ='Complex Time Line'!RO10 -> 2065-12-31 | RO17: ='Complex Time Line'!RP10 -> 2066-01-31 | RP17: ='Complex Time Line'!RQ10 -> 2066-02-28 | RQ17: ='Complex Time Line'!RR10 -> 2066-03-31 | RR17: ='Complex Time Line'!RS10 -> 2066-04-30 | RS17: ='Complex Time Line'!RT10 -> 2066-05-31 | RT17: ='Complex Time Line'!RU10 -> 2066-06-30 | RU17: ='Complex Time Line'!RV10 -> 2066-07-31 | RV17: ='Complex Time Line'!RW10 -> 2066-08-31 | RW17: ='Complex Time Line'!RX10 -> 2066-09-30 | RX17: ='Complex Time Line'!RY10 -> 2066-10-31 | RY17: ='Complex Time Line'!RZ10 -> 2066-11-30 | RZ17: ='Complex Time Line'!SA10 -> 2066-12-31 | SA17: ='Complex Time Line'!SB10 -> 2067-01-31 | SB17: ='Complex Time Line'!SC10 -> 2067-02-28 | SC17: ='Complex Time Line'!SD10 -> 2067-03-31 | SD17: ='Complex Time Line'!SE10 -> 2067-04-30 | SE17: ='Complex Time Line'!SF10 -> 2067-05-31 | SF17: ='Complex Time Line'!SG10 -> 2067-06-30 | SG17: ='Complex Time Line'!SH10 -> 2067-07-31 | SH17: ='Complex Time Line'!SI10 -> 2067-08-31 | SI17: ='Complex Time Line'!SJ10 -> 2067-09-30 | SJ17: ='Complex Time Line'!SK10 -> 2067-10-31 | SK17: ='Complex Time Line'!SL10 -> 2067-11-30 | SL17: ='Complex Time Line'!SM10 -> 2067-12-31 | SM17: ='Complex Time Line'!SN10 -> 2068-01-31 | SN17: ='Complex Time Line'!SO10 -> 2068-02-29 | SO17: ='Complex Time Line'!SP10 -> 2068-03-31 | SP17: ='Complex Time Line'!SQ10 -> 2068-04-30 | SQ17: ='Complex Time Line'!SR10 -> 2068-05-31 | SR17: ='Complex Time Line'!SS10 -> 2068-06-30 | SS17: ='Complex Time Line'!ST10 -> 2068-07-31 | ST17: ='Complex Time Line'!SU10 -> 2068-08-31 | SU17: ='Complex Time Line'!SV10 -> 2068-09-30 | SV17: ='Complex Time Line'!SW10 -> 2068-10-31 | SW17: ='Complex Time Line'!SX10 -> 2068-11-30 | SX17: ='Complex Time Line'!SY10 -> 2068-12-31 | SY17: ='Complex Time Line'!SZ10 -> 2069-01-31 | SZ17: ='Complex Time Line'!TA10 -> 2069-02-28 | TA17: ='Complex Time Line'!TB10 -> 2069-03-31 | TB17: ='Complex Time Line'!TC10 -> 2069-04-30 | TC17: ='Complex Time Line'!TD10 -> 2069-05-31 | TD17: ='Complex Time Line'!TE10 -> 2069-06-30 | TE17: ='Complex Time Line'!TF10 -> 2069-07-31 | TF17: ='Complex Time Line'!TG10 -> 2069-08-31 | TG17: ='Complex Time Line'!TH10 -> 2069-09-30 | TH17: ='Complex Time Line'!TI10 -> 2069-10-31 | TI17: ='Complex Time Line'!TJ10 -> 2069-11-30 | TJ17: ='Complex Time Line'!TK10 -> 2069-12-31 | TK17: ='Complex Time Line'!TL10 -> 2070-01-31 | TL17: ='Complex Time Line'!TM10 -> 2070-02-28 | TM17: ='Complex Time Line'!TN10 -> 2070-03-31 | TN17: ='Complex Time Line'!TO10 -> 2070-04-30 | TO17: ='Complex Time Line'!TP10 -> 2070-05-31 | TP17: ='Complex Time Line'!TQ10 -> 2070-06-30 | TQ17: ='Complex Time Line'!TR10 -> 2070-07-31 | TR17: ='Complex Time Line'!TS10 -> 2070-08-31 | TS17: ='Complex Time Line'!TT10 -> 2070-09-30 | TT17: ='Complex Time Line'!TU10 -> 2070-10-31 | TU17: ='Complex Time Line'!TV10 -> 2070-11-30 | TV17: ='Complex Time Line'!TW10 -> 2070-12-31 | TW17: ='Complex Time Line'!TX10 -> 2071-01-31 | TX17: ='Complex Time Line'!TY10 -> 2071-02-28 | TY17: ='Complex Time Line'!TZ10 -> 2071-03-31 | TZ17: ='Complex Time Line'!UA10 -> 2071-04-30 | UA17: ='Complex Time Line'!UB10 -> 2071-05-31 | UB17: ='Complex Time Line'!UC10 -> 2071-06-30 | UC17: ='Complex Time Line'!UD10 -> 2071-07-31 | UD17: ='Complex Time Line'!UE10 -> 2071-08-31 | UE17: ='Complex Time Line'!UF10 -> 2071-09-30 | UF17: ='Complex Time Line'!UG10 -> 2071-10-31 | UG17: ='Complex Time Line'!UH10 -> 2071-11-30 | UH17: ='Complex Time Line'!UI10 -> 2071-12-31 | UI17: ='Complex Time Line'!UJ10 -> 2072-01-31 | UJ17: ='Complex Time Line'!UK10 -> 2072-02-29 | UK17: ='Complex Time Line'!UL10 -> 2072-03-31 | UL17: ='Complex Time Line'!UM10 -> 2072-04-30 | UM17: ='Complex Time Line'!UN10 -> 2072-05-31
F19: Month | H19: Pct of Yr
